Workbook

Sheet Cover
C13: ="RSS Workbook V1.0 " -> RSS Workbook V1.0
C14: =MID(CELL("filename"),SEARCH("[",CELL("filename"))+1, SEARCH("]",CELL("filename"))-SEARCH("[",CELL("filename"))-1) -> RSSModel.BP18Publicexample.xlsm
C15: Home / Contents
C17: Purpose of this Workbook:
C18: The Resource Support Services (RSS) module of RAM, a spreadsheet-based model, calculates the charges and rates applied to resources receiving Resource Support Services. These services include Diurnal Flattening Service (DFS), Secondary Crediting Service (SCS), Forced Outage Reserves (FOR), and Grandfathered Generation Management Service (GMS). The RSS module of RAM will also calculate each customer’s Resource Shaping Charge (RSC), Transmission Scheduling Service (TSS), and the Transmission Curtailment Management Service (TCMS) component of TSS, the aggregate RSS and RSC revenue credits used in RAM Core, and the capacity obligations that will inform BPA generation planning and the Slice model. The RSS module is also the source of operating minimums, planned amounts, and FORS energy limits that are defined in the customer contracts. The RSS model calculates the above for non-federal resources as well as federal resources used as augmentation and federal resources used to support the Tier 2 rate.
C20: Legend:
C22: Tab Colors | H22: Font Colors | L22: Hyperlink Types
C24: Blue Tab | E24: Cover Sheet | H24: Blue Font | I24: Constant Values | L24: Cover Hyperlink | N24: Cover Page
C25: Green Tab | E25: Table of Contents | H25: Black Font | I25: Calculated Values | L25: TOC Hyperlink | N25: TOC
C26: Grey Tabs | E26: Base Case Sheets | H26: Plum Font | I26: Hyperlinks | L26: Sheet Top Hyperlink | N26: é
C27: Rose Tabs | E27: Assumption Sheets | H27: Red Font | I27: Errors
C28: Tan Tabs | E28: Output Sheets | H28: Black/Yellow | I28: Work in Progress
C29: Teal Tabs | E29: Lookup Sheets | H29: Black/Gold | I29: Modifiable Assumptions
C30: Reb Tabs | E30: Log/Error Sheet | H30: White/Grey | I30: Locked Data
C31: Blue Tabs | E31: Non-Spreadsheet Input
C32: Black Tabs | E32: Locked Data Sheet
C35: Model Identifier Convention
C36: PurposeClassification.SubPurposeClassificationIdentifier.ResourceType.SubResourceTypeIdentifier.ApplicablePeriod
C37: Example: NF.1.Hydro.1.2012_2028
C39: PurposeClassification | F39: SubPurposeClassificationIdentifier | J39: ResourceType | L39: SubResourceTypeIdentifier | O39: ApplicablePeriod
C40: [AG] Augmenation | F40: Numerical Value Beginning [1] | J40: Hydro | L40: Numerical Value Beginning [1] | O40: StartFY_EndFY
C41: [ST] Short-Term | J41: BioMass
C42: [LG] Load-Growth | J42: LandFill
C43: [VT] Vintage | J43: Wind
C44: [NF] Non-Federal | J44: Solar
C45: [RS] ResourceShaping | J45: CCCT
J46: SCCT
J47: Mkt
J48: UnSpfd

Sheet TOC
B1: Table of Contents
A2: TOC | B2: =Cover!C14 -> RSSModel.BP18Publicexample.xlsm
A3: é
B4: Sheet Titles | M4: Page
B6: RateInputs | M6: 3
B7: ResourceInputs | M7: =M6+1 -> 4
B8: ResourceProfiles | M8: =M7+1 -> 5
B9: ResourceSelect&Sort&Summarize | M9: 6
B10: RSSRateCalculator | M10: 7
B11: RSSRates&RevenueOutput | M11: 8
B12: RSSContractOutput | M12: 9
B13: RSSRAMOutput | M13: 10
B14: Tier2ModelOutput | M14: 11
B15: LaRIS&LORAModelOutput | M15: 12
B16: DropDownMenueControls | M16: 13
B17: Lookup Tables | M17: 14

Sheet CustomerSpecificSummary
A1: Input drop down in cell A2 | B1: Comparison Count
A2: 10001 Tier 1 BreezyWind | B2: 0
B3: Key | C3: =VALUE(LEFT(A2,5)) -> 10001 | F3: Key
B4: Resource Output Data Year | C4: =RSSRateCalculator!D4 -> FY2016 | F4: Resource Output Data Year
B5: Planned Amount (aMW) | C5: ='ResourceSelect&Sort&Summarize'!U5 -> 14.7465931 | F5: Planned Amount (aMW)
B6: Purchaser | C6: =LEFT(RSSRateCalculator!D7,23) -> Tier 1 | F6: Purchaser
B7: Resource Name | C7: =RSSRateCalculator!D8 -> BreezyWind | F7: Resource Name
B8: BESID | C8: ='ResourceSelect&Sort&Summarize'!D6 -> BPA | F8: BESID
B9: Services & RSC | C9: =RSSRateCalculator!D9 -> DFS TSS TCMS RSC | F9: Services & RSC
B10: Applicable Year(s) | C10: =RSSRateCalculator!D10 -> FY2018&FY2019 | F10: Applicable Year(s)
B11: Operating Minimums ? | C11: =IF(SUMIF('ResourceSelect&Sort&Summarize'!AH12:AI23,"<>0"),"Yes","No") -> No | F11: Operating Minimums ?
B12: Forced Outage Rating | C12: ='ResourceSelect&Sort&Summarize'!AD10 -> 0 | F12: Forced Outage Rating
B13: Estimated Energy Charges | C13: Estimated Monthly Energy Charge ($) | D13: $/MWH | F13: Estimated Energy Charges
B15: DFS | C15: =RSSRateCalculator!I24/12 -> 26133.19125 | D15: =RSSRateCalculator!I27 -> 2.42 | F15: DFS
B16: RSC | C16: =RSSRateCalculator!W28 -> 34351 | D16: =RSSRateCalculator!W27 -> 3.18 | F16: RSC
B17: TSS | C17: =RSSRateCalculator!AD19 -> 994 | D17: =RSSRateCalculator!AD18 -> 0.09210858312 | F17: TSS
B18: TCMS | C18: =RSSRateCalculator!AG19 -> 0 | D18: =RSSRateCalculator!AG18 -> 0 | F18: TCMS
B19: SCS | C19: =RSSRateCalculator!AJ28 -> 0 | D19: =RSSRateCalculator!AJ27 -> 0 | F19: SCS
B20: GMS | C20: =RSSRateCalculator!AM28 -> 0 | D20: =RSSRateCalculator!AM27 -> 0 | F20: GMS
B22: Total Monthly Estimated Energy Charges | C22: =SUM(C15:C20) -> 61478.19125 | F22: Total Monthly Estimated Energy Charges
B24: Capacity Charges | C24: Monthly Capacity Charge ($) | D24: $/MWH | F24: Capacity Charges
B25: DFS | C25: =RSSRateCalculator!L30 -> 133940 | D25: =RSSRateCalculator!L29 -> 12.41 | F25: DFS
B26: FORS | C26: =RSSRateCalculator!Z28 -> 0 | D26: =RSSRateCalculator!Z27 -> 0 | F26: FORS
B27: Total Monthly Estimated Capacity Charges | C27: =SUM(C25:C26) -> 133940 | F27: Total Monthly Estimated Capacity Charges
B29: Net Estimated RSS Monthly Charges | C29: =C22+C27 -> 195418.1913 | F29: Net Estimated RSS Monthly Charges
B30: Forecast Total $/MWh Equivalent Rate | D30: =SUM(D15:D20)+SUM(D25:D26) -> 18.10210858 | F30: Forecast Total $/MWh Equivalent Rate
B32: Net Estimated RSS Annual Charges | C32: =C29*12 -> 2345018.295 | F32: Net Estimated RSS Annual Charges

Sheet RSSRates&RevenueOutput
B1: RSSRates&RevenuesOutput
A2: TOC | B2: =Cover!C14 -> RSSModel.BP18Publicexample.xlsm
A3: é
A4: Key | B4: RSS Model Identifier | C4: BES_ID | D4: Purchaser | E4: Resource Name | F4: Services & RSC | G4: Applicable Year(s) | H4: "ResourceInput" Tab Adj. for Schedule Annual aMW | I4: ="Exh. A " &ResourceProfiles!$D$68 &" Annual aMW" -> Exh. A FY2018 Annual aMW | J4: ="Exh. A " &ResourceProfiles!$D$97 &" Annual aMW" -> Exh. A FY2019 Annual aMW | K4: DFS Energy Rate $/MWh | L4: DFS Capacity Charge $/mo | M4: DFS Capacity $/MWh Equiv. | N4: RSC $/mo | O4: RSC $/MWh Equiv. | P4: FOR Capacity $/mo | Q4: FOR Capacity $/MWh Equiv. | R4: TSS $/mo | S4: TSS $/MWh Equiv. | T4: TCMS $/mo | U4: TCMS $/MWh Equiv. | V4: SCS $/mo | W4: SCS $/MWh Equiv. | X4: GMS $/mo | Y4: GMS $/MWh Equiv. | Z4: ="Revenue Credit to Composite Cost Pool " & ResourceProfiles!D68 -> Revenue Credit to Composite Cost Pool FY2018 | AA4: ="Revenue Credit to Non-Slice Cost Pool " & ResourceProfiles!D68 -> Revenue Credit to Non-Slice Cost Pool FY2018 | AB4: ="Revenue Credit to Composite Cost Pool " &ResourceProfiles!D97 -> Revenue Credit to Composite Cost Pool FY2019 | AC4: ="Revenue Credit to Non-Slice Cost Pool " & ResourceProfiles!D97 -> Revenue Credit to Non-Slice Cost Pool FY2019 | AD4: Forecast Total $/MWh Equivalent Rate
A5: 10001 | B5: NF.1.Wind.1.2018_2019 | C5: BPA | D5: Tier 1 | E5: BreezyWind | F5: DFS TSS TCMS RSC | G5: FY2018&FY2019 | H5: 14.7465931 | I5: 15.96662466 | J5: 15.945 | K5: 2.42 | L5: 133940 | M5: 12.41 | N5: 34351 | O5: 3.18 | P5: 0 | Q5: 0 | R5: 994 | S5: 0.0921 | T5: 0 | U5: 0 | V5: 0 | W5: 0 | X5: 0 | Y5: 0 | Z5: 1619211.2 | AA5: 725812 | AB5: 1619211.2 | AC5: 725812 | AD5: =IF(A5="","",IF(ISERROR(Y5+W5+U5+S5+Q5+O5+M5+K5),0,Y5+W5+U5+S5+Q5+O5+M5+K5)) -> 18.1021
A6: 10002 | B6: NF.2.Hydro.1.2018_2019 | C6: 80000 | D6: Example Customer A | E6: WetWater | F6: DFS FOR TSS TCMS RSC | G6: FY2018&FY2019 | H6: 2.464199653 | I6: 2.457466867 | J6: 2.464199653 | K6: 0.68 | L6: 18925 | M6: 10.52 | N6: 251 | O6: 0.14 | P6: 0 | Q6: 0 | R6: 269 | S6: 0.1493 | T6: 0 | U6: 0 | V6: 0 | W6: 0 | X6: 0 | Y6: 0 | Z6: 230322.0945 | AA6: 17589.5 | AB6: 230322.0945 | AC6: 17589.5 | AD6: =IF(A6="","",IF(ISERROR(Y6+W6+U6+S6+Q6+O6+M6+K6),0,Y6+W6+U6+S6+Q6+O6+M6+K6)) -> 11.4893
A7: 10003 | B7: NF.3.BioMass.1.2018_2019 | C7: 80001 | D7: Example Customer B | E7: WoodyWood | F7: DFS FOR TSS TCMS RSC | G7: FY2018&FY2019 | H7: 7.717274886 | I7: 7.717 | J7: 7.717 | K7: 0.12 | L7: 51380 | M7: 9.12 | N7: -5125 | O7: -0.91 | P7: 0 | Q7: 0 | R7: 805 | S7: 0.143 | T7: 0 | U7: 0 | V7: 0 | W7: 0 | X7: 0 | Y7: 0 | Z7: 626224.4659 | AA7: -53064 | AB7: 626224.4659 | AC7: -53064 | AD7: =IF(A7="","",IF(ISERROR(Y7+W7+U7+S7+Q7+O7+M7+K7),0,Y7+W7+U7+S7+Q7+O7+M7+K7)) -> 8.473
A8: 10004 | B8: NF.4.Wind.2.2018_2019 | C8: 80002 | D8: Example Customer C | E8: WindyWind | F8: DFS TSS TCMS RSC | G8: FY2018&FY2019 | H8: 3.447260274 | I8: 3.43784153 | J8: 3.447260274 | K8: 2.47 | L8: 33679 | M8: 13.38 | N8: -1363 | O8: -0.54 | P8: 0 | Q8: 0 | R8: 369 | S8: 0.1466 | T8: 0 | U8: 0 | V8: 0 | W8: 0 | X8: 0 | Y8: 0 | Z8: 408575.72 | AA8: 58340 | AB8: 408575.72 | AC8: 58340 | AD8: =IF(A8="","",IF(ISERROR(Y8+W8+U8+S8+Q8+O8+M8+K8),0,Y8+W8+U8+S8+Q8+O8+M8+K8)) -> 15.4566
A9: 10005 | B9: NF.5.Solar.1.2018_2019 | C9: 80003 | D9: Example Customer D | E9: SunnySun | F9: DFS RSC | G9: FY2018&FY2019 | H9: 27.52566895 | I9: 27.4504622 | J9: 27.52566895 | K9: 2.99 | L9: 269339 | M9: 13.4 | N9: -11223 | O9: -0.56 | P9: 0 | Q9: 0 | R9: 0 | S9: 0 | T9: 0 | U9: 0 | V9: 0 | W9: 0 | X9: 0 | Y9: 0 | Z9: 3232068 | AA9: 586001.5 | AB9: 3232068 | AC9: 586001.5 | AD9: 15.83
A10: 10006 | B10: NF.6.Hydro.2.2018_2019 | C10: 80004 | D10: Example Customer E | E10: WaterBug | F10: GMS | G10: FY2018&FY2019 | H10: N/A | I10: 0.8892304189 | J10: 0.8892465753 | K10: 0 | L10: 0 | M10: 0 | N10: 0 | O10: 0 | P10: 0 | Q10: 0 | R10: 0 | S10: 0 | T10: 0 | U10: 0 | V10: 0 | W10: 0 | X10: 0 | Y10: 0 | Z10: 0 | AA10: 0 | AB10: 0 | AC10: 0 | AD10: 0
A11: 10007 | B11: NF.7.Hydro.3.2018_2019 | C11: 80005 | D11: Example Customer F | E11: WaterDrop | F11: SCS | G11: FY2018&FY2019 | H11: N/A | I11: 3.515027322 | J11: 3.519589041 | K11: 0 | L11: 0 | M11: 0 | N11: 0 | O11: 0 | P11: 0 | Q11: 0 | R11: 0 | S11: 0 | T11: 0 | U11: 0 | V11: 0 | W11: 0 | X11: 0 | Y11: 0 | Z11: 0 | AA11: 0 | AB11: 0 | AC11: 0 | AD11: 0
AD33: =IF(A33="","",IF(ISERROR(Y33+W33+U33+S33+Q33+O33+M33+K33),0,Y33+W33+U33+S33+Q33+O33+M33+K33)) -> 

Sheet RateInputs
B1: Inputs
A2: TOC | B2: =Cover!C14 -> RSSModel.BP18Publicexample.xlsm
A3: é | E3: Rate Period | F3: First Fy | G3: Second FY | H3: Annual OATI Fee | I3: Cap Multiplier for Unspecified Resources
E4: BP18 | F4: ="FY"& "20" & RIGHT($E$4,2) -> FY2018 | G4: ="FY"& "20" & RIGHT($E$4,2)+1 -> FY2019 | H4: 200 | I4: 1
F5: RS Rate HLH | G5: RS Rate LLH | H5: Demand Rate | I5: Storage Efficiency Loss | J5: Purchase Period (Years) | K5: ="PTK Costs" & " " &F4 -> PTK Costs FY2018 | L5: ="PTK Costs" & " " &G4 -> PTK Costs FY2019 | M5: ="FY20" & (VALUE(RIGHT($E$4,2))-3)& " " &"Scheduled (MWh)" -> FY2015 Scheduled (MWh) | N5: ="FY20" & (VALUE(RIGHT($E$4,2))-2)& " " &"Scheduled (MWh)" -> FY2016 Scheduled (MWh) | O5: ="FY20" & (VALUE(RIGHT($E$4,2))-3)& " " &" Transactions" -> FY2015 Transactions | P5: ="FY20" & (VALUE(RIGHT($E$4,2))-2)& " " &" Transactions" -> FY2016 Transactions | Q5: Ramp Allotment hours | S5: ="HLH Hours " & RIGHT($F$4,4) -> HLH Hours 2018 | T5: ="LLH Hours " & RIGHT($F$4,4) -> LLH Hours 2018 | U5: ="HLH Hours " & RIGHT($G$4,4) -> HLH Hours 2019 | V5: ="LLH Hours " & RIGHT($G$4,4) -> LLH Hours 2019
E6: October | F6: 26.74 | G6: 22.49 | H6: 10.45 | I6: 0.25 | J6: 5 | K6: 3677592.14 | L6: 3803095.91 | M6: 27309297 | N6: 25546455 | O6: 124563 | P6: 105000 | Q6: 1 | R6: October | S6: 416 | T6: 328 | U6: 432 | V6: 312
E7: November | F7: 27.27 | G7: 24.74 | H7: 10.65 | R7: November | S7: 400 | T7: 321 | U7: 400 | V7: 321
E8: December | F8: 30.28 | G8: 26.6 | H8: 11.83 | R8: December | S8: 400 | T8: 344 | U8: 400 | V8: 344
E9: January | F9: 29.3 | G9: 23.94 | H9: 11.45 | R9: January | S9: 416 | T9: 328 | U9: 416 | V9: 328
E10: February | F10: 28.54 | G10: 23.94 | H10: 11.15 | R10: February | S10: 384 | T10: 288 | U10: 384 | V10: 288
E11: March | F11: 23.75 | G11: 20.8 | H11: 9.28 | R11: March | S11: 432 | T11: 311 | U11: 416 | V11: 327
E12: April | F12: 19.67 | G12: 17.54 | H12: 7.68 | R12: April | S12: 400 | T12: 320 | U12: 416 | V12: 304
E13: May | F13: 16.63 | G13: 11.25 | H13: 6.49 | R13: May | S13: 416 | T13: 328 | U13: 416 | V13: 328
E14: June | F14: 17.71 | G14: 9.31 | H14: 6.92 | R14: June | S14: 416 | T14: 304 | U14: 400 | V14: 320
E15: July | F15: 24.66 | G15: 19.05 | H15: 9.63 | R15: July | S15: 400 | T15: 344 | U15: 416 | V15: 328
E16: August | F16: 28.11 | G16: 22.61 | H16: 10.98 | R16: August | S16: 432 | T16: 312 | U16: 432 | V16: 312
E17: September | F17: 27.94 | G17: 22.19 | H17: 10.91 | R17: September | S17: 384 | T17: 336 | U17: 384 | V17: 336
H18: =AVERAGE(H6:H17) -> 9.785 | S18: =SUM(S6:S17) -> 4896 | T18: =SUM(T6:T17) -> 3864 | U18: 4912 | V18: 3848
T19: =S18+T18 -> 8760 | V19: =U18+V18 -> 8760
F164: 3.05 | G164: 0.05 | H164: 8.939 | I164: 253.464 | J164: 78.4 | K164: 163 | O164: 5.235 | P164: 14.2
F165: 1.75 | G165: 0.45 | H165: 8.412 | I165: 253.08 | J165: 105.34 | K165: 164 | O165: 5.25 | P165: 13.9
F166: 0.65 | G166: 0.8 | H166: 8.249 | I166: 253.032 | J166: 52.54 | K166: 163 | O166: 5.245 | P166: 15.75
F167: 0.4 | G167: 2.3 | H167: 8.319 | I167: 252.792 | J167: 11.31 | K167: 164 | O167: 5.245 | P167: 18.1
F168: 1.85 | G168: 2.15 | H168: 8.506 | I168: 252.888 | J168: 0.47 | K168: 164 | O168: 5.24 | P168: 20.15
F169: 12.25 | G169: 2.45 | H169: 8.892 | I169: 253.176 | J169: 0 | K169: 163 | O169: 5.24 | P169: 18.85
F170: 42.2 | G170: 1.5 | H170: 8.951 | I170: 253.08 | J170: 0 | K170: 164 | O170: 5.245 | P170: 18.7
F171: 43.95 | G171: 1.45 | H171: 9.021 | I171: 253.44 | J171: 0 | K171: 164 | O171: 5.225 | P171: 18.25
F172: 46.5 | G172: 2.1 | H172: 8.974 | I172: 253.488 | J172: 0 | K172: 163 | O172: 5.215 | P172: 17.25
F173: 46.9 | G173: 4.85 | H173: 8.635 | I173: 253.296 | J173: 0 | K173: 163 | O173: 5.23 | P173: 16.7
F174: 46 | G174: 6.75 | H174: 8.6 | I174: 253.272 | J174: 0 | K174: 164 | O174: 5.24 | P174: 15.6
F175: 43.05 | G175: 10.85 | H175: 8.939 | I175: 253.104 | J175: 0 | K175: 163 | O175: 5.225 | P175: 14.25
F176: 43.4 | G176: 24.45 | H176: 8.892 | I176: 253.104 | J176: 0 | K176: 163 | O176: 5.235 | P176: 12.5
F177: 35.7 | G177: 24.6 | H177: 8.845 | I177: 253.152 | J177: 0 | K177: 164 | O177: 5.195 | P177: 11.85
F178: 38.2 | G178: 18.25 | H178: 8.857 | I178: 253.32 | J178: 0 | K178: 163 | O178: 5.24 | P178: 10.7
F179: 46.3 | G179: 6.5 | H179: 8.845 | I179: 253.776 | J179: 0 | K179: 163 | O179: 5.195 | P179: 10.1
F180: 39.65 | G180: 37.3 | H180: 8.834 | I180: 254.112 | J180: 0 | K180: 164 | O180: 5.225 | P180: 9.7
F181: 39.4 | G181: 48.25 | H181: 8.81 | I181: 254.04 | J181: 0 | K181: 163 | O181: 5.21 | P181: 9.2
F182: 45.55 | G182: 42.3 | H182: 8.763 | I182: 254.088 | J182: 0 | K182: 164 | O182: 5.215 | P182: 8.8
F183: 33.55 | G183: 20.9 | H183: 8.798 | I183: 253.68 | J183: 0 | K183: 163 | O183: 5.215 | P183: 11.55
F184: 43.4 | G184: 11.85 | H184: 8.74 | I184: 253.32 | J184: 1.28 | K184: 163 | O184: 5.225 | P184: 13.75
F185: 45.9 | G185: 10.85 | H185: 8.798 | I185: 253.008 | J185: 8.23 | K185: 164 | O185: 5.2 | P185: 17.15
F186: 46.2 | G186: 18.55 | H186: 8.787 | I186: 252.96 | J186: 22.42 | K186: 163 | O186: 5.2 | P186: 13.15
F187: 46.7 | G187: 19.8 | H187: 8.763 | I187: 253.152 | J187: 21.2 | K187: 164 | O187: 5.195 | P187: 9.6
F188: 47.35 | G188: 31.35 | H188: 8.798 | I188: 253.488 | J188: 63.45 | K188: 164 | O188: 5.22 | P188: 6.85
F189: 46.45 | G189: 26.55 | H189: 8.763 | I189: 253.368 | J189: 48.41 | K189: 164 | O189: 5.22 | P189: 3.5
F190: 46.3 | G190: 27.4 | H190: 8.857 | I190: 253.296 | J190: 13.52 | K190: 164 | O190: 5.21 | P190: 1.1
F191: 46.5 | G191: 14.3 | H191: 8.834 | I191: 253.224 | J191: 2.65 | K191: 164 | O191: 5.215 | P191: 0.05
F192: 47.3 | G192: 13.75 | H192: 8.787 | I192: 253.488 | J192: 0 | K192: 164 | O192: 5.22 | P192: 0
F193: 46.6 | G193: 15.65 | H193: 8.834 | I193: 253.344 | J193: 0 | K193: 164 | O193: 5.215 | P193: 0
F194: 48.35 | G194: 35.2 | H194: 8.88 | I194: 253.32 | J194: 0 | K194: 164 | O194: 5.19 | P194: 0
F195: 48.15 | G195: 43.6 | H195: 8.845 | I195: 253.248 | J195: 0 | K195: 164 | O195: 5.195 | P195: 0
F196: 47.75 | G196: 46.8 | H196: 8.834 | I196: 253.08 | J196: 0 | K196: 163 | O196: 5.21 | P196: 0.2
F197: 49.05 | G197: 48.75 | H197: 8.564 | I197: 253.128 | J197: 0 | K197: 164 | O197: 5.205 | P197: 0.1
F198: 49.05 | G198: 49.1 | H198: 8.646 | I198: 252.936 | J198: 0 | K198: 163 | O198: 5.265 | P198: 0
F199: 47.55 | G199: 39.95 | H199: 8.857 | I199: 252.504 | J199: 0 | K199: 163 | O199: 5.245 | P199: 0
F200: 47.85 | G200: 23.75 | H200: 8.834 | I200: 252.12 | J200: 0 | K200: 164 | O200: 5.27 | P200: 0.05
F201: 48.6 | G201: 35.4 | H201: 8.81 | I201: 251.904 | J201: 0 | K201: 163 | O201: 5.275 | P201: 0.1
F202: 46.3 | G202: 43.2 | H202: 8.81 | I202: 251.952 | J202: 0 | K202: 163 | O202: 5.275 | P202: 0.05
F203: 42.8 | G203: 39.8 | H203: 8.845 | I203: 251.784 | J203: 0 | K203: 164 | O203: 5.275 | P203: 0.25
F204: 32.9 | G204: 39.4 | H204: 8.822 | I204: 251.688 | J204: 0 | K204: 163 | O204: 5.27 | P204: 0.05
F205: 30.85 | G205: 38.65 | H205: 8.869 | I205: 251.496 | J205: 0 | K205: 164 | O205: 5.245 | P205: 0
F206: 16.3 | G206: 36.05 | H206: 8.81 | I206: 251.376 | J206: 0 | K206: 163 | O206: 5.205 | P206: 0
F207: 26.85 | G207: 30.1 | H207: 8.822 | I207: 251.064 | J207: 0 | K207: 163 | O207: 5.205 | P207: 0
F208: 30.6 | G208: 20.25 | H208: 8.81 | I208: 250.944 | J208: 4.95 | K208: 164 | O208: 5.21 | P208: 0
F209: 26.65 | G209: 18.15 | H209: 8.728 | I209: 250.68 | J209: 30.36 | K209: 163 | O209: 5.19 | P209: 0
F210: 17.5 | G210: 13.15 | H210: 8.787 | I210: 250.608 | J210: 34.78 | K210: 164 | O210: 5.17 | P210: 0
F211: 13.25 | G211: 8.1 | H211: 8.693 | I211: 250.296 | J211: 9.7 | K211: 163 | O211: 5.19 | P211: 0.05
F212: 16.55 | G212: 6.2 | H212: 8.424 | I212: 250.2 | J212: 26.23 | K212: 164 | O212: 5.185 | P212: 0.25
F213: 9.25 | G213: 7.95 | H213: 8.658 | I213: 250.32 | J213: 5.67 | K213: 164 | O213: 5.18 | P213: 0.85
F214: 10.7 | G214: 13.6 | H214: 8.635 | I214: 250.776 | J214: 9.13 | K214: 165 | O214: 5.18 | P214: 1.65
F215: 11.4 | G215: 20 | H215: 8.717 | I215: 250.56 | J215: 2.3 | K215: 164 | O215: 5.18 | P215: 2.4
F216: 19.55 | G216: 20.25 | H216: 8.67 | I216: 250.728 | J216: 0.44 | K216: 164 | O216: 5.185 | P216: 1.4
F217: 26.85 | G217: 14.3 | H217: 8.681 | I217: 251.04 | J217: 0 | K217: 164 | O217: 5.18 | P217: 3.95
F218: 34.9 | G218: 8.35 | H218: 8.728 | I218: 251.376 | J218: 0 | K218: 164 | O218: 5.18 | P218: 2.45
F219: 35.9 | G219: 3.1 | H219: 8.951 | I219: 251.64 | J219: 0 | K219: 164 | O219: 5.17 | P219: 0.55
F220: 42.85 | G220: 3.25 | H220: 8.951 | I220: 251.208 | J220: 0 | K220: 164 | O220: 5.185 | P220: 0.55
F221: 46 | G221: 12.5 | H221: 8.588 | I221: 251.232 | J221: 0 | K221: 164 | O221: 5.185 | P221: 0.85
F222: 43 | G222: 22.25 | H222: 8.728 | I222: 251.376 | J222: 0 | K222: 163 | O222: 5.24 | P222: 0
F223: 43.1 | G223: 32.1 | H223: 8.845 | I223: 251.472 | J223: 0 | K223: 164 | O223: 5.215 | P223: 0
F224: 47.15 | G224: 36.7 | H224: 8.81 | I224: 251.496 | J224: 0 | K224: 164 | O224: 5.215 | P224: 9.15
F225: 37.05 | G225: 25.3 | H225: 8.81 | I225: 251.784 | J225: 0 | K225: 163 | O225: 5.195 | P225: 8.4
F226: 32.8 | G226: 14.3 | H226: 8.892 | I226: 251.712 | J226: 0 | K226: 164 | O226: 5.235 | P226: 9.2
F227: 31.65 | G227: 7.8 | H227: 8.915 | I227: 252.048 | J227: 0 | K227: 163 | O227: 5.225 | P227: 7.4
F228: 28.1 | G228: 7.75 | H228: 8.915 | I228: 252.336 | J228: 0 | K228: 164 | O228: 5.215 | P228: 5.9
F229: 26 | G229: 5.6 | H229: 8.939 | I229: 252.336 | J229: 0 | K229: 163 | O229: 5.215 | P229: 5.05
F230: 21.3 | G230: 3.75 | H230: 8.915 | I230: 252.24 | J230: 0 | K230: 164 | O230: 5.22 | P230: 3.65
F231: 21.9 | G231: 1.4 | H231: 8.822 | I231: 252.168 | J231: 0 | K231: 164 | O231: 5.205 | P231: 3.65
F232: 26.7 | G232: 1.2 | H232: 8.787 | I232: 252.216 | J232: 5.62 | K232: 163 | O232: 5.195 | P232: 2.95
F233: 25.2 | G233: 1.4 | H233: 8.869 | I233: 252.24 | J233: 37.06 | K233: 164 | O233: 5.2 | P233: 2.3
F234: 23.2 | G234: 1.65 | H234: 8.834 | I234: 251.832 | J234: 30.92 | K234: 164 | O234: 5.195 | P234: 6.1
F235: 32.7 | G235: 5.2 | H235: 8.845 | I235: 251.424 | J235: 67 | K235: 164 | O235: 5.205 | P235: 10.25
F236: 37.7 | G236: 13.15 | H236: 8.892 | I236: 250.68 | J236: 56.05 | K236: 164 | O236: 5.205 | P236: 13.75
F237: 42.2 | G237: 8.1 | H237: 8.88 | I237: 250.44 | J237: 19.31 | K237: 164 | O237: 5.2 | P237: 15.45
F238: 44 | G238: 4.65 | H238: 8.892 | I238: 250.824 | J238: 14.71 | K238: 164 | O238: 5.21 | P238: 23.3
F239: 46.75 | G239: 4.1 | H239: 8.939 | I239: 250.752 | J239: 3.47 | K239: 164 | O239: 5.23 | P239: 25.15
F240: 45.7 | G240: 4.4 | H240: 8.939 | I240: 250.752 | J240: 0 | K240: 164 | O240: 5.21 | P240: 25.1
F241: 46.45 | G241: 14.75 | H241: 8.857 | I241: 250.992 | J241: 0 | K241: 164 | O241: 5.24 | P241: 24.6
F242: 47.5 | G242: 30.2 | H242: 8.904 | I242: 251.136 | J242: 0 | K242: 164 | O242: 5.205 | P242: 20.3
F243: 48.8 | G243: 37.6 | H243: 8.927 | I243: 251.544 | J243: 0 | K243: 164 | O243: 5.21 | P243: 13.45
F244: 47.9 | G244: 13.45 | H244: 8.904 | I244: 251.352 | J244: 0 | K244: 163 | O244: 5.205 | P244: 13.4
F245: 48.25 | G245: 7 | H245: 8.588 | I245: 252.192 | J245: 0 | K245: 164 | O245: 5.21 | P245: 11.1
F246: 45.4 | G246: 0.8 | H246: 8.389 | I246: 252.552 | J246: 0 | K246: 164 | O246: 5.255 | P246: 9.1
F247: 43.6 | G247: 14.7 | H247: 8.951 | I247: 251.376 | J247: 0 | K247: 163 | O247: 5.235 | P247: 6.1
F248: 45.5 | G248: 20 | H248: 8.951 | I248: 251.544 | J248: 0 | K248: 163 | O248: 5.245 | P248: 6.15
F249: 43.85 | G249: 22.7 | H249: 8.997 | I249: 252.24 | J249: 0 | K249: 164 | O249: 5.235 | P249: 6.8
F250: 32.2 | G250: 24.35 | H250: 8.927 | I250: 252.672 | J250: 0 | K250: 163 | O250: 5.265 | P250: 4.5
F251: 41.25 | G251: 14.55 | H251: 8.951 | I251: 252.408 | J251: 0 | K251: 164 | O251: 5.265 | P251: 6.5
F252: 36.45 | G252: 14.25 | H252: 8.904 | I252: 252.6 | J252: 0 | K252: 163 | O252: 5.27 | P252: 5.7
F253: 36.6 | G253: 12.2 | H253: 8.798 | I253: 252.648 | J253: 0 | K253: 164 | O253: 5.27 | P253: 4.6
F254: 36.15 | G254: 13.05 | H254: 8.822 | I254: 252.48 | J254: 0 | K254: 163 | O254: 5.28 | P254: 3.65
F255: 37.3 | G255: 14.3 | H255: 8.834 | I255: 251.568 | J255: 0 | K255: 164 | O255: 5.24 | P255: 2.2
F256: 32.05 | G256: 12.7 | H256: 8.845 | I256: 250.968 | J256: 16.73 | K256: 163 | O256: 5.23 | P256: 1.9
F257: 18.5 | G257: 14.55 | H257: 8.74 | I257: 250.32 | J257: 35.79 | K257: 163 | O257: 5.235 | P257: 3.5
F258: 7.55 | G258: 10.15 | H258: 8.74 | I258: 249.096 | J258: 13.25 | K258: 164 | O258: 5.22 | P258: 2.2
F259: 1.9 | G259: 1.6 | H259: 8.74 | I259: 249.024 | J259: 91.99 | K259: 163 | O259: 5.2 | P259: 1.35
F260: 0.55 | G260: 1.1 | H260: 8.752 | I260: 248.664 | J260: 100.73 | K260: 164 | O260: 5.18 | P260: 1
F261: 1.2 | G261: 0.1 | H261: 8.822 | I261: 248.424 | J261: 93.77 | K261: 164 | O261: 5.17 | P261: 0.55
F262: 3.7 | G262: 0.45 | H262: 8.81 | I262: 247.872 | J262: 66.14 | K262: 164 | O262: 5.165 | P262: 0.9
F263: 7.2 | G263: 0.3 | H263: 8.822 | I263: 248.136 | J263: 22.92 | K263: 164 | O263: 5.165 | P263: 1.35
F264: 10.6 | G264: 0.1 | H264: 8.892 | I264: 248.352 | J264: 0.85 | K264: 164 | O264: 5.155 | P264: 1.2
F265: 22.15 | G265: 0.05 | H265: 8.869 | I265: 249.048 | J265: 0 | K265: 164 | O265: 5.155 | P265: 2.9
F266: 42.4 | G266: 0 | H266: 8.845 | I266: 249.648 | J266: 0 | K266: 164 | O266: 5.105 | P266: 8.9
F267: 44.75 | G267: 0.5 | H267: 8.845 | I267: 249.72 | J267: 0 | K267: 164 | O267: 5.11 | P267: 18.9
F268: 46.5 | G268: 0.25 | H268: 8.857 | I268: 249.504 | J268: 0 | K268: 163 | O268: 5.1 | P268: 20.3
F269: 47.25 | G269: 0 | H269: 8.342 | I269: 249.72 | J269: 0 | K269: 164 | O269: 5.105 | P269: 19.6
F270: 46.55 | G270: 0 | H270: 8.401 | I270: 250.032 | J270: 0 | K270: 163 | O270: 5.195 | P270: 19
F271: 46.05 | G271: 0.55 | H271: 8.88 | I271: 249.912 | J271: 0 | K271: 163 | O271: 5.19 | P271: 15.9
F272: 46.25 | G272: 0.6 | H272: 8.904 | I272: 249.912 | J272: 0 | K272: 164 | O272: 5.165 | P272: 18.35
F273: 44.5 | G273: 0.35 | H273: 8.88 | I273: 250.56 | J273: 0 | K273: 163 | O273: 5.16 | P273: 15.7
F274: 39.45 | G274: 0 | H274: 8.892 | I274: 250.248 | J274: 0 | K274: 164 | O274: 5.22 | P274: 12.1
F275: 27.05 | G275: 0 | H275: 8.904 | I275: 249.6 | J275: 0 | K275: 163 | O275: 5.225 | P275: 9.7
F276: 17.7 | G276: 0 | H276: 8.915 | I276: 252.048 | J276: 0 | K276: 164 | O276: 5.195 | P276: 9.35
F277: 17.65 | G277: 0 | H277: 8.939 | I277: 251.736 | J277: 0 | K277: 163 | O277: 5.21 | P277: 8.6
F278: 14.4 | G278: 0.2 | H278: 8.752 | I278: 251.256 | J278: 0 | K278: 164 | O278: 5.215 | P278: 10.3
F279: 11.3 | G279: 0.3 | H279: 8.6 | I279: 251.256 | J279: 0 | K279: 163 | O279: 5.23 | P279: 7.35
F280: 9.05 | G280: 0.05 | H280: 8.763 | I280: 250.32 | J280: 10.14 | K280: 164 | O280: 5.23 | P280: 5.05
F281: 5.05 | G281: 0 | H281: 8.974 | I281: 250.536 | J281: 33.78 | K281: 164 | O281: 5.205 | P281: 3.15
F282: 1.4 | G282: 0 | H282: 9.044 | I282: 249.984 | J282: 57.36 | K282: 163 | O282: 5.21 | P282: 1.35
F283: 0 | G283: 0 | H283: 9.021 | I283: 249.6 | J283: 36.46 | K283: 164 | O283: 5.205 | P283: 0
F284: 0 | G284: 0.05 | H284: 8.974 | I284: 249.336 | J284: 25.45 | K284: 164 | O284: 5.215 | P284: 0
F285: 0 | G285: 0.15 | H285: 8.904 | I285: 249.624 | J285: 11.12 | K285: 164 | O285: 5.205 | P285: 0
F286: 0 | G286: 0.9 | H286: 8.904 | I286: 250.104 | J286: 25.55 | K286: 164 | O286: 5.185 | P286: 0
F287: 0.05 | G287: 1.1 | H287: 8.915 | I287: 250.392 | J287: 11.83 | K287: 164 | O287: 5.175 | P287: 0
F288: 0.05 | G288: 1.3 | H288: 8.974 | I288: 250.608 | J288: 1.39 | K288: 164 | O288: 5.16 | P288: 0.05
F289: 0.25 | G289: 0.75 | H289: 8.974 | I289: 250.704 | J289: 0 | K289: 165 | O289: 5.145 | P289: 0
F290: 0.05 | G290: 0 | H290: 9.009 | I290: 250.68 | J290: 0 | K290: 164 | O290: 5.13 | P290: 0.15
F291: 0 | G291: 0 | H291: 9.021 | I291: 250.8 | J291: 0 | K291: 164 | O291: 5.09 | P291: 0.15
F292: 3.8 | G292: 0 | H292: 9.021 | I292: 250.992 | J292: 0 | K292: 164 | O292: 5.095 | P292: 0
F293: 6.6 | G293: 0 | H293: 8.681 | I293: 251.112 | J293: 0 | K293: 163 | O293: 5.08 | P293: 0
F294: 8.75 | G294: 0 | H294: 8.412 | I294: 251.568 | J294: 0 | K294: 164 | O294: 5.115 | P294: 0
F295: 9.4 | G295: 0 | H295: 8.366 | I295: 251.76 | J295: 0 | K295: 164 | O295: 5.135 | P295: 0.15
F296: 7.95 | G296: 0 | H296: 8.553 | I296: 251.76 | J296: 0 | K296: 163 | O296: 5.155 | P296: 0
F297: 4.45 | G297: 0.2 | H297: 8.869 | I297: 252.024 | J297: 0 | K297: 164 | O297: 5.165 | P297: 0
F298: 3.45 | G298: 0.85 | H298: 8.81 | I298: 251.976 | J298: 0 | K298: 163 | O298: 5.18 | P298: 0
F299: 1.75 | G299: 1.4 | H299: 8.845 | I299: 251.352 | J299: 0 | K299: 163 | O299: 5.185 | P299: 0
F300: 0.35 | G300: 1.5 | H300: 8.869 | I300: 250.752 | J300: 0 | K300: 164 | O300: 5.19 | P300: 0
F301: 0.35 | G301: 1.8 | H301: 8.857 | I301: 250.704 | J301: 0 | K301: 163 | O301: 5.18 | P301: 0
F302: 0.05 | G302: 2.65 | H302: 8.845 | I302: 250.608 | J302: 0 | K302: 164 | O302: 5.19 | P302: 0
F303: 0 | G303: 1.55 | H303: 8.646 | I303: 250.44 | J303: 0 | K303: 163 | O303: 5.185 | P303: 0
F304: 0 | G304: 0.6 | H304: 8.623 | I304: 250.44 | J304: 11.73 | K304: 164 | O304: 5.19 | P304: 0
F305: 0 | G305: 0.3 | H305: 8.693 | I305: 250.296 | J305: 39.96 | K305: 163 | O305: 5.165 | P305: 0
F306: 0.35 | G306: 0.6 | H306: 8.74 | I306: 249.84 | J306: 33.17 | K306: 164 | O306: 5.16 | P306: 1
F307: 1.35 | G307: 2 | H307: 8.763 | I307: 249.432 | J307: 99.39 | K307: 164 | O307: 5.155 | P307: 1.65
F308: 4.2 | G308: 2 | H308: 8.81 | I308: 249.048 | J308: 99.98 | K308: 164 | O308: 5.155 | P308: 2.7
F309: 6.7 | G309: 2.25 | H309: 8.483 | I309: 248.448 | J309: 85.21 | K309: 163 | O309: 5.16 | P309: 4.3
F310: 6.15 | G310: 2.6 | H310: 8.541 | I310: 247.872 | J310: 59.09 | K310: 164 | O310: 5.16 | P310: 3.25
F311: 4.75 | G311: 3.55 | H311: 8.798 | I311: 248.4 | J311: 9.8 | K311: 165 | O311: 5.2 | P311: 1.7
F312: 3.7 | G312: 4.2 | H312: 8.798 | I312: 249.48 | J312: 0.08 | K312: 164 | O312: 5.2 | P312: 1.25
F313: 2.75 | G313: 6.55 | H313: 8.798 | I313: 249.6 | J313: 0 | K313: 164 | O313: 5.205 | P313: 1.15
F314: 1.95 | G314: 6.4 | H314: 8.717 | I314: 249.72 | J314: 0 | K314: 163 | O314: 5.165 | P314: 0.75
F315: 2.4 | G315: 5.4 | H315: 8.752 | I315: 249.744 | J315: 0 | K315: 164 | O315: 5.175 | P315: 0.1
F316: 2.25 | G316: 6.9 | H316: 8.892 | I316: 249.624 | J316: 0 | K316: 164 | O316: 5.18 | P316: 0
F317: 1.5 | G317: 4.1 | H317: 8.553 | I317: 249.528 | J317: 0 | K317: 163 | O317: 5.2 | P317: 0.05
F318: 0.2 | G318: 3.3 | H318: 8.366 | I318: 249.36 | J318: 0 | K318: 163 | O318: 5.2 | P318: 0.3
F319: 0 | G319: 2.8 | H319: 8.225 | I319: 250.008 | J319: 0 | K319: 164 | O319: 5.22 | P319: 0
F320: 0 | G320: 2.95 | H320: 8.705 | I320: 250.44 | J320: 0 | K320: 163 | O320: 5.215 | P320: 0
F321: 0 | G321: 4.25 | H321: 8.904 | I321: 250.416 | J321: 0 | K321: 163 | O321: 5.22 | P321: 0
F322: 0 | G322: 3.2 | H322: 8.915 | I322: 250.272 | J322: 0 | K322: 164 | O322: 5.225 | P322: 0
F323: 0 | G323: 1.75 | H323: 8.845 | I323: 250.392 | J323: 0 | K323: 163 | O323: 5.235 | P323: 0
F324: 0.15 | G324: 2.3 | H324: 8.904 | I324: 250.488 | J324: 0 | K324: 163 | O324: 5.23 | P324: 0.05
F325: 0.7 | G325: 2.45 | H325: 8.951 | I325: 250.608 | J325: 0 | K325: 164 | O325: 5.23 | P325: 0.45
F326: 1.25 | G326: 2.7 | H326: 8.915 | I326: 250.56 | J326: 0 | K326: 163 | O326: 5.235 | P326: 0.5
F327: 1.55 | G327: 0.4 | H327: 8.588 | I327: 250.32 | J327: 0 | K327: 163 | O327: 5.235 | P327: 0.6
F328: 0.45 | G328: 0.1 | H328: 8.471 | I328: 250.344 | J328: 0 | K328: 163 | O328: 5.235 | P328: 0.45
F329: 0.05 | G329: 0.4 | H329: 8.81 | I329: 250.512 | J329: 0.02 | K329: 163 | O329: 5.24 | P329: 0
F330: 0 | G330: 0.65 | H330: 8.798 | I330: 250.296 | J330: 2.29 | K330: 164 | O330: 5.25 | P330: 0
F331: 0 | G331: 0 | H331: 8.834 | I331: 249.72 | J331: 7.86 | K331: 163 | O331: 5.255 | P331: 0
F332: 0 | G332: 0 | H332: 8.822 | I332: 249.456 | J332: 7.84 | K332: 164 | O332: 5.25 | P332: 0
F333: 0 | G333: 0.3 | H333: 8.787 | I333: 249.312 | J333: 14.47 | K333: 164 | O333: 5.26 | P333: 0
F334: 0.45 | G334: 0.8 | H334: 8.822 | I334: 248.856 | J334: 8.39 | K334: 164 | O334: 5.26 | P334: 0
F335: 3.85 | G335: 0.9 | H335: 8.798 | I335: 249.144 | J335: 0.34 | K335: 164 | O335: 5.255 | P335: 0
F336: 16.7 | G336: 0.55 | H336: 8.834 | I336: 249.816 | J336: 0.04 | K336: 164 | O336: 5.255 | P336: 1
F337: 43.2 | G337: 0.05 | H337: 8.892 | I337: 249.768 | J337: 0 | K337: 164 | O337: 5.225 | P337: 7.05
F338: 45.8 | G338: 0.2 | H338: 8.822 | I338: 249.6 | J338: 0 | K338: 164 | O338: 5.195 | P338: 14.85
F339: 45.7 | G339: 2.4 | H339: 8.986 | I339: 249.48 | J339: 0 | K339: 164 | O339: 5.2 | P339: 14.35
F340: 46.6 | G340: 2.2 | H340: 8.88 | I340: 248.568 | J340: 0 | K340: 163 | O340: 5.2 | P340: 13.15
F341: 47.9 | G341: 14.95 | H341: 8.635 | I341: 248.304 | J341: 0 | K341: 163 | O341: 5.205 | P341: 12.55
F342: 47.95 | G342: 34.9 | H342: 8.576 | I342: 248.304 | J342: 0 | K342: 164 | O342: 5.22 | P342: 12.1
F343: 47.75 | G343: 6.35 | H343: 8.553 | I343: 248.736 | J343: 0 | K343: 163 | O343: 5.225 | P343: 9.95
F344: 47.35 | G344: 0.2 | H344: 8.564 | I344: 248.928 | J344: 0 | K344: 163 | O344: 5.22 | P344: 7
... 4156 more rows

Sheet Tier2Purchases
B1: Tier2Purchases
A2: TOC | B2: RSSModel.Nopublic.beta1.xls
A3: Vlookup Index | B3: 1 | C3: 2 | D3: 3 | E3: 4 | F3: 5 | G3: 6 | H3: 7 | I3: 8 | J3: 9 | K3: 10 | L3: 11 | M3: 12 | N3: 13 | O3: 14 | P3: 16 | Q3: 17 | R3: 18 | S3: 19
A4: é | B4: start_date | C4: maturity_date | D4: trade_date | E4: internal_portfolio | F4: tran_status | G4: hours | H4: price | I4: revenue | J4: position | K4: choice | L4: product | M4: term | N4: Description | O4: reference | P4: buy_sell | Q4: RIS | R4: deal_num | S4: pt_of_receipt_loc
B5: 2012-10-01 | C5: 2013-09-30 | D5: 2010-04-05 | E5: Load Growth T2 | F5: Validated | G5: 8760 | H5: 46.2 | I5: -607068 | J5: 1.5 | K5: Seller's Choice | L5: FLAT | M5: Yearly | N5: Energy | O5: T2 load growth | P5: Buy | Q5: 79572 | R5: 187994 | S5: MID-C
B6: 2012-10-01 | C6: 2013-09-30 | D6: 2010-05-24 | E6: Load Growth T2 | F6: Validated | G6: 8760 | H6: 45.7 | I6: -480398.4 | J6: 1.2 | K6: Seller's Choice | L6: FLAT | M6: Yearly | N6: Energy | O6: Related to deal #191524 | P6: Buy | Q6: 79572 | R6: 191735 | S6: MID-C
B7: 2012-10-01 | C7: 2013-09-30 | D7: 2010-05-24 | E7: ST Default Rate T2 | F7: Validated | G7: 8760 | H7: 45.7 | I7: -9527901.6 | J7: 23.8 | K7: Seller's Choice | L7: FLAT | M7: Yearly | N7: Energy | O7: Related to deal #191735 | P7: Buy | Q7: 79571 | R7: 191524 | S7: MID-C
B8: 2011-10-01 | C8: 2012-09-30 | D8: 2010-04-01 | E8: ST Default Rate T2 | F8: Validated | G8: 8784 | H8: 43.7 | I8: -8444937.6 | J8: 22 | K8: Seller's Choice | L8: FLAT | M8: Yearly | N8: Energy | O8: t2 st default rate | P8: Buy | Q8: 79571 | R8: 187997 | S8: MID-C
B9: 2012-10-01 | C9: 2013-09-30 | D9: 2010-04-05 | E9: ST Default Rate T2 | F9: Validated | G9: 8760 | H9: 46.2 | I9: -12748428 | J9: 31.5 | K9: Seller's Choice | L9: FLAT | M9: Yearly | N9: Energy | O9: T2 st default rate | P9: Buy | Q9: 79571 | R9: 187995 | S9: MID-C
B10: 2013-10-01 | C10: 2014-09-30 | D10: 2012-11-16 | E10: ST Default Rate T2 | F10: Validated | G10: 8760 | H10: 33.28 | I10: -4664524.8 | J10: 16 | K10: Seller's Choice | L10: FLAT | M10: Strip | N10: Energy | O10: Energy | P10: Buy | Q10: 79571 | R10: 309934 | S10: MID-C
B11: 2013-10-01 | C11: 2014-09-30 | D11: 2012-11-16 | E11: Load Growth T2 | F11: Validated | G11: 8760 | H11: 33.28 | I11: -291532.8 | J11: 1 | K11: Seller's Choice | L11: FLAT | M11: Strip | N11: Energy | O11: Energy | P11: Buy | Q11: 79572 | R11: 309948 | S11: MID-C
B12: 2014-10-01 | C12: 2015-09-30 | D12: 2011-12-20 | E12: Load Growth T2 | F12: Validated | G12: 8760 | H12: 39.12 | I12: -1713456 | J12: 5 | K12: Seller's Choice | L12: FLAT | M12: Strip | N12: Energy | O12: Energy | P12: Buy | Q12: 79572 | R12: 245587 | S12: MID-C
B13: 2014-10-01 | C13: 2015-09-30 | D13: 2012-11-16 | E13: ST Default Rate T2 | F13: Validated | G13: 8760 | H13: 37.25 | I13: -6852510 | J13: 21 | K13: Seller's Choice | L13: FLAT | M13: Strip | N13: Energy | O13: Energy | P13: Buy | Q13: 79571 | R13: 309931 | S13: MID-C
B14: 2014-10-01 | C14: 2015-09-30 | D14: 2012-11-16 | E14: Vintage T2 | F14: Validated | G14: 8760 | H14: 37.25 | I14: -326310 | J14: 1 | K14: Seller's Choice | L14: FLAT | M14: Strip | N14: Energy | O14: Energy | P14: Buy | Q14: 79576 | R14: 309949 | S14: MID-C
B15: 2014-10-01 | C15: 2015-09-30 | D15: 2011-12-14 | E15: Vintage T2 | F15: Validated | G15: 8760 | H15: 39.12 | I15: -15763795.2 | J15: 46 | K15: Seller's Choice | L15: FLAT | M15: Strip | N15: Energy | O15: Energy | P15: Buy | Q15: 79576 | R15: 245280 | S15: MID-C
B16: 2015-10-01 | C16: 2016-09-30 | D16: 2011-12-14 | E16: Vintage T2 | F16: Validated | G16: 8784 | H16: 42.47 | I16: -17160598.08 | J16: 46 | K16: Seller's Choice | L16: FLAT | M16: Strip | N16: Energy | O16: related to # 245589 | P16: Buy | Q16: 79576 | R16: 245281 | S16: MID-C
B17: 2015-10-01 | C17: 2016-09-30 | D17: 2011-12-20 | E17: Load Growth T2 | F17: Validated | G17: 8784 | H17: 42.47 | I17: -1865282.4 | J17: 5 | K17: Seller's Choice | L17: FLAT | M17: Strip | N17: Energy | O17: related to # 245281 | P17: Buy | Q17: 79572 | R17: 245589 | S17: MID-C
B18: 2016-10-01 | C18: 2017-09-30 | D18: 2011-12-14 | E18: Vintage T2 | F18: Validated | G18: 8760 | H18: 46.7 | I18: -18818232 | J18: 46 | K18: Seller's Choice | L18: FLAT | M18: Strip | N18: Energy | O18: related to # 245591 | P18: Buy | Q18: 79576 | R18: 245282 | S18: MID-C
B19: 2016-10-01 | C19: 2017-09-30 | D19: 2011-12-20 | E19: Load Growth T2 | F19: Validated | G19: 8760 | H19: 46.7 | I19: -2045460 | J19: 5 | K19: Seller's Choice | L19: FLAT | M19: Strip | N19: Energy | O19: related to # 245282 | P19: Buy | Q19: 79572 | R19: 245591 | S19: MID-C
B20: 2015-10-01 | C20: 2016-09-30 | D20: 2012-12-07 | E20: Vintage T2 | F20: Validated | G20: 8784 | H20: 38.35 | I20: -3031797.6 | J20: 9 | K20: Seller's Choice | L20: FLAT | M20: Strip | N20: Energy | O20: Tier 2 Vintage FY16 | P20: Buy | Q20: 79577 | R20: 314963 | S20: MID-C
B21: 2016-10-01 | C21: 2017-09-30 | D21: 2012-12-07 | E21: Vintage T2 | F21: Validated | G21: 8760 | H21: 40.8 | I21: -5718528 | J21: 16 | K21: Seller's Choice | L21: FLAT | M21: Strip | N21: Energy | O21: Tier 2 Vintage FY17 | P21: Buy | Q21: 79577 | R21: 314965 | S21: MID-C
B22: 2017-10-01 | C22: 2018-09-30 | D22: 2011-12-14 | E22: Vintage T2 | F22: Validated | G22: 8760 | H22: 49.4 | I22: -19906224 | J22: 46 | K22: Seller's Choice | L22: FLAT | M22: Strip | N22: Energy | O22: related to # 245283 | P22: Buy | Q22: 79576 | R22: 245283 | S22: MID-C
B23: 2017-10-01 | C23: 2018-09-30 | D23: 2012-12-07 | E23: Vintage T2 | F23: Validated | G23: 8760 | H23: 44.5 | I23: -8965860 | J23: 23 | K23: Seller's Choice | L23: FLAT | M23: Strip | N23: Energy | O23: Tier 2 Vintage FY18 | P23: Buy | Q23: 79577 | R23: 314966 | S23: MID-C
B24: 2017-10-01 | C24: 2018-09-30 | D24: 2011-12-20 | E24: Load Growth T2 | F24: Validated | G24: 8760 | H24: 49.4 | I24: -2163720 | J24: 5 | K24: Seller's Choice | L24: FLAT | M24: Strip | N24: Energy | O24: related to #245283 | P24: Buy | Q24: 79572 | R24: 245585 | S24: MID-C
B25: 2018-10-01 | C25: 2019-09-30 | D25: 2012-12-07 | E25: Vintage T2 | F25: Validated | G25: 8760 | H25: 46.05 | I25: -10891746 | J25: 27 | K25: Seller's Choice | L25: FLAT | M25: Strip | N25: Energy | O25: Tier 2 Vintage FY19 | P25: Buy | Q25: 79577 | R25: 314969 | S25: MID-C
B26: 2018-10-01 | C26: 2019-09-30 | D26: 2011-12-14 | E26: Vintage T2 | F26: Validated | G26: 8760 | H26: 51.05 | I26: -20571108 | J26: 46 | K26: Seller's Choice | L26: FLAT | M26: Strip | N26: Energy | O26: related to #245582 | P26: Buy | Q26: 79576 | R26: 245284 | S26: MID-C
B27: 2018-10-01 | C27: 2019-09-30 | D27: 2011-12-20 | E27: Load Growth T2 | F27: Validated | G27: 8760 | H27: 51.05 | I27: -2235990 | J27: 5 | K27: Seller's Choice | L27: FLAT | M27: Strip | N27: Energy | O27: related #245284 | P27: Buy | Q27: 79572 | R27: 245582 | S27: MID-C
B28: 2018-10-01 | C28: 2019-09-30 | D28: 2017-02-20 | E28: ST T2 | F28: Validated | G28: 8760 | H28: 23 | I28: -6850320 | J28: 34 | K28: Seller's Choice | L28: FLAT | M28: Strip | N28: Energy | O28: related #571583 | P28: 7 | Q28: Buy | R28: 79571 | S28: 571580 | T28: MID-C
B29: 2018-10-01 | C29: 2019-09-30 | D29: 2017-02-20 | E29: Load Growth T2 | F29: Validated | G29: 8760 | H29: 23 | I29: -302220 | J29: 1.5 | K29: Seller's Choice | L29: FLAT | M29: Strip | N29: Energy | O29: related #571585 | P29: 8 | Q29: Buy | R29: 79572 | S29: 571583 | T29: MID-C
B30: 2018-10-01 | C30: 2019-09-30 | D30: 2017-02-20 | E30: Vintage T2 | F30: Validated | G30: 8760 | H30: 23 | I30: -201480 | J30: 1 | K30: Seller's Choice | L30: FLAT | M30: Strip | N30: Energy | O30: related #571580 | P30: 9 | Q30: Buy | R30: 79576 | S30: 571585 | T30: MID-C
B31: 2018-10-01 | C31: 2019-09-30 | D31: 2017-02-20 | E31: Vintage T2 | F31: Validated | G31: 8760 | H31: 23 | I31: -100740 | J31: 0.5 | K31: Seller's Choice | L31: FLAT | M31: Strip | N31: Energy | O31: related #571583 | P31: 10 | Q31: Buy | R31: 79577 | S31: 571585 | T31: MID-C

Sheet ResourceInputs
B1: Resource Inputs | F1: 2 | G1: 3 | H1: 4 | I1: 5 | J1: 6 | K1: 7 | L1: 8
A2: Benton Rural Electric Association | E2: =COUNT($F$3:$HN$3)+4 -> 11
A3: Unspecified Resource Amounts | B3: Unspecified Resource Amounts | E3: 10000 | F3: =E3+1 -> 10001 | G3: =F3+1 -> 10002 | H3: 10003 | I3: 10004 | J3: 10005 | K3: 10006 | L3: 10007
B4: Resource Output Data Year | F4: FY2016 | G4: FY2015 | H4: FY2015 | I4: FY2015 | J4: FY2015 | K4: N/A | L4: N/A
B5: Model Identifier | E5: 3 | F5: =IF(LEFT(F6,2)="NF",LEFT(F6,2)&"."&VLOOKUP(F6,$E$8826:$HN$8831,F1,FALSE)&"."&F7&"."&VLOOKUP(F7,$E$8804:$HN$8813,F1,FALSE)&"."&F8&"_"&F9,LEFT(F6,2)&"."&VLOOKUP(F6,$E$8826:$HN$8831,F1,FALSE)&"."&F7&"."&VLOOKUP(F7,$E$8815:$HN$8824,F1,FALSE)&"."&F8&"_"&F9) -> NF.1.Wind.1.2018_2019 | G5: NF.2.Hydro.1.2018_2019 | H5: NF.3.BioMass.1.2018_2019 | I5: NF.4.Wind.2.2018_2019 | J5: NF.5.Solar.1.2018_2019 | K5: NF.6.Hydro.2.2018_2019 | L5: NF.7.Hydro.3.2018_2019
C6: Purpose | E6: 4 | F6: NF Non-Federal | G6: NF Non-Federal | H6: NF Non-Federal | I6: NF Non-Federal | J6: NF Non-Federal | K6: NF Non-Federal | L6: NF Non-Federal
E7: 6 | F7: Wind | G7: Hydro | H7: BioMass | I7: Wind | J7: Solar | K7: Hydro | L7: Hydro
C8: StartYear (FY) | E8: 7 | F8: 2018 | G8: 2018 | H8: 2018 | I8: 2018 | J8: 2018 | K8: 2018 | L8: 2018
C9: EndYear (FY) | E9: 8 | F9: 2019 | G9: 2019 | H9: 2019 | I9: 2019 | J9: 2019 | K9: 2019 | L9: 2019
C10: Purchaser | E10: 9 | F10: Tier 1 | G10: Example Customer A | H10: Example Customer B | I10: Example Customer C | J10: Example Customer D | K10: Example Customer E | L10: Example Customer F
C11: BES_ID | E11: 10 | F11: BPA | G11: 80000 | H11: 80001 | I11: 80002 | J11: 80003 | K11: 80004 | L11: 80005
C12: Resource ID (GRID) | E12: 11 | F12: 3000 | G12: 3001 | H12: 3002 | I12: 3003 | J12: 3004 | K12: 3005 | L12: 3006
C13: Resource Name | E13: 12 | F13: BreezyWind | G13: WetWater | H13: WoodyWood | I13: WindyWind | J13: SunnySun | K13: WaterBug | L13: WaterDrop
D14: Source of Data (info only) | E14: 13 | F14: Historical Metered | G14: Historical Metered | H14: Historical Metered | I14: Historical Metered | J14: Historical Metered | K14: N/A | L14: N/A
D15: Meter/Share | E15: 14
D16: Pricing Treatment Schedule Resource or Not Scheduled | E16: 15 | F16: Not Scheduled | G16: Not Scheduled | H16: Not Scheduled | I16: Not Scheduled | J16: Not Scheduled | K16: N/A | L16: N/A
E17: 16 | F17: 7.58004 | G17: 1.3671 | H17: 8.576 | I17: 3 | J17: 0 | K17: N/A | L17: N/A
E18: 17 | F18: 11.18 | G18: 1.3671 | H18: 8.787 | I18: 3 | J18: 0 | K18: N/A | L18: N/A
E19: 18 | F19: 6.17136 | G19: 1.3671 | H19: 8.845 | I19: 3 | J19: 0 | K19: N/A | L19: N/A
E20: 19 | F20: 1.63228 | G20: 1.1191 | H20: 8.857 | I20: 5 | J20: 0 | K20: N/A | L20: N/A
E21: 20 | F21: 3.48816 | G21: 1.1191 | H21: 5.979 | I21: 4 | J21: 0 | K21: N/A | L21: N/A
E22: 21 | F22: 8.1614 | G22: 1.1191 | H22: 8.834 | I22: 3 | J22: 0 | K22: N/A | L22: N/A
E23: 22 | F23: 9.34648 | G23: 1.1191 | H23: 8.81 | I23: 5 | J23: 0 | K23: N/A | L23: N/A
E24: 23 | F24: 3.93536 | G24: 1.1191 | H24: 8.529 | I24: 5 | J24: 0 | K24: N/A | L24: N/A
E25: 24 | F25: 1.05092 | G25: 1.128125 | H25: 8.424 | I25: 4 | J25: 3.13 | K25: N/A | L25: N/A
E26: 25 | F26: 1.29688 | G26: 1.6606 | H26: 8.447 | I26: 6 | J26: 7.43 | K26: N/A | L26: N/A
E27: 26 | F27: 0.76024 | G27: 2.066725 | H27: 8.471 | I27: 4 | J27: 10.27 | K27: N/A | L27: N/A
E28: 27 | F28: 0 | G28: 2.066725 | H28: 8.834 | I28: 4 | J28: 0 | K28: N/A | L28: N/A
E29: 28 | F29: 0.02236 | G29: 2.0577 | H29: 8.845 | I29: 3 | J29: 0 | K29: N/A | L29: N/A
E30: 29 | F30: 0.13416 | G30: 2.573044 | H30: 8.717 | I30: 5 | J30: 0 | K30: N/A | L30: N/A
E31: 30 | F31: 0 | G31: 2.573044 | H31: 8.6 | I31: 2 | J31: 0 | K31: N/A | L31: N/A
E32: 31 | F32: 0 | G32: 2.561808 | H32: 8.693 | I32: 2 | J32: 0 | K32: N/A | L32: N/A
E33: 32 | F33: 0 | G33: 2.573044 | H33: 8.904 | I33: 2 | J33: 0 | K33: N/A | L33: N/A
E34: 33 | F34: 0.15652 | G34: 2.561808 | H34: 8.869 | I34: 3 | J34: 0 | K34: N/A | L34: N/A
E35: 34 | F35: 3.19748 | G35: 2.573044 | H35: 8.892 | I35: 3 | J35: 0 | K35: N/A | L35: N/A
E36: 35 | F36: 17.50788 | G36: 2.561808 | H36: 8.869 | I36: 4 | J36: 0 | K36: N/A | L36: N/A
E37: 36 | F37: 29.69408 | G37: 2.561808 | H37: 8.869 | I37: 1 | J37: 0 | K37: N/A | L37: N/A
E38: 37 | F38: 45.838 | G38: 2.561808 | H38: 8.366 | I38: 3 | J38: 0 | K38: N/A | L38: N/A
E39: 38 | F39: 49.3038 | G39: 2.561808 | H39: 8.295 | I39: 1 | J39: 0 | K39: N/A | L39: N/A
E40: 39 | F40: 49.28144 | G40: 2.561808 | H40: 8.354 | I40: 1 | J40: 0 | K40: N/A | L40: N/A
E41: 40 | F41: 43.64672 | G41: 2.561808 | H41: 8.459 | I41: 1 | J41: 0 | K41: N/A | L41: N/A
E42: 41 | F42: 35.776 | G42: 2.561808 | H42: 8.857 | I42: 0 | J42: 0 | K42: N/A | L42: N/A
E43: 42 | F43: 45.25664 | G43: 2.189712 | H43: 8.752 | I43: 2 | J43: 0 | K43: N/A | L43: N/A
E44: 43 | F44: 44.07156 | G44: 1.6473 | H44: 8.834 | I44: 0 | J44: 0 | K44: N/A | L44: N/A
E45: 44 | F45: 33.45056 | G45: 1.6473 | H45: 8.822 | I45: 0 | J45: 0 | K45: N/A | L45: N/A
E46: 45 | F46: 30.67792 | G46: 1.6473 | H46: 8.775 | I46: 0 | J46: 0 | K46: N/A | L46: N/A
E47: 46 | F47: 37.7884 | G47: 1.6473 | H47: 8.857 | I47: 0 | J47: 0 | K47: N/A | L47: N/A
E48: 47 | F48: 37.81076 | G48: 1.6473 | H48: 8.588 | I48: 0 | J48: 0 | K48: N/A | L48: N/A
E49: 48 | F49: 36.02196 | G49: 1.5028 | H49: 8.33 | I49: 0 | J49: 0 | K49: N/A | L49: N/A
E50: 49 | F50: 43.602 | G50: 1.408875 | H50: 8.354 | I50: 0 | J50: 0 | K50: N/A | L50: N/A
E51: 50 | F51: 46.0616 | G51: 1.4161 | H51: 8.588 | I51: 0 | J51: 0 | K51: N/A | L51: N/A
E52: 51 | F52: 46.68768 | G52: 1.4161 | H52: 8.728 | I52: 0 | J52: 0 | K52: N/A | L52: N/A
E53: 52 | F53: 47.9622 | G53: 2.729104 | H53: 8.798 | I53: 1 | J53: 0 | K53: N/A | L53: N/A
E54: 53 | F54: 48.81188 | G54: 2.729104 | H54: 8.611 | I54: 0 | J54: 0 | K54: N/A | L54: N/A
E55: 54 | F55: 48.72244 | G55: 2.729104 | H55: 8.412 | I55: 0 | J55: 0 | K55: N/A | L55: N/A
E56: 55 | F56: 49.0802 | G56: 2.729104 | H56: 8.693 | I56: 0 | J56: 0 | K56: N/A | L56: N/A
E57: 56 | F57: 48.00692 | G57: 2.729104 | H57: 8.892 | I57: 0 | J57: 0 | K57: N/A | L57: N/A
E58: 57 | F58: 47.42556 | G58: 2.729104 | H58: 8.88 | I58: 0 | J58: 0 | K58: N/A | L58: N/A
E59: 58 | F59: 44.4964 | G59: 2.729104 | H59: 8.904 | I59: 0 | J59: 0 | K59: N/A | L59: N/A
E60: 59 | F60: 48.074 | G60: 2.729104 | H60: 8.857 | I60: 0 | J60: 0 | K60: N/A | L60: N/A
E61: 60 | F61: 48.49884 | G61: 2.71518 | H61: 8.845 | I61: 0 | J61: 0 | K61: N/A | L61: N/A
E62: 61 | F62: 48.70008 | G62: 2.729104 | H62: 8.459 | I62: 0 | J62: 0 | K62: N/A | L62: N/A
E63: 62 | F63: 44.65292 | G63: 2.1609 | H63: 7.394 | I63: 1 | J63: 0 | K63: N/A | L63: N/A
E64: 63 | F64: 40.807 | G64: 2.149875 | H64: 7.757 | I64: 0 | J64: 0 | K64: N/A | L64: N/A
E65: 64 | F65: 38.48156 | G65: 2.1609 | H65: 8.108 | I65: 0 | J65: 0 | K65: N/A | L65: N/A
E66: 65 | F66: 47.02308 | G66: 1.7689 | H66: 8.225 | I66: 0 | J66: 0 | K66: N/A | L66: N/A
E67: 66 | F67: 47.58208 | G67: 1.759875 | H67: 8.213 | I67: 0 | J67: 0 | K67: N/A | L67: N/A
E68: 67 | F68: 46.71004 | G68: 1.7689 | H68: 8.167 | I68: 1 | J68: 0 | K68: N/A | L68: N/A
E69: 68 | F69: 42.01444 | G69: 1.7689 | H69: 8.249 | I69: 2 | J69: 0 | K69: N/A | L69: N/A
E70: 69 | F70: 31.03568 | G70: 1.7689 | H70: 8.307 | I70: 1 | J70: 0 | K70: N/A | L70: N/A
E71: 70 | F71: 19.02836 | G71: 1.759875 | H71: 8.33 | I71: 1 | J71: 0 | K71: N/A | L71: N/A
E72: 71 | F72: 12.7452 | G72: 1.7689 | H72: 8.225 | I72: 1 | J72: 0 | K72: N/A | L72: N/A
E73: 72 | F73: 9.1676 | G73: 1.89525 | H73: 8.225 | I73: 2 | J73: 0 | K73: N/A | L73: N/A
E74: 73 | F74: 8.96636 | G74: 1.96745 | H74: 8.693 | I74: 2 | J74: 0 | K74: N/A | L74: N/A
E75: 74 | F75: 4.00244 | G75: 1.976475 | H75: 8.869 | I75: 1 | J75: 0 | K75: N/A | L75: N/A
E76: 75 | F76: 0.04472 | G76: 2.460684 | H76: 8.857 | I76: 0 | J76: 0 | K76: N/A | L76: N/A
E77: 76 | F77: 0.06708 | G77: 2.460684 | H77: 8.869 | I77: 1 | J77: 0 | K77: N/A | L77: N/A
E78: 77 | F78: 2.25836 | G78: 2.460684 | H78: 8.74 | I78: 1 | J78: 0 | K78: N/A | L78: N/A
E79: 78 | F79: 1.94532 | G79: 2.460684 | H79: 8.588 | I79: 2 | J79: 0 | K79: N/A | L79: N/A
E80: 79 | F80: 3.44344 | G80: 2.460684 | H80: 8.623 | I80: 2 | J80: 0 | K80: N/A | L80: N/A
E81: 80 | F81: 3.89064 | G81: 2.460684 | H81: 8.915 | I81: 2 | J81: 0 | K81: N/A | L81: N/A
E82: 81 | F82: 3.53288 | G82: 2.460684 | H82: 8.845 | I82: 2 | J82: 0 | K82: N/A | L82: N/A
E83: 82 | F83: 1.60992 | G83: 2.460684 | H83: 8.857 | I83: 2 | J83: 0 | K83: N/A | L83: N/A
E84: 83 | F84: 0.51428 | G84: 2.460684 | H84: 8.869 | I84: 2 | J84: 0 | K84: N/A | L84: N/A
E85: 84 | F85: 0 | G85: 2.460684 | H85: 8.869 | I85: 3 | J85: 0 | K85: N/A | L85: N/A
E86: 85 | F86: 0 | G86: 2.449448 | H86: 8.857 | I86: 2 | J86: 0 | K86: N/A | L86: N/A
E87: 86 | F87: 0 | G87: 2.460684 | H87: 8.822 | I87: 6 | J87: 0 | K87: N/A | L87: N/A
E88: 87 | F88: 0 | G88: 2.449448 | H88: 8.763 | I88: 5 | J88: 0 | K88: N/A | L88: N/A
E89: 88 | F89: 0.8944 | G89: 2.103276 | H89: 8.845 | I89: 3 | J89: 0 | K89: N/A | L89: N/A
E90: 89 | F90: 3.33164 | G90: 1.582275 | H90: 8.834 | I90: 3 | J90: 0 | K90: N/A | L90: N/A
E91: 90 | F91: 0.08944 | G91: 1.57505 | H91: 8.822 | I91: 3 | J91: 0 | K91: N/A | L91: N/A
E92: 91 | F92: 0 | G92: 1.582275 | H92: 8.787 | I92: 3 | J92: 0 | K92: N/A | L92: N/A
E93: 92 | F93: 0 | G93: 1.57505 | H93: 8.798 | I93: 2 | J93: 0 | K93: N/A | L93: N/A
E94: 93 | F94: 0.04472 | G94: 1.582275 | H94: 8.822 | I94: 1 | J94: 0 | K94: N/A | L94: N/A
E95: 94 | F95: 0.20124 | G95: 1.567825 | H95: 8.693 | I95: 3 | J95: 0 | K95: N/A | L95: N/A
E96: 95 | F96: 0.31304 | G96: 1.37275 | H96: 8.424 | I96: 5 | J96: 0 | K96: N/A | L96: N/A
E97: 96 | F97: 0 | G97: 1.37275 | H97: 8.436 | I97: 5 | J97: 0 | K97: N/A | L97: N/A
E98: 97 | F98: 0.02236 | G98: 1.365525 | H98: 8.88 | I98: 6 | J98: 0 | K98: N/A | L98: N/A
E99: 98 | F99: 3.17512 | G99: 2.631636 | H99: 8.845 | I99: 4 | J99: 0 | K99: N/A | L99: N/A
E100: 99 | F100: 4.85212 | G100: 2.64556 | H100: 8.892 | I100: 2 | J100: 0 | K100: N/A | L100: N/A
E101: 100 | F101: 3.6894 | G101: 2.64556 | H101: 8.834 | I101: 5 | J101: 0 | K101: N/A | L101: N/A
E102: 101 | F102: 4.27076 | G102: 2.64556 | H102: 8.67 | I102: 3 | J102: 0 | K102: N/A | L102: N/A
E103: 102 | F103: 3.64468 | G103: 2.64556 | H103: 8.202 | I103: 3 | J103: 0 | K103: N/A | L103: N/A
E104: 103 | F104: 3.37636 | G104: 2.64556 | H104: 8.319 | I104: 5 | J104: 0 | K104: N/A | L104: N/A
E105: 104 | F105: 3.98008 | G105: 2.64556 | H105: 8.869 | I105: 6 | J105: 0 | K105: N/A | L105: N/A
E106: 105 | F106: 4.76268 | G106: 2.64556 | H106: 8.822 | I106: 8 | J106: 0 | K106: N/A | L106: N/A
E107: 106 | F107: 4.49436 | G107: 2.631636 | H107: 6.564 | I107: 9 | J107: 0 | K107: N/A | L107: N/A
E108: 107 | F108: 3.30928 | G108: 2.64556 | H108: 6.903 | I108: 10 | J108: 0 | K108: N/A | L108: N/A
E109: 108 | F109: 1.18508 | G109: 2.09475 | H109: 7.406 | I109: 9 | J109: 0 | K109: N/A | L109: N/A
E110: 109 | F110: 0.20124 | G110: 2.083725 | H110: 7.394 | I110: 8 | J110: 0 | K110: N/A | L110: N/A
E111: 110 | F111: 0 | G111: 2.09475 | H111: 7.383 | I111: 10 | J111: 0 | K111: N/A | L111: N/A
E112: 111 | F112: 0 | G112: 1.705725 | H112: 7.336 | I112: 9 | J112: 0 | K112: N/A | L112: N/A
E113: 112 | F113: 0 | G113: 1.71475 | H113: 7.383 | I113: 10 | J113: 0 | K113: N/A | L113: N/A
E114: 113 | F114: 0 | G114: 1.705725 | H114: 7.394 | I114: 8 | J114: 0 | K114: N/A | L114: N/A
E115: 114 | F115: 0 | G115: 1.705725 | H115: 7.956 | I115: 6 | J115: 0 | K115: N/A | L115: N/A
E116: 115 | F116: 0 | G116: 1.71475 | H116: 8.202 | I116: 6 | J116: 0 | K116: N/A | L116: N/A
E117: 116 | F117: 0 | G117: 1.705725 | H117: 8.19 | I117: 7 | J117: 0 | K117: N/A | L117: N/A
E118: 117 | F118: 0 | G118: 1.71475 | H118: 8.33 | I118: 8 | J118: 0 | K118: N/A | L118: N/A
E119: 118 | F119: 0.13416 | G119: 1.705725 | H119: 8.33 | I119: 8 | J119: 0 | K119: N/A | L119: N/A
E120: 119 | F120: 0.06708 | G120: 1.71475 | H120: 8.167 | I120: 4 | J120: 0 | K120: N/A | L120: N/A
E121: 120 | F121: 0 | G121: 1.705725 | H121: 8.213 | I121: 3 | J121: 0 | K121: N/A | L121: N/A
E122: 121 | F122: 0 | G122: 2.13484 | H122: 8.412 | I122: 5 | J122: 0 | K122: N/A | L122: N/A
E123: 122 | F123: 0 | G123: 2.13484 | H123: 8.81 | I123: 8 | J123: 0 | K123: N/A | L123: N/A
E124: 123 | F124: 0.51428 | G124: 2.123604 | H124: 8.927 | I124: 5 | J124: 0 | K124: N/A | L124: N/A
E125: 124 | F125: 2.83972 | G125: 2.13484 | H125: 8.845 | I125: 4 | J125: 0 | K125: N/A | L125: N/A
E126: 125 | F126: 3.8012 | G126: 2.13484 | H126: 8.763 | I126: 3 | J126: 3.57 | K126: N/A | L126: N/A
E127: 126 | F127: 5.09808 | G127: 2.123604 | H127: 8.155 | I127: 3 | J127: 38.98 | K127: N/A | L127: N/A
E128: 127 | F128: 5.65708 | G128: 2.13484 | H128: 8.167 | I128: 3 | J128: 12.52 | K128: N/A | L128: N/A
E129: 128 | F129: 5.41112 | G129: 2.123604 | H129: 8.459 | I129: 0 | J129: 0.5 | K129: N/A | L129: N/A
E130: 129 | F130: 4.31548 | G130: 2.13484 | H130: 8.869 | I130: 1 | J130: 0 | K130: N/A | L130: N/A
E131: 130 | F131: 3.1304 | G131: 2.123604 | H131: 8.483 | I131: 3 | J131: 0 | K131: N/A | L131: N/A
E132: 131 | F132: 2.37016 | G132: 2.13484 | H132: 6.365 | I132: 2 | J132: 0 | K132: N/A | L132: N/A
E133: 132 | F133: 0.91676 | G133: 2.123604 | H133: 6.517 | I133: 2 | J133: 0 | K133: N/A | L133: N/A
E134: 133 | F134: 0.13416 | G134: 2.123604 | H134: 7.909 | I134: 2 | J134: 0 | K134: N/A | L134: N/A
E135: 134 | F135: 0 | G135: 1.82476 | H135: 8.003 | I135: 1 | J135: 0 | K135: N/A | L135: N/A
E136: 135 | F136: 0 | G136: 1.365525 | H136: 8.752 | I136: 1 | J136: 0 | K136: N/A | L136: N/A
E137: 136 | F137: 0 | G137: 1.365525 | H137: 8.763 | I137: 1 | J137: 0 | K137: N/A | L137: N/A
E138: 137 | F138: 0 | G138: 1.37275 | H138: 8.775 | I138: 3 | J138: 0 | K138: N/A | L138: N/A
E139: 138 | F139: 0.04472 | G139: 1.365525 | H139: 8.74 | I139: 4 | J139: 0 | K139: N/A | L139: N/A
E140: 139 | F140: 0.02236 | G140: 1.365525 | H140: 8.787 | I140: 2 | J140: 0 | K140: N/A | L140: N/A
E141: 140 | F141: 0.17888 | G141: 1.37275 | H141: 8.74 | I141: 3 | J141: 0 | K141: N/A | L141: N/A
E142: 141 | F142: 0 | G142: 1.365525 | H142: 8.822 | I142: 3 | J142: 0 | K142: N/A | L142: N/A
E143: 142 | F143: 0.06708 | G143: 1.37275 | H143: 8.588 | I143: 4 | J143: 0 | K143: N/A | L143: N/A
E144: 143 | F144: 0.2236 | G144: 1.365525 | H144: 8.249 | I144: 3 | J144: 0 | K144: N/A | L144: N/A
E145: 144 | F145: 0.26832 | G145: 2.64556 | H145: 8.307 | I145: 2 | J145: 2.47 | K145: N/A | L145: N/A
E146: 145 | F146: 0 | G146: 2.631636 | H146: 8.623 | I146: 7 | J146: 7.02 | K146: N/A | L146: N/A
E147: 146 | F147: 0 | G147: 2.631636 | H147: 8.775 | I147: 5 | J147: 13.69 | K147: N/A | L147: N/A
E148: 147 | F148: 0.3354 | G148: 2.64556 | H148: 8.763 | I148: 3 | J148: 8.94 | K148: N/A | L148: N/A
E149: 148 | F149: 1.92296 | G149: 2.64556 | H149: 8.892 | I149: 3 | J149: 5.02 | K149: N/A | L149: N/A
E150: 149 | F150: 1.47576 | G150: 2.631636 | H150: 8.646 | I150: 2 | J150: 4.45 | K150: N/A | L150: N/A
E151: 150 | F151: 2.39252 | G151: 2.64556 | H151: 8.19 | I151: 4 | J151: 3.28 | K151: N/A | L151: N/A
E152: 151 | F152: 5.20988 | G152: 2.64556 | H152: 8.26 | I152: 2 | J152: 0.01 | K152: N/A | L152: N/A
E153: 152 | F153: 13.34892 | G153: 2.64556 | H153: 8.424 | I153: 1 | J153: 0 | K153: N/A | L153: N/A
E154: 153 | F154: 12.99116 | G154: 2.64556 | H154: 8.88 | I154: 1 | J154: 0 | K154: N/A | L154: N/A
E155: 154 | F155: 15.9874 | G155: 2.09475 | H155: 8.904 | I155: 1 | J155: 0 | K155: N/A | L155: N/A
E156: 155 | F156: 21.66684 | G156: 2.083725 | H156: 8.904 | I156: 2 | J156: 0 | K156: N/A | L156: N/A
E157: 156 | F157: 26.34008 | G157: 2.09475 | H157: 8.962 | I157: 0 | J157: 0 | K157: N/A | L157: N/A
E158: 157 | F158: 19.52028 | G158: 1.705725 | H158: 8.494 | I158: 1 | J158: 0 | K158: N/A | L158: N/A
E159: 158 | F159: 17.329 | G159: 1.71475 | H159: 8.471 | I159: 1 | J159: 0 | K159: N/A | L159: N/A
E160: 159 | F160: 15.92032 | G160: 1.705725 | H160: 8.834 | I160: 0 | J160: 0 | K160: N/A | L160: N/A
E161: 160 | F161: 14.60108 | G161: 1.705725 | H161: 8.845 | I161: 1 | J161: 0 | K161: N/A | L161: N/A
E162: 161 | F162: 12.298 | G162: 1.705725 | H162: 8.822 | I162: 1 | J162: 0 | K162: N/A | L162: N/A
E163: 162 | F163: 11.80608 | G163: 1.71475 | H163: 8.834 | I163: 1 | J163: 0 | K163: N/A | L163: N/A
E164: 163 | F164: 9.86076 | G164: 1.705725 | H164: 8.88 | I164: 1 | J164: 0 | K164: N/A | L164: N/A
E165: 164 | F165: 7.96016 | G165: 1.705725 | H165: 8.845 | I165: 3 | J165: 0 | K165: N/A | L165: N/A
E166: 165 | F166: 6.86452 | G166: 1.71475 | H166: 8.857 | I166: 9 | J166: 0 | K166: N/A | L166: N/A
E167: 166 | F167: 6.17136 | G167: 1.705725 | H167: 8.67 | I167: 8 | J167: 0 | K167: N/A | L167: N/A
E168: 167 | F168: 4.8074 | G168: 2.13484 | H168: 8.424 | I168: 9 | J168: 0 | K168: N/A | L168: N/A
E169: 168 | F169: 2.48196 | G169: 1.85394 | H169: 8.436 | I169: 9 | J169: 4.4 | K169: N/A | L169: N/A
E170: 169 | F170: 0.91676 | G170: 1.831468 | H170: 8.506 | I170: 8 | J170: 52.11 | K170: N/A | L170: N/A
E171: 170 | F171: 0.20124 | G171: 1.842704 | H171: 8.857 | I171: 9 | J171: 84.94 | K171: N/A | L171: N/A
E172: 171 | F172: 0.15652 | G172: 1.831468 | H172: 8.892 | I172: 8 | J172: 69.95 | K172: N/A | L172: N/A
E173: 172 | F173: 0.17888 | G173: 1.831468 | H173: 8.939 | I173: 9 | J173: 78.4 | K173: N/A | L173: N/A
E174: 173 | F174: 1.20744 | G174: 1.842704 | H174: 8.412 | I174: 9 | J174: 105.34 | K174: N/A | L174: N/A
E175: 174 | F175: 3.48816 | G175: 1.831468 | H175: 8.249 | I175: 8 | J175: 52.54 | K175: N/A | L175: N/A
E176: 175 | F176: 3.0186 | G176: 1.842704 | H176: 8.319 | I176: 5 | J176: 11.31 | K176: N/A | L176: N/A
E177: 176 | F177: 0.2236 | G177: 1.842704 | H177: 8.506 | I177: 7 | J177: 0.47 | K177: N/A | L177: N/A
E178: 177 | F178: 0.02236 | G178: 1.831468 | H178: 8.892 | I178: 2 | J178: 0 | K178: N/A | L178: N/A
E179: 178 | F179: 0.04472 | G179: 1.842704 | H179: 8.951 | I179: 3 | J179: 0 | K179: N/A | L179: N/A
E180: 179 | F180: 0.06708 | G180: 1.842704 | H180: 9.021 | I180: 2 | J180: 0 | K180: N/A | L180: N/A
E181: 180 | F181: 0.24596 | G181: 1.565452 | H181: 8.974 | I181: 0 | J181: 0 | K181: N/A | L181: N/A
E182: 181 | F182: 0.02236 | G182: 1.177675 | H182: 8.635 | I182: 0 | J182: 0 | K182: N/A | L182: N/A
E183: 182 | F183: 0.04472 | G183: 1.1849 | H183: 8.6 | I183: 0 | J183: 0 | K183: N/A | L183: N/A
E184: 183 | F184: 0.40248 | G184: 1.177675 | H184: 8.939 | I184: 0 | J184: 0 | K184: N/A | L184: N/A
E185: 184 | F185: 0.02236 | G185: 1.177675 | H185: 8.892 | I185: 0 | J185: 0 | K185: N/A | L185: N/A
E186: 185 | F186: 0 | G186: 1.1849 | H186: 8.845 | I186: 0 | J186: 0 | K186: N/A | L186: N/A
E187: 186 | F187: 0 | G187: 1.177675 | H187: 8.857 | I187: 1 | J187: 0 | K187: N/A | L187: N/A
E188: 187 | F188: 0 | G188: 1.177675 | H188: 8.845 | I188: 0 | J188: 0 | K188: N/A | L188: N/A
E189: 188 | F189: 0 | G189: 1.1849 | H189: 8.834 | I189: 0 | J189: 0 | K189: N/A | L189: N/A
E190: 189 | F190: 0 | G190: 1.177675 | H190: 8.81 | I190: 0 | J190: 0 | K190: N/A | L190: N/A
E191: 190 | F191: 0 | G191: 2.283536 | H191: 8.763 | I191: 0 | J191: 0 | K191: N/A | L191: N/A
E192: 191 | F192: 0.53664 | G192: 2.269612 | H192: 8.798 | I192: 0 | J192: 0 | K192: N/A | L192: N/A
E193: 192 | F193: 0.6708 | G193: 2.269612 | H193: 8.74 | I193: 0 | J193: 1.28 | K193: N/A | L193: N/A
E194: 193 | F194: 1.4534 | G194: 1.8081 | H194: 8.798 | I194: 1 | J194: 8.23 | K194: N/A | L194: N/A
E195: 194 | F195: 0.91676 | G195: 1.797075 | H195: 8.787 | I195: 0 | J195: 22.42 | K195: N/A | L195: N/A
E196: 195 | F196: 1.60992 | G196: 1.8081 | H196: 8.763 | I196: 0 | J196: 21.2 | K196: N/A | L196: N/A
E197: 196 | F197: 1.63228 | G197: 1.4801 | H197: 8.798 | I197: 1 | J197: 63.45 | K197: N/A | L197: N/A
E198: 197 | F198: 2.48196 | G198: 1.4801 | H198: 8.763 | I198: 1 | J198: 48.41 | K198: N/A | L198: N/A
E199: 198 | F199: 2.07948 | G199: 1.4801 | H199: 8.857 | I199: 0 | J199: 13.52 | K199: N/A | L199: N/A
E200: 199 | F200: 2.99624 | G200: 1.4801 | H200: 8.834 | I200: 0 | J200: 2.65 | K200: N/A | L200: N/A
... 4297 more rows

Sheet ResourceProfiles
B1: Resource Profiles
A2: TOC | B2: =Cover!C14 -> RSSModel.BP18Publicexample.xlsm
A3: é
A4: 1 | B4: Key | F4: =IF(ISBLANK(ResourceInputs!F3),"",ResourceInputs!F3) -> 10001 | G4: =IF(ISBLANK(ResourceInputs!G3),"",ResourceInputs!G3) -> 10002 | H4: =IF(ISBLANK(ResourceInputs!H3),"",ResourceInputs!H3) -> 10003 | I4: =IF(ISBLANK(ResourceInputs!I3),"",ResourceInputs!I3) -> 10004 | J4: =IF(ISBLANK(ResourceInputs!J3),"",ResourceInputs!J3) -> 10005 | K4: =IF(ISBLANK(ResourceInputs!K3),"",ResourceInputs!K3) -> 10006 | L4: =IF(ISBLANK(ResourceInputs!L3),"",ResourceInputs!L3) -> 10007 | BB4: =IF(ISBLANK(ResourceInputs!T3),"",ResourceInputs!T3) ->  | BC4: =IF(ISBLANK(ResourceInputs!U3),"",ResourceInputs!U3) ->  | BD4: =IF(ISBLANK(ResourceInputs!V3),"",ResourceInputs!V3) ->  | BE4: =IF(ISBLANK(ResourceInputs!W3),"",ResourceInputs!W3) ->  | BF4: =IF(ISBLANK(ResourceInputs!X3),"",ResourceInputs!X3) ->  | BG4: =IF(ISBLANK(ResourceInputs!Y3),"",ResourceInputs!Y3) ->  | BH4: =IF(ISBLANK(ResourceInputs!Z3),"",ResourceInputs!Z3) ->  | BI4: =IF(ISBLANK(ResourceInputs!AA3),"",ResourceInputs!AA3) ->  | BJ4: =IF(ISBLANK(ResourceInputs!AB3),"",ResourceInputs!AB3) ->  | BK4: =IF(ISBLANK(ResourceInputs!AC3),"",ResourceInputs!AC3) ->  | BL4: =IF(ISBLANK(ResourceInputs!AD3),"",ResourceInputs!AD3) ->  | BM4: =IF(ISBLANK(ResourceInputs!AE3),"",ResourceInputs!AE3) ->  | BN4: =IF(ISBLANK(ResourceInputs!AF3),"",ResourceInputs!AF3) ->  | BO4: =IF(ISBLANK(ResourceInputs!AG3),"",ResourceInputs!AG3) ->  | BP4: =IF(ISBLANK(ResourceInputs!AH3),"",ResourceInputs!AH3) ->  | BQ4: =IF(ISBLANK(ResourceInputs!AI3),"",ResourceInputs!AI3) ->  | BR4: =IF(ISBLANK(ResourceInputs!AJ3),"",ResourceInputs!AJ3) ->  | BS4: =IF(ISBLANK(ResourceInputs!AK3),"",ResourceInputs!AK3) ->  | BT4: =IF(ISBLANK(ResourceInputs!AL3),"",ResourceInputs!AL3) ->  | BU4: =IF(ISBLANK(ResourceInputs!AM3),"",ResourceInputs!AM3) ->  | BV4: =IF(ISBLANK(ResourceInputs!AN3),"",ResourceInputs!AN3) ->  | BW4: =IF(ISBLANK(ResourceInputs!AO3),"",ResourceInputs!AO3) ->  | BX4: =IF(ISBLANK(ResourceInputs!AP3),"",ResourceInputs!AP3) ->  | BY4: =IF(ISBLANK(ResourceInputs!AQ3),"",ResourceInputs!AQ3) ->  | BZ4: =IF(ISBLANK(ResourceInputs!AR3),"",ResourceInputs!AR3) ->  | CA4: =IF(ISBLANK(ResourceInputs!AS3),"",ResourceInputs!AS3) ->  | CB4: =IF(ISBLANK(ResourceInputs!AT3),"",ResourceInputs!AT3) ->  | CC4: =IF(ISBLANK(ResourceInputs!AU3),"",ResourceInputs!AU3) ->  | CD4: =IF(ISBLANK(ResourceInputs!AV3),"",ResourceInputs!AV3) ->  | CE4: =IF(ISBLANK(ResourceInputs!AW3),"",ResourceInputs!AW3) ->  | CF4: =IF(ISBLANK(ResourceInputs!AX3),"",ResourceInputs!AX3) ->  | CG4: =IF(ISBLANK(ResourceInputs!AY3),"",ResourceInputs!AY3) ->  | CH4: =IF(ISBLANK(ResourceInputs!AZ3),"",ResourceInputs!AZ3) ->  | CI4: =IF(ISBLANK(ResourceInputs!BA3),"",ResourceInputs!BA3) ->  | CJ4: =IF(ISBLANK(ResourceInputs!BB3),"",ResourceInputs!BB3) ->  | CK4: =IF(ISBLANK(ResourceInputs!BC3),"",ResourceInputs!BC3) ->  | CL4: =IF(ISBLANK(ResourceInputs!BD3),"",ResourceInputs!BD3) ->  | CM4: =IF(ISBLANK(ResourceInputs!BE3),"",ResourceInputs!BE3) ->  | CN4: =IF(ISBLANK(ResourceInputs!BF3),"",ResourceInputs!BF3) ->  | CO4: =IF(ISBLANK(ResourceInputs!BG3),"",ResourceInputs!BG3) ->  | CP4: =IF(ISBLANK(ResourceInputs!BH3),"",ResourceInputs!BH3) ->  | CT4: =IF(ISBLANK(ResourceInputs!BL3),"",ResourceInputs!BL3) ->  | CU4: =IF(ISBLANK(ResourceInputs!BM3),"",ResourceInputs!BM3) ->  | CV4: =IF(ISBLANK(ResourceInputs!BN3),"",ResourceInputs!BN3) ->  | CW4: =IF(ISBLANK(ResourceInputs!BO3),"",ResourceInputs!BO3) ->  | CX4: =IF(ISBLANK(ResourceInputs!BP3),"",ResourceInputs!BP3) ->  | CY4: =IF(ISBLANK(ResourceInputs!BQ3),"",ResourceInputs!BQ3) ->  | CZ4: =IF(ISBLANK(ResourceInputs!BR3),"",ResourceInputs!BR3) ->  | DA4: =IF(ISBLANK(ResourceInputs!BS3),"",ResourceInputs!BS3) ->  | DB4: =IF(ISBLANK(ResourceInputs!BT3),"",ResourceInputs!BT3) ->  | DC4: =IF(ISBLANK(ResourceInputs!BU3),"",ResourceInputs!BU3) ->  | DD4: =IF(ISBLANK(ResourceInputs!BV3),"",ResourceInputs!BV3) ->  | DE4: =IF(ISBLANK(ResourceInputs!BW3),"",ResourceInputs!BW3) ->  | DF4: =IF(ISBLANK(ResourceInputs!BX3),"",ResourceInputs!BX3) ->  | DG4: =IF(ISBLANK(ResourceInputs!BY3),"",ResourceInputs!BY3) ->  | DH4: =IF(ISBLANK(ResourceInputs!BZ3),"",ResourceInputs!BZ3) ->  | DI4: =IF(ISBLANK(ResourceInputs!CA3),"",ResourceInputs!CA3) -> 
A5: 2 | B5: Resource Output Data Year | F5: =IF(ISBLANK(ResourceInputs!F4),"",ResourceInputs!F4) -> FY2016 | G5: =IF(ISBLANK(ResourceInputs!G4),"",ResourceInputs!G4) -> FY2015 | H5: =IF(ISBLANK(ResourceInputs!H4),"",ResourceInputs!H4) -> FY2015 | I5: =IF(ISBLANK(ResourceInputs!I4),"",ResourceInputs!I4) -> FY2015 | J5: =IF(ISBLANK(ResourceInputs!J4),"",ResourceInputs!J4) -> FY2015 | K5: =IF(ISBLANK(ResourceInputs!K4),"",ResourceInputs!K4) -> N/A | L5: =IF(ISBLANK(ResourceInputs!L4),"",ResourceInputs!L4) -> N/A | BB5: =IF(ISBLANK(ResourceInputs!T4),"",ResourceInputs!T4) ->  | BC5: =IF(ISBLANK(ResourceInputs!U4),"",ResourceInputs!U4) ->  | BD5: =IF(ISBLANK(ResourceInputs!V4),"",ResourceInputs!V4) ->  | BE5: =IF(ISBLANK(ResourceInputs!W4),"",ResourceInputs!W4) ->  | BF5: =IF(ISBLANK(ResourceInputs!X4),"",ResourceInputs!X4) ->  | BG5: =IF(ISBLANK(ResourceInputs!Y4),"",ResourceInputs!Y4) ->  | BH5: =IF(ISBLANK(ResourceInputs!Z4),"",ResourceInputs!Z4) ->  | BI5: =IF(ISBLANK(ResourceInputs!AA4),"",ResourceInputs!AA4) ->  | BJ5: =IF(ISBLANK(ResourceInputs!AB4),"",ResourceInputs!AB4) ->  | BK5: =IF(ISBLANK(ResourceInputs!AC4),"",ResourceInputs!AC4) ->  | BL5: =IF(ISBLANK(ResourceInputs!AD4),"",ResourceInputs!AD4) ->  | BM5: =IF(ISBLANK(ResourceInputs!AE4),"",ResourceInputs!AE4) ->  | BN5: =IF(ISBLANK(ResourceInputs!AF4),"",ResourceInputs!AF4) ->  | BO5: =IF(ISBLANK(ResourceInputs!AG4),"",ResourceInputs!AG4) ->  | BP5: =IF(ISBLANK(ResourceInputs!AH4),"",ResourceInputs!AH4) ->  | BQ5: =IF(ISBLANK(ResourceInputs!AI4),"",ResourceInputs!AI4) ->  | BR5: =IF(ISBLANK(ResourceInputs!AJ4),"",ResourceInputs!AJ4) ->  | BS5: =IF(ISBLANK(ResourceInputs!AK4),"",ResourceInputs!AK4) ->  | BT5: =IF(ISBLANK(ResourceInputs!AL4),"",ResourceInputs!AL4) ->  | BU5: =IF(ISBLANK(ResourceInputs!AM4),"",ResourceInputs!AM4) ->  | BV5: =IF(ISBLANK(ResourceInputs!AN4),"",ResourceInputs!AN4) ->  | BW5: =IF(ISBLANK(ResourceInputs!AO4),"",ResourceInputs!AO4) ->  | BX5: =IF(ISBLANK(ResourceInputs!AP4),"",ResourceInputs!AP4) ->  | BY5: =IF(ISBLANK(ResourceInputs!AQ4),"",ResourceInputs!AQ4) ->  | BZ5: =IF(ISBLANK(ResourceInputs!AR4),"",ResourceInputs!AR4) ->  | CA5: =IF(ISBLANK(ResourceInputs!AS4),"",ResourceInputs!AS4) ->  | CB5: =IF(ISBLANK(ResourceInputs!AT4),"",ResourceInputs!AT4) ->  | CC5: =IF(ISBLANK(ResourceInputs!AU4),"",ResourceInputs!AU4) ->  | CD5: =IF(ISBLANK(ResourceInputs!AV4),"",ResourceInputs!AV4) ->  | CE5: =IF(ISBLANK(ResourceInputs!AW4),"",ResourceInputs!AW4) ->  | CF5: =IF(ISBLANK(ResourceInputs!AX4),"",ResourceInputs!AX4) ->  | CG5: =IF(ISBLANK(ResourceInputs!AY4),"",ResourceInputs!AY4) ->  | CH5: =IF(ISBLANK(ResourceInputs!AZ4),"",ResourceInputs!AZ4) ->  | CI5: =IF(ISBLANK(ResourceInputs!BA4),"",ResourceInputs!BA4) ->  | CJ5: =IF(ISBLANK(ResourceInputs!BB4),"",ResourceInputs!BB4) ->  | CK5: =IF(ISBLANK(ResourceInputs!BC4),"",ResourceInputs!BC4) ->  | CL5: =IF(ISBLANK(ResourceInputs!BD4),"",ResourceInputs!BD4) ->  | CM5: =IF(ISBLANK(ResourceInputs!BE4),"",ResourceInputs!BE4) ->  | CN5: =IF(ISBLANK(ResourceInputs!BF4),"",ResourceInputs!BF4) ->  | CO5: =IF(ISBLANK(ResourceInputs!BG4),"",ResourceInputs!BG4) ->  | CP5: =IF(ISBLANK(ResourceInputs!BH4),"",ResourceInputs!BH4) ->  | CT5: =IF(ISBLANK(ResourceInputs!BL4),"",ResourceInputs!BL4) ->  | CU5: =IF(ISBLANK(ResourceInputs!BM4),"",ResourceInputs!BM4) ->  | CV5: =IF(ISBLANK(ResourceInputs!BN4),"",ResourceInputs!BN4) ->  | CW5: =IF(ISBLANK(ResourceInputs!BO4),"",ResourceInputs!BO4) ->  | CX5: =IF(ISBLANK(ResourceInputs!BP4),"",ResourceInputs!BP4) ->  | CY5: =IF(ISBLANK(ResourceInputs!BQ4),"",ResourceInputs!BQ4) ->  | CZ5: =IF(ISBLANK(ResourceInputs!BR4),"",ResourceInputs!BR4) ->  | DA5: =IF(ISBLANK(ResourceInputs!BS4),"",ResourceInputs!BS4) ->  | DB5: =IF(ISBLANK(ResourceInputs!BT4),"",ResourceInputs!BT4) ->  | DC5: =IF(ISBLANK(ResourceInputs!BU4),"",ResourceInputs!BU4) ->  | DD5: =IF(ISBLANK(ResourceInputs!BV4),"",ResourceInputs!BV4) ->  | DE5: =IF(ISBLANK(ResourceInputs!BW4),"",ResourceInputs!BW4) ->  | DF5: =IF(ISBLANK(ResourceInputs!BX4),"",ResourceInputs!BX4) ->  | DG5: =IF(ISBLANK(ResourceInputs!BY4),"",ResourceInputs!BY4) ->  | DH5: =IF(ISBLANK(ResourceInputs!BZ4),"",ResourceInputs!BZ4) ->  | DI5: =IF(ISBLANK(ResourceInputs!CA4),"",ResourceInputs!CA4) -> 
A6: 3 | B6: Model Identifier | F6: =IF(ISBLANK(ResourceInputs!F5),"",ResourceInputs!F5) -> NF.1.Wind.1.2018_2019 | G6: =IF(ISBLANK(ResourceInputs!G5),"",ResourceInputs!G5) -> NF.2.Hydro.1.2018_2019 | H6: =IF(ISBLANK(ResourceInputs!H5),"",ResourceInputs!H5) -> NF.3.BioMass.1.2018_2019 | I6: =IF(ISBLANK(ResourceInputs!I5),"",ResourceInputs!I5) -> NF.4.Wind.2.2018_2019 | J6: =IF(ISBLANK(ResourceInputs!J5),"",ResourceInputs!J5) -> NF.5.Solar.1.2018_2019 | K6: =IF(ISBLANK(ResourceInputs!K5),"",ResourceInputs!K5) -> NF.6.Hydro.2.2018_2019 | L6: =IF(ISBLANK(ResourceInputs!L5),"",ResourceInputs!L5) -> NF.7.Hydro.3.2018_2019 | BB6: =IF(ISBLANK(ResourceInputs!T5),"",ResourceInputs!T5) ->  | BC6: =IF(ISBLANK(ResourceInputs!U5),"",ResourceInputs!U5) ->  | BD6: =IF(ISBLANK(ResourceInputs!V5),"",ResourceInputs!V5) ->  | BE6: =IF(ISBLANK(ResourceInputs!W5),"",ResourceInputs!W5) ->  | BF6: =IF(ISBLANK(ResourceInputs!X5),"",ResourceInputs!X5) ->  | BG6: =IF(ISBLANK(ResourceInputs!Y5),"",ResourceInputs!Y5) ->  | BH6: =IF(ISBLANK(ResourceInputs!Z5),"",ResourceInputs!Z5) ->  | BI6: =IF(ISBLANK(ResourceInputs!AA5),"",ResourceInputs!AA5) ->  | BJ6: =IF(ISBLANK(ResourceInputs!AB5),"",ResourceInputs!AB5) ->  | BK6: =IF(ISBLANK(ResourceInputs!AC5),"",ResourceInputs!AC5) ->  | BL6: =IF(ISBLANK(ResourceInputs!AD5),"",ResourceInputs!AD5) ->  | BM6: =IF(ISBLANK(ResourceInputs!AE5),"",ResourceInputs!AE5) ->  | BN6: =IF(ISBLANK(ResourceInputs!AF5),"",ResourceInputs!AF5) ->  | BO6: =IF(ISBLANK(ResourceInputs!AG5),"",ResourceInputs!AG5) ->  | BP6: =IF(ISBLANK(ResourceInputs!AH5),"",ResourceInputs!AH5) ->  | BQ6: =IF(ISBLANK(ResourceInputs!AI5),"",ResourceInputs!AI5) ->  | BR6: =IF(ISBLANK(ResourceInputs!AJ5),"",ResourceInputs!AJ5) ->  | BS6: =IF(ISBLANK(ResourceInputs!AK5),"",ResourceInputs!AK5) ->  | BT6: =IF(ISBLANK(ResourceInputs!AL5),"",ResourceInputs!AL5) ->  | BU6: =IF(ISBLANK(ResourceInputs!AM5),"",ResourceInputs!AM5) ->  | BV6: =IF(ISBLANK(ResourceInputs!AN5),"",ResourceInputs!AN5) ->  | BW6: =IF(ISBLANK(ResourceInputs!AO5),"",ResourceInputs!AO5) ->  | BX6: =IF(ISBLANK(ResourceInputs!AP5),"",ResourceInputs!AP5) ->  | BY6: =IF(ISBLANK(ResourceInputs!AQ5),"",ResourceInputs!AQ5) ->  | BZ6: =IF(ISBLANK(ResourceInputs!AR5),"",ResourceInputs!AR5) ->  | CA6: =IF(ISBLANK(ResourceInputs!AS5),"",ResourceInputs!AS5) ->  | CB6: =IF(ISBLANK(ResourceInputs!AT5),"",ResourceInputs!AT5) ->  | CC6: =IF(ISBLANK(ResourceInputs!AU5),"",ResourceInputs!AU5) ->  | CD6: =IF(ISBLANK(ResourceInputs!AV5),"",ResourceInputs!AV5) ->  | CE6: =IF(ISBLANK(ResourceInputs!AW5),"",ResourceInputs!AW5) ->  | CF6: =IF(ISBLANK(ResourceInputs!AX5),"",ResourceInputs!AX5) ->  | CG6: =IF(ISBLANK(ResourceInputs!AY5),"",ResourceInputs!AY5) ->  | CH6: =IF(ISBLANK(ResourceInputs!AZ5),"",ResourceInputs!AZ5) ->  | CI6: =IF(ISBLANK(ResourceInputs!BA5),"",ResourceInputs!BA5) ->  | CJ6: =IF(ISBLANK(ResourceInputs!BB5),"",ResourceInputs!BB5) ->  | CK6: =IF(ISBLANK(ResourceInputs!BC5),"",ResourceInputs!BC5) ->  | CL6: =IF(ISBLANK(ResourceInputs!BD5),"",ResourceInputs!BD5) ->  | CM6: =IF(ISBLANK(ResourceInputs!BE5),"",ResourceInputs!BE5) ->  | CN6: =IF(ISBLANK(ResourceInputs!BF5),"",ResourceInputs!BF5) ->  | CO6: =IF(ISBLANK(ResourceInputs!BG5),"",ResourceInputs!BG5) ->  | CP6: =IF(ISBLANK(ResourceInputs!BH5),"",ResourceInputs!BH5) ->  | CT6: =IF(ISBLANK(ResourceInputs!BL5),"",ResourceInputs!BL5) ->  | CU6: =IF(ISBLANK(ResourceInputs!BM5),"",ResourceInputs!BM5) ->  | CV6: =IF(ISBLANK(ResourceInputs!BN5),"",ResourceInputs!BN5) ->  | CW6: =IF(ISBLANK(ResourceInputs!BO5),"",ResourceInputs!BO5) ->  | CX6: =IF(ISBLANK(ResourceInputs!BP5),"",ResourceInputs!BP5) ->  | CY6: =IF(ISBLANK(ResourceInputs!BQ5),"",ResourceInputs!BQ5) ->  | CZ6: =IF(ISBLANK(ResourceInputs!BR5),"",ResourceInputs!BR5) ->  | DA6: =IF(ISBLANK(ResourceInputs!BS5),"",ResourceInputs!BS5) ->  | DB6: =IF(ISBLANK(ResourceInputs!BT5),"",ResourceInputs!BT5) ->  | DC6: =IF(ISBLANK(ResourceInputs!BU5),"",ResourceInputs!BU5) ->  | DD6: =IF(ISBLANK(ResourceInputs!BV5),"",ResourceInputs!BV5) ->  | DE6: =IF(ISBLANK(ResourceInputs!BW5),"",ResourceInputs!BW5) ->  | DF6: =IF(ISBLANK(ResourceInputs!BX5),"",ResourceInputs!BX5) ->  | DG6: =IF(ISBLANK(ResourceInputs!BY5),"",ResourceInputs!BY5) ->  | DH6: =IF(ISBLANK(ResourceInputs!BZ5),"",ResourceInputs!BZ5) ->  | DI6: =IF(ISBLANK(ResourceInputs!CA5),"",ResourceInputs!CA5) -> 
A7: 4 | B7: The fol | C7: Purchaser | F7: =IF(ISBLANK(ResourceInputs!F10),"",ResourceInputs!F10) -> Tier 1 | G7: =IF(ISBLANK(ResourceInputs!G10),"",ResourceInputs!G10) -> Example Customer A | H7: =IF(ISBLANK(ResourceInputs!H10),"",ResourceInputs!H10) -> Example Customer B | I7: =IF(ISBLANK(ResourceInputs!I10),"",ResourceInputs!I10) -> Example Customer C | J7: =IF(ISBLANK(ResourceInputs!J10),"",ResourceInputs!J10) -> Example Customer D | K7: =IF(ISBLANK(ResourceInputs!K10),"",ResourceInputs!K10) -> Example Customer E | L7: =IF(ISBLANK(ResourceInputs!L10),"",ResourceInputs!L10) -> Example Customer F | BB7: =IF(ISBLANK(ResourceInputs!Z9),"",ResourceInputs!Z9) ->  | BC7: =IF(ISBLANK(ResourceInputs!AA9),"",ResourceInputs!AA9) ->  | BD7: =IF(ISBLANK(ResourceInputs!AB9),"",ResourceInputs!AB9) ->  | BE7: =IF(ISBLANK(ResourceInputs!AC9),"",ResourceInputs!AC9) ->  | BF7: =IF(ISBLANK(ResourceInputs!AD9),"",ResourceInputs!AD9) ->  | BG7: =IF(ISBLANK(ResourceInputs!AE9),"",ResourceInputs!AE9) ->  | BH7: =IF(ISBLANK(ResourceInputs!AF9),"",ResourceInputs!AF9) ->  | BI7: =IF(ISBLANK(ResourceInputs!AG9),"",ResourceInputs!AG9) ->  | BJ7: =IF(ISBLANK(ResourceInputs!AH9),"",ResourceInputs!AH9) ->  | BK7: =IF(ISBLANK(ResourceInputs!AI9),"",ResourceInputs!AI9) ->  | BL7: =IF(ISBLANK(ResourceInputs!AJ9),"",ResourceInputs!AJ9) ->  | BM7: =IF(ISBLANK(ResourceInputs!AK9),"",ResourceInputs!AK9) ->  | BN7: =IF(ISBLANK(ResourceInputs!AL9),"",ResourceInputs!AL9) ->  | BO7: =IF(ISBLANK(ResourceInputs!AM9),"",ResourceInputs!AM9) ->  | BP7: =IF(ISBLANK(ResourceInputs!AN9),"",ResourceInputs!AN9) ->  | BQ7: =IF(ISBLANK(ResourceInputs!AO9),"",ResourceInputs!AO9) ->  | BR7: =IF(ISBLANK(ResourceInputs!AP9),"",ResourceInputs!AP9) ->  | BS7: =IF(ISBLANK(ResourceInputs!AQ9),"",ResourceInputs!AQ9) ->  | BT7: =IF(ISBLANK(ResourceInputs!AR9),"",ResourceInputs!AR9) ->  | BU7: =IF(ISBLANK(ResourceInputs!AS9),"",ResourceInputs!AS9) ->  | BV7: =IF(ISBLANK(ResourceInputs!AT9),"",ResourceInputs!AT9) ->  | BW7: =IF(ISBLANK(ResourceInputs!AU9),"",ResourceInputs!AU9) ->  | BX7: =IF(ISBLANK(ResourceInputs!AV9),"",ResourceInputs!AV9) ->  | BY7: =IF(ISBLANK(ResourceInputs!AW9),"",ResourceInputs!AW9) ->  | BZ7: =IF(ISBLANK(ResourceInputs!AX9),"",ResourceInputs!AX9) ->  | CA7: =IF(ISBLANK(ResourceInputs!AY9),"",ResourceInputs!AY9) ->  | CB7: =IF(ISBLANK(ResourceInputs!AZ9),"",ResourceInputs!AZ9) ->  | CC7: =IF(ISBLANK(ResourceInputs!BA9),"",ResourceInputs!BA9) ->  | CD7: =IF(ISBLANK(ResourceInputs!BB9),"",ResourceInputs!BB9) ->  | CE7: =IF(ISBLANK(ResourceInputs!BC9),"",ResourceInputs!BC9) ->  | CF7: =IF(ISBLANK(ResourceInputs!BD9),"",ResourceInputs!BD9) ->  | CG7: =IF(ISBLANK(ResourceInputs!BE9),"",ResourceInputs!BE9) ->  | CH7: =IF(ISBLANK(ResourceInputs!BF9),"",ResourceInputs!BF9) ->  | CI7: =IF(ISBLANK(ResourceInputs!BG9),"",ResourceInputs!BG9) ->  | CJ7: =IF(ISBLANK(ResourceInputs!BH9),"",ResourceInputs!BH9) ->  | CK7: =IF(ISBLANK(ResourceInputs!BI9),"",ResourceInputs!BI9) ->  | CL7: =IF(ISBLANK(ResourceInputs!BJ9),"",ResourceInputs!BJ9) ->  | CM7: =IF(ISBLANK(ResourceInputs!BK9),"",ResourceInputs!BK9) ->  | CN7: =IF(ISBLANK(ResourceInputs!BL9),"",ResourceInputs!BL9) ->  | CO7: =IF(ISBLANK(ResourceInputs!BM9),"",ResourceInputs!BM9) ->  | CP7: =IF(ISBLANK(ResourceInputs!BN9),"",ResourceInputs!BN9) ->  | CT7: =IF(ISBLANK(ResourceInputs!BR9),"",ResourceInputs!BR9) ->  | CU7: =IF(ISBLANK(ResourceInputs!BS9),"",ResourceInputs!BS9) ->  | CV7: =IF(ISBLANK(ResourceInputs!BT9),"",ResourceInputs!BT9) ->  | CW7: =IF(ISBLANK(ResourceInputs!BU9),"",ResourceInputs!BU9) ->  | CX7: =IF(ISBLANK(ResourceInputs!BV9),"",ResourceInputs!BV9) ->  | CY7: =IF(ISBLANK(ResourceInputs!BW9),"",ResourceInputs!BW9) ->  | CZ7: =IF(ISBLANK(ResourceInputs!BX9),"",ResourceInputs!BX9) ->  | DA7: =IF(ISBLANK(ResourceInputs!BY9),"",ResourceInputs!BY9) ->  | DB7: =IF(ISBLANK(ResourceInputs!BZ9),"",ResourceInputs!BZ9) ->  | DC7: =IF(ISBLANK(ResourceInputs!CA9),"",ResourceInputs!CA9) ->  | DD7: =IF(ISBLANK(ResourceInputs!CB9),"",ResourceInputs!CB9) ->  | DE7: =IF(ISBLANK(ResourceInputs!CC9),"",ResourceInputs!CC9) ->  | DF7: =IF(ISBLANK(ResourceInputs!CD9),"",ResourceInputs!CD9) ->  | DG7: =IF(ISBLANK(ResourceInputs!CE9),"",ResourceInputs!CE9) ->  | DH7: =IF(ISBLANK(ResourceInputs!CF9),"",ResourceInputs!CF9) ->  | DI7: =IF(ISBLANK(ResourceInputs!CG9),"",ResourceInputs!CG9) -> 
A8: 5 | C8: BES_ID | F8: =IF(ISBLANK(ResourceInputs!F11),"",ResourceInputs!F11) -> BPA | G8: =IF(ISBLANK(ResourceInputs!G11),"",ResourceInputs!G11) -> 80000 | H8: =IF(ISBLANK(ResourceInputs!H11),"",ResourceInputs!H11) -> 80001 | I8: =IF(ISBLANK(ResourceInputs!I11),"",ResourceInputs!I11) -> 80002 | J8: =IF(ISBLANK(ResourceInputs!J11),"",ResourceInputs!J11) -> 80003 | K8: =IF(ISBLANK(ResourceInputs!K11),"",ResourceInputs!K11) -> 80004 | L8: =IF(ISBLANK(ResourceInputs!L11),"",ResourceInputs!L11) -> 80005 | BB8: =IF(ISBLANK(ResourceInputs!Z10),"",ResourceInputs!Z10) ->  | BC8: =IF(ISBLANK(ResourceInputs!AA10),"",ResourceInputs!AA10) ->  | BD8: =IF(ISBLANK(ResourceInputs!AB10),"",ResourceInputs!AB10) ->  | BE8: =IF(ISBLANK(ResourceInputs!AC10),"",ResourceInputs!AC10) ->  | BF8: =IF(ISBLANK(ResourceInputs!AD10),"",ResourceInputs!AD10) ->  | BG8: =IF(ISBLANK(ResourceInputs!AE10),"",ResourceInputs!AE10) ->  | BH8: =IF(ISBLANK(ResourceInputs!AF10),"",ResourceInputs!AF10) ->  | BI8: =IF(ISBLANK(ResourceInputs!AG10),"",ResourceInputs!AG10) ->  | BJ8: =IF(ISBLANK(ResourceInputs!AH10),"",ResourceInputs!AH10) ->  | BK8: =IF(ISBLANK(ResourceInputs!AI10),"",ResourceInputs!AI10) ->  | BL8: =IF(ISBLANK(ResourceInputs!AJ10),"",ResourceInputs!AJ10) ->  | BM8: =IF(ISBLANK(ResourceInputs!AK10),"",ResourceInputs!AK10) ->  | BN8: =IF(ISBLANK(ResourceInputs!AL10),"",ResourceInputs!AL10) ->  | BO8: =IF(ISBLANK(ResourceInputs!AM10),"",ResourceInputs!AM10) ->  | BP8: =IF(ISBLANK(ResourceInputs!AN10),"",ResourceInputs!AN10) ->  | BQ8: =IF(ISBLANK(ResourceInputs!AO10),"",ResourceInputs!AO10) ->  | BR8: =IF(ISBLANK(ResourceInputs!AP10),"",ResourceInputs!AP10) ->  | BS8: =IF(ISBLANK(ResourceInputs!AQ10),"",ResourceInputs!AQ10) ->  | BT8: =IF(ISBLANK(ResourceInputs!AR10),"",ResourceInputs!AR10) ->  | BU8: =IF(ISBLANK(ResourceInputs!AS10),"",ResourceInputs!AS10) ->  | BV8: =IF(ISBLANK(ResourceInputs!AT10),"",ResourceInputs!AT10) ->  | BW8: =IF(ISBLANK(ResourceInputs!AU10),"",ResourceInputs!AU10) ->  | BX8: =IF(ISBLANK(ResourceInputs!AV10),"",ResourceInputs!AV10) ->  | BY8: =IF(ISBLANK(ResourceInputs!AW10),"",ResourceInputs!AW10) ->  | BZ8: =IF(ISBLANK(ResourceInputs!AX10),"",ResourceInputs!AX10) ->  | CA8: =IF(ISBLANK(ResourceInputs!AY10),"",ResourceInputs!AY10) ->  | CB8: =IF(ISBLANK(ResourceInputs!AZ10),"",ResourceInputs!AZ10) ->  | CC8: =IF(ISBLANK(ResourceInputs!BA10),"",ResourceInputs!BA10) ->  | CD8: =IF(ISBLANK(ResourceInputs!BB10),"",ResourceInputs!BB10) ->  | CE8: =IF(ISBLANK(ResourceInputs!BC10),"",ResourceInputs!BC10) ->  | CF8: =IF(ISBLANK(ResourceInputs!BD10),"",ResourceInputs!BD10) ->  | CG8: =IF(ISBLANK(ResourceInputs!BE10),"",ResourceInputs!BE10) ->  | CH8: =IF(ISBLANK(ResourceInputs!BF10),"",ResourceInputs!BF10) ->  | CI8: =IF(ISBLANK(ResourceInputs!BG10),"",ResourceInputs!BG10) ->  | CJ8: =IF(ISBLANK(ResourceInputs!BH10),"",ResourceInputs!BH10) ->  | CK8: =IF(ISBLANK(ResourceInputs!BI10),"",ResourceInputs!BI10) ->  | CL8: =IF(ISBLANK(ResourceInputs!BJ10),"",ResourceInputs!BJ10) ->  | CM8: =IF(ISBLANK(ResourceInputs!BK10),"",ResourceInputs!BK10) ->  | CN8: =IF(ISBLANK(ResourceInputs!BL10),"",ResourceInputs!BL10) ->  | CO8: =IF(ISBLANK(ResourceInputs!BM10),"",ResourceInputs!BM10) ->  | CP8: =IF(ISBLANK(ResourceInputs!BN10),"",ResourceInputs!BN10) -> 
A9: 6 | C9: Resource ID (GRID) | F9: =IF(ISBLANK(ResourceInputs!F12),"",ResourceInputs!F12) -> 3000 | G9: =IF(ISBLANK(ResourceInputs!G12),"",ResourceInputs!G12) -> 3001 | H9: =IF(ISBLANK(ResourceInputs!H12),"",ResourceInputs!H12) -> 3002 | I9: =IF(ISBLANK(ResourceInputs!I12),"",ResourceInputs!I12) -> 3003 | J9: =IF(ISBLANK(ResourceInputs!J12),"",ResourceInputs!J12) -> 3004 | K9: =IF(ISBLANK(ResourceInputs!K12),"",ResourceInputs!K12) -> 3005 | L9: =IF(ISBLANK(ResourceInputs!L12),"",ResourceInputs!L12) -> 3006
A10: 7 | C10: Resource Name | F10: =IF(ISBLANK(ResourceInputs!F13),"",ResourceInputs!F13) -> BreezyWind | G10: =IF(ISBLANK(ResourceInputs!G13),"",ResourceInputs!G13) -> WetWater | H10: =IF(ISBLANK(ResourceInputs!H13),"",ResourceInputs!H13) -> WoodyWood | I10: =IF(ISBLANK(ResourceInputs!I13),"",ResourceInputs!I13) -> WindyWind | J10: =IF(ISBLANK(ResourceInputs!J13),"",ResourceInputs!J13) -> SunnySun | K10: =IF(ISBLANK(ResourceInputs!K13),"",ResourceInputs!K13) -> WaterBug | L10: =IF(ISBLANK(ResourceInputs!L13),"",ResourceInputs!L13) -> WaterDrop | BB10: =IF(ISBLANK(ResourceInputs!Z12),"",ResourceInputs!Z12) ->  | BC10: =IF(ISBLANK(ResourceInputs!AA12),"",ResourceInputs!AA12) ->  | BD10: =IF(ISBLANK(ResourceInputs!AB12),"",ResourceInputs!AB12) ->  | BE10: =IF(ISBLANK(ResourceInputs!AC12),"",ResourceInputs!AC12) ->  | BF10: =IF(ISBLANK(ResourceInputs!AD12),"",ResourceInputs!AD12) ->  | BG10: =IF(ISBLANK(ResourceInputs!AE12),"",ResourceInputs!AE12) ->  | BH10: =IF(ISBLANK(ResourceInputs!AF12),"",ResourceInputs!AF12) ->  | BI10: =IF(ISBLANK(ResourceInputs!AG12),"",ResourceInputs!AG12) ->  | BJ10: =IF(ISBLANK(ResourceInputs!AH12),"",ResourceInputs!AH12) ->  | BK10: =IF(ISBLANK(ResourceInputs!AI12),"",ResourceInputs!AI12) ->  | BL10: =IF(ISBLANK(ResourceInputs!AJ12),"",ResourceInputs!AJ12) ->  | BM10: =IF(ISBLANK(ResourceInputs!AK12),"",ResourceInputs!AK12) ->  | BN10: =IF(ISBLANK(ResourceInputs!AL12),"",ResourceInputs!AL12) ->  | BO10: =IF(ISBLANK(ResourceInputs!AM12),"",ResourceInputs!AM12) ->  | BP10: =IF(ISBLANK(ResourceInputs!AN12),"",ResourceInputs!AN12) ->  | BQ10: =IF(ISBLANK(ResourceInputs!AO12),"",ResourceInputs!AO12) ->  | BR10: =IF(ISBLANK(ResourceInputs!AP12),"",ResourceInputs!AP12) ->  | BS10: =IF(ISBLANK(ResourceInputs!AQ12),"",ResourceInputs!AQ12) ->  | BT10: =IF(ISBLANK(ResourceInputs!AR12),"",ResourceInputs!AR12) ->  | BU10: =IF(ISBLANK(ResourceInputs!AS12),"",ResourceInputs!AS12) ->  | BV10: =IF(ISBLANK(ResourceInputs!AT12),"",ResourceInputs!AT12) ->  | BW10: =IF(ISBLANK(ResourceInputs!AU12),"",ResourceInputs!AU12) ->  | BX10: =IF(ISBLANK(ResourceInputs!AV12),"",ResourceInputs!AV12) ->  | BY10: =IF(ISBLANK(ResourceInputs!AW12),"",ResourceInputs!AW12) ->  | BZ10: =IF(ISBLANK(ResourceInputs!AX12),"",ResourceInputs!AX12) ->  | CA10: =IF(ISBLANK(ResourceInputs!AY12),"",ResourceInputs!AY12) ->  | CB10: =IF(ISBLANK(ResourceInputs!AZ12),"",ResourceInputs!AZ12) ->  | CC10: =IF(ISBLANK(ResourceInputs!BA12),"",ResourceInputs!BA12) ->  | CD10: =IF(ISBLANK(ResourceInputs!BB12),"",ResourceInputs!BB12) ->  | CE10: =IF(ISBLANK(ResourceInputs!BC12),"",ResourceInputs!BC12) ->  | CF10: =IF(ISBLANK(ResourceInputs!BD12),"",ResourceInputs!BD12) ->  | CG10: =IF(ISBLANK(ResourceInputs!BE12),"",ResourceInputs!BE12) ->  | CH10: =IF(ISBLANK(ResourceInputs!BF12),"",ResourceInputs!BF12) ->  | CI10: =IF(ISBLANK(ResourceInputs!BG12),"",ResourceInputs!BG12) ->  | CJ10: =IF(ISBLANK(ResourceInputs!BH12),"",ResourceInputs!BH12) ->  | CK10: =IF(ISBLANK(ResourceInputs!BI12),"",ResourceInputs!BI12) ->  | CL10: =IF(ISBLANK(ResourceInputs!BJ12),"",ResourceInputs!BJ12) ->  | CM10: =IF(ISBLANK(ResourceInputs!BK12),"",ResourceInputs!BK12) ->  | CN10: =IF(ISBLANK(ResourceInputs!BL12),"",ResourceInputs!BL12) ->  | CO10: =IF(ISBLANK(ResourceInputs!BM12),"",ResourceInputs!BM12) ->  | CP10: =IF(ISBLANK(ResourceInputs!BN12),"",ResourceInputs!BN12) -> 
A11: 8 | D11: Annual Generation aMW | F11: =IF(ISERROR(AVERAGE(ResourceInputs!F17:F8800)),"N/A",AVERAGE(ResourceInputs!F17:F8800)) -> 14.7465931 | G11: =IF(ISERROR(AVERAGE(ResourceInputs!G17:G8800)),"N/A",AVERAGE(ResourceInputs!G17:G8800)) -> 2.464199653 | H11: =IF(ISERROR(AVERAGE(ResourceInputs!H17:H8803)),"N/A",AVERAGE(ResourceInputs!H17:H8803)) -> 7.717274886 | I11: =IF(ISERROR(AVERAGE(ResourceInputs!I17:I8800)),"N/A",AVERAGE(ResourceInputs!I17:I8800)) -> 3.447260274 | J11: =IF(ISERROR(AVERAGE(ResourceInputs!J17:J8800)),"N/A",AVERAGE(ResourceInputs!J17:J8800)) -> 27.52566895 | K11: =IF(ISERROR(AVERAGE(ResourceInputs!K17:K8800)),"N/A",AVERAGE(ResourceInputs!K17:K8800)) -> N/A | L11: =IF(ISERROR(AVERAGE(ResourceInputs!L17:L8800)),"N/A",AVERAGE(ResourceInputs!L17:L8800)) -> N/A
A12: 9 | D12: Diurnal Flattening Service | F12: Yes | G12: Yes | H12: Yes | I12: Yes | J12: Yes | K12: No | L12: No
A13: 10 | D13: Forced Outage Reserve Service | F13: No | G13: Yes | H13: Yes | I13: No | J13: No | K13: No | L13: No
A14: 11 | D14: Forced Outage Rating | F14: 0 | G14: 0.05 | H14: 0.07 | I14: 0 | J14: 0 | K14: 0.05 | L14: 0
A15: 12 | D15: Secondary Crediting Service | F15: No | G15: No | H15: No | I15: No | J15: No | K15: No | L15: Yes
A16: 13 | D16: Grandfathered GMS | F16: No | G16: No | H16: No | I16: No | J16: No | K16: Yes | L16: No
A17: 14 | D17: Services & RSC | F17: =IF(F12="yes","DFS ","")&IF(F13="yes","FOR ","")&IF(F15="yes","SCS ","")&IF(F16="yes","GMS ","")&IF(F62="yes","TSS ","")&IF(F63="yes","TCMS ","")&IF(OR(F65="yes",F12="yes"),"RSC ","") -> DFS TSS TCMS RSC | G17: DFS FOR TSS TCMS RSC | H17: DFS FOR TSS TCMS RSC | I17: DFS TSS TCMS RSC | J17: DFS RSC | K17: GMS | L17: =IF(L12="yes","DFS ","")&IF(L13="yes","FOR ","")&IF(L15="yes","SCS ","")&IF(L16="yes","GMS ","")&IF(L62="yes","TSS ","")&IF(L63="yes","TCMS ","")&IF(OR(L65="yes",L12="yes"),"RSC ","") -> SCS | BB17: =IF(BB12="yes","DFS ","")&IF(BB13="yes","FOR ","")&IF(BB15="yes","SCS ","")&IF(BB16="yes","GMS ","")&IF(BB62="yes","TSS ","")&IF(BB63="yes","TCMS ","")&IF(OR(BB65="yes",BB12="yes"),"RSC ","") ->  | BS17: =IF(BS12="yes","DFS ","")&IF(BS13="yes","FOR ","")&IF(BS15="yes","SCS ","")&IF(BS16="yes","GMS ","")&IF(BS62="yes","TSS ","")&IF(BS63="yes","TCMS ","")&IF(OR(BS65="yes",BS12="yes"),"RSC ","") -> 
A18: 15
A19: 16 | D19: Planned Outage Replacement (yes or no) | F19: No | G19: No | H19: No | I19: No | J19: No | K19: No | L19: No
A20: 17 | D20: Total Planned Outage Hours | F20: 0 | G20: 0 | H20: 0 | I20: 0 | J20: 0 | K20: 0 | L20: 0
A21: 18 | D21: Planned Outage HLH Hours | F21: 0 | G21: 0 | H21: 0 | I21: 0 | J21: 0 | K21: 0 | L21: 0
A22: 19 | E22: October | F22: 0 | G22: 0 | H22: 0 | I22: 0 | J22: 0 | K22: 0 | L22: 0
A23: 20 | E23: November | F23: 0 | G23: 0 | H23: 0 | I23: 0 | J23: 0 | K23: 0 | L23: 0
A24: 21 | E24: December | F24: 0 | G24: 0 | H24: 0 | I24: 0 | J24: 0 | K24: 0 | L24: 0
A25: 22 | E25: January | F25: 0 | G25: 0 | H25: 0 | I25: 0 | J25: 0 | K25: 0 | L25: 0
A26: 23 | E26: February | F26: 0 | G26: 0 | H26: 0 | I26: 0 | J26: 0 | K26: 0 | L26: 0
A27: 24 | E27: March | F27: 0 | G27: 0 | H27: 0 | I27: 0 | J27: 0 | K27: 0 | L27: 0
A28: 25 | E28: April | F28: 0 | G28: 0 | H28: 0 | I28: 0 | J28: 0 | K28: 0 | L28: 0
A29: 26 | E29: May | F29: 0 | G29: 0 | H29: 0 | I29: 0 | J29: 0 | K29: 0 | L29: 0
A30: 27 | E30: June | F30: 0 | G30: 0 | H30: 0 | I30: 0 | J30: 0 | K30: 0 | L30: 0
A31: 28 | E31: July | F31: 0 | G31: 0 | H31: 0 | I31: 0 | J31: 0 | K31: 0 | L31: 0
A32: 29 | E32: August | F32: 0 | G32: 0 | H32: 0 | I32: 0 | J32: 0 | K32: 0 | L32: 0
A33: 30 | E33: September | F33: 0 | G33: 0 | H33: 0 | I33: 0 | J33: 0 | K33: 0 | L33: 0
A34: 31 | D34: Planned Outage LLH Hours | F34: 0 | G34: 0 | H34: 0 | I34: 0 | J34: 0 | K34: 0 | L34: 0
A35: 32 | E35: October | F35: 0 | G35: 0 | H35: 0 | I35: 0 | J35: 0 | K35: 0 | L35: 0
A36: 33 | E36: November | F36: 0 | G36: 0 | H36: 0 | I36: 0 | J36: 0 | K36: 0 | L36: 0
A37: 34 | E37: December | F37: 0 | G37: 0 | H37: 0 | I37: 0 | J37: 0 | K37: 0 | L37: 0
A38: 35 | E38: January | F38: 0 | G38: 0 | H38: 0 | I38: 0 | J38: 0 | K38: 0 | L38: 0
A39: 36 | E39: February | F39: 0 | G39: 0 | H39: 0 | I39: 0 | J39: 0 | K39: 0 | L39: 0
A40: 37 | E40: March | F40: 0 | G40: 0 | H40: 0 | I40: 0 | J40: 0 | K40: 0 | L40: 0
A41: 38 | E41: April | F41: 0 | G41: 0 | H41: 0 | I41: 0 | J41: 0 | K41: 0 | L41: 0
A42: 39 | E42: May | F42: 0 | G42: 0 | H42: 0 | I42: 0 | J42: 0 | K42: 0 | L42: 0
A43: 40 | E43: June | F43: 0 | G43: 0 | H43: 0 | I43: 0 | J43: 0 | K43: 0 | L43: 0
A44: 41 | E44: July | F44: 0 | G44: 0 | H44: 0 | I44: 0 | J44: 0 | K44: 0 | L44: 0
A45: 42 | E45: August | F45: 0 | G45: 0 | H45: 0 | I45: 0 | J45: 0 | K45: 0 | L45: 0
A46: 43 | E46: September | F46: 0 | G46: 0 | H46: 0 | I46: 0 | J46: 0 | K46: 0 | L46: 0
A47: 44
A48: 45 | D48: Operating/Firm Capacity kW Adjustment | F48: =IF(SUM(F49:F60)<>0,"Yes","No") -> No | G48: =IF(SUM(G49:G60)<>0,"Yes","No") -> No | H48: No | I48: No | J48: No | K48: No | L48: No
A49: 46 | E49: October | F49: 0 | G49: 0 | H49: 0 | I49: 0 | J49: 0 | K49: 0 | L49: 0
A50: 47 | E50: November | F50: 0 | G50: 0 | H50: 0 | I50: 0 | J50: 0 | K50: 0 | L50: 0
A51: 48 | E51: December | F51: 0 | G51: 0 | H51: 0 | I51: 0 | J51: 0 | K51: 0 | L51: 0
A52: 49 | E52: January | F52: 0 | G52: 0 | H52: 0 | I52: 0 | J52: 0 | K52: 0 | L52: 0
A53: 50 | E53: February | F53: 0 | G53: 0 | H53: 0 | I53: 0 | J53: 0 | K53: 0 | L53: 0
A54: 51 | E54: March | F54: 0 | G54: 0 | H54: 0 | I54: 0 | J54: 0 | K54: 0 | L54: 0
A55: 52 | E55: April | F55: 0 | G55: 0 | H55: 0 | I55: 0 | J55: 0 | K55: 0 | L55: 0
A56: 53 | E56: May | F56: 0 | G56: 0 | H56: 0 | I56: 0 | J56: 0 | K56: 0 | L56: 0
A57: 54 | E57: June | F57: 0 | G57: 0 | H57: 0 | I57: 0 | J57: 0 | K57: 0 | L57: 0
A58: 55 | E58: July | F58: 0 | G58: 0 | H58: 0 | I58: 0 | J58: 0 | K58: 0 | L58: 0
A59: 56 | E59: August | F59: 0 | G59: 0 | H59: 0 | I59: 0 | J59: 0 | K59: 0 | L59: 0
A60: 57 | E60: September | F60: 0 | G60: 0 | H60: 0 | I60: 0 | J60: 0 | K60: 0 | L60: 0
A61: 58 | E61: Unspecified Resource Serving Above High Water Mark Load | F61: No | G61: No | H61: No | I61: No | J61: No | K61: No | L61: No
A62: 59 | D62: Transmission Scheduling Services | F62: Yes | G62: Yes | H62: Yes | I62: Yes | J62: No | K62: No | L62: No
A63: 60 | D63: Transmission Curtailment Management Service | F63: Yes | G63: Yes | H63: Yes | I63: Yes | J63: No | K63: No | L63: No
A64: 61 | D64: Oati FEE adjustment | F64: =IF(F62="Yes"," OATI FEE share added after Cap applied","No") -> OATI FEE share added after Cap applied | G64: =IF(G62="Yes"," OATI FEE share added after Cap applied","No") -> OATI FEE share added after Cap applied | H64: =IF(H62="Yes"," OATI FEE share added after Cap applied","No") -> OATI FEE share added after Cap applied | I64: Yes | J64: No | K64: =IF(K62="Yes"," OATI FEE share added after Cap applied","No") -> No | L64: No
A65: 62 | D65: Apply RSC within ExhA/Tier2Obl/SCS/GMS/TSSOnly | F65: No | G65: No | H65: No | I65: No | J65: No | K65: GMS | L65: SCS
A66: 63 | D66: TSS resources per customer each year | F66: =IF(F62="Yes",TEXT(IF(RIGHT(RateInputs!$F$4,4)=TEXT(ResourceInputs!F$8,"0000"),COUNTIFS($F$7:$BB$7,F7,$F$62:$BB$62,"Yes"),0),"0")&" "&TEXT($D$68,0)&", "&TEXT(IF(RIGHT(RateInputs!$G$4,4)=TEXT(ResourceInputs!F$9,"0000"),COUNTIFS($F$7:$BB$7,F7,$F$62:$BB$62,"Yes"),0),"0")&" "&TEXT($D$97,0),"0 FY2016, 0 FY2017") -> 1 FY2018, 1 FY2019 | G66: =IF(G62="Yes",TEXT(IF(RIGHT(RateInputs!$F$4,4)=TEXT(ResourceInputs!G$8,"0000"),COUNTIFS($F$7:$BB$7,G7,$F$62:$BB$62,"Yes"),0),"0")&" "&TEXT($D$68,0)&", "&TEXT(IF(RIGHT(RateInputs!$G$4,4)=TEXT(ResourceInputs!G$9,"0000"),COUNTIFS($F$7:$BB$7,G7,$F$62:$BB$62,"Yes"),0),"0")&" "&TEXT($D$97,0),"0 FY2016, 0 FY2017") -> 1 FY2018, 1 FY2019 | H66: =IF(H62="Yes",TEXT(IF(RIGHT(RateInputs!$F$4,4)=TEXT(ResourceInputs!H$8,"0000"),COUNTIFS($F$7:$BB$7,H7,$F$62:$BB$62,"Yes"),0),"0")&" "&TEXT($D$68,0)&", "&TEXT(IF(RIGHT(RateInputs!$G$4,4)=TEXT(ResourceInputs!H$9,"0000"),COUNTIFS($F$7:$BB$7,H7,$F$62:$BB$62,"Yes"),0),"0")&" "&TEXT($D$97,0),"0 FY2016, 0 FY2017") -> 1 FY2018, 1 FY2019 | I66: =IF(I62="Yes",TEXT(IF(RIGHT(RateInputs!$F$4,4)=TEXT(ResourceInputs!I$8,"0000"),COUNTIFS($F$7:$BB$7,I7,$F$62:$BB$62,"Yes"),0),"0")&" "&TEXT($D$68,0)&", "&TEXT(IF(RIGHT(RateInputs!$G$4,4)=TEXT(ResourceInputs!I$9,"0000"),COUNTIFS($F$7:$BB$7,I7,$F$62:$BB$62,"Yes"),0),"0")&" "&TEXT($D$97,0),"0 FY2016, 0 FY2017") -> 1 FY2018, 1 FY2019 | J66: =IF(J62="Yes",TEXT(IF(RIGHT(RateInputs!$F$4,4)=TEXT(ResourceInputs!J$8,"0000"),COUNTIFS($F$7:$BB$7,J7,$F$62:$BB$62,"Yes"),0),"0")&" "&TEXT($D$68,0)&", "&TEXT(IF(RIGHT(RateInputs!$G$4,4)=TEXT(ResourceInputs!J$9,"0000"),COUNTIFS($F$7:$BB$7,J7,$F$62:$BB$62,"Yes"),0),"0")&" "&TEXT($D$97,0),"0 FY2016, 0 FY2017") -> 0 FY2016, 0 FY2017 | K66: =IF(K62="Yes",TEXT(IF(RIGHT(RateInputs!$F$4,4)=TEXT(ResourceInputs!K$8,"0000"),COUNTIFS($F$7:$BB$7,K7,$F$62:$BB$62,"Yes"),0),"0")&" "&TEXT($D$68,0)&", "&TEXT(IF(RIGHT(RateInputs!$G$4,4)=TEXT(ResourceInputs!K$9,"0000"),COUNTIFS($F$7:$BB$7,K7,$F$62:$BB$62,"Yes"),0),"0")&" "&TEXT($D$97,0),"0 FY2016, 0 FY2017") -> 0 FY2016, 0 FY2017 | L66: =IF(L62="Yes",TEXT(IF(RIGHT(RateInputs!$F$4,4)=TEXT(ResourceInputs!L$8,"0000"),COUNTIFS($F$7:$BB$7,L7,$F$62:$BB$62,"Yes"),0),"0")&" "&TEXT($D$68,0)&", "&TEXT(IF(RIGHT(RateInputs!$G$4,4)=TEXT(ResourceInputs!L$9,"0000"),COUNTIFS($F$7:$BB$7,L7,$F$62:$BB$62,"Yes"),0),"0")&" "&TEXT($D$97,0),"0 FY2016, 0 FY2017") -> 0 FY2016, 0 FY2017
A67: 64 | D67: Exhibit A Amounts or Tier 2 Obligations Amounts
A68: 65 | D68: =RateInputs!F4 -> FY2018
A69: 66 | D69: Annual aMW | F69: =(F70+F83)/8760 -> 15.96662466 | G69: =(G70+G83)/8784 -> 2.457466867 | H69: =ROUND(SUM(H71:H82,H84:H95)/SUM(RateInputs!$S$6:$T$17),3) -> 7.717 | I69: =(I70+I83)/8784 -> 3.43784153 | J69: 27.4504622 | K69: =(K70+K83)/8784 -> 0.8892304189 | L69: 3.515027322
A70: 67 | D70: HLH MWh | F70: =SUM(F71:F82) -> 78213.776 | G70: 12124.4932 | H70: 37900.089 | I70: 16567 | J70: 203949.1 | K70: 4520.4 | L70: 16165.2
A71: 68 | E71: October | F71: 6623.968 | G71: 759.852614 | H71: 3571.408 | I71: 1430 | J71: 6172.87 | K71: 428.4 | L71: 1286.4
A72: 69 | E72: November | F72: 6369.2 | G72: 506.462568 | H72: 1691.059 | I72: 1336 | J72: 10641.75 | K72: 430.1 | L72: 1408.8
A73: 70 | E73: December | F73: 6623.968 | G73: 400.690967 | H73: 2496.906 | I73: 1388 | J73: 18406 | K73: 421.6 | L73: 1897.2
A74: 71 | E74: January | F74: 6369.2 | G74: 245.620821 | H74: 3471.179 | I74: 1986 | J74: 22073.12 | K74: 66 | L74: 1507.2
A75: 72 | E75: February | F75: 6369.2 | G75: 211.080824 | H75: 3363.329 | I75: 1706 | J75: 20097.08 | K75: 396 | L75: 1188
A76: 73 | E76: March | F76: 6878.736 | G76: 373.82025 | H76: 3519.905 | I76: 1980 | J76: 25908.91 | K76: 295.9 | L76: 968.4
A77: 74 | E77: April | F77: 6369.2 | G77: 202.451125 | H77: 3603.441 | I77: 1401 | J77: 26914.22 | K77: 129.6 | L77: 582
A78: 75 | E78: May | F78: 6623.968 | G78: 1176.797905 | H78: 2235.208 | I78: 1325 | J78: 23045.09 | K78: 103 | L78: 1294.8
A79: 76 | E79: June | F79: 6623.968 | G79: 2442.656308 | H79: 3663.391 | I79: 800 | J79: 21053.52 | K79: 618 | L79: 1854
A80: 77 | E80: July | F80: 6369.2 | G80: 2352.585321 | H80: 3548.554 | I80: 922 | J80: 13638.92 | K80: 440 | L80: 1440
A81: 78 | E81: August | F81: 6878.736 | G81: 2195.945633 | H81: 3283.614 | I81: 1114 | J81: 9002.74 | K81: 374.4 | L81: 1682.4
A82: 79 | E82: September | F82: 6114.432 | G82: 1256.528863 | H82: 3452.095 | I82: 1179 | J82: 6994.88 | K82: 817.4 | L82: 1056
A83: 80 | D83: LLH MWh | F83: =SUM(F84:F95) -> 61653.856 | G83: 9461.895761 | H83: 29703.239 | I83: 13631 | J83: 37175.76 | K83: 3290.6 | L83: 14710.8
A84: 81 | E84: October | F84: 5222.744 | G84: 548.885743 | H84: 2609.959 | I84: 1179 | J84: 508.18 | K84: 396 | L84: 1186.8
A85: 82 | E85: November | F85: 5111.283 | G85: 444.159916 | H85: 1339.87 | I85: 1322 | J85: 2112.8 | K85: 394.9 | L85: 1293.6
A86: 83 | E86: December | F86: 5222.744 | G86: 307.854037 | H86: 1953.521 | I86: 1300 | J86: 3605.78 | K86: 369.6 | L86: 1660.8
A87: 84 | E87: January | F87: 5477.512 | G87: 200.420315 | H87: 2840.294 | I87: 1337 | J87: 4116.9 | K87: 57.6 | L87: 1471.2
A88: 85 | E88: February | F88: 4713.208 | G88: 127.887082 | H88: 2512.209 | I88: 1028 | J88: 3732.19 | K88: 345.6 | L88: 1036.8
A89: 86 | E89: March | F89: 4952.053 | G89: 271.779015 | H89: 2838.781 | I89: 1474 | J89: 5230.32 | K89: 262.9 | L89: 861.6
A90: 87 | E90: April | F90: 5095.36 | G90: 136.284314 | H90: 2656.79 | I90: 1090 | J90: 3656.54 | K90: 139.2 | L90: 628.8
A91: 88 | E91: May | F91: 5222.744 | G91: 1139.341623 | H91: 1942.338 | I91: 1364 | J91: 4782.72 | K91: 84 | L91: 1184.4
A92: 89 | E92: June | F92: 4840.592 | G92: 1831.128967 | H92: 2707.577 | I92: 543 | J92: 3167.06 | K92: 504 | L92: 1510.8
A93: 90 | E93: July | F93: 5477.512 | G93: 1822.758019 | H93: 2811.53 | I93: 861 | J93: 2780.97 | K93: 431.2 | L93: 1410
A94: 91 | E94: August | F94: 4967.976 | G94: 1627.937746 | H94: 2698.686 | I94: 896 | J94: 2254.58 | K94: 305.6 | L94: 1375.2
A95: 92 | E95: September | F95: 5350.128 | G95: 1003.458984 | H95: 2791.684 | I95: 1237 | J95: 1227.72 | K95: 0 | L95: 1090.8
A96: 93
A97: 94 | D97: =RateInputs!G4 -> FY2019
A98: 95 | D98: Annual aMW | F98: =(F99+F112)/8760 -> 15.945 | G98: =(G99+G112)/8760 -> 2.464199653 | H98: =ROUND(SUM(H100:H111,H113:H124)/SUM(RateInputs!$U$6:$V$17),3) -> 7.717 | I98: =(I99+I112)/8760 -> 3.447260274 | J98: 27.52566895 | K98: =(K99+K112)/8760 -> 0.8892465753 | L98: 3.519589041
A99: 96 | D99: HLH MWh | F99: =SUM(F100:F111) -> 78321.84 | G99: =SUM(G100:G111) -> 12124.4932 | H99: =SUM(H100:H111) -> 37900.089 | I99: =SUM(I100:I111) -> 16567 | J99: 203949.1 | K99: =SUM(K100:K111) -> 4496 | L99: 16166.4
A100: 97 | E100: October | F100: 6888.24 | G100: 759.852614 | H100: 3571.408 | I100: 1430 | J100: 6172.87 | K100: 448.8 | L100: 1341.6
A101: 98 | E101: November | F101: 6378 | G101: 506.462568 | H101: 1691.059 | I101: 1336 | J101: 10641.75 | K101: 432.3 | L101: 1413.6
A102: 99 | E102: December | F102: 6378 | G102: 400.690967 | H102: 2496.906 | I102: 1388 | J102: 18406 | K102: 406.4 | L102: 1828.8
A103: 100 | E103: January | F103: 6633.12 | G103: 245.620821 | H103: 3471.179 | I103: 1986 | J103: 22073.12 | K103: 63.8 | L103: 1572
A104: 101 | E104: February | F104: 6122.88 | G104: 211.080824 | H104: 3363.329 | I104: 1706 | J104: 20097.08 | K104: 382.8 | L104: 1146
A105: 102 | E105: March | F105: 6633.12 | G105: 373.82025 | H105: 3519.905 | I105: 1980 | J105: 25908.91 | K105: 286 | L105: 937.2
A106: 103 | E106: April | F106: 6633.12 | G106: 202.451125 | H106: 3603.441 | I106: 1401 | J106: 26914.22 | K106: 136 | L106: 613.2
A107: 104 | E107: May | F107: 6633.12 | G107: 1176.797905 | H107: 2235.208 | I107: 1325 | J107: 23045.09 | K107: 98.6 | L107: 1294.8
A108: 105 | E108: June | F108: 6378 | G108: 2442.656308 | H108: 3663.391 | I108: 800 | J108: 21053.52 | K108: 591.6 | L108: 1773.6
A109: 106 | E109: July | F109: 6633.12 | G109: 2352.585321 | H109: 3548.554 | I109: 922 | J109: 13638.92 | K109: 460.9 | L109: 1507.2
A110: 107 | E110: August | F110: 6888.24 | G110: 2195.945633 | H110: 3283.614 | I110: 1114 | J110: 9002.74 | K110: 374.4 | L110: 1682.4
A111: 108 | E111: September | F111: 6122.88 | G111: 1256.528863 | H111: 3452.095 | I111: 1179 | J111: 6994.88 | K111: 814.4 | L111: 1056
A112: 109 | D112: LLH MWh | F112: =SUM(F113:F124) -> 61356.36 | G112: 9461.895761 | H112: 29703.239 | I112: 13631 | J112: 37175.76 | K112: 3293.8 | L112: 14665.2
A113: 110 | E113: October | F113: 4974.84 | G113: 548.885743 | H113: 2609.959 | I113: 1179 | J113: 508.18 | K113: 375.6 | L113: 1128
A114: 111 | E114: November | F114: 5118.345 | G114: 444.159916 | H114: 1339.87 | I114: 1322 | J114: 2112.8 | K114: 394.9 | L114: 1294.8
A115: 112 | E115: December | F115: 5485.08 | G115: 307.854037 | H115: 1953.521 | I115: 1300 | J115: 3605.78 | K115: 388 | L115: 1742.4
A116: 113 | E116: January | F116: 5229.96 | G116: 200.420315 | H116: 2840.294 | I116: 1337 | J116: 4116.9 | K116: 55.8 | L116: 1402.8
A117: 114 | E117: February | F117: 4592.16 | G117: 127.887082 | H117: 2512.209 | I117: 1028 | J117: 3732.19 | K117: 334.8 | L117: 1008
A118: 115 | E118: March | F118: 5214.015 | G118: 271.779015 | H118: 2838.781 | I118: 1474 | J118: 5230.32 | K118: 277.2 | L118: 907.2
A119: 116 | E119: April | F119: 4847.28 | G119: 136.284314 | H119: 2656.79 | I119: 1090 | J119: 3656.54 | K119: 132.8 | L119: 597.6
A120: 117 | E120: May | F120: 5229.96 | G120: 1139.341623 | H120: 1942.338 | I120: 1364 | J120: 4782.72 | K120: 88.4 | L120: 1184.4
A121: 118 | E121: June | F121: 5102.4 | G121: 1831.128967 | H121: 2707.577 | I121: 543 | J121: 3167.06 | K121: 530.4 | L121: 1591.2
A122: 119 | E122: July | F122: 5229.96 | G122: 1822.758019 | H122: 2811.53 | I122: 861 | J122: 2780.97 | K122: 410.3 | L122: 1342.8
A123: 120 | E123: August | F123: 4974.84 | G123: 1627.937746 | H123: 2698.686 | I123: 896 | J123: 2254.58 | K123: 305.6 | L123: 1375.2
A124: 121 | E124: September | F124: 5357.52 | G124: 1003.458984 | H124: 2791.684 | I124: 1237 | J124: 1227.72 | K124: 0 | L124: 1090.8
A125: 122
A126: 123 | D126: Applicable Year(s) | F126: =IF((OFFSET(ResourceInputs!$A$1,7,MATCH(F$4,ResourceInputs!$3:$3,0)-1))=OFFSET(ResourceInputs!$A$1,8,(MATCH(F$4,ResourceInputs!$3:$3,0)-1)),"FY" & TEXT(OFFSET(ResourceInputs!$A$1,7,MATCH(F$4,ResourceInputs!$3:$3,0)-1),"0000"),"FY" & TEXT(OFFSET(ResourceInputs!$A$1,7,MATCH(F$4,ResourceInputs!$3:$3,0)-1),"0000") & "&"& "FY" &TEXT((OFFSET(ResourceInputs!$A$1,8,MATCH(F$4,ResourceInputs!$3:$3,0)-1)),"0000")) -> FY2018&FY2019 | G126: =IF((OFFSET(ResourceInputs!$A$1,7,MATCH(G$4,ResourceInputs!$3:$3,0)-1))=OFFSET(ResourceInputs!$A$1,8,(MATCH(G$4,ResourceInputs!$3:$3,0)-1)),"FY" & TEXT(OFFSET(ResourceInputs!$A$1,7,MATCH(G$4,ResourceInputs!$3:$3,0)-1),"0000"),"FY" & TEXT(OFFSET(ResourceInputs!$A$1,7,MATCH(G$4,ResourceInputs!$3:$3,0)-1),"0000") & "&"& "FY" &TEXT((OFFSET(ResourceInputs!$A$1,8,MATCH(G$4,ResourceInputs!$3:$3,0)-1)),"0000")) -> FY2018&FY2019 | H126: =IF((OFFSET(ResourceInputs!$A$1,7,MATCH(H$4,ResourceInputs!$3:$3,0)-1))=OFFSET(ResourceInputs!$A$1,8,(MATCH(H$4,ResourceInputs!$3:$3,0)-1)),"FY" & TEXT(OFFSET(ResourceInputs!$A$1,7,MATCH(H$4,ResourceInputs!$3:$3,0)-1),"0000"),"FY" & TEXT(OFFSET(ResourceInputs!$A$1,7,MATCH(H$4,ResourceInputs!$3:$3,0)-1),"0000") & "&"& "FY" &TEXT((OFFSET(ResourceInputs!$A$1,8,MATCH(H$4,ResourceInputs!$3:$3,0)-1)),"0000")) -> FY2018&FY2019 | I126: =IF((OFFSET(ResourceInputs!$A$1,7,MATCH(I$4,ResourceInputs!$3:$3,0)-1))=OFFSET(ResourceInputs!$A$1,8,(MATCH(I$4,ResourceInputs!$3:$3,0)-1)),"FY" & TEXT(OFFSET(ResourceInputs!$A$1,7,MATCH(I$4,ResourceInputs!$3:$3,0)-1),"0000"),"FY" & TEXT(OFFSET(ResourceInputs!$A$1,7,MATCH(I$4,ResourceInputs!$3:$3,0)-1),"0000") & "&"& "FY" &TEXT((OFFSET(ResourceInputs!$A$1,8,MATCH(I$4,ResourceInputs!$3:$3,0)-1)),"0000")) -> FY2018&FY2019 | J126: =IF((OFFSET(ResourceInputs!$A$1,7,MATCH(J$4,ResourceInputs!$3:$3,0)-1))=OFFSET(ResourceInputs!$A$1,8,(MATCH(J$4,ResourceInputs!$3:$3,0)-1)),"FY" & TEXT(OFFSET(ResourceInputs!$A$1,7,MATCH(J$4,ResourceInputs!$3:$3,0)-1),"0000"),"FY" & TEXT(OFFSET(ResourceInputs!$A$1,7,MATCH(J$4,ResourceInputs!$3:$3,0)-1),"0000") & "&"& "FY" &TEXT((OFFSET(ResourceInputs!$A$1,8,MATCH(J$4,ResourceInputs!$3:$3,0)-1)),"0000")) -> FY2018&FY2019 | K126: =IF((OFFSET(ResourceInputs!$A$1,7,MATCH(K$4,ResourceInputs!$3:$3,0)-1))=OFFSET(ResourceInputs!$A$1,8,(MATCH(K$4,ResourceInputs!$3:$3,0)-1)),"FY" & TEXT(OFFSET(ResourceInputs!$A$1,7,MATCH(K$4,ResourceInputs!$3:$3,0)-1),"0000"),"FY" & TEXT(OFFSET(ResourceInputs!$A$1,7,MATCH(K$4,ResourceInputs!$3:$3,0)-1),"0000") & "&"& "FY" &TEXT((OFFSET(ResourceInputs!$A$1,8,MATCH(K$4,ResourceInputs!$3:$3,0)-1)),"0000")) -> FY2018&FY2019 | L126: =IF((OFFSET(ResourceInputs!$A$1,7,MATCH(L$4,ResourceInputs!$3:$3,0)-1))=OFFSET(ResourceInputs!$A$1,8,(MATCH(L$4,ResourceInputs!$3:$3,0)-1)),"FY" & TEXT(OFFSET(ResourceInputs!$A$1,7,MATCH(L$4,ResourceInputs!$3:$3,0)-1),"0000"),"FY" & TEXT(OFFSET(ResourceInputs!$A$1,7,MATCH(L$4,ResourceInputs!$3:$3,0)-1),"0000") & "&"& "FY" &TEXT((OFFSET(ResourceInputs!$A$1,8,MATCH(L$4,ResourceInputs!$3:$3,0)-1)),"0000")) -> FY2018&FY2019

Sheet ResourceSelect&Sort&Summarize
B1: ResourceSelect&Sorter&Summarize
B2: =Cover!C14 -> RSSModel.BP18Publicexample.xlsm | T2: =ResourceProfiles!D67&" "&ResourceProfiles!D68&" "&ResourceProfiles!D69 -> Exhibit A Amounts or Tier 2 Obligations Amounts FY2018 Annual aMW | U2: =HLOOKUP($D$3,ResourceProfiles!$4:$349,ResourceProfiles!A69) -> 15.96662466
A3: TOC | C3: Select Key | D3: =CustomerSpecificSummary!C3 -> 10001 | T3: =ResourceProfiles!D67&" "&ResourceProfiles!D97&" "&ResourceProfiles!D98 -> Exhibit A Amounts or Tier 2 Obligations Amounts FY2019 Annual aMW | U3: =HLOOKUP($D$3,ResourceProfiles!$4:$349,ResourceProfiles!A98) -> 15.945
A4: é | C4: Resource Output Data Year | D4: =HLOOKUP(D3,ResourceProfiles!4:349,ResourceProfiles!A5) -> FY2016 | T4: "ResourceInput" Tab Adj. for Schedule Annual aMW | U4: =IF(ISERROR(SUM(P12:Q23)/E24),"N/A",SUM(P12:Q23)/E24) -> 14.7465931
C5: Model Identifier | D5: =HLOOKUP(D3,ResourceProfiles!4:349,ResourceProfiles!A6) -> NF.1.Wind.1.2018_2019 | T5: Total Planned Energy Annual aMW | U5: =IF(ISERROR(SUM(V12:W23)/E24),"N/A",SUM(P12:Q23)/E24) -> 14.7465931
C6: BES_ID | D6: =HLOOKUP(D3,ResourceProfiles!4:349,ResourceProfiles!A8) -> BPA
C7: Purchaser | D7: =HLOOKUP(D3,ResourceProfiles!4:349,ResourceProfiles!A7) -> Tier 1
C8: Resource Name | D8: =HLOOKUP(D3,ResourceProfiles!4:349,ResourceProfiles!A10) -> BreezyWind
C9: Services & RSC | D9: =HLOOKUP(D3,ResourceProfiles!4:349,ResourceProfiles!A17) -> DFS TSS TCMS RSC | AC9: FOR Rating | AD9: 0
C10: Applicable Year(s) | D10: =HLOOKUP(D3,ResourceProfiles!4:349,ResourceProfiles!A126) -> FY2018&FY2019 | O10: "ResourceInput" Tab Adj. for Schedule Monthly/Diurnal | R10: Forecast FORE Use | T10: ="Planned Outage Replacement "&HLOOKUP($D$3,ResourceProfiles!$4:$349,ResourceProfiles!$A$19) -> Planned Outage Replacement No | V10: Planned Amounts | AJ10: Information Only | AL10: Used For DFS Energy Rate | AN10: Used for BPA Planning
B11: Month | C11: HLH | D11: LLH | E11: Total | F11: CountHours | G11: Month | H11: Fiscal Year | I11: HLH/LLH | J11: Hourly Output | K11: HLH Sort | L11: LLH Sort | M11: HLH Above Average | N11: LLH Above Average | P11: HLH MWh | Q11: LLH MWh | R11: HLH FORE MWh | S11: LLH FORE MWh | T11: HLH Planned MWh | U11: LLH Planned MWh | V11: HLH Total MWh | W11: LLH Total MWh | X11: FOR HLH Hours | Y11: FOR LLH Hours | Z11: Planned HLH Hours | AA11: Planned LLH Hours | AB11: Count HLH Zeros | AC11: Count LLH Zeros | AD11: ="HLH "&AD9*100&"th Percentile (kW)" -> HLH 0th Percentile (kW) | AE11: HLH Planned Outage Adjustment (kW) | AF11: Operating/Firm Capacity Adjustment (kW) | AG11: HLH Firm Capacity (kW) | AH11: HLH Operating Minimum (kW) | AI11: LLH Operating Minimum (kW) | AJ11: HLH Historical Minimum (kW) | AK11: LLH Historical Minimum (kW) | AL11: Above Average HLH kWh | AM11: Above Average LLH kWh | AN11: ="LLH "&AD9*100&"th Percentile (kW)" -> LLH 0th Percentile (kW) | AO11: LLH Planned Outage Adjustment (kW) | AP11: LLH Firm Capacity (kW)
B12: Oct | C12: =DCOUNT($F$11:$I$8795,"counthours",B24:C25) -> 432 | D12: =E12-C12 -> 312 | E12: =DCOUNT($F$11:$I$8795,"counthours",B24:B25) -> 744 | F12: =IF(G12="","",1) -> 1 | G12: =IF($D$4="N/A","",IF(HLOOKUP($G$11&$D$4,Look_Tbl!$C$6:$T$8790,Look_Tbl!B7,FALSE)="","",HLOOKUP($G$11&$D$4,Look_Tbl!$C$6:$T$8790,Look_Tbl!B7,FALSE))) -> Oct | H12: =IF($D$4="N/A","",IF(G12="","",$D$4)) -> FY2016 | I12: =IF($D$4="N/A",0,IF(G12="","",HLOOKUP($I$11&$D$4,Look_Tbl!$C$6:$T$8790,Look_Tbl!B7,FALSE))) -> LLH | J12: =IF($D$4="N/A",0,IF(OR(ISBLANK(HLOOKUP($D$3,ResourceInputs!$3:$65536,ResourceInputs!E16)),HLOOKUP($D$3,ResourceInputs!$3:$65536,ResourceInputs!E16)="nonleap"),"",IF((HLOOKUP($D$3,ResourceInputs!$3:$65536,ResourceInputs!$E$16)="Scheduled"),MAX(ROUND(HLOOKUP($D$3,ResourceInputs!$3:$65536,ResourceInputs!E16),0),0),MAX(HLOOKUP($D$3,ResourceInputs!$3:$65536,ResourceInputs!E16),0)))) -> 7.58004 | K12: =IF(I12="HLH",J12,"") ->  | L12: =IF(I12="LLH",J12,"") -> 7.58004 | M12: =IF(K12="","",ROUND(MAX(0,K12-(VLOOKUP(G12,$O$12:$W$23,8,FALSE)/VLOOKUP(G12,$B$12:$C$23,2,FALSE))),3)) ->  | N12: =IF(L12="","",ROUND(MAX(0,L12-(VLOOKUP(G12,$O$12:$W$23,9,FALSE)/VLOOKUP(G12,$B$12:$D$23,3,FALSE))),3)) -> 0 | O12: Oct | P12: =SUMIF($G$12:$G$8795,O12,$K$12:$K$8795) -> 5050.54264 | Q12: =SUMIF($G$12:$G$8795,O12,$L$12:$L$8795) -> 2944.52132 | R12: =IF(P12=0,0,P12/(C12-AB12)*X12) -> 0 | S12: =IF(Q12=0,0,Q12/(D12-AC12)*Y12) -> 0 | T12: =IF(HLOOKUP($D$3,ResourceProfiles!$4:$349,ResourceProfiles!$A$19)="yes",P12/(C12-AB12)*Z12,0) -> 0 | U12: =IF(HLOOKUP($D$3,ResourceProfiles!$4:$349,ResourceProfiles!$A$19)="yes",Q12/(D12-AC12)*AA12,0) -> 0 | V12: =IF($D$4="N/A",$D$4,P12+R12+T12) -> 5050.54264 | W12: =IF($D$4="N/A",$D$4,Q12+S12+U12) -> 2944.52132 | X12: =IF(HLOOKUP($D$3,ResourceProfiles!$F$4:$IV$126,ResourceProfiles!$A$13)="Yes",AB12-Z12,0) -> 0 | Y12: =IF(HLOOKUP($D$3,ResourceProfiles!$F$4:$IV$126,ResourceProfiles!$A$13)="Yes",AC12-AA12,0) -> 0 | Z12: =HLOOKUP($D$3,ResourceProfiles!$F$4:$IV$126,ResourceProfiles!A22,FALSE) -> 0 | AA12: =HLOOKUP($D$3,ResourceProfiles!$F$4:$IV$126,ResourceProfiles!A35,FALSE) -> 0 | AB12: =IF($D$4="N/A",$D$4,COUNTIF(INDIRECT(CONCATENATE("K",MATCH(O12,$G$12:$G$8796,0)+11,":","K",MATCH(O13,$G$12:$G$8796,0)+10)),0)) -> 64 | AC12: =IF($D$4="N/A",$D$4,COUNTIF(INDIRECT(CONCATENATE("L",MATCH(O12,$G$12:$G$8796,0)+11,":","L",MATCH(O13,$G$12:$G$8796,0)+10)),0)) -> 89 | AD12: =IF($D$4="N/A",$D$4,PERCENTILE(INDIRECT(CONCATENATE("K",MATCH(O12,$G$12:$G$8796,0)+11,":","K",MATCH(O13,$G$12:$G$8796,0)+10)),$AD$9)*1000) -> 0 | AE12: =IF(OR($D$4="N/A",HLOOKUP($D$3,ResourceProfiles!$F$4:$IV$65536,ResourceProfiles!$A$19)="no"),0,IF(Z12/C12<25%,PERCENTILE(INDIRECT(CONCATENATE("K",MATCH(O12,$G$12:$G$8796,0)+11,":","K",MATCH(O13,$G$12:$G$8796,0)+10)),Z12/C12+(1-(Z12/C12))*$AD$9)*1000,IF(Z12/C12>75%,0,PERCENTILE(INDIRECT(CONCATENATE("K",MATCH(O12,$G$12:$G$8796,0)+11,":","K",MATCH(O13,$G$12:$G$8796,0)+10)),Z12/C12+(1-(Z12/C12))*$AD$9)*1000*(1-Z12/C12)))) -> 0 | AF12: =HLOOKUP($D$3,ResourceProfiles!$F$4:$IV$126,ResourceProfiles!A49) -> 0 | AG12: =MAX(0,MAX(AD12,AE12)+AF12) -> 0 | AH12: =IF($D$4="N/A",$D$4,TRUNC(MIN(IF(AB12+RateInputs!$Q$6>=C12,0,SMALL(INDIRECT(CONCATENATE("K",MATCH(O12,$G$12:$G$8796,0)+11,":","K",MATCH(O13,$G$12:$G$8796,0)+10)),AB12+RateInputs!$Q$6))*1000+AF12,$AG12),-3)) -> 0 | AI12: =IF($D$4="N/A",$D$4,TRUNC(MIN(IF(AC12+RateInputs!$Q$6>=D12,0,SMALL(INDIRECT(CONCATENATE("L",MATCH(O12,$G$12:$G$8796,0)+11,":","L",MATCH(O13,$G$12:$G$8796,0)+10)),AC12+RateInputs!$Q$6))*1000+AF12,$AG12),-3)) -> 0 | AJ12: =IF($D$4="N/A",$D$4,MIN(INDIRECT(CONCATENATE("K",MATCH(O12,$G$12:$G$8796,0)+11,":","K",MATCH(O13,$G$12:$G$8796,0)+10)))*1000) -> 0 | AK12: =IF($D$4="N/A",$D$4,MIN(INDIRECT(CONCATENATE("L",MATCH(O12,$G$12:$G$8796,0)+11,":","L",MATCH(O13,$G$12:$G$8796,0)+10)))*1000) -> 0 | AL12: =ROUND(SUMIF($G$12:$G$8795,O12,$M$12:$M$8795),0) -> 2723 | AM12: =ROUND(SUMIF($G$12:$G$8795,O12,$N$12:$N$8795),0) -> 1652 | AN12: =IF($D$4="N/A",$D$4,PERCENTILE(INDIRECT(CONCATENATE("L",MATCH(O12,$G$12:$G$8796,0)+11,":","L",MATCH(O13,$G$12:$G$8796,0)+10)),$AD$9)*1000) -> 0 | AO12: =IF(OR($D$4="N/A",HLOOKUP($D$3,ResourceProfiles!$F$4:$IV$65536,ResourceProfiles!$A$19)="no"),0,IF(AA12/D12<25%,PERCENTILE(INDIRECT(CONCATENATE("K",MATCH(O12,$G$12:$G$8796,0)+11,":","K",MATCH(O13,$G$12:$G$8796,0)+10)),AA12/D12+(1-(AA12/D12))*$AD$9)*1000,IF(AA12/D12>75%,0,PERCENTILE(INDIRECT(CONCATENATE("K",MATCH(O12,$G$12:$G$8796,0)+11,":","K",MATCH(O13,$G$12:$G$8796,0)+10)),AA12/D12+(1-(AA12/D12))*$AD$9)*1000*(1-AA12/D12)))) -> 0 | AP12: =MAX(AN12,AO12) -> 0
B13: Nov | C13: =DCOUNT($F$11:$I$8795,"counthours",B26:C27) -> 400 | D13: 321 | E13: =DCOUNT($F$11:$I$8795,"counthours",B26:B27) -> 721 | F13: =IF(G13="","",1) -> 1 | G13: =IF($D$4="N/A","",IF(HLOOKUP($G$11&$D$4,Look_Tbl!$C$6:$T$8790,Look_Tbl!B8,FALSE)="","",HLOOKUP($G$11&$D$4,Look_Tbl!$C$6:$T$8790,Look_Tbl!B8,FALSE))) -> Oct | H13: =IF($D$4="N/A","",IF(G13="","",$D$4)) -> FY2016 | I13: =IF($D$4="N/A",0,IF(G13="","",HLOOKUP($I$11&$D$4,Look_Tbl!$C$6:$T$8790,Look_Tbl!B8,FALSE))) -> LLH | J13: =IF($D$4="N/A",0,IF(OR(ISBLANK(HLOOKUP($D$3,ResourceInputs!$3:$65536,ResourceInputs!E17)),HLOOKUP($D$3,ResourceInputs!$3:$65536,ResourceInputs!E17)="nonleap"),"",IF((HLOOKUP($D$3,ResourceInputs!$3:$65536,ResourceInputs!$E$16)="Scheduled"),MAX(ROUND(HLOOKUP($D$3,ResourceInputs!$3:$65536,ResourceInputs!E17),0),0),MAX(HLOOKUP($D$3,ResourceInputs!$3:$65536,ResourceInputs!E17),0)))) -> 11.18 | L13: 11.18 | M13: =IF(K13="","",ROUND(MAX(0,K13-(VLOOKUP(G13,$O$12:$W$23,8,FALSE)/VLOOKUP(G13,$B$12:$C$23,2,FALSE))),3)) ->  | N13: =IF(L13="","",ROUND(MAX(0,L13-(VLOOKUP(G13,$O$12:$W$23,9,FALSE)/VLOOKUP(G13,$B$12:$D$23,3,FALSE))),3)) -> 1.742 | O13: Nov | P13: =SUMIF($G$12:$G$8795,O13,$K$12:$K$8795) -> 4781.86488 | Q13: =SUMIF($G$12:$G$8795,O13,$L$12:$L$8795) -> 3625.42804 | R13: =IF(P13=0,0,P13/(C13-AB13)*X13) -> 0 | S13: =IF(Q13=0,0,Q13/(D13-AC13)*Y13) -> 0 | T13: =IF(HLOOKUP($D$3,ResourceProfiles!$4:$349,ResourceProfiles!$A$19)="yes",P13/(C13-AB13)*Z13,0) -> 0 | U13: =IF(HLOOKUP($D$3,ResourceProfiles!$4:$349,ResourceProfiles!$A$19)="yes",Q13/(D13-AC13)*AA13,0) -> 0 | V13: =IF($D$4="N/A",$D$4,P13+R13+T13) -> 4781.86488 | W13: =IF($D$4="N/A",$D$4,Q13+S13+U13) -> 3625.42804 | X13: =IF(HLOOKUP($D$3,ResourceProfiles!$F$4:$IV$126,ResourceProfiles!$A$13)="Yes",AB13-Z13,0) -> 0 | Y13: =IF(HLOOKUP($D$3,ResourceProfiles!$F$4:$IV$126,ResourceProfiles!$A$13)="Yes",AC13-AA13,0) -> 0 | Z13: =HLOOKUP($D$3,ResourceProfiles!$F$4:$IV$126,ResourceProfiles!A23,FALSE) -> 0 | AA13: =HLOOKUP($D$3,ResourceProfiles!$F$4:$IV$126,ResourceProfiles!A36,FALSE) -> 0 | AB13: 84 | AC13: 101 | AD13: =IF($D$4="N/A",$D$4,PERCENTILE(INDIRECT(CONCATENATE("K",MATCH(O13,$G$12:$G$8796,0)+11,":","K",MATCH(O14,$G$12:$G$8796,0)+10)),$AD$9)*1000) -> 0 | AE13: =IF(OR($D$4="N/A",HLOOKUP($D$3,ResourceProfiles!$F$4:$IV$65536,ResourceProfiles!$A$19)="no"),0,IF(Z13/C13<25%,PERCENTILE(INDIRECT(CONCATENATE("K",MATCH(O13,$G$12:$G$8796,0)+11,":","K",MATCH(O14,$G$12:$G$8796,0)+10)),Z13/C13+(1-(Z13/C13))*$AD$9)*1000,IF(Z13/C13>75%,0,PERCENTILE(INDIRECT(CONCATENATE("K",MATCH(O13,$G$12:$G$8796,0)+11,":","K",MATCH(O14,$G$12:$G$8796,0)+10)),Z13/C13+(1-(Z13/C13))*$AD$9)*1000*(1-Z13/C13)))) -> 0 | AF13: =HLOOKUP($D$3,ResourceProfiles!$F$4:$IV$126,ResourceProfiles!A50) -> 0 | AG13: =MAX(0,MAX(AD13,AE13)+AF13) -> 0 | AH13: =IF($D$4="N/A",$D$4,TRUNC(MIN(IF(AB13+RateInputs!$Q$6>=C13,0,SMALL(INDIRECT(CONCATENATE("K",MATCH(O13,$G$12:$G$8796,0)+11,":","K",MATCH(O14,$G$12:$G$8796,0)+10)),AB13+RateInputs!$Q$6))*1000+AF13,$AG13),-3)) -> 0 | AI13: =IF($D$4="N/A",$D$4,TRUNC(MIN(IF(AC13+RateInputs!$Q$6>=D13,0,SMALL(INDIRECT(CONCATENATE("L",MATCH(O13,$G$12:$G$8796,0)+11,":","L",MATCH(O14,$G$12:$G$8796,0)+10)),AC13+RateInputs!$Q$6))*1000+AF13,$AG13),-3)) -> 0 | AJ13: =IF($D$4="N/A",$D$4,MIN(INDIRECT(CONCATENATE("K",MATCH(O13,$G$12:$G$8796,0)+11,":","K",MATCH(O14,$G$12:$G$8796,0)+10)))*1000) -> 0 | AK13: =IF($D$4="N/A",$D$4,MIN(INDIRECT(CONCATENATE("L",MATCH(O13,$G$12:$G$8796,0)+11,":","L",MATCH(O14,$G$12:$G$8796,0)+10)))*1000) -> 0 | AL13: =ROUND(SUMIF($G$12:$G$8795,O13,$M$12:$M$8795),0) -> 2433 | AM13: =ROUND(SUMIF($G$12:$G$8795,O13,$N$12:$N$8795),0) -> 2027 | AN13: 0 | AO13: =IF(OR($D$4="N/A",HLOOKUP($D$3,ResourceProfiles!$F$4:$IV$65536,ResourceProfiles!$A$19)="no"),0,IF(AA13/D13<25%,PERCENTILE(INDIRECT(CONCATENATE("K",MATCH(O13,$G$12:$G$8796,0)+11,":","K",MATCH(O14,$G$12:$G$8796,0)+10)),AA13/D13+(1-(AA13/D13))*$AD$9)*1000,IF(AA13/D13>75%,0,PERCENTILE(INDIRECT(CONCATENATE("K",MATCH(O13,$G$12:$G$8796,0)+11,":","K",MATCH(O14,$G$12:$G$8796,0)+10)),AA13/D13+(1-(AA13/D13))*$AD$9)*1000*(1-AA13/D13)))) -> 0 | AP13: =MAX(AN13,AO13) -> 0
B14: Dec | C14: =DCOUNT($F$11:$I$8795,"counthours",B28:C29) -> 432 | D14: 312 | E14: =DCOUNT($F$11:$I$8795,"counthours",B28:B29) -> 744 | F14: 1 | G14: =IF($D$4="N/A","",IF(HLOOKUP($G$11&$D$4,Look_Tbl!$C$6:$T$8790,Look_Tbl!B9,FALSE)="","",HLOOKUP($G$11&$D$4,Look_Tbl!$C$6:$T$8790,Look_Tbl!B9,FALSE))) -> Oct | H14: FY2016 | I14: =IF($D$4="N/A",0,IF(G14="","",HLOOKUP($I$11&$D$4,Look_Tbl!$C$6:$T$8790,Look_Tbl!B9,FALSE))) -> LLH | J14: =IF($D$4="N/A",0,IF(OR(ISBLANK(HLOOKUP($D$3,ResourceInputs!$3:$65536,ResourceInputs!E18)),HLOOKUP($D$3,ResourceInputs!$3:$65536,ResourceInputs!E18)="nonleap"),"",IF((HLOOKUP($D$3,ResourceInputs!$3:$65536,ResourceInputs!$E$16)="Scheduled"),MAX(ROUND(HLOOKUP($D$3,ResourceInputs!$3:$65536,ResourceInputs!E18),0),0),MAX(HLOOKUP($D$3,ResourceInputs!$3:$65536,ResourceInputs!E18),0)))) -> 6.17136 | L14: 6.17136 | N14: 0 | O14: Dec | P14: =SUMIF($G$12:$G$8795,O14,$K$12:$K$8795) -> 3685.2634 | Q14: 2268.33256 | R14: 0 | S14: 0 | T14: =IF(HLOOKUP($D$3,ResourceProfiles!$4:$349,ResourceProfiles!$A$19)="yes",P14/(C14-AB14)*Z14,0) -> 0 | U14: =IF(HLOOKUP($D$3,ResourceProfiles!$4:$349,ResourceProfiles!$A$19)="yes",Q14/(D14-AC14)*AA14,0) -> 0 | V14: 3685.2634 | W14: 2268.33256 | X14: =IF(HLOOKUP($D$3,ResourceProfiles!$F$4:$IV$126,ResourceProfiles!$A$13)="Yes",AB14-Z14,0) -> 0 | Y14: =IF(HLOOKUP($D$3,ResourceProfiles!$F$4:$IV$126,ResourceProfiles!$A$13)="Yes",AC14-AA14,0) -> 0 | Z14: =HLOOKUP($D$3,ResourceProfiles!$F$4:$IV$126,ResourceProfiles!A24,FALSE) -> 0 | AA14: =HLOOKUP($D$3,ResourceProfiles!$F$4:$IV$126,ResourceProfiles!A37,FALSE) -> 0 | AB14: 82 | AC14: 56 | AD14: 0 | AE14: =IF(OR($D$4="N/A",HLOOKUP($D$3,ResourceProfiles!$F$4:$IV$65536,ResourceProfiles!$A$19)="no"),0,IF(Z14/C14<25%,PERCENTILE(INDIRECT(CONCATENATE("K",MATCH(O14,$G$12:$G$8796,0)+11,":","K",MATCH(O15,$G$12:$G$8796,0)+10)),Z14/C14+(1-(Z14/C14))*$AD$9)*1000,IF(Z14/C14>75%,0,PERCENTILE(INDIRECT(CONCATENATE("K",MATCH(O14,$G$12:$G$8796,0)+11,":","K",MATCH(O15,$G$12:$G$8796,0)+10)),Z14/C14+(1-(Z14/C14))*$AD$9)*1000*(1-Z14/C14)))) -> 0 | AF14: =HLOOKUP($D$3,ResourceProfiles!$F$4:$IV$126,ResourceProfiles!A51) -> 0 | AG14: 0 | AH14: =IF($D$4="N/A",$D$4,TRUNC(MIN(IF(AB14+RateInputs!$Q$6>=C14,0,SMALL(INDIRECT(CONCATENATE("K",MATCH(O14,$G$12:$G$8796,0)+11,":","K",MATCH(O15,$G$12:$G$8796,0)+10)),AB14+RateInputs!$Q$6))*1000+AF14,$AG14),-3)) -> 0 | AI14: =IF($D$4="N/A",$D$4,TRUNC(MIN(IF(AC14+RateInputs!$Q$6>=D14,0,SMALL(INDIRECT(CONCATENATE("L",MATCH(O14,$G$12:$G$8796,0)+11,":","L",MATCH(O15,$G$12:$G$8796,0)+10)),AC14+RateInputs!$Q$6))*1000+AF14,$AG14),-3)) -> 0 | AJ14: 0 | AK14: 0 | AL14: 1938 | AM14: 1180 | AN14: 0 | AO14: =IF(OR($D$4="N/A",HLOOKUP($D$3,ResourceProfiles!$F$4:$IV$65536,ResourceProfiles!$A$19)="no"),0,IF(AA14/D14<25%,PERCENTILE(INDIRECT(CONCATENATE("K",MATCH(O14,$G$12:$G$8796,0)+11,":","K",MATCH(O15,$G$12:$G$8796,0)+10)),AA14/D14+(1-(AA14/D14))*$AD$9)*1000,IF(AA14/D14>75%,0,PERCENTILE(INDIRECT(CONCATENATE("K",MATCH(O14,$G$12:$G$8796,0)+11,":","K",MATCH(O15,$G$12:$G$8796,0)+10)),AA14/D14+(1-(AA14/D14))*$AD$9)*1000*(1-AA14/D14)))) -> 0 | AP14: 0
B15: Jan | C15: =DCOUNT($F$11:$I$8795,"counthours",B30:C31) -> 416 | D15: 328 | E15: =DCOUNT($F$11:$I$8795,"counthours",B30:B31) -> 744 | F15: 1 | G15: =IF($D$4="N/A","",IF(HLOOKUP($G$11&$D$4,Look_Tbl!$C$6:$T$8790,Look_Tbl!B10,FALSE)="","",HLOOKUP($G$11&$D$4,Look_Tbl!$C$6:$T$8790,Look_Tbl!B10,FALSE))) -> Oct | H15: FY2016 | I15: =IF($D$4="N/A",0,IF(G15="","",HLOOKUP($I$11&$D$4,Look_Tbl!$C$6:$T$8790,Look_Tbl!B10,FALSE))) -> LLH | J15: =IF($D$4="N/A",0,IF(OR(ISBLANK(HLOOKUP($D$3,ResourceInputs!$3:$65536,ResourceInputs!E19)),HLOOKUP($D$3,ResourceInputs!$3:$65536,ResourceInputs!E19)="nonleap"),"",IF((HLOOKUP($D$3,ResourceInputs!$3:$65536,ResourceInputs!$E$16)="Scheduled"),MAX(ROUND(HLOOKUP($D$3,ResourceInputs!$3:$65536,ResourceInputs!E19),0),0),MAX(HLOOKUP($D$3,ResourceInputs!$3:$65536,ResourceInputs!E19),0)))) -> 1.63228 | L15: 1.63228 | N15: 0 | O15: Jan | P15: 2469.41604 | Q15: 1594.67048 | R15: 0 | S15: 0 | T15: =IF(HLOOKUP($D$3,ResourceProfiles!$4:$349,ResourceProfiles!$A$19)="yes",P15/(C15-AB15)*Z15,0) -> 0 | U15: =IF(HLOOKUP($D$3,ResourceProfiles!$4:$349,ResourceProfiles!$A$19)="yes",Q15/(D15-AC15)*AA15,0) -> 0 | V15: 2469.41604 | W15: 1594.67048 | X15: =IF(HLOOKUP($D$3,ResourceProfiles!$F$4:$IV$126,ResourceProfiles!$A$13)="Yes",AB15-Z15,0) -> 0 | Y15: =IF(HLOOKUP($D$3,ResourceProfiles!$F$4:$IV$126,ResourceProfiles!$A$13)="Yes",AC15-AA15,0) -> 0 | Z15: =HLOOKUP($D$3,ResourceProfiles!$F$4:$IV$126,ResourceProfiles!A25,FALSE) -> 0 | AA15: =HLOOKUP($D$3,ResourceProfiles!$F$4:$IV$126,ResourceProfiles!A38,FALSE) -> 0 | AB15: 155 | AC15: 94 | AD15: 0 | AE15: =IF(OR($D$4="N/A",HLOOKUP($D$3,ResourceProfiles!$F$4:$IV$65536,ResourceProfiles!$A$19)="no"),0,IF(Z15/C15<25%,PERCENTILE(INDIRECT(CONCATENATE("K",MATCH(O15,$G$12:$G$8796,0)+11,":","K",MATCH(O16,$G$12:$G$8796,0)+10)),Z15/C15+(1-(Z15/C15))*$AD$9)*1000,IF(Z15/C15>75%,0,PERCENTILE(INDIRECT(CONCATENATE("K",MATCH(O15,$G$12:$G$8796,0)+11,":","K",MATCH(O16,$G$12:$G$8796,0)+10)),Z15/C15+(1-(Z15/C15))*$AD$9)*1000*(1-Z15/C15)))) -> 0 | AF15: =HLOOKUP($D$3,ResourceProfiles!$F$4:$IV$126,ResourceProfiles!A52) -> 0 | AG15: 0 | AH15: =IF($D$4="N/A",$D$4,TRUNC(MIN(IF(AB15+RateInputs!$Q$6>=C15,0,SMALL(INDIRECT(CONCATENATE("K",MATCH(O15,$G$12:$G$8796,0)+11,":","K",MATCH(O16,$G$12:$G$8796,0)+10)),AB15+RateInputs!$Q$6))*1000+AF15,$AG15),-3)) -> 0 | AI15: =IF($D$4="N/A",$D$4,TRUNC(MIN(IF(AC15+RateInputs!$Q$6>=D15,0,SMALL(INDIRECT(CONCATENATE("L",MATCH(O15,$G$12:$G$8796,0)+11,":","L",MATCH(O16,$G$12:$G$8796,0)+10)),AC15+RateInputs!$Q$6))*1000+AF15,$AG15),-3)) -> 0 | AJ15: 0 | AK15: 0 | AL15: 1556 | AM15: 961 | AN15: 0 | AO15: =IF(OR($D$4="N/A",HLOOKUP($D$3,ResourceProfiles!$F$4:$IV$65536,ResourceProfiles!$A$19)="no"),0,IF(AA15/D15<25%,PERCENTILE(INDIRECT(CONCATENATE("K",MATCH(O15,$G$12:$G$8796,0)+11,":","K",MATCH(O16,$G$12:$G$8796,0)+10)),AA15/D15+(1-(AA15/D15))*$AD$9)*1000,IF(AA15/D15>75%,0,PERCENTILE(INDIRECT(CONCATENATE("K",MATCH(O15,$G$12:$G$8796,0)+11,":","K",MATCH(O16,$G$12:$G$8796,0)+10)),AA15/D15+(1-(AA15/D15))*$AD$9)*1000*(1-AA15/D15)))) -> 0 | AP15: 0
B16: Feb | C16: =DCOUNT($F$11:$I$8795,"counthours",B32:C33) -> 400 | D16: 296 | E16: =DCOUNT($F$11:$I$8795,"counthours",B32:B33) -> 696 | F16: 1 | G16: =IF($D$4="N/A","",IF(HLOOKUP($G$11&$D$4,Look_Tbl!$C$6:$T$8790,Look_Tbl!B11,FALSE)="","",HLOOKUP($G$11&$D$4,Look_Tbl!$C$6:$T$8790,Look_Tbl!B11,FALSE))) -> Oct | H16: FY2016 | I16: =IF($D$4="N/A",0,IF(G16="","",HLOOKUP($I$11&$D$4,Look_Tbl!$C$6:$T$8790,Look_Tbl!B11,FALSE))) -> LLH | J16: =IF($D$4="N/A",0,IF(OR(ISBLANK(HLOOKUP($D$3,ResourceInputs!$3:$65536,ResourceInputs!E20)),HLOOKUP($D$3,ResourceInputs!$3:$65536,ResourceInputs!E20)="nonleap"),"",IF((HLOOKUP($D$3,ResourceInputs!$3:$65536,ResourceInputs!$E$16)="Scheduled"),MAX(ROUND(HLOOKUP($D$3,ResourceInputs!$3:$65536,ResourceInputs!E20),0),0),MAX(HLOOKUP($D$3,ResourceInputs!$3:$65536,ResourceInputs!E20),0)))) -> 3.48816 | L16: 3.48816 | N16: 0 | O16: Feb | P16: 2920.70792 | Q16: 2164.76104 | R16: 0 | S16: 0 | T16: =IF(HLOOKUP($D$3,ResourceProfiles!$4:$349,ResourceProfiles!$A$19)="yes",P16/(C16-AB16)*Z16,0) -> 0 | U16: =IF(HLOOKUP($D$3,ResourceProfiles!$4:$349,ResourceProfiles!$A$19)="yes",Q16/(D16-AC16)*AA16,0) -> 0 | V16: 2920.70792 | W16: 2164.76104 | X16: =IF(HLOOKUP($D$3,ResourceProfiles!$F$4:$IV$126,ResourceProfiles!$A$13)="Yes",AB16-Z16,0) -> 0 | Y16: =IF(HLOOKUP($D$3,ResourceProfiles!$F$4:$IV$126,ResourceProfiles!$A$13)="Yes",AC16-AA16,0) -> 0 | Z16: =HLOOKUP($D$3,ResourceProfiles!$F$4:$IV$126,ResourceProfiles!A26,FALSE) -> 0 | AA16: =HLOOKUP($D$3,ResourceProfiles!$F$4:$IV$126,ResourceProfiles!A39,FALSE) -> 0 | AB16: 82 | AC16: 82 | AD16: 0 | AE16: =IF(OR($D$4="N/A",HLOOKUP($D$3,ResourceProfiles!$F$4:$IV$65536,ResourceProfiles!$A$19)="no"),0,IF(Z16/C16<25%,PERCENTILE(INDIRECT(CONCATENATE("K",MATCH(O16,$G$12:$G$8796,0)+11,":","K",MATCH(O17,$G$12:$G$8796,0)+10)),Z16/C16+(1-(Z16/C16))*$AD$9)*1000,IF(Z16/C16>75%,0,PERCENTILE(INDIRECT(CONCATENATE("K",MATCH(O16,$G$12:$G$8796,0)+11,":","K",MATCH(O17,$G$12:$G$8796,0)+10)),Z16/C16+(1-(Z16/C16))*$AD$9)*1000*(1-Z16/C16)))) -> 0 | AF16: =HLOOKUP($D$3,ResourceProfiles!$F$4:$IV$126,ResourceProfiles!A53) -> 0 | AG16: 0 | AH16: =IF($D$4="N/A",$D$4,TRUNC(MIN(IF(AB16+RateInputs!$Q$6>=C16,0,SMALL(INDIRECT(CONCATENATE("K",MATCH(O16,$G$12:$G$8796,0)+11,":","K",MATCH(O17,$G$12:$G$8796,0)+10)),AB16+RateInputs!$Q$6))*1000+AF16,$AG16),-3)) -> 0 | AI16: =IF($D$4="N/A",$D$4,TRUNC(MIN(IF(AC16+RateInputs!$Q$6>=D16,0,SMALL(INDIRECT(CONCATENATE("L",MATCH(O16,$G$12:$G$8796,0)+11,":","L",MATCH(O17,$G$12:$G$8796,0)+10)),AC16+RateInputs!$Q$6))*1000+AF16,$AG16),-3)) -> 0 | AJ16: 0 | AK16: 0 | AL16: 1587 | AM16: 1236 | AN16: 0 | AO16: =IF(OR($D$4="N/A",HLOOKUP($D$3,ResourceProfiles!$F$4:$IV$65536,ResourceProfiles!$A$19)="no"),0,IF(AA16/D16<25%,PERCENTILE(INDIRECT(CONCATENATE("K",MATCH(O16,$G$12:$G$8796,0)+11,":","K",MATCH(O17,$G$12:$G$8796,0)+10)),AA16/D16+(1-(AA16/D16))*$AD$9)*1000,IF(AA16/D16>75%,0,PERCENTILE(INDIRECT(CONCATENATE("K",MATCH(O16,$G$12:$G$8796,0)+11,":","K",MATCH(O17,$G$12:$G$8796,0)+10)),AA16/D16+(1-(AA16/D16))*$AD$9)*1000*(1-AA16/D16)))) -> 0 | AP16: 0
B17: Mar | C17: =DCOUNT($F$11:$I$8795,"counthours",B34:C35) -> 432 | D17: 311 | E17: =DCOUNT($F$11:$I$8795,"counthours",B34:B35) -> 743 | F17: 1 | G17: =IF($D$4="N/A","",IF(HLOOKUP($G$11&$D$4,Look_Tbl!$C$6:$T$8790,Look_Tbl!B12,FALSE)="","",HLOOKUP($G$11&$D$4,Look_Tbl!$C$6:$T$8790,Look_Tbl!B12,FALSE))) -> Oct | H17: FY2016 | I17: =IF($D$4="N/A",0,IF(G17="","",HLOOKUP($I$11&$D$4,Look_Tbl!$C$6:$T$8790,Look_Tbl!B12,FALSE))) -> LLH | J17: =IF($D$4="N/A",0,IF(OR(ISBLANK(HLOOKUP($D$3,ResourceInputs!$3:$65536,ResourceInputs!E21)),HLOOKUP($D$3,ResourceInputs!$3:$65536,ResourceInputs!E21)="nonleap"),"",IF((HLOOKUP($D$3,ResourceInputs!$3:$65536,ResourceInputs!$E$16)="Scheduled"),MAX(ROUND(HLOOKUP($D$3,ResourceInputs!$3:$65536,ResourceInputs!E21),0),0),MAX(HLOOKUP($D$3,ResourceInputs!$3:$65536,ResourceInputs!E21),0)))) -> 8.1614 | L17: 8.1614 | N17: 0 | O17: Mar | P17: 5426.97324 | Q17: 3785.07844 | R17: 0 | S17: 0 | T17: =IF(HLOOKUP($D$3,ResourceProfiles!$4:$349,ResourceProfiles!$A$19)="yes",P17/(C17-AB17)*Z17,0) -> 0 | U17: =IF(HLOOKUP($D$3,ResourceProfiles!$4:$349,ResourceProfiles!$A$19)="yes",Q17/(D17-AC17)*AA17,0) -> 0 | V17: 5426.97324 | W17: 3785.07844 | X17: =IF(HLOOKUP($D$3,ResourceProfiles!$F$4:$IV$126,ResourceProfiles!$A$13)="Yes",AB17-Z17,0) -> 0 | Y17: =IF(HLOOKUP($D$3,ResourceProfiles!$F$4:$IV$126,ResourceProfiles!$A$13)="Yes",AC17-AA17,0) -> 0 | Z17: =HLOOKUP($D$3,ResourceProfiles!$F$4:$IV$126,ResourceProfiles!A27,FALSE) -> 0 | AA17: =HLOOKUP($D$3,ResourceProfiles!$F$4:$IV$126,ResourceProfiles!A40,FALSE) -> 0 | AB17: 54 | AC17: 53 | AD17: 0 | AE17: =IF(OR($D$4="N/A",HLOOKUP($D$3,ResourceProfiles!$F$4:$IV$65536,ResourceProfiles!$A$19)="no"),0,IF(Z17/C17<25%,PERCENTILE(INDIRECT(CONCATENATE("K",MATCH(O17,$G$12:$G$8796,0)+11,":","K",MATCH(O18,$G$12:$G$8796,0)+10)),Z17/C17+(1-(Z17/C17))*$AD$9)*1000,IF(Z17/C17>75%,0,PERCENTILE(INDIRECT(CONCATENATE("K",MATCH(O17,$G$12:$G$8796,0)+11,":","K",MATCH(O18,$G$12:$G$8796,0)+10)),Z17/C17+(1-(Z17/C17))*$AD$9)*1000*(1-Z17/C17)))) -> 0 | AF17: =HLOOKUP($D$3,ResourceProfiles!$F$4:$IV$126,ResourceProfiles!A54) -> 0 | AG17: 0 | AH17: =IF($D$4="N/A",$D$4,TRUNC(MIN(IF(AB17+RateInputs!$Q$6>=C17,0,SMALL(INDIRECT(CONCATENATE("K",MATCH(O17,$G$12:$G$8796,0)+11,":","K",MATCH(O18,$G$12:$G$8796,0)+10)),AB17+RateInputs!$Q$6))*1000+AF17,$AG17),-3)) -> 0 | AI17: =IF($D$4="N/A",$D$4,TRUNC(MIN(IF(AC17+RateInputs!$Q$6>=D17,0,SMALL(INDIRECT(CONCATENATE("L",MATCH(O17,$G$12:$G$8796,0)+11,":","L",MATCH(O18,$G$12:$G$8796,0)+10)),AC17+RateInputs!$Q$6))*1000+AF17,$AG17),-3)) -> 0 | AJ17: 0 | AK17: 0 | AL17: 2582 | AM17: 1959 | AN17: 0 | AO17: =IF(OR($D$4="N/A",HLOOKUP($D$3,ResourceProfiles!$F$4:$IV$65536,ResourceProfiles!$A$19)="no"),0,IF(AA17/D17<25%,PERCENTILE(INDIRECT(CONCATENATE("K",MATCH(O17,$G$12:$G$8796,0)+11,":","K",MATCH(O18,$G$12:$G$8796,0)+10)),AA17/D17+(1-(AA17/D17))*$AD$9)*1000,IF(AA17/D17>75%,0,PERCENTILE(INDIRECT(CONCATENATE("K",MATCH(O17,$G$12:$G$8796,0)+11,":","K",MATCH(O18,$G$12:$G$8796,0)+10)),AA17/D17+(1-(AA17/D17))*$AD$9)*1000*(1-AA17/D17)))) -> 0 | AP17: 0
B18: Apr | C18: =DCOUNT($F$11:$I$8795,"counthours",B36:C37) -> 416 | D18: 304 | E18: =DCOUNT($F$11:$I$8795,"counthours",B36:B37) -> 720 | F18: 1 | G18: =IF($D$4="N/A","",IF(HLOOKUP($G$11&$D$4,Look_Tbl!$C$6:$T$8790,Look_Tbl!B13,FALSE)="","",HLOOKUP($G$11&$D$4,Look_Tbl!$C$6:$T$8790,Look_Tbl!B13,FALSE))) -> Oct | H18: FY2016 | I18: =IF($D$4="N/A",0,IF(G18="","",HLOOKUP($I$11&$D$4,Look_Tbl!$C$6:$T$8790,Look_Tbl!B13,FALSE))) -> HLH | J18: =IF($D$4="N/A",0,IF(OR(ISBLANK(HLOOKUP($D$3,ResourceInputs!$3:$65536,ResourceInputs!E22)),HLOOKUP($D$3,ResourceInputs!$3:$65536,ResourceInputs!E22)="nonleap"),"",IF((HLOOKUP($D$3,ResourceInputs!$3:$65536,ResourceInputs!$E$16)="Scheduled"),MAX(ROUND(HLOOKUP($D$3,ResourceInputs!$3:$65536,ResourceInputs!E22),0),0),MAX(HLOOKUP($D$3,ResourceInputs!$3:$65536,ResourceInputs!E22),0)))) -> 9.34648 | K18: 9.34648 | M18: =IF(K18="","",ROUND(MAX(0,K18-(VLOOKUP(G18,$O$12:$W$23,8,FALSE)/VLOOKUP(G18,$B$12:$C$23,2,FALSE))),3)) -> 0 | O18: Apr | P18: 8391.2608 | Q18: 7134.65116 | R18: 0 | S18: 0 | T18: =IF(HLOOKUP($D$3,ResourceProfiles!$4:$349,ResourceProfiles!$A$19)="yes",P18/(C18-AB18)*Z18,0) -> 0 | U18: =IF(HLOOKUP($D$3,ResourceProfiles!$4:$349,ResourceProfiles!$A$19)="yes",Q18/(D18-AC18)*AA18,0) -> 0 | V18: 8391.2608 | W18: 7134.65116 | X18: =IF(HLOOKUP($D$3,ResourceProfiles!$F$4:$IV$126,ResourceProfiles!$A$13)="Yes",AB18-Z18,0) -> 0 | Y18: =IF(HLOOKUP($D$3,ResourceProfiles!$F$4:$IV$126,ResourceProfiles!$A$13)="Yes",AC18-AA18,0) -> 0 | Z18: =HLOOKUP($D$3,ResourceProfiles!$F$4:$IV$126,ResourceProfiles!A28,FALSE) -> 0 | AA18: =HLOOKUP($D$3,ResourceProfiles!$F$4:$IV$126,ResourceProfiles!A41,FALSE) -> 0 | AB18: 37 | AC18: 30 | AD18: 0 | AE18: =IF(OR($D$4="N/A",HLOOKUP($D$3,ResourceProfiles!$F$4:$IV$65536,ResourceProfiles!$A$19)="no"),0,IF(Z18/C18<25%,PERCENTILE(INDIRECT(CONCATENATE("K",MATCH(O18,$G$12:$G$8796,0)+11,":","K",MATCH(O19,$G$12:$G$8796,0)+10)),Z18/C18+(1-(Z18/C18))*$AD$9)*1000,IF(Z18/C18>75%,0,PERCENTILE(INDIRECT(CONCATENATE("K",MATCH(O18,$G$12:$G$8796,0)+11,":","K",MATCH(O19,$G$12:$G$8796,0)+10)),Z18/C18+(1-(Z18/C18))*$AD$9)*1000*(1-Z18/C18)))) -> 0 | AF18: =HLOOKUP($D$3,ResourceProfiles!$F$4:$IV$126,ResourceProfiles!A55) -> 0 | AG18: 0 | AH18: =IF($D$4="N/A",$D$4,TRUNC(MIN(IF(AB18+RateInputs!$Q$6>=C18,0,SMALL(INDIRECT(CONCATENATE("K",MATCH(O18,$G$12:$G$8796,0)+11,":","K",MATCH(O19,$G$12:$G$8796,0)+10)),AB18+RateInputs!$Q$6))*1000+AF18,$AG18),-3)) -> 0 | AI18: =IF($D$4="N/A",$D$4,TRUNC(MIN(IF(AC18+RateInputs!$Q$6>=D18,0,SMALL(INDIRECT(CONCATENATE("L",MATCH(O18,$G$12:$G$8796,0)+11,":","L",MATCH(O19,$G$12:$G$8796,0)+10)),AC18+RateInputs!$Q$6))*1000+AF18,$AG18),-3)) -> 0 | AJ18: 0 | AK18: 0 | AL18: 3658 | AM18: 2634 | AN18: 0 | AO18: =IF(OR($D$4="N/A",HLOOKUP($D$3,ResourceProfiles!$F$4:$IV$65536,ResourceProfiles!$A$19)="no"),0,IF(AA18/D18<25%,PERCENTILE(INDIRECT(CONCATENATE("K",MATCH(O18,$G$12:$G$8796,0)+11,":","K",MATCH(O19,$G$12:$G$8796,0)+10)),AA18/D18+(1-(AA18/D18))*$AD$9)*1000,IF(AA18/D18>75%,0,PERCENTILE(INDIRECT(CONCATENATE("K",MATCH(O18,$G$12:$G$8796,0)+11,":","K",MATCH(O19,$G$12:$G$8796,0)+10)),AA18/D18+(1-(AA18/D18))*$AD$9)*1000*(1-AA18/D18)))) -> 0 | AP18: 0
B19: May | C19: =DCOUNT($F$11:$I$8795,"counthours",B38:C39) -> 416 | D19: 328 | E19: =DCOUNT($F$11:$I$8795,"counthours",B38:B39) -> 744 | F19: 1 | G19: =IF($D$4="N/A","",IF(HLOOKUP($G$11&$D$4,Look_Tbl!$C$6:$T$8790,Look_Tbl!B14,FALSE)="","",HLOOKUP($G$11&$D$4,Look_Tbl!$C$6:$T$8790,Look_Tbl!B14,FALSE))) -> Oct | H19: FY2016 | I19: =IF($D$4="N/A",0,IF(G19="","",HLOOKUP($I$11&$D$4,Look_Tbl!$C$6:$T$8790,Look_Tbl!B14,FALSE))) -> HLH | J19: =IF($D$4="N/A",0,IF(OR(ISBLANK(HLOOKUP($D$3,ResourceInputs!$3:$65536,ResourceInputs!E23)),HLOOKUP($D$3,ResourceInputs!$3:$65536,ResourceInputs!E23)="nonleap"),"",IF((HLOOKUP($D$3,ResourceInputs!$3:$65536,ResourceInputs!$E$16)="Scheduled"),MAX(ROUND(HLOOKUP($D$3,ResourceInputs!$3:$65536,ResourceInputs!E23),0),0),MAX(HLOOKUP($D$3,ResourceInputs!$3:$65536,ResourceInputs!E23),0)))) -> 3.93536 | K19: 3.93536 | M19: 0 | O19: May | P19: 7831.59 | Q19: 7980.97716 | R19: 0 | S19: 0 | T19: =IF(HLOOKUP($D$3,ResourceProfiles!$4:$349,ResourceProfiles!$A$19)="yes",P19/(C19-AB19)*Z19,0) -> 0 | U19: =IF(HLOOKUP($D$3,ResourceProfiles!$4:$349,ResourceProfiles!$A$19)="yes",Q19/(D19-AC19)*AA19,0) -> 0 | V19: 7831.59 | W19: 7980.97716 | X19: =IF(HLOOKUP($D$3,ResourceProfiles!$F$4:$IV$126,ResourceProfiles!$A$13)="Yes",AB19-Z19,0) -> 0 | Y19: =IF(HLOOKUP($D$3,ResourceProfiles!$F$4:$IV$126,ResourceProfiles!$A$13)="Yes",AC19-AA19,0) -> 0 | Z19: =HLOOKUP($D$3,ResourceProfiles!$F$4:$IV$126,ResourceProfiles!A29,FALSE) -> 0 | AA19: =HLOOKUP($D$3,ResourceProfiles!$F$4:$IV$126,ResourceProfiles!A42,FALSE) -> 0 | AB19: 31 | AC19: 36 | AD19: 0 | AE19: =IF(OR($D$4="N/A",HLOOKUP($D$3,ResourceProfiles!$F$4:$IV$65536,ResourceProfiles!$A$19)="no"),0,IF(Z19/C19<25%,PERCENTILE(INDIRECT(CONCATENATE("K",MATCH(O19,$G$12:$G$8796,0)+11,":","K",MATCH(O20,$G$12:$G$8796,0)+10)),Z19/C19+(1-(Z19/C19))*$AD$9)*1000,IF(Z19/C19>75%,0,PERCENTILE(INDIRECT(CONCATENATE("K",MATCH(O19,$G$12:$G$8796,0)+11,":","K",MATCH(O20,$G$12:$G$8796,0)+10)),Z19/C19+(1-(Z19/C19))*$AD$9)*1000*(1-Z19/C19)))) -> 0 | AF19: =HLOOKUP($D$3,ResourceProfiles!$F$4:$IV$126,ResourceProfiles!A56) -> 0 | AG19: 0 | AH19: =IF($D$4="N/A",$D$4,TRUNC(MIN(IF(AB19+RateInputs!$Q$6>=C19,0,SMALL(INDIRECT(CONCATENATE("K",MATCH(O19,$G$12:$G$8796,0)+11,":","K",MATCH(O20,$G$12:$G$8796,0)+10)),AB19+RateInputs!$Q$6))*1000+AF19,$AG19),-3)) -> 0 | AI19: =IF($D$4="N/A",$D$4,TRUNC(MIN(IF(AC19+RateInputs!$Q$6>=D19,0,SMALL(INDIRECT(CONCATENATE("L",MATCH(O19,$G$12:$G$8796,0)+11,":","L",MATCH(O20,$G$12:$G$8796,0)+10)),AC19+RateInputs!$Q$6))*1000+AF19,$AG19),-3)) -> 0 | AJ19: 0 | AK19: 0 | AL19: 3452 | AM19: 2701 | AN19: 0 | AO19: =IF(OR($D$4="N/A",HLOOKUP($D$3,ResourceProfiles!$F$4:$IV$65536,ResourceProfiles!$A$19)="no"),0,IF(AA19/D19<25%,PERCENTILE(INDIRECT(CONCATENATE("K",MATCH(O19,$G$12:$G$8796,0)+11,":","K",MATCH(O20,$G$12:$G$8796,0)+10)),AA19/D19+(1-(AA19/D19))*$AD$9)*1000,IF(AA19/D19>75%,0,PERCENTILE(INDIRECT(CONCATENATE("K",MATCH(O19,$G$12:$G$8796,0)+11,":","K",MATCH(O20,$G$12:$G$8796,0)+10)),AA19/D19+(1-(AA19/D19))*$AD$9)*1000*(1-AA19/D19)))) -> 0 | AP19: 0
B20: Jun | C20: =DCOUNT($F$11:$I$8795,"counthours",B40:C41) -> 416 | D20: 304 | E20: =DCOUNT($F$11:$I$8795,"counthours",B40:B41) -> 720 | F20: 1 | G20: =IF($D$4="N/A","",IF(HLOOKUP($G$11&$D$4,Look_Tbl!$C$6:$T$8790,Look_Tbl!B15,FALSE)="","",HLOOKUP($G$11&$D$4,Look_Tbl!$C$6:$T$8790,Look_Tbl!B15,FALSE))) -> Oct | H20: FY2016 | I20: =IF($D$4="N/A",0,IF(G20="","",HLOOKUP($I$11&$D$4,Look_Tbl!$C$6:$T$8790,Look_Tbl!B15,FALSE))) -> HLH | J20: =IF($D$4="N/A",0,IF(OR(ISBLANK(HLOOKUP($D$3,ResourceInputs!$3:$65536,ResourceInputs!E24)),HLOOKUP($D$3,ResourceInputs!$3:$65536,ResourceInputs!E24)="nonleap"),"",IF((HLOOKUP($D$3,ResourceInputs!$3:$65536,ResourceInputs!$E$16)="Scheduled"),MAX(ROUND(HLOOKUP($D$3,ResourceInputs!$3:$65536,ResourceInputs!E24),0),0),MAX(HLOOKUP($D$3,ResourceInputs!$3:$65536,ResourceInputs!E24),0)))) -> 1.05092 | K20: 1.05092 | M20: 0 | O20: Jun | P20: 9527.39476 | Q20: 5161.9178 | R20: 0 | S20: 0 | T20: =IF(HLOOKUP($D$3,ResourceProfiles!$4:$349,ResourceProfiles!$A$19)="yes",P20/(C20-AB20)*Z20,0) -> 0 | U20: =IF(HLOOKUP($D$3,ResourceProfiles!$4:$349,ResourceProfiles!$A$19)="yes",Q20/(D20-AC20)*AA20,0) -> 0 | V20: 9527.39476 | W20: 5161.9178 | X20: =IF(HLOOKUP($D$3,ResourceProfiles!$F$4:$IV$126,ResourceProfiles!$A$13)="Yes",AB20-Z20,0) -> 0 | Y20: =IF(HLOOKUP($D$3,ResourceProfiles!$F$4:$IV$126,ResourceProfiles!$A$13)="Yes",AC20-AA20,0) -> 0 | Z20: =HLOOKUP($D$3,ResourceProfiles!$F$4:$IV$126,ResourceProfiles!A30,FALSE) -> 0 | AA20: =HLOOKUP($D$3,ResourceProfiles!$F$4:$IV$126,ResourceProfiles!A43,FALSE) -> 0 | AB20: 16 | AC20: 38 | AD20: 0 | AE20: =IF(OR($D$4="N/A",HLOOKUP($D$3,ResourceProfiles!$F$4:$IV$65536,ResourceProfiles!$A$19)="no"),0,IF(Z20/C20<25%,PERCENTILE(INDIRECT(CONCATENATE("K",MATCH(O20,$G$12:$G$8796,0)+11,":","K",MATCH(O21,$G$12:$G$8796,0)+10)),Z20/C20+(1-(Z20/C20))*$AD$9)*1000,IF(Z20/C20>75%,0,PERCENTILE(INDIRECT(CONCATENATE("K",MATCH(O20,$G$12:$G$8796,0)+11,":","K",MATCH(O21,$G$12:$G$8796,0)+10)),Z20/C20+(1-(Z20/C20))*$AD$9)*1000*(1-Z20/C20)))) -> 0 | AF20: =HLOOKUP($D$3,ResourceProfiles!$F$4:$IV$126,ResourceProfiles!A57) -> 0 | AG20: 0 | AH20: =IF($D$4="N/A",$D$4,TRUNC(MIN(IF(AB20+RateInputs!$Q$6>=C20,0,SMALL(INDIRECT(CONCATENATE("K",MATCH(O20,$G$12:$G$8796,0)+11,":","K",MATCH(O21,$G$12:$G$8796,0)+10)),AB20+RateInputs!$Q$6))*1000+AF20,$AG20),-3)) -> 0 | AI20: =IF($D$4="N/A",$D$4,TRUNC(MIN(IF(AC20+RateInputs!$Q$6>=D20,0,SMALL(INDIRECT(CONCATENATE("L",MATCH(O20,$G$12:$G$8796,0)+11,":","L",MATCH(O21,$G$12:$G$8796,0)+10)),AC20+RateInputs!$Q$6))*1000+AF20,$AG20),-3)) -> 0 | AJ20: 0 | AK20: 0 | AL20: 3399 | AM20: 2113 | AN20: 0 | AO20: =IF(OR($D$4="N/A",HLOOKUP($D$3,ResourceProfiles!$F$4:$IV$65536,ResourceProfiles!$A$19)="no"),0,IF(AA20/D20<25%,PERCENTILE(INDIRECT(CONCATENATE("K",MATCH(O20,$G$12:$G$8796,0)+11,":","K",MATCH(O21,$G$12:$G$8796,0)+10)),AA20/D20+(1-(AA20/D20))*$AD$9)*1000,IF(AA20/D20>75%,0,PERCENTILE(INDIRECT(CONCATENATE("K",MATCH(O20,$G$12:$G$8796,0)+11,":","K",MATCH(O21,$G$12:$G$8796,0)+10)),AA20/D20+(1-(AA20/D20))*$AD$9)*1000*(1-AA20/D20)))) -> 0 | AP20: 0
B21: Jul | C21: =DCOUNT($F$11:$I$8795,"counthours",B42:C43) -> 416 | D21: 328 | E21: =DCOUNT($F$11:$I$8795,"counthours",B42:B43) -> 744 | F21: 1 | G21: =IF($D$4="N/A","",IF(HLOOKUP($G$11&$D$4,Look_Tbl!$C$6:$T$8790,Look_Tbl!B16,FALSE)="","",HLOOKUP($G$11&$D$4,Look_Tbl!$C$6:$T$8790,Look_Tbl!B16,FALSE))) -> Oct | H21: FY2016 | I21: =IF($D$4="N/A",0,IF(G21="","",HLOOKUP($I$11&$D$4,Look_Tbl!$C$6:$T$8790,Look_Tbl!B16,FALSE))) -> HLH | J21: =IF($D$4="N/A",0,IF(OR(ISBLANK(HLOOKUP($D$3,ResourceInputs!$3:$65536,ResourceInputs!E25)),HLOOKUP($D$3,ResourceInputs!$3:$65536,ResourceInputs!E25)="nonleap"),"",IF((HLOOKUP($D$3,ResourceInputs!$3:$65536,ResourceInputs!$E$16)="Scheduled"),MAX(ROUND(HLOOKUP($D$3,ResourceInputs!$3:$65536,ResourceInputs!E25),0),0),MAX(HLOOKUP($D$3,ResourceInputs!$3:$65536,ResourceInputs!E25),0)))) -> 1.29688 | K21: 1.29688 | M21: 0 | O21: Jul | P21: 9121.5384 | Q21: 8276.53164 | R21: 0 | S21: 0 | T21: =IF(HLOOKUP($D$3,ResourceProfiles!$4:$349,ResourceProfiles!$A$19)="yes",P21/(C21-AB21)*Z21,0) -> 0 | U21: =IF(HLOOKUP($D$3,ResourceProfiles!$4:$349,ResourceProfiles!$A$19)="yes",Q21/(D21-AC21)*AA21,0) -> 0 | V21: 9121.5384 | W21: 8276.53164 | X21: =IF(HLOOKUP($D$3,ResourceProfiles!$F$4:$IV$126,ResourceProfiles!$A$13)="Yes",AB21-Z21,0) -> 0 | Y21: =IF(HLOOKUP($D$3,ResourceProfiles!$F$4:$IV$126,ResourceProfiles!$A$13)="Yes",AC21-AA21,0) -> 0 | Z21: =HLOOKUP($D$3,ResourceProfiles!$F$4:$IV$126,ResourceProfiles!A31,FALSE) -> 0 | AA21: =HLOOKUP($D$3,ResourceProfiles!$F$4:$IV$126,ResourceProfiles!A44,FALSE) -> 0 | AB21: 13 | AC21: 8 | AD21: 0 | AE21: =IF(OR($D$4="N/A",HLOOKUP($D$3,ResourceProfiles!$F$4:$IV$65536,ResourceProfiles!$A$19)="no"),0,IF(Z21/C21<25%,PERCENTILE(INDIRECT(CONCATENATE("K",MATCH(O21,$G$12:$G$8796,0)+11,":","K",MATCH(O22,$G$12:$G$8796,0)+10)),Z21/C21+(1-(Z21/C21))*$AD$9)*1000,IF(Z21/C21>75%,0,PERCENTILE(INDIRECT(CONCATENATE("K",MATCH(O21,$G$12:$G$8796,0)+11,":","K",MATCH(O22,$G$12:$G$8796,0)+10)),Z21/C21+(1-(Z21/C21))*$AD$9)*1000*(1-Z21/C21)))) -> 0 | AF21: =HLOOKUP($D$3,ResourceProfiles!$F$4:$IV$126,ResourceProfiles!A58) -> 0 | AG21: 0 | AH21: =IF($D$4="N/A",$D$4,TRUNC(MIN(IF(AB21+RateInputs!$Q$6>=C21,0,SMALL(INDIRECT(CONCATENATE("K",MATCH(O21,$G$12:$G$8796,0)+11,":","K",MATCH(O22,$G$12:$G$8796,0)+10)),AB21+RateInputs!$Q$6))*1000+AF21,$AG21),-3)) -> 0 | AI21: =IF($D$4="N/A",$D$4,TRUNC(MIN(IF(AC21+RateInputs!$Q$6>=D21,0,SMALL(INDIRECT(CONCATENATE("L",MATCH(O21,$G$12:$G$8796,0)+11,":","L",MATCH(O22,$G$12:$G$8796,0)+10)),AC21+RateInputs!$Q$6))*1000+AF21,$AG21),-3)) -> 0 | AJ21: 0 | AK21: 0 | AL21: 3259 | AM21: 2330 | AN21: 0 | AO21: =IF(OR($D$4="N/A",HLOOKUP($D$3,ResourceProfiles!$F$4:$IV$65536,ResourceProfiles!$A$19)="no"),0,IF(AA21/D21<25%,PERCENTILE(INDIRECT(CONCATENATE("K",MATCH(O21,$G$12:$G$8796,0)+11,":","K",MATCH(O22,$G$12:$G$8796,0)+10)),AA21/D21+(1-(AA21/D21))*$AD$9)*1000,IF(AA21/D21>75%,0,PERCENTILE(INDIRECT(CONCATENATE("K",MATCH(O21,$G$12:$G$8796,0)+11,":","K",MATCH(O22,$G$12:$G$8796,0)+10)),AA21/D21+(1-(AA21/D21))*$AD$9)*1000*(1-AA21/D21)))) -> 0 | AP21: 0
B22: Aug | C22: =DCOUNT($F$11:$I$8795,"counthours",B44:C45) -> 432 | D22: 312 | E22: =DCOUNT($F$11:$I$8795,"counthours",B44:B45) -> 744 | F22: 1 | G22: =IF($D$4="N/A","",IF(HLOOKUP($G$11&$D$4,Look_Tbl!$C$6:$T$8790,Look_Tbl!B17,FALSE)="","",HLOOKUP($G$11&$D$4,Look_Tbl!$C$6:$T$8790,Look_Tbl!B17,FALSE))) -> Oct | H22: FY2016 | I22: =IF($D$4="N/A",0,IF(G22="","",HLOOKUP($I$11&$D$4,Look_Tbl!$C$6:$T$8790,Look_Tbl!B17,FALSE))) -> HLH | J22: =IF($D$4="N/A",0,IF(OR(ISBLANK(HLOOKUP($D$3,ResourceInputs!$3:$65536,ResourceInputs!E26)),HLOOKUP($D$3,ResourceInputs!$3:$65536,ResourceInputs!E26)="nonleap"),"",IF((HLOOKUP($D$3,ResourceInputs!$3:$65536,ResourceInputs!$E$16)="Scheduled"),MAX(ROUND(HLOOKUP($D$3,ResourceInputs!$3:$65536,ResourceInputs!E26),0),0),MAX(HLOOKUP($D$3,ResourceInputs!$3:$65536,ResourceInputs!E26),0)))) -> 0.76024 | K22: 0.76024 | M22: 0 | O22: Aug | P22: 6582.96288 | Q22: 6495.96012 | R22: 0 | S22: 0 | T22: =IF(HLOOKUP($D$3,ResourceProfiles!$4:$349,ResourceProfiles!$A$19)="yes",P22/(C22-AB22)*Z22,0) -> 0 | U22: =IF(HLOOKUP($D$3,ResourceProfiles!$4:$349,ResourceProfiles!$A$19)="yes",Q22/(D22-AC22)*AA22,0) -> 0 | V22: 6582.96288 | W22: 6495.96012 | X22: =IF(HLOOKUP($D$3,ResourceProfiles!$F$4:$IV$126,ResourceProfiles!$A$13)="Yes",AB22-Z22,0) -> 0 | Y22: =IF(HLOOKUP($D$3,ResourceProfiles!$F$4:$IV$126,ResourceProfiles!$A$13)="Yes",AC22-AA22,0) -> 0 | Z22: =HLOOKUP($D$3,ResourceProfiles!$F$4:$IV$126,ResourceProfiles!A32,FALSE) -> 0 | AA22: =HLOOKUP($D$3,ResourceProfiles!$F$4:$IV$126,ResourceProfiles!A45,FALSE) -> 0 | AB22: 71 | AC22: 38 | AD22: 0 | AE22: =IF(OR($D$4="N/A",HLOOKUP($D$3,ResourceProfiles!$F$4:$IV$65536,ResourceProfiles!$A$19)="no"),0,IF(Z22/C22<25%,PERCENTILE(INDIRECT(CONCATENATE("K",MATCH(O22,$G$12:$G$8796,0)+11,":","K",MATCH(O23,$G$12:$G$8796,0)+10)),Z22/C22+(1-(Z22/C22))*$AD$9)*1000,IF(Z22/C22>75%,0,PERCENTILE(INDIRECT(CONCATENATE("K",MATCH(O22,$G$12:$G$8796,0)+11,":","K",MATCH(O23,$G$12:$G$8796,0)+10)),Z22/C22+(1-(Z22/C22))*$AD$9)*1000*(1-Z22/C22)))) -> 0 | AF22: =HLOOKUP($D$3,ResourceProfiles!$F$4:$IV$126,ResourceProfiles!A59) -> 0 | AG22: 0 | AH22: =IF($D$4="N/A",$D$4,TRUNC(MIN(IF(AB22+RateInputs!$Q$6>=C22,0,SMALL(INDIRECT(CONCATENATE("K",MATCH(O22,$G$12:$G$8796,0)+11,":","K",MATCH(O23,$G$12:$G$8796,0)+10)),AB22+RateInputs!$Q$6))*1000+AF22,$AG22),-3)) -> 0 | AI22: =IF($D$4="N/A",$D$4,TRUNC(MIN(IF(AC22+RateInputs!$Q$6>=D22,0,SMALL(INDIRECT(CONCATENATE("L",MATCH(O22,$G$12:$G$8796,0)+11,":","L",MATCH(O23,$G$12:$G$8796,0)+10)),AC22+RateInputs!$Q$6))*1000+AF22,$AG22),-3)) -> 0 | AJ22: 0 | AK22: 0 | AL22: 3287 | AM22: 2497 | AN22: 0 | AO22: =IF(OR($D$4="N/A",HLOOKUP($D$3,ResourceProfiles!$F$4:$IV$65536,ResourceProfiles!$A$19)="no"),0,IF(AA22/D22<25%,PERCENTILE(INDIRECT(CONCATENATE("K",MATCH(O22,$G$12:$G$8796,0)+11,":","K",MATCH(O23,$G$12:$G$8796,0)+10)),AA22/D22+(1-(AA22/D22))*$AD$9)*1000,IF(AA22/D22>75%,0,PERCENTILE(INDIRECT(CONCATENATE("K",MATCH(O22,$G$12:$G$8796,0)+11,":","K",MATCH(O23,$G$12:$G$8796,0)+10)),AA22/D22+(1-(AA22/D22))*$AD$9)*1000*(1-AA22/D22)))) -> 0 | AP22: 0
B23: Sep | C23: =DCOUNT($F$11:$I$8795,"counthours",B46:C47) -> 416 | D23: 304 | E23: =DCOUNT($F$11:$I$8795,"counthours",B46:B47) -> 720 | F23: 1 | G23: =IF($D$4="N/A","",IF(HLOOKUP($G$11&$D$4,Look_Tbl!$C$6:$T$8790,Look_Tbl!B18,FALSE)="","",HLOOKUP($G$11&$D$4,Look_Tbl!$C$6:$T$8790,Look_Tbl!B18,FALSE))) -> Oct | H23: FY2016 | I23: =IF($D$4="N/A",0,IF(G23="","",HLOOKUP($I$11&$D$4,Look_Tbl!$C$6:$T$8790,Look_Tbl!B18,FALSE))) -> HLH | J23: =IF($D$4="N/A",0,IF(OR(ISBLANK(HLOOKUP($D$3,ResourceInputs!$3:$65536,ResourceInputs!E27)),HLOOKUP($D$3,ResourceInputs!$3:$65536,ResourceInputs!E27)="nonleap"),"",IF((HLOOKUP($D$3,ResourceInputs!$3:$65536,ResourceInputs!$E$16)="Scheduled"),MAX(ROUND(HLOOKUP($D$3,ResourceInputs!$3:$65536,ResourceInputs!E27),0),0),MAX(HLOOKUP($D$3,ResourceInputs!$3:$65536,ResourceInputs!E27),0)))) -> 0 | K23: 0 | M23: 0 | O23: Sep | P23: 6743.59712 | Q23: 5568.13192 | R23: 0 | S23: 0 | T23: =IF(HLOOKUP($D$3,ResourceProfiles!$4:$349,ResourceProfiles!$A$19)="yes",P23/(C23-AB23)*Z23,0) -> 0 | U23: =IF(HLOOKUP($D$3,ResourceProfiles!$4:$349,ResourceProfiles!$A$19)="yes",Q23/(D23-AC23)*AA23,0) -> 0 | V23: 6743.59712 | W23: 5568.13192 | X23: =IF(HLOOKUP($D$3,ResourceProfiles!$F$4:$IV$126,ResourceProfiles!$A$13)="Yes",AB23-Z23,0) -> 0 | Y23: =IF(HLOOKUP($D$3,ResourceProfiles!$F$4:$IV$126,ResourceProfiles!$A$13)="Yes",AC23-AA23,0) -> 0 | Z23: =HLOOKUP($D$3,ResourceProfiles!$F$4:$IV$126,ResourceProfiles!A33,FALSE) -> 0 | AA23: =HLOOKUP($D$3,ResourceProfiles!$F$4:$IV$126,ResourceProfiles!A46,FALSE) -> 0 | AB23: 41 | AC23: 14 | AD23: 0 | AE23: =IF(OR($D$4="N/A",HLOOKUP($D$3,ResourceProfiles!$F$4:$IV$65536,ResourceProfiles!$A$19)="no"),0,IF(Z23/C23<25%,PERCENTILE(INDIRECT(CONCATENATE("K",MATCH(O23,$G$12:$G$8796,0)+11,":","K",MATCH(O24,$G$12:$G$8796,0)+10)),Z23/C23+(1-(Z23/C23))*$AD$9)*1000,IF(Z23/C23>75%,0,PERCENTILE(INDIRECT(CONCATENATE("K",MATCH(O23,$G$12:$G$8796,0)+11,":","K",MATCH(O24,$G$12:$G$8796,0)+10)),Z23/C23+(1-(Z23/C23))*$AD$9)*1000*(1-Z23/C23)))) -> 0 | AF23: =HLOOKUP($D$3,ResourceProfiles!$F$4:$IV$126,ResourceProfiles!A60) -> 0 | AG23: 0 | AH23: =IF($D$4="N/A",$D$4,TRUNC(MIN(IF(AB23+RateInputs!$Q$6>=C23,0,SMALL(INDIRECT(CONCATENATE("K",MATCH(O23,$G$12:$G$8796,0)+11,":","K",MATCH(O24,$G$12:$G$8796,0)+10)),AB23+RateInputs!$Q$6))*1000+AF23,$AG23),-3)) -> 0 | AI23: =IF($D$4="N/A",$D$4,TRUNC(MIN(IF(AC23+RateInputs!$Q$6>=D23,0,SMALL(INDIRECT(CONCATENATE("L",MATCH(O23,$G$12:$G$8796,0)+11,":","L",MATCH(O24,$G$12:$G$8796,0)+10)),AC23+RateInputs!$Q$6))*1000+AF23,$AG23),-3)) -> 0 | AJ23: 0 | AK23: 0 | AL23: 3028 | AM23: 2176 | AN23: 0 | AO23: =IF(OR($D$4="N/A",HLOOKUP($D$3,ResourceProfiles!$F$4:$IV$65536,ResourceProfiles!$A$19)="no"),0,IF(AA23/D23<25%,PERCENTILE(INDIRECT(CONCATENATE("K",MATCH(O23,$G$12:$G$8796,0)+11,":","K",MATCH(O24,$G$12:$G$8796,0)+10)),AA23/D23+(1-(AA23/D23))*$AD$9)*1000,IF(AA23/D23>75%,0,PERCENTILE(INDIRECT(CONCATENATE("K",MATCH(O23,$G$12:$G$8796,0)+11,":","K",MATCH(O24,$G$12:$G$8796,0)+10)),AA23/D23+(1-(AA23/D23))*$AD$9)*1000*(1-AA23/D23)))) -> 0 | AP23: 0
B24: Month | C24: HLH/LLH | E24: =SUM(E12:E23) -> 8784 | F24: 1 | G24: =IF($D$4="N/A","",IF(HLOOKUP($G$11&$D$4,Look_Tbl!$C$6:$T$8790,Look_Tbl!B19,FALSE)="","",HLOOKUP($G$11&$D$4,Look_Tbl!$C$6:$T$8790,Look_Tbl!B19,FALSE))) -> Oct | H24: FY2016 | I24: =IF($D$4="N/A",0,IF(G24="","",HLOOKUP($I$11&$D$4,Look_Tbl!$C$6:$T$8790,Look_Tbl!B19,FALSE))) -> HLH | J24: =IF($D$4="N/A",0,IF(OR(ISBLANK(HLOOKUP($D$3,ResourceInputs!$3:$65536,ResourceInputs!E28)),HLOOKUP($D$3,ResourceInputs!$3:$65536,ResourceInputs!E28)="nonleap"),"",IF((HLOOKUP($D$3,ResourceInputs!$3:$65536,ResourceInputs!$E$16)="Scheduled"),MAX(ROUND(HLOOKUP($D$3,ResourceInputs!$3:$65536,ResourceInputs!E28),0),0),MAX(HLOOKUP($D$3,ResourceInputs!$3:$65536,ResourceInputs!E28),0)))) -> 0.02236 | K24: 0.02236 | M24: 0 | O24: stop
B25: Oct | C25: HLH | F25: 1 | G25: =IF($D$4="N/A","",IF(HLOOKUP($G$11&$D$4,Look_Tbl!$C$6:$T$8790,Look_Tbl!B20,FALSE)="","",HLOOKUP($G$11&$D$4,Look_Tbl!$C$6:$T$8790,Look_Tbl!B20,FALSE))) -> Oct | H25: FY2016 | I25: =IF($D$4="N/A",0,IF(G25="","",HLOOKUP($I$11&$D$4,Look_Tbl!$C$6:$T$8790,Look_Tbl!B20,FALSE))) -> HLH | J25: =IF($D$4="N/A",0,IF(OR(ISBLANK(HLOOKUP($D$3,ResourceInputs!$3:$65536,ResourceInputs!E29)),HLOOKUP($D$3,ResourceInputs!$3:$65536,ResourceInputs!E29)="nonleap"),"",IF((HLOOKUP($D$3,ResourceInputs!$3:$65536,ResourceInputs!$E$16)="Scheduled"),MAX(ROUND(HLOOKUP($D$3,ResourceInputs!$3:$65536,ResourceInputs!E29),0),0),MAX(HLOOKUP($D$3,ResourceInputs!$3:$65536,ResourceInputs!E29),0)))) -> 0.13416 | K25: 0.13416 | M25: 0 | AJ25: Change Op. Min. Info
B26: Month | C26: HLH/LLH | F26: 1 | G26: =IF($D$4="N/A","",IF(HLOOKUP($G$11&$D$4,Look_Tbl!$C$6:$T$8790,Look_Tbl!B21,FALSE)="","",HLOOKUP($G$11&$D$4,Look_Tbl!$C$6:$T$8790,Look_Tbl!B21,FALSE))) -> Oct | H26: FY2016 | I26: =IF($D$4="N/A",0,IF(G26="","",HLOOKUP($I$11&$D$4,Look_Tbl!$C$6:$T$8790,Look_Tbl!B21,FALSE))) -> HLH | J26: =IF($D$4="N/A",0,IF(OR(ISBLANK(HLOOKUP($D$3,ResourceInputs!$3:$65536,ResourceInputs!E30)),HLOOKUP($D$3,ResourceInputs!$3:$65536,ResourceInputs!E30)="nonleap"),"",IF((HLOOKUP($D$3,ResourceInputs!$3:$65536,ResourceInputs!$E$16)="Scheduled"),MAX(ROUND(HLOOKUP($D$3,ResourceInputs!$3:$65536,ResourceInputs!E30),0),0),MAX(HLOOKUP($D$3,ResourceInputs!$3:$65536,ResourceInputs!E30),0)))) -> 0 | K26: 0 | M26: 0 | AH26: =MAX((AJ26-999),0)*-1 -> 0 | AI26: =MAX((AK26-999),0)*-1 -> 0 | AJ26: =IF($D$4="N/A",$D$4,MIN(IF(AB12+RateInputs!$Q$6>=C12,0,SMALL(INDIRECT(CONCATENATE("K",MATCH(O12,$G$12:$G$8796,0)+11,":","K",MATCH(O13,$G$12:$G$8796,0)+10)),AB12+RateInputs!$Q$6))*1000+AF12,$AG12)) -> 0 | AK26: =IF($D$4="N/A",$D$4,MIN(IF(AC12+RateInputs!$Q$6>=D12,0,SMALL(INDIRECT(CONCATENATE("L",MATCH(O12,$G$12:$G$8796,0)+11,":","L",MATCH(O13,$G$12:$G$8796,0)+10)),AC12+RateInputs!$Q$6))*1000+AF12,$AG12)) -> 0
B27: Nov | C27: HLH | F27: 1 | G27: =IF($D$4="N/A","",IF(HLOOKUP($G$11&$D$4,Look_Tbl!$C$6:$T$8790,Look_Tbl!B22,FALSE)="","",HLOOKUP($G$11&$D$4,Look_Tbl!$C$6:$T$8790,Look_Tbl!B22,FALSE))) -> Oct | H27: FY2016 | I27: =IF($D$4="N/A",0,IF(G27="","",HLOOKUP($I$11&$D$4,Look_Tbl!$C$6:$T$8790,Look_Tbl!B22,FALSE))) -> HLH | J27: =IF($D$4="N/A",0,IF(OR(ISBLANK(HLOOKUP($D$3,ResourceInputs!$3:$65536,ResourceInputs!E31)),HLOOKUP($D$3,ResourceInputs!$3:$65536,ResourceInputs!E31)="nonleap"),"",IF((HLOOKUP($D$3,ResourceInputs!$3:$65536,ResourceInputs!$E$16)="Scheduled"),MAX(ROUND(HLOOKUP($D$3,ResourceInputs!$3:$65536,ResourceInputs!E31),0),0),MAX(HLOOKUP($D$3,ResourceInputs!$3:$65536,ResourceInputs!E31),0)))) -> 0 | K27: 0 | M27: 0 | AH27: =MAX((AJ27-999),0)*-1 -> 0 | AI27: =MAX((AK27-999),0)*-1 -> 0 | AJ27: =IF($D$4="N/A",$D$4,MIN(IF(AB13+RateInputs!$Q$6>=C13,0,SMALL(INDIRECT(CONCATENATE("K",MATCH(O13,$G$12:$G$8796,0)+11,":","K",MATCH(O14,$G$12:$G$8796,0)+10)),AB13+RateInputs!$Q$6))*1000+AF13,$AG13)) -> 0 | AK27: =IF($D$4="N/A",$D$4,MIN(IF(AC13+RateInputs!$Q$6>=D13,0,SMALL(INDIRECT(CONCATENATE("L",MATCH(O13,$G$12:$G$8796,0)+11,":","L",MATCH(O14,$G$12:$G$8796,0)+10)),AC13+RateInputs!$Q$6))*1000+AF13,$AG13)) -> 0
B28: Month | C28: HLH/LLH | F28: 1 | G28: =IF($D$4="N/A","",IF(HLOOKUP($G$11&$D$4,Look_Tbl!$C$6:$T$8790,Look_Tbl!B23,FALSE)="","",HLOOKUP($G$11&$D$4,Look_Tbl!$C$6:$T$8790,Look_Tbl!B23,FALSE))) -> Oct | H28: FY2016 | I28: =IF($D$4="N/A",0,IF(G28="","",HLOOKUP($I$11&$D$4,Look_Tbl!$C$6:$T$8790,Look_Tbl!B23,FALSE))) -> HLH | J28: =IF($D$4="N/A",0,IF(OR(ISBLANK(HLOOKUP($D$3,ResourceInputs!$3:$65536,ResourceInputs!E32)),HLOOKUP($D$3,ResourceInputs!$3:$65536,ResourceInputs!E32)="nonleap"),"",IF((HLOOKUP($D$3,ResourceInputs!$3:$65536,ResourceInputs!$E$16)="Scheduled"),MAX(ROUND(HLOOKUP($D$3,ResourceInputs!$3:$65536,ResourceInputs!E32),0),0),MAX(HLOOKUP($D$3,ResourceInputs!$3:$65536,ResourceInputs!E32),0)))) -> 0 | K28: 0 | M28: 0 | AH28: 0 | AI28: 0 | AJ28: =IF($D$4="N/A",$D$4,MIN(IF(AB14+RateInputs!$Q$6>=C14,0,SMALL(INDIRECT(CONCATENATE("K",MATCH(O14,$G$12:$G$8796,0)+11,":","K",MATCH(O15,$G$12:$G$8796,0)+10)),AB14+RateInputs!$Q$6))*1000+AF14,$AG14)) -> 0 | AK28: =IF($D$4="N/A",$D$4,MIN(IF(AC14+RateInputs!$Q$6>=D14,0,SMALL(INDIRECT(CONCATENATE("L",MATCH(O14,$G$12:$G$8796,0)+11,":","L",MATCH(O15,$G$12:$G$8796,0)+10)),AC14+RateInputs!$Q$6))*1000+AF14,$AG14)) -> 0
B29: Dec | C29: HLH | F29: 1 | G29: =IF($D$4="N/A","",IF(HLOOKUP($G$11&$D$4,Look_Tbl!$C$6:$T$8790,Look_Tbl!B24,FALSE)="","",HLOOKUP($G$11&$D$4,Look_Tbl!$C$6:$T$8790,Look_Tbl!B24,FALSE))) -> Oct | H29: FY2016 | I29: =IF($D$4="N/A",0,IF(G29="","",HLOOKUP($I$11&$D$4,Look_Tbl!$C$6:$T$8790,Look_Tbl!B24,FALSE))) -> HLH | J29: =IF($D$4="N/A",0,IF(OR(ISBLANK(HLOOKUP($D$3,ResourceInputs!$3:$65536,ResourceInputs!E33)),HLOOKUP($D$3,ResourceInputs!$3:$65536,ResourceInputs!E33)="nonleap"),"",IF((HLOOKUP($D$3,ResourceInputs!$3:$65536,ResourceInputs!$E$16)="Scheduled"),MAX(ROUND(HLOOKUP($D$3,ResourceInputs!$3:$65536,ResourceInputs!E33),0),0),MAX(HLOOKUP($D$3,ResourceInputs!$3:$65536,ResourceInputs!E33),0)))) -> 0.15652 | K29: 0.15652 | M29: 0 | AH29: 0 | AI29: 0 | AJ29: =IF($D$4="N/A",$D$4,MIN(IF(AB15+RateInputs!$Q$6>=C15,0,SMALL(INDIRECT(CONCATENATE("K",MATCH(O15,$G$12:$G$8796,0)+11,":","K",MATCH(O16,$G$12:$G$8796,0)+10)),AB15+RateInputs!$Q$6))*1000+AF15,$AG15)) -> 0 | AK29: =IF($D$4="N/A",$D$4,MIN(IF(AC15+RateInputs!$Q$6>=D15,0,SMALL(INDIRECT(CONCATENATE("L",MATCH(O15,$G$12:$G$8796,0)+11,":","L",MATCH(O16,$G$12:$G$8796,0)+10)),AC15+RateInputs!$Q$6))*1000+AF15,$AG15)) -> 0
B30: Month | C30: HLH/LLH | F30: 1 | G30: =IF($D$4="N/A","",IF(HLOOKUP($G$11&$D$4,Look_Tbl!$C$6:$T$8790,Look_Tbl!B25,FALSE)="","",HLOOKUP($G$11&$D$4,Look_Tbl!$C$6:$T$8790,Look_Tbl!B25,FALSE))) -> Oct | H30: FY2016 | I30: =IF($D$4="N/A",0,IF(G30="","",HLOOKUP($I$11&$D$4,Look_Tbl!$C$6:$T$8790,Look_Tbl!B25,FALSE))) -> HLH | J30: =IF($D$4="N/A",0,IF(OR(ISBLANK(HLOOKUP($D$3,ResourceInputs!$3:$65536,ResourceInputs!E34)),HLOOKUP($D$3,ResourceInputs!$3:$65536,ResourceInputs!E34)="nonleap"),"",IF((HLOOKUP($D$3,ResourceInputs!$3:$65536,ResourceInputs!$E$16)="Scheduled"),MAX(ROUND(HLOOKUP($D$3,ResourceInputs!$3:$65536,ResourceInputs!E34),0),0),MAX(HLOOKUP($D$3,ResourceInputs!$3:$65536,ResourceInputs!E34),0)))) -> 3.19748 | K30: 3.19748 | M30: 0 | AH30: 0 | AI30: 0 | AJ30: =IF($D$4="N/A",$D$4,MIN(IF(AB16+RateInputs!$Q$6>=C16,0,SMALL(INDIRECT(CONCATENATE("K",MATCH(O16,$G$12:$G$8796,0)+11,":","K",MATCH(O17,$G$12:$G$8796,0)+10)),AB16+RateInputs!$Q$6))*1000+AF16,$AG16)) -> 0 | AK30: =IF($D$4="N/A",$D$4,MIN(IF(AC16+RateInputs!$Q$6>=D16,0,SMALL(INDIRECT(CONCATENATE("L",MATCH(O16,$G$12:$G$8796,0)+11,":","L",MATCH(O17,$G$12:$G$8796,0)+10)),AC16+RateInputs!$Q$6))*1000+AF16,$AG16)) -> 0
B31: Jan | C31: HLH | F31: 1 | G31: =IF($D$4="N/A","",IF(HLOOKUP($G$11&$D$4,Look_Tbl!$C$6:$T$8790,Look_Tbl!B26,FALSE)="","",HLOOKUP($G$11&$D$4,Look_Tbl!$C$6:$T$8790,Look_Tbl!B26,FALSE))) -> Oct | H31: FY2016 | I31: =IF($D$4="N/A",0,IF(G31="","",HLOOKUP($I$11&$D$4,Look_Tbl!$C$6:$T$8790,Look_Tbl!B26,FALSE))) -> HLH | J31: =IF($D$4="N/A",0,IF(OR(ISBLANK(HLOOKUP($D$3,ResourceInputs!$3:$65536,ResourceInputs!E35)),HLOOKUP($D$3,ResourceInputs!$3:$65536,ResourceInputs!E35)="nonleap"),"",IF((HLOOKUP($D$3,ResourceInputs!$3:$65536,ResourceInputs!$E$16)="Scheduled"),MAX(ROUND(HLOOKUP($D$3,ResourceInputs!$3:$65536,ResourceInputs!E35),0),0),MAX(HLOOKUP($D$3,ResourceInputs!$3:$65536,ResourceInputs!E35),0)))) -> 17.50788 | K31: 17.50788 | M31: 5.817 | AH31: 0 | AI31: 0 | AJ31: =IF($D$4="N/A",$D$4,MIN(IF(AB17+RateInputs!$Q$6>=C17,0,SMALL(INDIRECT(CONCATENATE("K",MATCH(O17,$G$12:$G$8796,0)+11,":","K",MATCH(O18,$G$12:$G$8796,0)+10)),AB17+RateInputs!$Q$6))*1000+AF17,$AG17)) -> 0 | AK31: =IF($D$4="N/A",$D$4,MIN(IF(AC17+RateInputs!$Q$6>=D17,0,SMALL(INDIRECT(CONCATENATE("L",MATCH(O17,$G$12:$G$8796,0)+11,":","L",MATCH(O18,$G$12:$G$8796,0)+10)),AC17+RateInputs!$Q$6))*1000+AF17,$AG17)) -> 0
B32: Month | C32: HLH/LLH | F32: 1 | G32: =IF($D$4="N/A","",IF(HLOOKUP($G$11&$D$4,Look_Tbl!$C$6:$T$8790,Look_Tbl!B27,FALSE)="","",HLOOKUP($G$11&$D$4,Look_Tbl!$C$6:$T$8790,Look_Tbl!B27,FALSE))) -> Oct | H32: FY2016 | I32: =IF($D$4="N/A",0,IF(G32="","",HLOOKUP($I$11&$D$4,Look_Tbl!$C$6:$T$8790,Look_Tbl!B27,FALSE))) -> HLH | J32: =IF($D$4="N/A",0,IF(OR(ISBLANK(HLOOKUP($D$3,ResourceInputs!$3:$65536,ResourceInputs!E36)),HLOOKUP($D$3,ResourceInputs!$3:$65536,ResourceInputs!E36)="nonleap"),"",IF((HLOOKUP($D$3,ResourceInputs!$3:$65536,ResourceInputs!$E$16)="Scheduled"),MAX(ROUND(HLOOKUP($D$3,ResourceInputs!$3:$65536,ResourceInputs!E36),0),0),MAX(HLOOKUP($D$3,ResourceInputs!$3:$65536,ResourceInputs!E36),0)))) -> 29.69408 | K32: 29.69408 | M32: 18.003 | AH32: 0 | AI32: 0 | AJ32: =IF($D$4="N/A",$D$4,MIN(IF(AB18+RateInputs!$Q$6>=C18,0,SMALL(INDIRECT(CONCATENATE("K",MATCH(O18,$G$12:$G$8796,0)+11,":","K",MATCH(O19,$G$12:$G$8796,0)+10)),AB18+RateInputs!$Q$6))*1000+AF18,$AG18)) -> 0 | AK32: =IF($D$4="N/A",$D$4,MIN(IF(AC18+RateInputs!$Q$6>=D18,0,SMALL(INDIRECT(CONCATENATE("L",MATCH(O18,$G$12:$G$8796,0)+11,":","L",MATCH(O19,$G$12:$G$8796,0)+10)),AC18+RateInputs!$Q$6))*1000+AF18,$AG18)) -> 0
B33: Feb | C33: HLH | F33: 1 | G33: =IF($D$4="N/A","",IF(HLOOKUP($G$11&$D$4,Look_Tbl!$C$6:$T$8790,Look_Tbl!B28,FALSE)="","",HLOOKUP($G$11&$D$4,Look_Tbl!$C$6:$T$8790,Look_Tbl!B28,FALSE))) -> Oct | H33: FY2016 | I33: =IF($D$4="N/A",0,IF(G33="","",HLOOKUP($I$11&$D$4,Look_Tbl!$C$6:$T$8790,Look_Tbl!B28,FALSE))) -> HLH | J33: =IF($D$4="N/A",0,IF(OR(ISBLANK(HLOOKUP($D$3,ResourceInputs!$3:$65536,ResourceInputs!E37)),HLOOKUP($D$3,ResourceInputs!$3:$65536,ResourceInputs!E37)="nonleap"),"",IF((HLOOKUP($D$3,ResourceInputs!$3:$65536,ResourceInputs!$E$16)="Scheduled"),MAX(ROUND(HLOOKUP($D$3,ResourceInputs!$3:$65536,ResourceInputs!E37),0),0),MAX(HLOOKUP($D$3,ResourceInputs!$3:$65536,ResourceInputs!E37),0)))) -> 45.838 | K33: 45.838 | M33: 34.147 | AH33: 0 | AI33: 0 | AJ33: =IF($D$4="N/A",$D$4,MIN(IF(AB19+RateInputs!$Q$6>=C19,0,SMALL(INDIRECT(CONCATENATE("K",MATCH(O19,$G$12:$G$8796,0)+11,":","K",MATCH(O20,$G$12:$G$8796,0)+10)),AB19+RateInputs!$Q$6))*1000+AF19,$AG19)) -> 0 | AK33: =IF($D$4="N/A",$D$4,MIN(IF(AC19+RateInputs!$Q$6>=D19,0,SMALL(INDIRECT(CONCATENATE("L",MATCH(O19,$G$12:$G$8796,0)+11,":","L",MATCH(O20,$G$12:$G$8796,0)+10)),AC19+RateInputs!$Q$6))*1000+AF19,$AG19)) -> 0
B34: Month | C34: HLH/LLH | F34: 1 | G34: =IF($D$4="N/A","",IF(HLOOKUP($G$11&$D$4,Look_Tbl!$C$6:$T$8790,Look_Tbl!B29,FALSE)="","",HLOOKUP($G$11&$D$4,Look_Tbl!$C$6:$T$8790,Look_Tbl!B29,FALSE))) -> Oct | H34: FY2016 | I34: =IF($D$4="N/A",0,IF(G34="","",HLOOKUP($I$11&$D$4,Look_Tbl!$C$6:$T$8790,Look_Tbl!B29,FALSE))) -> LLH | J34: =IF($D$4="N/A",0,IF(OR(ISBLANK(HLOOKUP($D$3,ResourceInputs!$3:$65536,ResourceInputs!E38)),HLOOKUP($D$3,ResourceInputs!$3:$65536,ResourceInputs!E38)="nonleap"),"",IF((HLOOKUP($D$3,ResourceInputs!$3:$65536,ResourceInputs!$E$16)="Scheduled"),MAX(ROUND(HLOOKUP($D$3,ResourceInputs!$3:$65536,ResourceInputs!E38),0),0),MAX(HLOOKUP($D$3,ResourceInputs!$3:$65536,ResourceInputs!E38),0)))) -> 49.3038 | L34: 49.3038 | N34: 39.866 | AH34: 0 | AI34: 0 | AJ34: =IF($D$4="N/A",$D$4,MIN(IF(AB20+RateInputs!$Q$6>=C20,0,SMALL(INDIRECT(CONCATENATE("K",MATCH(O20,$G$12:$G$8796,0)+11,":","K",MATCH(O21,$G$12:$G$8796,0)+10)),AB20+RateInputs!$Q$6))*1000+AF20,$AG20)) -> 0 | AK34: =IF($D$4="N/A",$D$4,MIN(IF(AC20+RateInputs!$Q$6>=D20,0,SMALL(INDIRECT(CONCATENATE("L",MATCH(O20,$G$12:$G$8796,0)+11,":","L",MATCH(O21,$G$12:$G$8796,0)+10)),AC20+RateInputs!$Q$6))*1000+AF20,$AG20)) -> 0
B35: Mar | C35: HLH | F35: 1 | G35: =IF($D$4="N/A","",IF(HLOOKUP($G$11&$D$4,Look_Tbl!$C$6:$T$8790,Look_Tbl!B30,FALSE)="","",HLOOKUP($G$11&$D$4,Look_Tbl!$C$6:$T$8790,Look_Tbl!B30,FALSE))) -> Oct | H35: FY2016 | I35: =IF($D$4="N/A",0,IF(G35="","",HLOOKUP($I$11&$D$4,Look_Tbl!$C$6:$T$8790,Look_Tbl!B30,FALSE))) -> LLH | J35: =IF($D$4="N/A",0,IF(OR(ISBLANK(HLOOKUP($D$3,ResourceInputs!$3:$65536,ResourceInputs!E39)),HLOOKUP($D$3,ResourceInputs!$3:$65536,ResourceInputs!E39)="nonleap"),"",IF((HLOOKUP($D$3,ResourceInputs!$3:$65536,ResourceInputs!$E$16)="Scheduled"),MAX(ROUND(HLOOKUP($D$3,ResourceInputs!$3:$65536,ResourceInputs!E39),0),0),MAX(HLOOKUP($D$3,ResourceInputs!$3:$65536,ResourceInputs!E39),0)))) -> 49.28144 | L35: 49.28144 | N35: 39.844 | AH35: 0 | AI35: 0 | AJ35: =IF($D$4="N/A",$D$4,MIN(IF(AB21+RateInputs!$Q$6>=C21,0,SMALL(INDIRECT(CONCATENATE("K",MATCH(O21,$G$12:$G$8796,0)+11,":","K",MATCH(O22,$G$12:$G$8796,0)+10)),AB21+RateInputs!$Q$6))*1000+AF21,$AG21)) -> 0 | AK35: =IF($D$4="N/A",$D$4,MIN(IF(AC21+RateInputs!$Q$6>=D21,0,SMALL(INDIRECT(CONCATENATE("L",MATCH(O21,$G$12:$G$8796,0)+11,":","L",MATCH(O22,$G$12:$G$8796,0)+10)),AC21+RateInputs!$Q$6))*1000+AF21,$AG21)) -> 0
B36: Month | C36: HLH/LLH | F36: 1 | G36: =IF($D$4="N/A","",IF(HLOOKUP($G$11&$D$4,Look_Tbl!$C$6:$T$8790,Look_Tbl!B31,FALSE)="","",HLOOKUP($G$11&$D$4,Look_Tbl!$C$6:$T$8790,Look_Tbl!B31,FALSE))) -> Oct | H36: FY2016 | I36: =IF($D$4="N/A",0,IF(G36="","",HLOOKUP($I$11&$D$4,Look_Tbl!$C$6:$T$8790,Look_Tbl!B31,FALSE))) -> LLH | J36: =IF($D$4="N/A",0,IF(OR(ISBLANK(HLOOKUP($D$3,ResourceInputs!$3:$65536,ResourceInputs!E40)),HLOOKUP($D$3,ResourceInputs!$3:$65536,ResourceInputs!E40)="nonleap"),"",IF((HLOOKUP($D$3,ResourceInputs!$3:$65536,ResourceInputs!$E$16)="Scheduled"),MAX(ROUND(HLOOKUP($D$3,ResourceInputs!$3:$65536,ResourceInputs!E40),0),0),MAX(HLOOKUP($D$3,ResourceInputs!$3:$65536,ResourceInputs!E40),0)))) -> 43.64672 | L36: 43.64672 | N36: 34.209 | AH36: 0 | AI36: 0 | AJ36: =IF($D$4="N/A",$D$4,MIN(IF(AB22+RateInputs!$Q$6>=C22,0,SMALL(INDIRECT(CONCATENATE("K",MATCH(O22,$G$12:$G$8796,0)+11,":","K",MATCH(O23,$G$12:$G$8796,0)+10)),AB22+RateInputs!$Q$6))*1000+AF22,$AG22)) -> 0 | AK36: =IF($D$4="N/A",$D$4,MIN(IF(AC22+RateInputs!$Q$6>=D22,0,SMALL(INDIRECT(CONCATENATE("L",MATCH(O22,$G$12:$G$8796,0)+11,":","L",MATCH(O23,$G$12:$G$8796,0)+10)),AC22+RateInputs!$Q$6))*1000+AF22,$AG22)) -> 0
B37: Apr | C37: HLH | F37: 1 | G37: =IF($D$4="N/A","",IF(HLOOKUP($G$11&$D$4,Look_Tbl!$C$6:$T$8790,Look_Tbl!B32,FALSE)="","",HLOOKUP($G$11&$D$4,Look_Tbl!$C$6:$T$8790,Look_Tbl!B32,FALSE))) -> Oct | H37: FY2016 | I37: =IF($D$4="N/A",0,IF(G37="","",HLOOKUP($I$11&$D$4,Look_Tbl!$C$6:$T$8790,Look_Tbl!B32,FALSE))) -> LLH | J37: =IF($D$4="N/A",0,IF(OR(ISBLANK(HLOOKUP($D$3,ResourceInputs!$3:$65536,ResourceInputs!E41)),HLOOKUP($D$3,ResourceInputs!$3:$65536,ResourceInputs!E41)="nonleap"),"",IF((HLOOKUP($D$3,ResourceInputs!$3:$65536,ResourceInputs!$E$16)="Scheduled"),MAX(ROUND(HLOOKUP($D$3,ResourceInputs!$3:$65536,ResourceInputs!E41),0),0),MAX(HLOOKUP($D$3,ResourceInputs!$3:$65536,ResourceInputs!E41),0)))) -> 35.776 | L37: 35.776 | N37: 26.338 | AH37: 0 | AI37: 0 | AJ37: =IF($D$4="N/A",$D$4,MIN(IF(AB23+RateInputs!$Q$6>=C23,0,SMALL(INDIRECT(CONCATENATE("K",MATCH(O23,$G$12:$G$8796,0)+11,":","K",MATCH(O24,$G$12:$G$8796,0)+10)),AB23+RateInputs!$Q$6))*1000+AF23,$AG23)) -> 0 | AK37: =IF($D$4="N/A",$D$4,MIN(IF(AC23+RateInputs!$Q$6>=D23,0,SMALL(INDIRECT(CONCATENATE("L",MATCH(O23,$G$12:$G$8796,0)+11,":","L",MATCH(O24,$G$12:$G$8796,0)+10)),AC23+RateInputs!$Q$6))*1000+AF23,$AG23)) -> 0
B38: Month | C38: HLH/LLH | F38: 1 | G38: =IF($D$4="N/A","",IF(HLOOKUP($G$11&$D$4,Look_Tbl!$C$6:$T$8790,Look_Tbl!B33,FALSE)="","",HLOOKUP($G$11&$D$4,Look_Tbl!$C$6:$T$8790,Look_Tbl!B33,FALSE))) -> Oct | H38: FY2016 | I38: =IF($D$4="N/A",0,IF(G38="","",HLOOKUP($I$11&$D$4,Look_Tbl!$C$6:$T$8790,Look_Tbl!B33,FALSE))) -> LLH | J38: =IF($D$4="N/A",0,IF(OR(ISBLANK(HLOOKUP($D$3,ResourceInputs!$3:$65536,ResourceInputs!E42)),HLOOKUP($D$3,ResourceInputs!$3:$65536,ResourceInputs!E42)="nonleap"),"",IF((HLOOKUP($D$3,ResourceInputs!$3:$65536,ResourceInputs!$E$16)="Scheduled"),MAX(ROUND(HLOOKUP($D$3,ResourceInputs!$3:$65536,ResourceInputs!E42),0),0),MAX(HLOOKUP($D$3,ResourceInputs!$3:$65536,ResourceInputs!E42),0)))) -> 45.25664 | L38: 45.25664 | N38: 35.819
B39: May | C39: HLH | F39: 1 | G39: =IF($D$4="N/A","",IF(HLOOKUP($G$11&$D$4,Look_Tbl!$C$6:$T$8790,Look_Tbl!B34,FALSE)="","",HLOOKUP($G$11&$D$4,Look_Tbl!$C$6:$T$8790,Look_Tbl!B34,FALSE))) -> Oct | H39: FY2016 | I39: =IF($D$4="N/A",0,IF(G39="","",HLOOKUP($I$11&$D$4,Look_Tbl!$C$6:$T$8790,Look_Tbl!B34,FALSE))) -> LLH | J39: =IF($D$4="N/A",0,IF(OR(ISBLANK(HLOOKUP($D$3,ResourceInputs!$3:$65536,ResourceInputs!E43)),HLOOKUP($D$3,ResourceInputs!$3:$65536,ResourceInputs!E43)="nonleap"),"",IF((HLOOKUP($D$3,ResourceInputs!$3:$65536,ResourceInputs!$E$16)="Scheduled"),MAX(ROUND(HLOOKUP($D$3,ResourceInputs!$3:$65536,ResourceInputs!E43),0),0),MAX(HLOOKUP($D$3,ResourceInputs!$3:$65536,ResourceInputs!E43),0)))) -> 44.07156 | L39: 44.07156 | N39: 34.634
B40: Month | C40: HLH/LLH | F40: 1 | G40: =IF($D$4="N/A","",IF(HLOOKUP($G$11&$D$4,Look_Tbl!$C$6:$T$8790,Look_Tbl!B35,FALSE)="","",HLOOKUP($G$11&$D$4,Look_Tbl!$C$6:$T$8790,Look_Tbl!B35,FALSE))) -> Oct | H40: FY2016 | I40: =IF($D$4="N/A",0,IF(G40="","",HLOOKUP($I$11&$D$4,Look_Tbl!$C$6:$T$8790,Look_Tbl!B35,FALSE))) -> LLH | J40: =IF($D$4="N/A",0,IF(OR(ISBLANK(HLOOKUP($D$3,ResourceInputs!$3:$65536,ResourceInputs!E44)),HLOOKUP($D$3,ResourceInputs!$3:$65536,ResourceInputs!E44)="nonleap"),"",IF((HLOOKUP($D$3,ResourceInputs!$3:$65536,ResourceInputs!$E$16)="Scheduled"),MAX(ROUND(HLOOKUP($D$3,ResourceInputs!$3:$65536,ResourceInputs!E44),0),0),MAX(HLOOKUP($D$3,ResourceInputs!$3:$65536,ResourceInputs!E44),0)))) -> 33.45056 | L40: 33.45056 | N40: 24.013
B41: Jun | C41: HLH | F41: 1 | G41: =IF($D$4="N/A","",IF(HLOOKUP($G$11&$D$4,Look_Tbl!$C$6:$T$8790,Look_Tbl!B36,FALSE)="","",HLOOKUP($G$11&$D$4,Look_Tbl!$C$6:$T$8790,Look_Tbl!B36,FALSE))) -> Oct | H41: FY2016 | I41: =IF($D$4="N/A",0,IF(G41="","",HLOOKUP($I$11&$D$4,Look_Tbl!$C$6:$T$8790,Look_Tbl!B36,FALSE))) -> LLH | J41: =IF($D$4="N/A",0,IF(OR(ISBLANK(HLOOKUP($D$3,ResourceInputs!$3:$65536,ResourceInputs!E45)),HLOOKUP($D$3,ResourceInputs!$3:$65536,ResourceInputs!E45)="nonleap"),"",IF((HLOOKUP($D$3,ResourceInputs!$3:$65536,ResourceInputs!$E$16)="Scheduled"),MAX(ROUND(HLOOKUP($D$3,ResourceInputs!$3:$65536,ResourceInputs!E45),0),0),MAX(HLOOKUP($D$3,ResourceInputs!$3:$65536,ResourceInputs!E45),0)))) -> 30.67792 | L41: 30.67792 | N41: 21.24
B42: Month | C42: HLH/LLH | F42: 1 | G42: =IF($D$4="N/A","",IF(HLOOKUP($G$11&$D$4,Look_Tbl!$C$6:$T$8790,Look_Tbl!B37,FALSE)="","",HLOOKUP($G$11&$D$4,Look_Tbl!$C$6:$T$8790,Look_Tbl!B37,FALSE))) -> Oct | H42: FY2016 | I42: =IF($D$4="N/A",0,IF(G42="","",HLOOKUP($I$11&$D$4,Look_Tbl!$C$6:$T$8790,Look_Tbl!B37,FALSE))) -> HLH | J42: =IF($D$4="N/A",0,IF(OR(ISBLANK(HLOOKUP($D$3,ResourceInputs!$3:$65536,ResourceInputs!E46)),HLOOKUP($D$3,ResourceInputs!$3:$65536,ResourceInputs!E46)="nonleap"),"",IF((HLOOKUP($D$3,ResourceInputs!$3:$65536,ResourceInputs!$E$16)="Scheduled"),MAX(ROUND(HLOOKUP($D$3,ResourceInputs!$3:$65536,ResourceInputs!E46),0),0),MAX(HLOOKUP($D$3,ResourceInputs!$3:$65536,ResourceInputs!E46),0)))) -> 37.7884 | K42: 37.7884 | M42: 26.097 | AJ42: =MAX(MAX(AJ26:AK26)-999,0)*-1 -> 0
B43: Jul | C43: HLH | F43: 1 | G43: =IF($D$4="N/A","",IF(HLOOKUP($G$11&$D$4,Look_Tbl!$C$6:$T$8790,Look_Tbl!B38,FALSE)="","",HLOOKUP($G$11&$D$4,Look_Tbl!$C$6:$T$8790,Look_Tbl!B38,FALSE))) -> Oct | H43: FY2016 | I43: =IF($D$4="N/A",0,IF(G43="","",HLOOKUP($I$11&$D$4,Look_Tbl!$C$6:$T$8790,Look_Tbl!B38,FALSE))) -> HLH | J43: =IF($D$4="N/A",0,IF(OR(ISBLANK(HLOOKUP($D$3,ResourceInputs!$3:$65536,ResourceInputs!E47)),HLOOKUP($D$3,ResourceInputs!$3:$65536,ResourceInputs!E47)="nonleap"),"",IF((HLOOKUP($D$3,ResourceInputs!$3:$65536,ResourceInputs!$E$16)="Scheduled"),MAX(ROUND(HLOOKUP($D$3,ResourceInputs!$3:$65536,ResourceInputs!E47),0),0),MAX(HLOOKUP($D$3,ResourceInputs!$3:$65536,ResourceInputs!E47),0)))) -> 37.81076 | K43: 37.81076 | M43: 26.12 | AH43: =AH12+$AJ$43 -> 0 | AI43: =AI12+$AJ$43 -> 0 | AJ43: =MAX(MAX(AJ27:AK27)-999,0)*-1 -> 0 | AK43: =MAX(MAX(AK27:AL27)-999,0)*-1 -> 0
B44: Month | C44: HLH/LLH | F44: 1 | G44: =IF($D$4="N/A","",IF(HLOOKUP($G$11&$D$4,Look_Tbl!$C$6:$T$8790,Look_Tbl!B39,FALSE)="","",HLOOKUP($G$11&$D$4,Look_Tbl!$C$6:$T$8790,Look_Tbl!B39,FALSE))) -> Oct | H44: FY2016 | I44: =IF($D$4="N/A",0,IF(G44="","",HLOOKUP($I$11&$D$4,Look_Tbl!$C$6:$T$8790,Look_Tbl!B39,FALSE))) -> HLH | J44: =IF($D$4="N/A",0,IF(OR(ISBLANK(HLOOKUP($D$3,ResourceInputs!$3:$65536,ResourceInputs!E48)),HLOOKUP($D$3,ResourceInputs!$3:$65536,ResourceInputs!E48)="nonleap"),"",IF((HLOOKUP($D$3,ResourceInputs!$3:$65536,ResourceInputs!$E$16)="Scheduled"),MAX(ROUND(HLOOKUP($D$3,ResourceInputs!$3:$65536,ResourceInputs!E48),0),0),MAX(HLOOKUP($D$3,ResourceInputs!$3:$65536,ResourceInputs!E48),0)))) -> 36.02196 | K44: 36.02196 | M44: 24.331 | AH44: =AH13+$AJ$43 -> 0 | AI44: 0 | AJ44: =MAX(MAX(AJ28:AK28)-999,0)*-1 -> 0 | AK44: 0
B45: Aug | C45: HLH | F45: 1 | G45: =IF($D$4="N/A","",IF(HLOOKUP($G$11&$D$4,Look_Tbl!$C$6:$T$8790,Look_Tbl!B40,FALSE)="","",HLOOKUP($G$11&$D$4,Look_Tbl!$C$6:$T$8790,Look_Tbl!B40,FALSE))) -> Oct | H45: FY2016 | I45: =IF($D$4="N/A",0,IF(G45="","",HLOOKUP($I$11&$D$4,Look_Tbl!$C$6:$T$8790,Look_Tbl!B40,FALSE))) -> HLH | J45: =IF($D$4="N/A",0,IF(OR(ISBLANK(HLOOKUP($D$3,ResourceInputs!$3:$65536,ResourceInputs!E49)),HLOOKUP($D$3,ResourceInputs!$3:$65536,ResourceInputs!E49)="nonleap"),"",IF((HLOOKUP($D$3,ResourceInputs!$3:$65536,ResourceInputs!$E$16)="Scheduled"),MAX(ROUND(HLOOKUP($D$3,ResourceInputs!$3:$65536,ResourceInputs!E49),0),0),MAX(HLOOKUP($D$3,ResourceInputs!$3:$65536,ResourceInputs!E49),0)))) -> 43.602 | K45: 43.602 | M45: 31.911 | AH45: =AH14+$AJ$43 -> 0 | AI45: 0 | AJ45: =MAX(MAX(AJ29:AK29)-999,0)*-1 -> 0 | AK45: 0
B46: Month | C46: HLH/LLH | F46: 1 | G46: =IF($D$4="N/A","",IF(HLOOKUP($G$11&$D$4,Look_Tbl!$C$6:$T$8790,Look_Tbl!B41,FALSE)="","",HLOOKUP($G$11&$D$4,Look_Tbl!$C$6:$T$8790,Look_Tbl!B41,FALSE))) -> Oct | H46: FY2016 | I46: =IF($D$4="N/A",0,IF(G46="","",HLOOKUP($I$11&$D$4,Look_Tbl!$C$6:$T$8790,Look_Tbl!B41,FALSE))) -> HLH | J46: =IF($D$4="N/A",0,IF(OR(ISBLANK(HLOOKUP($D$3,ResourceInputs!$3:$65536,ResourceInputs!E50)),HLOOKUP($D$3,ResourceInputs!$3:$65536,ResourceInputs!E50)="nonleap"),"",IF((HLOOKUP($D$3,ResourceInputs!$3:$65536,ResourceInputs!$E$16)="Scheduled"),MAX(ROUND(HLOOKUP($D$3,ResourceInputs!$3:$65536,ResourceInputs!E50),0),0),MAX(HLOOKUP($D$3,ResourceInputs!$3:$65536,ResourceInputs!E50),0)))) -> 46.0616 | K46: 46.0616 | M46: 34.371 | AH46: =AH15+$AJ$43 -> 0 | AI46: 0 | AJ46: =MAX(MAX(AJ30:AK30)-999,0)*-1 -> 0 | AK46: 0
B47: Sep | C47: HLH | F47: 1 | G47: =IF($D$4="N/A","",IF(HLOOKUP($G$11&$D$4,Look_Tbl!$C$6:$T$8790,Look_Tbl!B42,FALSE)="","",HLOOKUP($G$11&$D$4,Look_Tbl!$C$6:$T$8790,Look_Tbl!B42,FALSE))) -> Oct | H47: FY2016 | I47: =IF($D$4="N/A",0,IF(G47="","",HLOOKUP($I$11&$D$4,Look_Tbl!$C$6:$T$8790,Look_Tbl!B42,FALSE))) -> HLH | J47: =IF($D$4="N/A",0,IF(OR(ISBLANK(HLOOKUP($D$3,ResourceInputs!$3:$65536,ResourceInputs!E51)),HLOOKUP($D$3,ResourceInputs!$3:$65536,ResourceInputs!E51)="nonleap"),"",IF((HLOOKUP($D$3,ResourceInputs!$3:$65536,ResourceInputs!$E$16)="Scheduled"),MAX(ROUND(HLOOKUP($D$3,ResourceInputs!$3:$65536,ResourceInputs!E51),0),0),MAX(HLOOKUP($D$3,ResourceInputs!$3:$65536,ResourceInputs!E51),0)))) -> 46.68768 | K47: 46.68768 | M47: 34.997 | AH47: =AH16+$AJ$43 -> 0 | AI47: 0 | AJ47: =MAX(MAX(AJ31:AK31)-999,0)*-1 -> 0 | AK47: 0
F48: 1 | G48: =IF($D$4="N/A","",IF(HLOOKUP($G$11&$D$4,Look_Tbl!$C$6:$T$8790,Look_Tbl!B43,FALSE)="","",HLOOKUP($G$11&$D$4,Look_Tbl!$C$6:$T$8790,Look_Tbl!B43,FALSE))) -> Oct | H48: FY2016 | I48: =IF($D$4="N/A",0,IF(G48="","",HLOOKUP($I$11&$D$4,Look_Tbl!$C$6:$T$8790,Look_Tbl!B43,FALSE))) -> HLH | J48: =IF($D$4="N/A",0,IF(OR(ISBLANK(HLOOKUP($D$3,ResourceInputs!$3:$65536,ResourceInputs!E52)),HLOOKUP($D$3,ResourceInputs!$3:$65536,ResourceInputs!E52)="nonleap"),"",IF((HLOOKUP($D$3,ResourceInputs!$3:$65536,ResourceInputs!$E$16)="Scheduled"),MAX(ROUND(HLOOKUP($D$3,ResourceInputs!$3:$65536,ResourceInputs!E52),0),0),MAX(HLOOKUP($D$3,ResourceInputs!$3:$65536,ResourceInputs!E52),0)))) -> 47.9622 | K48: 47.9622 | M48: 36.271 | AH48: =AH17+$AJ$43 -> 0 | AI48: 0 | AJ48: =MAX(MAX(AJ32:AK32)-999,0)*-1 -> 0 | AK48: 0
F49: 1 | G49: =IF($D$4="N/A","",IF(HLOOKUP($G$11&$D$4,Look_Tbl!$C$6:$T$8790,Look_Tbl!B44,FALSE)="","",HLOOKUP($G$11&$D$4,Look_Tbl!$C$6:$T$8790,Look_Tbl!B44,FALSE))) -> Oct | H49: FY2016 | I49: =IF($D$4="N/A",0,IF(G49="","",HLOOKUP($I$11&$D$4,Look_Tbl!$C$6:$T$8790,Look_Tbl!B44,FALSE))) -> HLH | J49: =IF($D$4="N/A",0,IF(OR(ISBLANK(HLOOKUP($D$3,ResourceInputs!$3:$65536,ResourceInputs!E53)),HLOOKUP($D$3,ResourceInputs!$3:$65536,ResourceInputs!E53)="nonleap"),"",IF((HLOOKUP($D$3,ResourceInputs!$3:$65536,ResourceInputs!$E$16)="Scheduled"),MAX(ROUND(HLOOKUP($D$3,ResourceInputs!$3:$65536,ResourceInputs!E53),0),0),MAX(HLOOKUP($D$3,ResourceInputs!$3:$65536,ResourceInputs!E53),0)))) -> 48.81188 | K49: 48.81188 | M49: 37.121 | AH49: =AH18+$AJ$43 -> 0 | AI49: 0 | AJ49: =MAX(MAX(AJ33:AK33)-999,0)*-1 -> 0 | AK49: 0
F50: 1 | G50: =IF($D$4="N/A","",IF(HLOOKUP($G$11&$D$4,Look_Tbl!$C$6:$T$8790,Look_Tbl!B45,FALSE)="","",HLOOKUP($G$11&$D$4,Look_Tbl!$C$6:$T$8790,Look_Tbl!B45,FALSE))) -> Oct | H50: FY2016 | I50: =IF($D$4="N/A",0,IF(G50="","",HLOOKUP($I$11&$D$4,Look_Tbl!$C$6:$T$8790,Look_Tbl!B45,FALSE))) -> HLH | J50: =IF($D$4="N/A",0,IF(OR(ISBLANK(HLOOKUP($D$3,ResourceInputs!$3:$65536,ResourceInputs!E54)),HLOOKUP($D$3,ResourceInputs!$3:$65536,ResourceInputs!E54)="nonleap"),"",IF((HLOOKUP($D$3,ResourceInputs!$3:$65536,ResourceInputs!$E$16)="Scheduled"),MAX(ROUND(HLOOKUP($D$3,ResourceInputs!$3:$65536,ResourceInputs!E54),0),0),MAX(HLOOKUP($D$3,ResourceInputs!$3:$65536,ResourceInputs!E54),0)))) -> 48.72244 | K50: 48.72244 | M50: 37.031 | AH50: =AH19+$AJ$43 -> 0 | AI50: 0 | AJ50: =MAX(MAX(AJ34:AK34)-999,0)*-1 -> 0 | AK50: 0
F51: 1 | G51: =IF($D$4="N/A","",IF(HLOOKUP($G$11&$D$4,Look_Tbl!$C$6:$T$8790,Look_Tbl!B46,FALSE)="","",HLOOKUP($G$11&$D$4,Look_Tbl!$C$6:$T$8790,Look_Tbl!B46,FALSE))) -> Oct | H51: FY2016 | I51: =IF($D$4="N/A",0,IF(G51="","",HLOOKUP($I$11&$D$4,Look_Tbl!$C$6:$T$8790,Look_Tbl!B46,FALSE))) -> HLH | J51: =IF($D$4="N/A",0,IF(OR(ISBLANK(HLOOKUP($D$3,ResourceInputs!$3:$65536,ResourceInputs!E55)),HLOOKUP($D$3,ResourceInputs!$3:$65536,ResourceInputs!E55)="nonleap"),"",IF((HLOOKUP($D$3,ResourceInputs!$3:$65536,ResourceInputs!$E$16)="Scheduled"),MAX(ROUND(HLOOKUP($D$3,ResourceInputs!$3:$65536,ResourceInputs!E55),0),0),MAX(HLOOKUP($D$3,ResourceInputs!$3:$65536,ResourceInputs!E55),0)))) -> 49.0802 | K51: 49.0802 | M51: 37.389 | AH51: =AH20+$AJ$43 -> 0 | AI51: 0 | AJ51: =MAX(MAX(AJ35:AK35)-999,0)*-1 -> 0 | AK51: 0
F52: 1 | G52: =IF($D$4="N/A","",IF(HLOOKUP($G$11&$D$4,Look_Tbl!$C$6:$T$8790,Look_Tbl!B47,FALSE)="","",HLOOKUP($G$11&$D$4,Look_Tbl!$C$6:$T$8790,Look_Tbl!B47,FALSE))) -> Oct | H52: FY2016 | I52: =IF($D$4="N/A",0,IF(G52="","",HLOOKUP($I$11&$D$4,Look_Tbl!$C$6:$T$8790,Look_Tbl!B47,FALSE))) -> HLH | J52: =IF($D$4="N/A",0,IF(OR(ISBLANK(HLOOKUP($D$3,ResourceInputs!$3:$65536,ResourceInputs!E56)),HLOOKUP($D$3,ResourceInputs!$3:$65536,ResourceInputs!E56)="nonleap"),"",IF((HLOOKUP($D$3,ResourceInputs!$3:$65536,ResourceInputs!$E$16)="Scheduled"),MAX(ROUND(HLOOKUP($D$3,ResourceInputs!$3:$65536,ResourceInputs!E56),0),0),MAX(HLOOKUP($D$3,ResourceInputs!$3:$65536,ResourceInputs!E56),0)))) -> 48.00692 | K52: 48.00692 | M52: 36.316 | AH52: =AH21+$AJ$43 -> 0 | AI52: 0 | AJ52: =MAX(MAX(AJ36:AK36)-999,0)*-1 -> 0 | AK52: 0
F53: 1 | G53: =IF($D$4="N/A","",IF(HLOOKUP($G$11&$D$4,Look_Tbl!$C$6:$T$8790,Look_Tbl!B48,FALSE)="","",HLOOKUP($G$11&$D$4,Look_Tbl!$C$6:$T$8790,Look_Tbl!B48,FALSE))) -> Oct | H53: FY2016 | I53: =IF($D$4="N/A",0,IF(G53="","",HLOOKUP($I$11&$D$4,Look_Tbl!$C$6:$T$8790,Look_Tbl!B48,FALSE))) -> HLH | J53: =IF($D$4="N/A",0,IF(OR(ISBLANK(HLOOKUP($D$3,ResourceInputs!$3:$65536,ResourceInputs!E57)),HLOOKUP($D$3,ResourceInputs!$3:$65536,ResourceInputs!E57)="nonleap"),"",IF((HLOOKUP($D$3,ResourceInputs!$3:$65536,ResourceInputs!$E$16)="Scheduled"),MAX(ROUND(HLOOKUP($D$3,ResourceInputs!$3:$65536,ResourceInputs!E57),0),0),MAX(HLOOKUP($D$3,ResourceInputs!$3:$65536,ResourceInputs!E57),0)))) -> 47.42556 | K53: 47.42556 | M53: 35.734 | AH53: =AH22+$AJ$43 -> 0 | AI53: 0 | AJ53: =MAX(MAX(AJ37:AK37)-999,0)*-1 -> 0 | AK53: =MAX(MAX(AK37:AL37)-999,0)*-1 -> 0
F54: 1 | G54: =IF($D$4="N/A","",IF(HLOOKUP($G$11&$D$4,Look_Tbl!$C$6:$T$8790,Look_Tbl!B49,FALSE)="","",HLOOKUP($G$11&$D$4,Look_Tbl!$C$6:$T$8790,Look_Tbl!B49,FALSE))) -> Oct | H54: FY2016 | I54: =IF($D$4="N/A",0,IF(G54="","",HLOOKUP($I$11&$D$4,Look_Tbl!$C$6:$T$8790,Look_Tbl!B49,FALSE))) -> HLH | J54: =IF($D$4="N/A",0,IF(OR(ISBLANK(HLOOKUP($D$3,ResourceInputs!$3:$65536,ResourceInputs!E58)),HLOOKUP($D$3,ResourceInputs!$3:$65536,ResourceInputs!E58)="nonleap"),"",IF((HLOOKUP($D$3,ResourceInputs!$3:$65536,ResourceInputs!$E$16)="Scheduled"),MAX(ROUND(HLOOKUP($D$3,ResourceInputs!$3:$65536,ResourceInputs!E58),0),0),MAX(HLOOKUP($D$3,ResourceInputs!$3:$65536,ResourceInputs!E58),0)))) -> 44.4964 | K54: 44.4964 | M54: 32.805
F55: 1 | G55: =IF($D$4="N/A","",IF(HLOOKUP($G$11&$D$4,Look_Tbl!$C$6:$T$8790,Look_Tbl!B50,FALSE)="","",HLOOKUP($G$11&$D$4,Look_Tbl!$C$6:$T$8790,Look_Tbl!B50,FALSE))) -> Oct | H55: FY2016 | I55: =IF($D$4="N/A",0,IF(G55="","",HLOOKUP($I$11&$D$4,Look_Tbl!$C$6:$T$8790,Look_Tbl!B50,FALSE))) -> HLH | J55: =IF($D$4="N/A",0,IF(OR(ISBLANK(HLOOKUP($D$3,ResourceInputs!$3:$65536,ResourceInputs!E59)),HLOOKUP($D$3,ResourceInputs!$3:$65536,ResourceInputs!E59)="nonleap"),"",IF((HLOOKUP($D$3,ResourceInputs!$3:$65536,ResourceInputs!$E$16)="Scheduled"),MAX(ROUND(HLOOKUP($D$3,ResourceInputs!$3:$65536,ResourceInputs!E59),0),0),MAX(HLOOKUP($D$3,ResourceInputs!$3:$65536,ResourceInputs!E59),0)))) -> 48.074 | K55: 48.074 | M55: 36.383
F56: 1 | G56: =IF($D$4="N/A","",IF(HLOOKUP($G$11&$D$4,Look_Tbl!$C$6:$T$8790,Look_Tbl!B51,FALSE)="","",HLOOKUP($G$11&$D$4,Look_Tbl!$C$6:$T$8790,Look_Tbl!B51,FALSE))) -> Oct | H56: FY2016 | I56: =IF($D$4="N/A",0,IF(G56="","",HLOOKUP($I$11&$D$4,Look_Tbl!$C$6:$T$8790,Look_Tbl!B51,FALSE))) -> HLH | J56: =IF($D$4="N/A",0,IF(OR(ISBLANK(HLOOKUP($D$3,ResourceInputs!$3:$65536,ResourceInputs!E60)),HLOOKUP($D$3,ResourceInputs!$3:$65536,ResourceInputs!E60)="nonleap"),"",IF((HLOOKUP($D$3,ResourceInputs!$3:$65536,ResourceInputs!$E$16)="Scheduled"),MAX(ROUND(HLOOKUP($D$3,ResourceInputs!$3:$65536,ResourceInputs!E60),0),0),MAX(HLOOKUP($D$3,ResourceInputs!$3:$65536,ResourceInputs!E60),0)))) -> 48.49884 | K56: 48.49884 | M56: 36.808
F57: 1 | G57: =IF($D$4="N/A","",IF(HLOOKUP($G$11&$D$4,Look_Tbl!$C$6:$T$8790,Look_Tbl!B52,FALSE)="","",HLOOKUP($G$11&$D$4,Look_Tbl!$C$6:$T$8790,Look_Tbl!B52,FALSE))) -> Oct | H57: FY2016 | I57: =IF($D$4="N/A",0,IF(G57="","",HLOOKUP($I$11&$D$4,Look_Tbl!$C$6:$T$8790,Look_Tbl!B52,FALSE))) -> HLH | J57: =IF($D$4="N/A",0,IF(OR(ISBLANK(HLOOKUP($D$3,ResourceInputs!$3:$65536,ResourceInputs!E61)),HLOOKUP($D$3,ResourceInputs!$3:$65536,ResourceInputs!E61)="nonleap"),"",IF((HLOOKUP($D$3,ResourceInputs!$3:$65536,ResourceInputs!$E$16)="Scheduled"),MAX(ROUND(HLOOKUP($D$3,ResourceInputs!$3:$65536,ResourceInputs!E61),0),0),MAX(HLOOKUP($D$3,ResourceInputs!$3:$65536,ResourceInputs!E61),0)))) -> 48.70008 | K57: 48.70008 | M57: 37.009
F58: 1 | G58: =IF($D$4="N/A","",IF(HLOOKUP($G$11&$D$4,Look_Tbl!$C$6:$T$8790,Look_Tbl!B53,FALSE)="","",HLOOKUP($G$11&$D$4,Look_Tbl!$C$6:$T$8790,Look_Tbl!B53,FALSE))) -> Oct | H58: FY2016 | I58: =IF($D$4="N/A",0,IF(G58="","",HLOOKUP($I$11&$D$4,Look_Tbl!$C$6:$T$8790,Look_Tbl!B53,FALSE))) -> LLH | J58: =IF($D$4="N/A",0,IF(OR(ISBLANK(HLOOKUP($D$3,ResourceInputs!$3:$65536,ResourceInputs!E62)),HLOOKUP($D$3,ResourceInputs!$3:$65536,ResourceInputs!E62)="nonleap"),"",IF((HLOOKUP($D$3,ResourceInputs!$3:$65536,ResourceInputs!$E$16)="Scheduled"),MAX(ROUND(HLOOKUP($D$3,ResourceInputs!$3:$65536,ResourceInputs!E62),0),0),MAX(HLOOKUP($D$3,ResourceInputs!$3:$65536,ResourceInputs!E62),0)))) -> 44.65292 | L58: 44.65292 | N58: 35.215
F59: 1 | G59: =IF($D$4="N/A","",IF(HLOOKUP($G$11&$D$4,Look_Tbl!$C$6:$T$8790,Look_Tbl!B54,FALSE)="","",HLOOKUP($G$11&$D$4,Look_Tbl!$C$6:$T$8790,Look_Tbl!B54,FALSE))) -> Oct | H59: FY2016 | I59: =IF($D$4="N/A",0,IF(G59="","",HLOOKUP($I$11&$D$4,Look_Tbl!$C$6:$T$8790,Look_Tbl!B54,FALSE))) -> LLH | J59: =IF($D$4="N/A",0,IF(OR(ISBLANK(HLOOKUP($D$3,ResourceInputs!$3:$65536,ResourceInputs!E63)),HLOOKUP($D$3,ResourceInputs!$3:$65536,ResourceInputs!E63)="nonleap"),"",IF((HLOOKUP($D$3,ResourceInputs!$3:$65536,ResourceInputs!$E$16)="Scheduled"),MAX(ROUND(HLOOKUP($D$3,ResourceInputs!$3:$65536,ResourceInputs!E63),0),0),MAX(HLOOKUP($D$3,ResourceInputs!$3:$65536,ResourceInputs!E63),0)))) -> 40.807 | L59: 40.807 | N59: 31.369
F60: 1 | G60: =IF($D$4="N/A","",IF(HLOOKUP($G$11&$D$4,Look_Tbl!$C$6:$T$8790,Look_Tbl!B55,FALSE)="","",HLOOKUP($G$11&$D$4,Look_Tbl!$C$6:$T$8790,Look_Tbl!B55,FALSE))) -> Oct | H60: FY2016 | I60: =IF($D$4="N/A",0,IF(G60="","",HLOOKUP($I$11&$D$4,Look_Tbl!$C$6:$T$8790,Look_Tbl!B55,FALSE))) -> LLH | J60: =IF($D$4="N/A",0,IF(OR(ISBLANK(HLOOKUP($D$3,ResourceInputs!$3:$65536,ResourceInputs!E64)),HLOOKUP($D$3,ResourceInputs!$3:$65536,ResourceInputs!E64)="nonleap"),"",IF((HLOOKUP($D$3,ResourceInputs!$3:$65536,ResourceInputs!$E$16)="Scheduled"),MAX(ROUND(HLOOKUP($D$3,ResourceInputs!$3:$65536,ResourceInputs!E64),0),0),MAX(HLOOKUP($D$3,ResourceInputs!$3:$65536,ResourceInputs!E64),0)))) -> 38.48156 | L60: 38.48156 | N60: 29.044
F61: 1 | G61: =IF($D$4="N/A","",IF(HLOOKUP($G$11&$D$4,Look_Tbl!$C$6:$T$8790,Look_Tbl!B56,FALSE)="","",HLOOKUP($G$11&$D$4,Look_Tbl!$C$6:$T$8790,Look_Tbl!B56,FALSE))) -> Oct | H61: FY2016 | I61: =IF($D$4="N/A",0,IF(G61="","",HLOOKUP($I$11&$D$4,Look_Tbl!$C$6:$T$8790,Look_Tbl!B56,FALSE))) -> LLH | J61: =IF($D$4="N/A",0,IF(OR(ISBLANK(HLOOKUP($D$3,ResourceInputs!$3:$65536,ResourceInputs!E65)),HLOOKUP($D$3,ResourceInputs!$3:$65536,ResourceInputs!E65)="nonleap"),"",IF((HLOOKUP($D$3,ResourceInputs!$3:$65536,ResourceInputs!$E$16)="Scheduled"),MAX(ROUND(HLOOKUP($D$3,ResourceInputs!$3:$65536,ResourceInputs!E65),0),0),MAX(HLOOKUP($D$3,ResourceInputs!$3:$65536,ResourceInputs!E65),0)))) -> 47.02308 | L61: 47.02308 | N61: 37.586
F62: 1 | G62: =IF($D$4="N/A","",IF(HLOOKUP($G$11&$D$4,Look_Tbl!$C$6:$T$8790,Look_Tbl!B57,FALSE)="","",HLOOKUP($G$11&$D$4,Look_Tbl!$C$6:$T$8790,Look_Tbl!B57,FALSE))) -> Oct | H62: FY2016 | I62: =IF($D$4="N/A",0,IF(G62="","",HLOOKUP($I$11&$D$4,Look_Tbl!$C$6:$T$8790,Look_Tbl!B57,FALSE))) -> LLH | J62: =IF($D$4="N/A",0,IF(OR(ISBLANK(HLOOKUP($D$3,ResourceInputs!$3:$65536,ResourceInputs!E66)),HLOOKUP($D$3,ResourceInputs!$3:$65536,ResourceInputs!E66)="nonleap"),"",IF((HLOOKUP($D$3,ResourceInputs!$3:$65536,ResourceInputs!$E$16)="Scheduled"),MAX(ROUND(HLOOKUP($D$3,ResourceInputs!$3:$65536,ResourceInputs!E66),0),0),MAX(HLOOKUP($D$3,ResourceInputs!$3:$65536,ResourceInputs!E66),0)))) -> 47.58208 | L62: 47.58208 | N62: 38.145
F63: 1 | G63: =IF($D$4="N/A","",IF(HLOOKUP($G$11&$D$4,Look_Tbl!$C$6:$T$8790,Look_Tbl!B58,FALSE)="","",HLOOKUP($G$11&$D$4,Look_Tbl!$C$6:$T$8790,Look_Tbl!B58,FALSE))) -> Oct | H63: FY2016 | I63: =IF($D$4="N/A",0,IF(G63="","",HLOOKUP($I$11&$D$4,Look_Tbl!$C$6:$T$8790,Look_Tbl!B58,FALSE))) -> LLH | J63: =IF($D$4="N/A",0,IF(OR(ISBLANK(HLOOKUP($D$3,ResourceInputs!$3:$65536,ResourceInputs!E67)),HLOOKUP($D$3,ResourceInputs!$3:$65536,ResourceInputs!E67)="nonleap"),"",IF((HLOOKUP($D$3,ResourceInputs!$3:$65536,ResourceInputs!$E$16)="Scheduled"),MAX(ROUND(HLOOKUP($D$3,ResourceInputs!$3:$65536,ResourceInputs!E67),0),0),MAX(HLOOKUP($D$3,ResourceInputs!$3:$65536,ResourceInputs!E67),0)))) -> 46.71004 | L63: 46.71004 | N63: 37.272
F64: 1 | G64: =IF($D$4="N/A","",IF(HLOOKUP($G$11&$D$4,Look_Tbl!$C$6:$T$8790,Look_Tbl!B59,FALSE)="","",HLOOKUP($G$11&$D$4,Look_Tbl!$C$6:$T$8790,Look_Tbl!B59,FALSE))) -> Oct | H64: FY2016 | I64: =IF($D$4="N/A",0,IF(G64="","",HLOOKUP($I$11&$D$4,Look_Tbl!$C$6:$T$8790,Look_Tbl!B59,FALSE))) -> LLH | J64: =IF($D$4="N/A",0,IF(OR(ISBLANK(HLOOKUP($D$3,ResourceInputs!$3:$65536,ResourceInputs!E68)),HLOOKUP($D$3,ResourceInputs!$3:$65536,ResourceInputs!E68)="nonleap"),"",IF((HLOOKUP($D$3,ResourceInputs!$3:$65536,ResourceInputs!$E$16)="Scheduled"),MAX(ROUND(HLOOKUP($D$3,ResourceInputs!$3:$65536,ResourceInputs!E68),0),0),MAX(HLOOKUP($D$3,ResourceInputs!$3:$65536,ResourceInputs!E68),0)))) -> 42.01444 | L64: 42.01444 | N64: 32.577
F65: 1 | G65: =IF($D$4="N/A","",IF(HLOOKUP($G$11&$D$4,Look_Tbl!$C$6:$T$8790,Look_Tbl!B60,FALSE)="","",HLOOKUP($G$11&$D$4,Look_Tbl!$C$6:$T$8790,Look_Tbl!B60,FALSE))) -> Oct | H65: FY2016 | I65: =IF($D$4="N/A",0,IF(G65="","",HLOOKUP($I$11&$D$4,Look_Tbl!$C$6:$T$8790,Look_Tbl!B60,FALSE))) -> LLH | J65: =IF($D$4="N/A",0,IF(OR(ISBLANK(HLOOKUP($D$3,ResourceInputs!$3:$65536,ResourceInputs!E69)),HLOOKUP($D$3,ResourceInputs!$3:$65536,ResourceInputs!E69)="nonleap"),"",IF((HLOOKUP($D$3,ResourceInputs!$3:$65536,ResourceInputs!$E$16)="Scheduled"),MAX(ROUND(HLOOKUP($D$3,ResourceInputs!$3:$65536,ResourceInputs!E69),0),0),MAX(HLOOKUP($D$3,ResourceInputs!$3:$65536,ResourceInputs!E69),0)))) -> 31.03568 | L65: 31.03568 | N65: 21.598
F66: 1 | G66: =IF($D$4="N/A","",IF(HLOOKUP($G$11&$D$4,Look_Tbl!$C$6:$T$8790,Look_Tbl!B61,FALSE)="","",HLOOKUP($G$11&$D$4,Look_Tbl!$C$6:$T$8790,Look_Tbl!B61,FALSE))) -> Oct | H66: FY2016 | I66: =IF($D$4="N/A",0,IF(G66="","",HLOOKUP($I$11&$D$4,Look_Tbl!$C$6:$T$8790,Look_Tbl!B61,FALSE))) -> HLH | J66: =IF($D$4="N/A",0,IF(OR(ISBLANK(HLOOKUP($D$3,ResourceInputs!$3:$65536,ResourceInputs!E70)),HLOOKUP($D$3,ResourceInputs!$3:$65536,ResourceInputs!E70)="nonleap"),"",IF((HLOOKUP($D$3,ResourceInputs!$3:$65536,ResourceInputs!$E$16)="Scheduled"),MAX(ROUND(HLOOKUP($D$3,ResourceInputs!$3:$65536,ResourceInputs!E70),0),0),MAX(HLOOKUP($D$3,ResourceInputs!$3:$65536,ResourceInputs!E70),0)))) -> 19.02836 | K66: 19.02836 | M66: 7.337
F67: 1 | G67: =IF($D$4="N/A","",IF(HLOOKUP($G$11&$D$4,Look_Tbl!$C$6:$T$8790,Look_Tbl!B62,FALSE)="","",HLOOKUP($G$11&$D$4,Look_Tbl!$C$6:$T$8790,Look_Tbl!B62,FALSE))) -> Oct | H67: FY2016 | I67: =IF($D$4="N/A",0,IF(G67="","",HLOOKUP($I$11&$D$4,Look_Tbl!$C$6:$T$8790,Look_Tbl!B62,FALSE))) -> HLH | J67: =IF($D$4="N/A",0,IF(OR(ISBLANK(HLOOKUP($D$3,ResourceInputs!$3:$65536,ResourceInputs!E71)),HLOOKUP($D$3,ResourceInputs!$3:$65536,ResourceInputs!E71)="nonleap"),"",IF((HLOOKUP($D$3,ResourceInputs!$3:$65536,ResourceInputs!$E$16)="Scheduled"),MAX(ROUND(HLOOKUP($D$3,ResourceInputs!$3:$65536,ResourceInputs!E71),0),0),MAX(HLOOKUP($D$3,ResourceInputs!$3:$65536,ResourceInputs!E71),0)))) -> 12.7452 | K67: 12.7452 | M67: 1.054
F68: 1 | G68: =IF($D$4="N/A","",IF(HLOOKUP($G$11&$D$4,Look_Tbl!$C$6:$T$8790,Look_Tbl!B63,FALSE)="","",HLOOKUP($G$11&$D$4,Look_Tbl!$C$6:$T$8790,Look_Tbl!B63,FALSE))) -> Oct | H68: FY2016 | I68: =IF($D$4="N/A",0,IF(G68="","",HLOOKUP($I$11&$D$4,Look_Tbl!$C$6:$T$8790,Look_Tbl!B63,FALSE))) -> HLH | J68: =IF($D$4="N/A",0,IF(OR(ISBLANK(HLOOKUP($D$3,ResourceInputs!$3:$65536,ResourceInputs!E72)),HLOOKUP($D$3,ResourceInputs!$3:$65536,ResourceInputs!E72)="nonleap"),"",IF((HLOOKUP($D$3,ResourceInputs!$3:$65536,ResourceInputs!$E$16)="Scheduled"),MAX(ROUND(HLOOKUP($D$3,ResourceInputs!$3:$65536,ResourceInputs!E72),0),0),MAX(HLOOKUP($D$3,ResourceInputs!$3:$65536,ResourceInputs!E72),0)))) -> 9.1676 | K68: 9.1676 | M68: 0
F69: 1 | G69: =IF($D$4="N/A","",IF(HLOOKUP($G$11&$D$4,Look_Tbl!$C$6:$T$8790,Look_Tbl!B64,FALSE)="","",HLOOKUP($G$11&$D$4,Look_Tbl!$C$6:$T$8790,Look_Tbl!B64,FALSE))) -> Oct | H69: FY2016 | I69: =IF($D$4="N/A",0,IF(G69="","",HLOOKUP($I$11&$D$4,Look_Tbl!$C$6:$T$8790,Look_Tbl!B64,FALSE))) -> HLH | J69: =IF($D$4="N/A",0,IF(OR(ISBLANK(HLOOKUP($D$3,ResourceInputs!$3:$65536,ResourceInputs!E73)),HLOOKUP($D$3,ResourceInputs!$3:$65536,ResourceInputs!E73)="nonleap"),"",IF((HLOOKUP($D$3,ResourceInputs!$3:$65536,ResourceInputs!$E$16)="Scheduled"),MAX(ROUND(HLOOKUP($D$3,ResourceInputs!$3:$65536,ResourceInputs!E73),0),0),MAX(HLOOKUP($D$3,ResourceInputs!$3:$65536,ResourceInputs!E73),0)))) -> 8.96636 | K69: 8.96636 | M69: 0
F70: 1 | G70: =IF($D$4="N/A","",IF(HLOOKUP($G$11&$D$4,Look_Tbl!$C$6:$T$8790,Look_Tbl!B65,FALSE)="","",HLOOKUP($G$11&$D$4,Look_Tbl!$C$6:$T$8790,Look_Tbl!B65,FALSE))) -> Oct | H70: FY2016 | I70: =IF($D$4="N/A",0,IF(G70="","",HLOOKUP($I$11&$D$4,Look_Tbl!$C$6:$T$8790,Look_Tbl!B65,FALSE))) -> HLH | J70: =IF($D$4="N/A",0,IF(OR(ISBLANK(HLOOKUP($D$3,ResourceInputs!$3:$65536,ResourceInputs!E74)),HLOOKUP($D$3,ResourceInputs!$3:$65536,ResourceInputs!E74)="nonleap"),"",IF((HLOOKUP($D$3,ResourceInputs!$3:$65536,ResourceInputs!$E$16)="Scheduled"),MAX(ROUND(HLOOKUP($D$3,ResourceInputs!$3:$65536,ResourceInputs!E74),0),0),MAX(HLOOKUP($D$3,ResourceInputs!$3:$65536,ResourceInputs!E74),0)))) -> 4.00244 | K70: 4.00244 | M70: 0
F71: 1 | G71: =IF($D$4="N/A","",IF(HLOOKUP($G$11&$D$4,Look_Tbl!$C$6:$T$8790,Look_Tbl!B66,FALSE)="","",HLOOKUP($G$11&$D$4,Look_Tbl!$C$6:$T$8790,Look_Tbl!B66,FALSE))) -> Oct | H71: FY2016 | I71: =IF($D$4="N/A",0,IF(G71="","",HLOOKUP($I$11&$D$4,Look_Tbl!$C$6:$T$8790,Look_Tbl!B66,FALSE))) -> HLH | J71: =IF($D$4="N/A",0,IF(OR(ISBLANK(HLOOKUP($D$3,ResourceInputs!$3:$65536,ResourceInputs!E75)),HLOOKUP($D$3,ResourceInputs!$3:$65536,ResourceInputs!E75)="nonleap"),"",IF((HLOOKUP($D$3,ResourceInputs!$3:$65536,ResourceInputs!$E$16)="Scheduled"),MAX(ROUND(HLOOKUP($D$3,ResourceInputs!$3:$65536,ResourceInputs!E75),0),0),MAX(HLOOKUP($D$3,ResourceInputs!$3:$65536,ResourceInputs!E75),0)))) -> 0.04472 | K71: 0.04472 | M71: 0
F72: 1 | G72: =IF($D$4="N/A","",IF(HLOOKUP($G$11&$D$4,Look_Tbl!$C$6:$T$8790,Look_Tbl!B67,FALSE)="","",HLOOKUP($G$11&$D$4,Look_Tbl!$C$6:$T$8790,Look_Tbl!B67,FALSE))) -> Oct | H72: FY2016 | I72: =IF($D$4="N/A",0,IF(G72="","",HLOOKUP($I$11&$D$4,Look_Tbl!$C$6:$T$8790,Look_Tbl!B67,FALSE))) -> HLH | J72: =IF($D$4="N/A",0,IF(OR(ISBLANK(HLOOKUP($D$3,ResourceInputs!$3:$65536,ResourceInputs!E76)),HLOOKUP($D$3,ResourceInputs!$3:$65536,ResourceInputs!E76)="nonleap"),"",IF((HLOOKUP($D$3,ResourceInputs!$3:$65536,ResourceInputs!$E$16)="Scheduled"),MAX(ROUND(HLOOKUP($D$3,ResourceInputs!$3:$65536,ResourceInputs!E76),0),0),MAX(HLOOKUP($D$3,ResourceInputs!$3:$65536,ResourceInputs!E76),0)))) -> 0.06708 | K72: 0.06708 | M72: 0
F73: 1 | G73: =IF($D$4="N/A","",IF(HLOOKUP($G$11&$D$4,Look_Tbl!$C$6:$T$8790,Look_Tbl!B68,FALSE)="","",HLOOKUP($G$11&$D$4,Look_Tbl!$C$6:$T$8790,Look_Tbl!B68,FALSE))) -> Oct | H73: FY2016 | I73: =IF($D$4="N/A",0,IF(G73="","",HLOOKUP($I$11&$D$4,Look_Tbl!$C$6:$T$8790,Look_Tbl!B68,FALSE))) -> HLH | J73: =IF($D$4="N/A",0,IF(OR(ISBLANK(HLOOKUP($D$3,ResourceInputs!$3:$65536,ResourceInputs!E77)),HLOOKUP($D$3,ResourceInputs!$3:$65536,ResourceInputs!E77)="nonleap"),"",IF((HLOOKUP($D$3,ResourceInputs!$3:$65536,ResourceInputs!$E$16)="Scheduled"),MAX(ROUND(HLOOKUP($D$3,ResourceInputs!$3:$65536,ResourceInputs!E77),0),0),MAX(HLOOKUP($D$3,ResourceInputs!$3:$65536,ResourceInputs!E77),0)))) -> 2.25836 | K73: 2.25836 | M73: 0
F74: 1 | G74: =IF($D$4="N/A","",IF(HLOOKUP($G$11&$D$4,Look_Tbl!$C$6:$T$8790,Look_Tbl!B69,FALSE)="","",HLOOKUP($G$11&$D$4,Look_Tbl!$C$6:$T$8790,Look_Tbl!B69,FALSE))) -> Oct | H74: FY2016 | I74: =IF($D$4="N/A",0,IF(G74="","",HLOOKUP($I$11&$D$4,Look_Tbl!$C$6:$T$8790,Look_Tbl!B69,FALSE))) -> HLH | J74: =IF($D$4="N/A",0,IF(OR(ISBLANK(HLOOKUP($D$3,ResourceInputs!$3:$65536,ResourceInputs!E78)),HLOOKUP($D$3,ResourceInputs!$3:$65536,ResourceInputs!E78)="nonleap"),"",IF((HLOOKUP($D$3,ResourceInputs!$3:$65536,ResourceInputs!$E$16)="Scheduled"),MAX(ROUND(HLOOKUP($D$3,ResourceInputs!$3:$65536,ResourceInputs!E78),0),0),MAX(HLOOKUP($D$3,ResourceInputs!$3:$65536,ResourceInputs!E78),0)))) -> 1.94532 | K74: 1.94532 | M74: 0
F75: 1 | G75: =IF($D$4="N/A","",IF(HLOOKUP($G$11&$D$4,Look_Tbl!$C$6:$T$8790,Look_Tbl!B70,FALSE)="","",HLOOKUP($G$11&$D$4,Look_Tbl!$C$6:$T$8790,Look_Tbl!B70,FALSE))) -> Oct | H75: FY2016 | I75: =IF($D$4="N/A",0,IF(G75="","",HLOOKUP($I$11&$D$4,Look_Tbl!$C$6:$T$8790,Look_Tbl!B70,FALSE))) -> HLH | J75: =IF($D$4="N/A",0,IF(OR(ISBLANK(HLOOKUP($D$3,ResourceInputs!$3:$65536,ResourceInputs!E79)),HLOOKUP($D$3,ResourceInputs!$3:$65536,ResourceInputs!E79)="nonleap"),"",IF((HLOOKUP($D$3,ResourceInputs!$3:$65536,ResourceInputs!$E$16)="Scheduled"),MAX(ROUND(HLOOKUP($D$3,ResourceInputs!$3:$65536,ResourceInputs!E79),0),0),MAX(HLOOKUP($D$3,ResourceInputs!$3:$65536,ResourceInputs!E79),0)))) -> 3.44344 | K75: 3.44344 | M75: 0
F76: =IF(G76="","",1) -> 1 | G76: =IF($D$4="N/A","",IF(HLOOKUP($G$11&$D$4,Look_Tbl!$C$6:$T$8790,Look_Tbl!B71,FALSE)="","",HLOOKUP($G$11&$D$4,Look_Tbl!$C$6:$T$8790,Look_Tbl!B71,FALSE))) -> Oct | H76: FY2016 | I76: =IF($D$4="N/A",0,IF(G76="","",HLOOKUP($I$11&$D$4,Look_Tbl!$C$6:$T$8790,Look_Tbl!B71,FALSE))) -> HLH | J76: =IF($D$4="N/A",0,IF(OR(ISBLANK(HLOOKUP($D$3,ResourceInputs!$3:$65536,ResourceInputs!E80)),HLOOKUP($D$3,ResourceInputs!$3:$65536,ResourceInputs!E80)="nonleap"),"",IF((HLOOKUP($D$3,ResourceInputs!$3:$65536,ResourceInputs!$E$16)="Scheduled"),MAX(ROUND(HLOOKUP($D$3,ResourceInputs!$3:$65536,ResourceInputs!E80),0),0),MAX(HLOOKUP($D$3,ResourceInputs!$3:$65536,ResourceInputs!E80),0)))) -> 3.89064 | K76: =IF(I76="HLH",J76,"") -> 3.89064 | L76: =IF(I76="LLH",J76,"") ->  | M76: 0
F77: 1 | G77: =IF($D$4="N/A","",IF(HLOOKUP($G$11&$D$4,Look_Tbl!$C$6:$T$8790,Look_Tbl!B72,FALSE)="","",HLOOKUP($G$11&$D$4,Look_Tbl!$C$6:$T$8790,Look_Tbl!B72,FALSE))) -> Oct | H77: =IF($D$4="N/A","",IF(G77="","",$D$4)) -> FY2016 | I77: =IF($D$4="N/A",0,IF(G77="","",HLOOKUP($I$11&$D$4,Look_Tbl!$C$6:$T$8790,Look_Tbl!B72,FALSE))) -> HLH | J77: =IF($D$4="N/A",0,IF(OR(ISBLANK(HLOOKUP($D$3,ResourceInputs!$3:$65536,ResourceInputs!E81)),HLOOKUP($D$3,ResourceInputs!$3:$65536,ResourceInputs!E81)="nonleap"),"",IF((HLOOKUP($D$3,ResourceInputs!$3:$65536,ResourceInputs!$E$16)="Scheduled"),MAX(ROUND(HLOOKUP($D$3,ResourceInputs!$3:$65536,ResourceInputs!E81),0),0),MAX(HLOOKUP($D$3,ResourceInputs!$3:$65536,ResourceInputs!E81),0)))) -> 3.53288 | K77: 3.53288 | M77: =IF(K77="","",ROUND(MAX(0,K77-(VLOOKUP(G77,$O$12:$W$23,8,FALSE)/VLOOKUP(G77,$B$12:$C$23,2,FALSE))),3)) -> 0 | N77: =IF(L77="","",ROUND(MAX(0,L77-(VLOOKUP(G77,$O$12:$W$23,9,FALSE)/VLOOKUP(G77,$B$12:$D$23,3,FALSE))),3)) -> 
F78: 1 | G78: =IF($D$4="N/A","",IF(HLOOKUP($G$11&$D$4,Look_Tbl!$C$6:$T$8790,Look_Tbl!B73,FALSE)="","",HLOOKUP($G$11&$D$4,Look_Tbl!$C$6:$T$8790,Look_Tbl!B73,FALSE))) -> Oct | H78: FY2016 | I78: =IF($D$4="N/A",0,IF(G78="","",HLOOKUP($I$11&$D$4,Look_Tbl!$C$6:$T$8790,Look_Tbl!B73,FALSE))) -> HLH | J78: =IF($D$4="N/A",0,IF(OR(ISBLANK(HLOOKUP($D$3,ResourceInputs!$3:$65536,ResourceInputs!E82)),HLOOKUP($D$3,ResourceInputs!$3:$65536,ResourceInputs!E82)="nonleap"),"",IF((HLOOKUP($D$3,ResourceInputs!$3:$65536,ResourceInputs!$E$16)="Scheduled"),MAX(ROUND(HLOOKUP($D$3,ResourceInputs!$3:$65536,ResourceInputs!E82),0),0),MAX(HLOOKUP($D$3,ResourceInputs!$3:$65536,ResourceInputs!E82),0)))) -> 1.60992 | K78: 1.60992 | M78: 0
F79: 1 | G79: =IF($D$4="N/A","",IF(HLOOKUP($G$11&$D$4,Look_Tbl!$C$6:$T$8790,Look_Tbl!B74,FALSE)="","",HLOOKUP($G$11&$D$4,Look_Tbl!$C$6:$T$8790,Look_Tbl!B74,FALSE))) -> Oct | H79: FY2016 | I79: =IF($D$4="N/A",0,IF(G79="","",HLOOKUP($I$11&$D$4,Look_Tbl!$C$6:$T$8790,Look_Tbl!B74,FALSE))) -> HLH | J79: =IF($D$4="N/A",0,IF(OR(ISBLANK(HLOOKUP($D$3,ResourceInputs!$3:$65536,ResourceInputs!E83)),HLOOKUP($D$3,ResourceInputs!$3:$65536,ResourceInputs!E83)="nonleap"),"",IF((HLOOKUP($D$3,ResourceInputs!$3:$65536,ResourceInputs!$E$16)="Scheduled"),MAX(ROUND(HLOOKUP($D$3,ResourceInputs!$3:$65536,ResourceInputs!E83),0),0),MAX(HLOOKUP($D$3,ResourceInputs!$3:$65536,ResourceInputs!E83),0)))) -> 0.51428 | K79: 0.51428 | M79: 0
F80: 1 | G80: =IF($D$4="N/A","",IF(HLOOKUP($G$11&$D$4,Look_Tbl!$C$6:$T$8790,Look_Tbl!B75,FALSE)="","",HLOOKUP($G$11&$D$4,Look_Tbl!$C$6:$T$8790,Look_Tbl!B75,FALSE))) -> Oct | H80: FY2016 | I80: =IF($D$4="N/A",0,IF(G80="","",HLOOKUP($I$11&$D$4,Look_Tbl!$C$6:$T$8790,Look_Tbl!B75,FALSE))) -> HLH | J80: =IF($D$4="N/A",0,IF(OR(ISBLANK(HLOOKUP($D$3,ResourceInputs!$3:$65536,ResourceInputs!E84)),HLOOKUP($D$3,ResourceInputs!$3:$65536,ResourceInputs!E84)="nonleap"),"",IF((HLOOKUP($D$3,ResourceInputs!$3:$65536,ResourceInputs!$E$16)="Scheduled"),MAX(ROUND(HLOOKUP($D$3,ResourceInputs!$3:$65536,ResourceInputs!E84),0),0),MAX(HLOOKUP($D$3,ResourceInputs!$3:$65536,ResourceInputs!E84),0)))) -> 0 | K80: 0 | M80: 0
F81: 1 | G81: =IF($D$4="N/A","",IF(HLOOKUP($G$11&$D$4,Look_Tbl!$C$6:$T$8790,Look_Tbl!B76,FALSE)="","",HLOOKUP($G$11&$D$4,Look_Tbl!$C$6:$T$8790,Look_Tbl!B76,FALSE))) -> Oct | H81: FY2016 | I81: =IF($D$4="N/A",0,IF(G81="","",HLOOKUP($I$11&$D$4,Look_Tbl!$C$6:$T$8790,Look_Tbl!B76,FALSE))) -> HLH | J81: =IF($D$4="N/A",0,IF(OR(ISBLANK(HLOOKUP($D$3,ResourceInputs!$3:$65536,ResourceInputs!E85)),HLOOKUP($D$3,ResourceInputs!$3:$65536,ResourceInputs!E85)="nonleap"),"",IF((HLOOKUP($D$3,ResourceInputs!$3:$65536,ResourceInputs!$E$16)="Scheduled"),MAX(ROUND(HLOOKUP($D$3,ResourceInputs!$3:$65536,ResourceInputs!E85),0),0),MAX(HLOOKUP($D$3,ResourceInputs!$3:$65536,ResourceInputs!E85),0)))) -> 0 | K81: 0 | M81: 0
F82: 1 | G82: =IF($D$4="N/A","",IF(HLOOKUP($G$11&$D$4,Look_Tbl!$C$6:$T$8790,Look_Tbl!B77,FALSE)="","",HLOOKUP($G$11&$D$4,Look_Tbl!$C$6:$T$8790,Look_Tbl!B77,FALSE))) -> Oct | H82: FY2016 | I82: =IF($D$4="N/A",0,IF(G82="","",HLOOKUP($I$11&$D$4,Look_Tbl!$C$6:$T$8790,Look_Tbl!B77,FALSE))) -> LLH | J82: =IF($D$4="N/A",0,IF(OR(ISBLANK(HLOOKUP($D$3,ResourceInputs!$3:$65536,ResourceInputs!E86)),HLOOKUP($D$3,ResourceInputs!$3:$65536,ResourceInputs!E86)="nonleap"),"",IF((HLOOKUP($D$3,ResourceInputs!$3:$65536,ResourceInputs!$E$16)="Scheduled"),MAX(ROUND(HLOOKUP($D$3,ResourceInputs!$3:$65536,ResourceInputs!E86),0),0),MAX(HLOOKUP($D$3,ResourceInputs!$3:$65536,ResourceInputs!E86),0)))) -> 0 | L82: 0 | N82: 0
F83: 1 | G83: =IF($D$4="N/A","",IF(HLOOKUP($G$11&$D$4,Look_Tbl!$C$6:$T$8790,Look_Tbl!B78,FALSE)="","",HLOOKUP($G$11&$D$4,Look_Tbl!$C$6:$T$8790,Look_Tbl!B78,FALSE))) -> Oct | H83: FY2016 | I83: =IF($D$4="N/A",0,IF(G83="","",HLOOKUP($I$11&$D$4,Look_Tbl!$C$6:$T$8790,Look_Tbl!B78,FALSE))) -> LLH | J83: =IF($D$4="N/A",0,IF(OR(ISBLANK(HLOOKUP($D$3,ResourceInputs!$3:$65536,ResourceInputs!E87)),HLOOKUP($D$3,ResourceInputs!$3:$65536,ResourceInputs!E87)="nonleap"),"",IF((HLOOKUP($D$3,ResourceInputs!$3:$65536,ResourceInputs!$E$16)="Scheduled"),MAX(ROUND(HLOOKUP($D$3,ResourceInputs!$3:$65536,ResourceInputs!E87),0),0),MAX(HLOOKUP($D$3,ResourceInputs!$3:$65536,ResourceInputs!E87),0)))) -> 0 | L83: 0 | N83: 0
F84: 1 | G84: =IF($D$4="N/A","",IF(HLOOKUP($G$11&$D$4,Look_Tbl!$C$6:$T$8790,Look_Tbl!B79,FALSE)="","",HLOOKUP($G$11&$D$4,Look_Tbl!$C$6:$T$8790,Look_Tbl!B79,FALSE))) -> Oct | H84: FY2016 | I84: =IF($D$4="N/A",0,IF(G84="","",HLOOKUP($I$11&$D$4,Look_Tbl!$C$6:$T$8790,Look_Tbl!B79,FALSE))) -> LLH | J84: =IF($D$4="N/A",0,IF(OR(ISBLANK(HLOOKUP($D$3,ResourceInputs!$3:$65536,ResourceInputs!E88)),HLOOKUP($D$3,ResourceInputs!$3:$65536,ResourceInputs!E88)="nonleap"),"",IF((HLOOKUP($D$3,ResourceInputs!$3:$65536,ResourceInputs!$E$16)="Scheduled"),MAX(ROUND(HLOOKUP($D$3,ResourceInputs!$3:$65536,ResourceInputs!E88),0),0),MAX(HLOOKUP($D$3,ResourceInputs!$3:$65536,ResourceInputs!E88),0)))) -> 0.8944 | L84: 0.8944 | N84: 0
F85: 1 | G85: =IF($D$4="N/A","",IF(HLOOKUP($G$11&$D$4,Look_Tbl!$C$6:$T$8790,Look_Tbl!B80,FALSE)="","",HLOOKUP($G$11&$D$4,Look_Tbl!$C$6:$T$8790,Look_Tbl!B80,FALSE))) -> Oct | H85: FY2016 | I85: =IF($D$4="N/A",0,IF(G85="","",HLOOKUP($I$11&$D$4,Look_Tbl!$C$6:$T$8790,Look_Tbl!B80,FALSE))) -> LLH | J85: =IF($D$4="N/A",0,IF(OR(ISBLANK(HLOOKUP($D$3,ResourceInputs!$3:$65536,ResourceInputs!E89)),HLOOKUP($D$3,ResourceInputs!$3:$65536,ResourceInputs!E89)="nonleap"),"",IF((HLOOKUP($D$3,ResourceInputs!$3:$65536,ResourceInputs!$E$16)="Scheduled"),MAX(ROUND(HLOOKUP($D$3,ResourceInputs!$3:$65536,ResourceInputs!E89),0),0),MAX(HLOOKUP($D$3,ResourceInputs!$3:$65536,ResourceInputs!E89),0)))) -> 3.33164 | L85: 3.33164 | N85: 0
F86: 1 | G86: =IF($D$4="N/A","",IF(HLOOKUP($G$11&$D$4,Look_Tbl!$C$6:$T$8790,Look_Tbl!B81,FALSE)="","",HLOOKUP($G$11&$D$4,Look_Tbl!$C$6:$T$8790,Look_Tbl!B81,FALSE))) -> Oct | H86: FY2016 | I86: =IF($D$4="N/A",0,IF(G86="","",HLOOKUP($I$11&$D$4,Look_Tbl!$C$6:$T$8790,Look_Tbl!B81,FALSE))) -> LLH | J86: =IF($D$4="N/A",0,IF(OR(ISBLANK(HLOOKUP($D$3,ResourceInputs!$3:$65536,ResourceInputs!E90)),HLOOKUP($D$3,ResourceInputs!$3:$65536,ResourceInputs!E90)="nonleap"),"",IF((HLOOKUP($D$3,ResourceInputs!$3:$65536,ResourceInputs!$E$16)="Scheduled"),MAX(ROUND(HLOOKUP($D$3,ResourceInputs!$3:$65536,ResourceInputs!E90),0),0),MAX(HLOOKUP($D$3,ResourceInputs!$3:$65536,ResourceInputs!E90),0)))) -> 0.08944 | L86: 0.08944 | N86: 0
F87: 1 | G87: =IF($D$4="N/A","",IF(HLOOKUP($G$11&$D$4,Look_Tbl!$C$6:$T$8790,Look_Tbl!B82,FALSE)="","",HLOOKUP($G$11&$D$4,Look_Tbl!$C$6:$T$8790,Look_Tbl!B82,FALSE))) -> Oct | H87: FY2016 | I87: =IF($D$4="N/A",0,IF(G87="","",HLOOKUP($I$11&$D$4,Look_Tbl!$C$6:$T$8790,Look_Tbl!B82,FALSE))) -> LLH | J87: =IF($D$4="N/A",0,IF(OR(ISBLANK(HLOOKUP($D$3,ResourceInputs!$3:$65536,ResourceInputs!E91)),HLOOKUP($D$3,ResourceInputs!$3:$65536,ResourceInputs!E91)="nonleap"),"",IF((HLOOKUP($D$3,ResourceInputs!$3:$65536,ResourceInputs!$E$16)="Scheduled"),MAX(ROUND(HLOOKUP($D$3,ResourceInputs!$3:$65536,ResourceInputs!E91),0),0),MAX(HLOOKUP($D$3,ResourceInputs!$3:$65536,ResourceInputs!E91),0)))) -> 0 | L87: 0 | N87: 0
F88: 1 | G88: =IF($D$4="N/A","",IF(HLOOKUP($G$11&$D$4,Look_Tbl!$C$6:$T$8790,Look_Tbl!B83,FALSE)="","",HLOOKUP($G$11&$D$4,Look_Tbl!$C$6:$T$8790,Look_Tbl!B83,FALSE))) -> Oct | H88: FY2016 | I88: =IF($D$4="N/A",0,IF(G88="","",HLOOKUP($I$11&$D$4,Look_Tbl!$C$6:$T$8790,Look_Tbl!B83,FALSE))) -> LLH | J88: =IF($D$4="N/A",0,IF(OR(ISBLANK(HLOOKUP($D$3,ResourceInputs!$3:$65536,ResourceInputs!E92)),HLOOKUP($D$3,ResourceInputs!$3:$65536,ResourceInputs!E92)="nonleap"),"",IF((HLOOKUP($D$3,ResourceInputs!$3:$65536,ResourceInputs!$E$16)="Scheduled"),MAX(ROUND(HLOOKUP($D$3,ResourceInputs!$3:$65536,ResourceInputs!E92),0),0),MAX(HLOOKUP($D$3,ResourceInputs!$3:$65536,ResourceInputs!E92),0)))) -> 0 | L88: 0 | N88: 0
F89: 1 | G89: =IF($D$4="N/A","",IF(HLOOKUP($G$11&$D$4,Look_Tbl!$C$6:$T$8790,Look_Tbl!B84,FALSE)="","",HLOOKUP($G$11&$D$4,Look_Tbl!$C$6:$T$8790,Look_Tbl!B84,FALSE))) -> Oct | H89: FY2016 | I89: =IF($D$4="N/A",0,IF(G89="","",HLOOKUP($I$11&$D$4,Look_Tbl!$C$6:$T$8790,Look_Tbl!B84,FALSE))) -> LLH | J89: =IF($D$4="N/A",0,IF(OR(ISBLANK(HLOOKUP($D$3,ResourceInputs!$3:$65536,ResourceInputs!E93)),HLOOKUP($D$3,ResourceInputs!$3:$65536,ResourceInputs!E93)="nonleap"),"",IF((HLOOKUP($D$3,ResourceInputs!$3:$65536,ResourceInputs!$E$16)="Scheduled"),MAX(ROUND(HLOOKUP($D$3,ResourceInputs!$3:$65536,ResourceInputs!E93),0),0),MAX(HLOOKUP($D$3,ResourceInputs!$3:$65536,ResourceInputs!E93),0)))) -> 0.04472 | L89: 0.04472 | N89: 0
F90: 1 | G90: =IF($D$4="N/A","",IF(HLOOKUP($G$11&$D$4,Look_Tbl!$C$6:$T$8790,Look_Tbl!B85,FALSE)="","",HLOOKUP($G$11&$D$4,Look_Tbl!$C$6:$T$8790,Look_Tbl!B85,FALSE))) -> Oct | H90: FY2016 | I90: =IF($D$4="N/A",0,IF(G90="","",HLOOKUP($I$11&$D$4,Look_Tbl!$C$6:$T$8790,Look_Tbl!B85,FALSE))) -> LLH | J90: =IF($D$4="N/A",0,IF(OR(ISBLANK(HLOOKUP($D$3,ResourceInputs!$3:$65536,ResourceInputs!E94)),HLOOKUP($D$3,ResourceInputs!$3:$65536,ResourceInputs!E94)="nonleap"),"",IF((HLOOKUP($D$3,ResourceInputs!$3:$65536,ResourceInputs!$E$16)="Scheduled"),MAX(ROUND(HLOOKUP($D$3,ResourceInputs!$3:$65536,ResourceInputs!E94),0),0),MAX(HLOOKUP($D$3,ResourceInputs!$3:$65536,ResourceInputs!E94),0)))) -> 0.20124 | L90: 0.20124 | N90: 0
F91: 1 | G91: =IF($D$4="N/A","",IF(HLOOKUP($G$11&$D$4,Look_Tbl!$C$6:$T$8790,Look_Tbl!B86,FALSE)="","",HLOOKUP($G$11&$D$4,Look_Tbl!$C$6:$T$8790,Look_Tbl!B86,FALSE))) -> Oct | H91: FY2016 | I91: =IF($D$4="N/A",0,IF(G91="","",HLOOKUP($I$11&$D$4,Look_Tbl!$C$6:$T$8790,Look_Tbl!B86,FALSE))) -> LLH | J91: =IF($D$4="N/A",0,IF(OR(ISBLANK(HLOOKUP($D$3,ResourceInputs!$3:$65536,ResourceInputs!E95)),HLOOKUP($D$3,ResourceInputs!$3:$65536,ResourceInputs!E95)="nonleap"),"",IF((HLOOKUP($D$3,ResourceInputs!$3:$65536,ResourceInputs!$E$16)="Scheduled"),MAX(ROUND(HLOOKUP($D$3,ResourceInputs!$3:$65536,ResourceInputs!E95),0),0),MAX(HLOOKUP($D$3,ResourceInputs!$3:$65536,ResourceInputs!E95),0)))) -> 0.31304 | L91: 0.31304 | N91: 0
F92: 1 | G92: =IF($D$4="N/A","",IF(HLOOKUP($G$11&$D$4,Look_Tbl!$C$6:$T$8790,Look_Tbl!B87,FALSE)="","",HLOOKUP($G$11&$D$4,Look_Tbl!$C$6:$T$8790,Look_Tbl!B87,FALSE))) -> Oct | H92: FY2016 | I92: =IF($D$4="N/A",0,IF(G92="","",HLOOKUP($I$11&$D$4,Look_Tbl!$C$6:$T$8790,Look_Tbl!B87,FALSE))) -> LLH | J92: =IF($D$4="N/A",0,IF(OR(ISBLANK(HLOOKUP($D$3,ResourceInputs!$3:$65536,ResourceInputs!E96)),HLOOKUP($D$3,ResourceInputs!$3:$65536,ResourceInputs!E96)="nonleap"),"",IF((HLOOKUP($D$3,ResourceInputs!$3:$65536,ResourceInputs!$E$16)="Scheduled"),MAX(ROUND(HLOOKUP($D$3,ResourceInputs!$3:$65536,ResourceInputs!E96),0),0),MAX(HLOOKUP($D$3,ResourceInputs!$3:$65536,ResourceInputs!E96),0)))) -> 0 | L92: 0 | N92: 0
F93: 1 | G93: =IF($D$4="N/A","",IF(HLOOKUP($G$11&$D$4,Look_Tbl!$C$6:$T$8790,Look_Tbl!B88,FALSE)="","",HLOOKUP($G$11&$D$4,Look_Tbl!$C$6:$T$8790,Look_Tbl!B88,FALSE))) -> Oct | H93: FY2016 | I93: =IF($D$4="N/A",0,IF(G93="","",HLOOKUP($I$11&$D$4,Look_Tbl!$C$6:$T$8790,Look_Tbl!B88,FALSE))) -> LLH | J93: =IF($D$4="N/A",0,IF(OR(ISBLANK(HLOOKUP($D$3,ResourceInputs!$3:$65536,ResourceInputs!E97)),HLOOKUP($D$3,ResourceInputs!$3:$65536,ResourceInputs!E97)="nonleap"),"",IF((HLOOKUP($D$3,ResourceInputs!$3:$65536,ResourceInputs!$E$16)="Scheduled"),MAX(ROUND(HLOOKUP($D$3,ResourceInputs!$3:$65536,ResourceInputs!E97),0),0),MAX(HLOOKUP($D$3,ResourceInputs!$3:$65536,ResourceInputs!E97),0)))) -> 0.02236 | L93: 0.02236 | N93: 0
F94: 1 | G94: =IF($D$4="N/A","",IF(HLOOKUP($G$11&$D$4,Look_Tbl!$C$6:$T$8790,Look_Tbl!B89,FALSE)="","",HLOOKUP($G$11&$D$4,Look_Tbl!$C$6:$T$8790,Look_Tbl!B89,FALSE))) -> Oct | H94: FY2016 | I94: =IF($D$4="N/A",0,IF(G94="","",HLOOKUP($I$11&$D$4,Look_Tbl!$C$6:$T$8790,Look_Tbl!B89,FALSE))) -> LLH | J94: =IF($D$4="N/A",0,IF(OR(ISBLANK(HLOOKUP($D$3,ResourceInputs!$3:$65536,ResourceInputs!E98)),HLOOKUP($D$3,ResourceInputs!$3:$65536,ResourceInputs!E98)="nonleap"),"",IF((HLOOKUP($D$3,ResourceInputs!$3:$65536,ResourceInputs!$E$16)="Scheduled"),MAX(ROUND(HLOOKUP($D$3,ResourceInputs!$3:$65536,ResourceInputs!E98),0),0),MAX(HLOOKUP($D$3,ResourceInputs!$3:$65536,ResourceInputs!E98),0)))) -> 3.17512 | L94: 3.17512 | N94: 0
F95: 1 | G95: =IF($D$4="N/A","",IF(HLOOKUP($G$11&$D$4,Look_Tbl!$C$6:$T$8790,Look_Tbl!B90,FALSE)="","",HLOOKUP($G$11&$D$4,Look_Tbl!$C$6:$T$8790,Look_Tbl!B90,FALSE))) -> Oct | H95: FY2016 | I95: =IF($D$4="N/A",0,IF(G95="","",HLOOKUP($I$11&$D$4,Look_Tbl!$C$6:$T$8790,Look_Tbl!B90,FALSE))) -> LLH | J95: =IF($D$4="N/A",0,IF(OR(ISBLANK(HLOOKUP($D$3,ResourceInputs!$3:$65536,ResourceInputs!E99)),HLOOKUP($D$3,ResourceInputs!$3:$65536,ResourceInputs!E99)="nonleap"),"",IF((HLOOKUP($D$3,ResourceInputs!$3:$65536,ResourceInputs!$E$16)="Scheduled"),MAX(ROUND(HLOOKUP($D$3,ResourceInputs!$3:$65536,ResourceInputs!E99),0),0),MAX(HLOOKUP($D$3,ResourceInputs!$3:$65536,ResourceInputs!E99),0)))) -> 4.85212 | L95: 4.85212 | N95: 0
F96: 1 | G96: =IF($D$4="N/A","",IF(HLOOKUP($G$11&$D$4,Look_Tbl!$C$6:$T$8790,Look_Tbl!B91,FALSE)="","",HLOOKUP($G$11&$D$4,Look_Tbl!$C$6:$T$8790,Look_Tbl!B91,FALSE))) -> Oct | H96: FY2016 | I96: =IF($D$4="N/A",0,IF(G96="","",HLOOKUP($I$11&$D$4,Look_Tbl!$C$6:$T$8790,Look_Tbl!B91,FALSE))) -> LLH | J96: =IF($D$4="N/A",0,IF(OR(ISBLANK(HLOOKUP($D$3,ResourceInputs!$3:$65536,ResourceInputs!E100)),HLOOKUP($D$3,ResourceInputs!$3:$65536,ResourceInputs!E100)="nonleap"),"",IF((HLOOKUP($D$3,ResourceInputs!$3:$65536,ResourceInputs!$E$16)="Scheduled"),MAX(ROUND(HLOOKUP($D$3,ResourceInputs!$3:$65536,ResourceInputs!E100),0),0),MAX(HLOOKUP($D$3,ResourceInputs!$3:$65536,ResourceInputs!E100),0)))) -> 3.6894 | L96: 3.6894 | N96: 0
F97: 1 | G97: =IF($D$4="N/A","",IF(HLOOKUP($G$11&$D$4,Look_Tbl!$C$6:$T$8790,Look_Tbl!B92,FALSE)="","",HLOOKUP($G$11&$D$4,Look_Tbl!$C$6:$T$8790,Look_Tbl!B92,FALSE))) -> Oct | H97: FY2016 | I97: =IF($D$4="N/A",0,IF(G97="","",HLOOKUP($I$11&$D$4,Look_Tbl!$C$6:$T$8790,Look_Tbl!B92,FALSE))) -> LLH | J97: =IF($D$4="N/A",0,IF(OR(ISBLANK(HLOOKUP($D$3,ResourceInputs!$3:$65536,ResourceInputs!E101)),HLOOKUP($D$3,ResourceInputs!$3:$65536,ResourceInputs!E101)="nonleap"),"",IF((HLOOKUP($D$3,ResourceInputs!$3:$65536,ResourceInputs!$E$16)="Scheduled"),MAX(ROUND(HLOOKUP($D$3,ResourceInputs!$3:$65536,ResourceInputs!E101),0),0),MAX(HLOOKUP($D$3,ResourceInputs!$3:$65536,ResourceInputs!E101),0)))) -> 4.27076 | L97: 4.27076 | N97: 0
F98: 1 | G98: =IF($D$4="N/A","",IF(HLOOKUP($G$11&$D$4,Look_Tbl!$C$6:$T$8790,Look_Tbl!B93,FALSE)="","",HLOOKUP($G$11&$D$4,Look_Tbl!$C$6:$T$8790,Look_Tbl!B93,FALSE))) -> Oct | H98: FY2016 | I98: =IF($D$4="N/A",0,IF(G98="","",HLOOKUP($I$11&$D$4,Look_Tbl!$C$6:$T$8790,Look_Tbl!B93,FALSE))) -> LLH | J98: =IF($D$4="N/A",0,IF(OR(ISBLANK(HLOOKUP($D$3,ResourceInputs!$3:$65536,ResourceInputs!E102)),HLOOKUP($D$3,ResourceInputs!$3:$65536,ResourceInputs!E102)="nonleap"),"",IF((HLOOKUP($D$3,ResourceInputs!$3:$65536,ResourceInputs!$E$16)="Scheduled"),MAX(ROUND(HLOOKUP($D$3,ResourceInputs!$3:$65536,ResourceInputs!E102),0),0),MAX(HLOOKUP($D$3,ResourceInputs!$3:$65536,ResourceInputs!E102),0)))) -> 3.64468 | L98: 3.64468 | N98: 0
F99: 1 | G99: =IF($D$4="N/A","",IF(HLOOKUP($G$11&$D$4,Look_Tbl!$C$6:$T$8790,Look_Tbl!B94,FALSE)="","",HLOOKUP($G$11&$D$4,Look_Tbl!$C$6:$T$8790,Look_Tbl!B94,FALSE))) -> Oct | H99: FY2016 | I99: =IF($D$4="N/A",0,IF(G99="","",HLOOKUP($I$11&$D$4,Look_Tbl!$C$6:$T$8790,Look_Tbl!B94,FALSE))) -> LLH | J99: =IF($D$4="N/A",0,IF(OR(ISBLANK(HLOOKUP($D$3,ResourceInputs!$3:$65536,ResourceInputs!E103)),HLOOKUP($D$3,ResourceInputs!$3:$65536,ResourceInputs!E103)="nonleap"),"",IF((HLOOKUP($D$3,ResourceInputs!$3:$65536,ResourceInputs!$E$16)="Scheduled"),MAX(ROUND(HLOOKUP($D$3,ResourceInputs!$3:$65536,ResourceInputs!E103),0),0),MAX(HLOOKUP($D$3,ResourceInputs!$3:$65536,ResourceInputs!E103),0)))) -> 3.37636 | L99: 3.37636 | N99: 0
F100: 1 | G100: =IF($D$4="N/A","",IF(HLOOKUP($G$11&$D$4,Look_Tbl!$C$6:$T$8790,Look_Tbl!B95,FALSE)="","",HLOOKUP($G$11&$D$4,Look_Tbl!$C$6:$T$8790,Look_Tbl!B95,FALSE))) -> Oct | H100: FY2016 | I100: =IF($D$4="N/A",0,IF(G100="","",HLOOKUP($I$11&$D$4,Look_Tbl!$C$6:$T$8790,Look_Tbl!B95,FALSE))) -> LLH | J100: =IF($D$4="N/A",0,IF(OR(ISBLANK(HLOOKUP($D$3,ResourceInputs!$3:$65536,ResourceInputs!E104)),HLOOKUP($D$3,ResourceInputs!$3:$65536,ResourceInputs!E104)="nonleap"),"",IF((HLOOKUP($D$3,ResourceInputs!$3:$65536,ResourceInputs!$E$16)="Scheduled"),MAX(ROUND(HLOOKUP($D$3,ResourceInputs!$3:$65536,ResourceInputs!E104),0),0),MAX(HLOOKUP($D$3,ResourceInputs!$3:$65536,ResourceInputs!E104),0)))) -> 3.98008 | L100: 3.98008 | N100: 0
F101: 1 | G101: =IF($D$4="N/A","",IF(HLOOKUP($G$11&$D$4,Look_Tbl!$C$6:$T$8790,Look_Tbl!B96,FALSE)="","",HLOOKUP($G$11&$D$4,Look_Tbl!$C$6:$T$8790,Look_Tbl!B96,FALSE))) -> Oct | H101: FY2016 | I101: =IF($D$4="N/A",0,IF(G101="","",HLOOKUP($I$11&$D$4,Look_Tbl!$C$6:$T$8790,Look_Tbl!B96,FALSE))) -> LLH | J101: =IF($D$4="N/A",0,IF(OR(ISBLANK(HLOOKUP($D$3,ResourceInputs!$3:$65536,ResourceInputs!E105)),HLOOKUP($D$3,ResourceInputs!$3:$65536,ResourceInputs!E105)="nonleap"),"",IF((HLOOKUP($D$3,ResourceInputs!$3:$65536,ResourceInputs!$E$16)="Scheduled"),MAX(ROUND(HLOOKUP($D$3,ResourceInputs!$3:$65536,ResourceInputs!E105),0),0),MAX(HLOOKUP($D$3,ResourceInputs!$3:$65536,ResourceInputs!E105),0)))) -> 4.76268 | L101: 4.76268 | N101: 0
F102: 1 | G102: =IF($D$4="N/A","",IF(HLOOKUP($G$11&$D$4,Look_Tbl!$C$6:$T$8790,Look_Tbl!B97,FALSE)="","",HLOOKUP($G$11&$D$4,Look_Tbl!$C$6:$T$8790,Look_Tbl!B97,FALSE))) -> Oct | H102: FY2016 | I102: =IF($D$4="N/A",0,IF(G102="","",HLOOKUP($I$11&$D$4,Look_Tbl!$C$6:$T$8790,Look_Tbl!B97,FALSE))) -> LLH | J102: =IF($D$4="N/A",0,IF(OR(ISBLANK(HLOOKUP($D$3,ResourceInputs!$3:$65536,ResourceInputs!E106)),HLOOKUP($D$3,ResourceInputs!$3:$65536,ResourceInputs!E106)="nonleap"),"",IF((HLOOKUP($D$3,ResourceInputs!$3:$65536,ResourceInputs!$E$16)="Scheduled"),MAX(ROUND(HLOOKUP($D$3,ResourceInputs!$3:$65536,ResourceInputs!E106),0),0),MAX(HLOOKUP($D$3,ResourceInputs!$3:$65536,ResourceInputs!E106),0)))) -> 4.49436 | L102: 4.49436 | N102: 0
F103: 1 | G103: =IF($D$4="N/A","",IF(HLOOKUP($G$11&$D$4,Look_Tbl!$C$6:$T$8790,Look_Tbl!B98,FALSE)="","",HLOOKUP($G$11&$D$4,Look_Tbl!$C$6:$T$8790,Look_Tbl!B98,FALSE))) -> Oct | H103: FY2016 | I103: =IF($D$4="N/A",0,IF(G103="","",HLOOKUP($I$11&$D$4,Look_Tbl!$C$6:$T$8790,Look_Tbl!B98,FALSE))) -> LLH | J103: =IF($D$4="N/A",0,IF(OR(ISBLANK(HLOOKUP($D$3,ResourceInputs!$3:$65536,ResourceInputs!E107)),HLOOKUP($D$3,ResourceInputs!$3:$65536,ResourceInputs!E107)="nonleap"),"",IF((HLOOKUP($D$3,ResourceInputs!$3:$65536,ResourceInputs!$E$16)="Scheduled"),MAX(ROUND(HLOOKUP($D$3,ResourceInputs!$3:$65536,ResourceInputs!E107),0),0),MAX(HLOOKUP($D$3,ResourceInputs!$3:$65536,ResourceInputs!E107),0)))) -> 3.30928 | L103: 3.30928 | N103: 0
F104: 1 | G104: =IF($D$4="N/A","",IF(HLOOKUP($G$11&$D$4,Look_Tbl!$C$6:$T$8790,Look_Tbl!B99,FALSE)="","",HLOOKUP($G$11&$D$4,Look_Tbl!$C$6:$T$8790,Look_Tbl!B99,FALSE))) -> Oct | H104: FY2016 | I104: =IF($D$4="N/A",0,IF(G104="","",HLOOKUP($I$11&$D$4,Look_Tbl!$C$6:$T$8790,Look_Tbl!B99,FALSE))) -> LLH | J104: =IF($D$4="N/A",0,IF(OR(ISBLANK(HLOOKUP($D$3,ResourceInputs!$3:$65536,ResourceInputs!E108)),HLOOKUP($D$3,ResourceInputs!$3:$65536,ResourceInputs!E108)="nonleap"),"",IF((HLOOKUP($D$3,ResourceInputs!$3:$65536,ResourceInputs!$E$16)="Scheduled"),MAX(ROUND(HLOOKUP($D$3,ResourceInputs!$3:$65536,ResourceInputs!E108),0),0),MAX(HLOOKUP($D$3,ResourceInputs!$3:$65536,ResourceInputs!E108),0)))) -> 1.18508 | L104: 1.18508 | N104: 0
F105: 1 | G105: =IF($D$4="N/A","",IF(HLOOKUP($G$11&$D$4,Look_Tbl!$C$6:$T$8790,Look_Tbl!B100,FALSE)="","",HLOOKUP($G$11&$D$4,Look_Tbl!$C$6:$T$8790,Look_Tbl!B100,FALSE))) -> Oct | H105: FY2016 | I105: =IF($D$4="N/A",0,IF(G105="","",HLOOKUP($I$11&$D$4,Look_Tbl!$C$6:$T$8790,Look_Tbl!B100,FALSE))) -> LLH | J105: =IF($D$4="N/A",0,IF(OR(ISBLANK(HLOOKUP($D$3,ResourceInputs!$3:$65536,ResourceInputs!E109)),HLOOKUP($D$3,ResourceInputs!$3:$65536,ResourceInputs!E109)="nonleap"),"",IF((HLOOKUP($D$3,ResourceInputs!$3:$65536,ResourceInputs!$E$16)="Scheduled"),MAX(ROUND(HLOOKUP($D$3,ResourceInputs!$3:$65536,ResourceInputs!E109),0),0),MAX(HLOOKUP($D$3,ResourceInputs!$3:$65536,ResourceInputs!E109),0)))) -> 0.20124 | L105: 0.20124 | N105: 0
F106: 1 | G106: =IF($D$4="N/A","",IF(HLOOKUP($G$11&$D$4,Look_Tbl!$C$6:$T$8790,Look_Tbl!B101,FALSE)="","",HLOOKUP($G$11&$D$4,Look_Tbl!$C$6:$T$8790,Look_Tbl!B101,FALSE))) -> Oct | H106: FY2016 | I106: =IF($D$4="N/A",0,IF(G106="","",HLOOKUP($I$11&$D$4,Look_Tbl!$C$6:$T$8790,Look_Tbl!B101,FALSE))) -> LLH | J106: =IF($D$4="N/A",0,IF(OR(ISBLANK(HLOOKUP($D$3,ResourceInputs!$3:$65536,ResourceInputs!E110)),HLOOKUP($D$3,ResourceInputs!$3:$65536,ResourceInputs!E110)="nonleap"),"",IF((HLOOKUP($D$3,ResourceInputs!$3:$65536,ResourceInputs!$E$16)="Scheduled"),MAX(ROUND(HLOOKUP($D$3,ResourceInputs!$3:$65536,ResourceInputs!E110),0),0),MAX(HLOOKUP($D$3,ResourceInputs!$3:$65536,ResourceInputs!E110),0)))) -> 0 | L106: 0 | N106: 0
F107: 1 | G107: =IF($D$4="N/A","",IF(HLOOKUP($G$11&$D$4,Look_Tbl!$C$6:$T$8790,Look_Tbl!B102,FALSE)="","",HLOOKUP($G$11&$D$4,Look_Tbl!$C$6:$T$8790,Look_Tbl!B102,FALSE))) -> Oct | H107: FY2016 | I107: =IF($D$4="N/A",0,IF(G107="","",HLOOKUP($I$11&$D$4,Look_Tbl!$C$6:$T$8790,Look_Tbl!B102,FALSE))) -> LLH | J107: =IF($D$4="N/A",0,IF(OR(ISBLANK(HLOOKUP($D$3,ResourceInputs!$3:$65536,ResourceInputs!E111)),HLOOKUP($D$3,ResourceInputs!$3:$65536,ResourceInputs!E111)="nonleap"),"",IF((HLOOKUP($D$3,ResourceInputs!$3:$65536,ResourceInputs!$E$16)="Scheduled"),MAX(ROUND(HLOOKUP($D$3,ResourceInputs!$3:$65536,ResourceInputs!E111),0),0),MAX(HLOOKUP($D$3,ResourceInputs!$3:$65536,ResourceInputs!E111),0)))) -> 0 | L107: 0 | N107: 0
F108: 1 | G108: =IF($D$4="N/A","",IF(HLOOKUP($G$11&$D$4,Look_Tbl!$C$6:$T$8790,Look_Tbl!B103,FALSE)="","",HLOOKUP($G$11&$D$4,Look_Tbl!$C$6:$T$8790,Look_Tbl!B103,FALSE))) -> Oct | H108: FY2016 | I108: =IF($D$4="N/A",0,IF(G108="","",HLOOKUP($I$11&$D$4,Look_Tbl!$C$6:$T$8790,Look_Tbl!B103,FALSE))) -> LLH | J108: =IF($D$4="N/A",0,IF(OR(ISBLANK(HLOOKUP($D$3,ResourceInputs!$3:$65536,ResourceInputs!E112)),HLOOKUP($D$3,ResourceInputs!$3:$65536,ResourceInputs!E112)="nonleap"),"",IF((HLOOKUP($D$3,ResourceInputs!$3:$65536,ResourceInputs!$E$16)="Scheduled"),MAX(ROUND(HLOOKUP($D$3,ResourceInputs!$3:$65536,ResourceInputs!E112),0),0),MAX(HLOOKUP($D$3,ResourceInputs!$3:$65536,ResourceInputs!E112),0)))) -> 0 | L108: 0 | N108: 0
F109: 1 | G109: =IF($D$4="N/A","",IF(HLOOKUP($G$11&$D$4,Look_Tbl!$C$6:$T$8790,Look_Tbl!B104,FALSE)="","",HLOOKUP($G$11&$D$4,Look_Tbl!$C$6:$T$8790,Look_Tbl!B104,FALSE))) -> Oct | H109: FY2016 | I109: =IF($D$4="N/A",0,IF(G109="","",HLOOKUP($I$11&$D$4,Look_Tbl!$C$6:$T$8790,Look_Tbl!B104,FALSE))) -> LLH | J109: =IF($D$4="N/A",0,IF(OR(ISBLANK(HLOOKUP($D$3,ResourceInputs!$3:$65536,ResourceInputs!E113)),HLOOKUP($D$3,ResourceInputs!$3:$65536,ResourceInputs!E113)="nonleap"),"",IF((HLOOKUP($D$3,ResourceInputs!$3:$65536,ResourceInputs!$E$16)="Scheduled"),MAX(ROUND(HLOOKUP($D$3,ResourceInputs!$3:$65536,ResourceInputs!E113),0),0),MAX(HLOOKUP($D$3,ResourceInputs!$3:$65536,ResourceInputs!E113),0)))) -> 0 | L109: 0 | N109: 0
F110: 1 | G110: =IF($D$4="N/A","",IF(HLOOKUP($G$11&$D$4,Look_Tbl!$C$6:$T$8790,Look_Tbl!B105,FALSE)="","",HLOOKUP($G$11&$D$4,Look_Tbl!$C$6:$T$8790,Look_Tbl!B105,FALSE))) -> Oct | H110: FY2016 | I110: =IF($D$4="N/A",0,IF(G110="","",HLOOKUP($I$11&$D$4,Look_Tbl!$C$6:$T$8790,Look_Tbl!B105,FALSE))) -> LLH | J110: =IF($D$4="N/A",0,IF(OR(ISBLANK(HLOOKUP($D$3,ResourceInputs!$3:$65536,ResourceInputs!E114)),HLOOKUP($D$3,ResourceInputs!$3:$65536,ResourceInputs!E114)="nonleap"),"",IF((HLOOKUP($D$3,ResourceInputs!$3:$65536,ResourceInputs!$E$16)="Scheduled"),MAX(ROUND(HLOOKUP($D$3,ResourceInputs!$3:$65536,ResourceInputs!E114),0),0),MAX(HLOOKUP($D$3,ResourceInputs!$3:$65536,ResourceInputs!E114),0)))) -> 0 | L110: 0 | N110: 0
F111: 1 | G111: =IF($D$4="N/A","",IF(HLOOKUP($G$11&$D$4,Look_Tbl!$C$6:$T$8790,Look_Tbl!B106,FALSE)="","",HLOOKUP($G$11&$D$4,Look_Tbl!$C$6:$T$8790,Look_Tbl!B106,FALSE))) -> Oct | H111: FY2016 | I111: =IF($D$4="N/A",0,IF(G111="","",HLOOKUP($I$11&$D$4,Look_Tbl!$C$6:$T$8790,Look_Tbl!B106,FALSE))) -> LLH | J111: =IF($D$4="N/A",0,IF(OR(ISBLANK(HLOOKUP($D$3,ResourceInputs!$3:$65536,ResourceInputs!E115)),HLOOKUP($D$3,ResourceInputs!$3:$65536,ResourceInputs!E115)="nonleap"),"",IF((HLOOKUP($D$3,ResourceInputs!$3:$65536,ResourceInputs!$E$16)="Scheduled"),MAX(ROUND(HLOOKUP($D$3,ResourceInputs!$3:$65536,ResourceInputs!E115),0),0),MAX(HLOOKUP($D$3,ResourceInputs!$3:$65536,ResourceInputs!E115),0)))) -> 0 | L111: 0 | N111: 0
F112: 1 | G112: =IF($D$4="N/A","",IF(HLOOKUP($G$11&$D$4,Look_Tbl!$C$6:$T$8790,Look_Tbl!B107,FALSE)="","",HLOOKUP($G$11&$D$4,Look_Tbl!$C$6:$T$8790,Look_Tbl!B107,FALSE))) -> Oct | H112: FY2016 | I112: =IF($D$4="N/A",0,IF(G112="","",HLOOKUP($I$11&$D$4,Look_Tbl!$C$6:$T$8790,Look_Tbl!B107,FALSE))) -> LLH | J112: =IF($D$4="N/A",0,IF(OR(ISBLANK(HLOOKUP($D$3,ResourceInputs!$3:$65536,ResourceInputs!E116)),HLOOKUP($D$3,ResourceInputs!$3:$65536,ResourceInputs!E116)="nonleap"),"",IF((HLOOKUP($D$3,ResourceInputs!$3:$65536,ResourceInputs!$E$16)="Scheduled"),MAX(ROUND(HLOOKUP($D$3,ResourceInputs!$3:$65536,ResourceInputs!E116),0),0),MAX(HLOOKUP($D$3,ResourceInputs!$3:$65536,ResourceInputs!E116),0)))) -> 0 | L112: 0 | N112: 0
F113: 1 | G113: =IF($D$4="N/A","",IF(HLOOKUP($G$11&$D$4,Look_Tbl!$C$6:$T$8790,Look_Tbl!B108,FALSE)="","",HLOOKUP($G$11&$D$4,Look_Tbl!$C$6:$T$8790,Look_Tbl!B108,FALSE))) -> Oct | H113: FY2016 | I113: =IF($D$4="N/A",0,IF(G113="","",HLOOKUP($I$11&$D$4,Look_Tbl!$C$6:$T$8790,Look_Tbl!B108,FALSE))) -> LLH | J113: =IF($D$4="N/A",0,IF(OR(ISBLANK(HLOOKUP($D$3,ResourceInputs!$3:$65536,ResourceInputs!E117)),HLOOKUP($D$3,ResourceInputs!$3:$65536,ResourceInputs!E117)="nonleap"),"",IF((HLOOKUP($D$3,ResourceInputs!$3:$65536,ResourceInputs!$E$16)="Scheduled"),MAX(ROUND(HLOOKUP($D$3,ResourceInputs!$3:$65536,ResourceInputs!E117),0),0),MAX(HLOOKUP($D$3,ResourceInputs!$3:$65536,ResourceInputs!E117),0)))) -> 0 | L113: 0 | N113: 0
F114: 1 | G114: =IF($D$4="N/A","",IF(HLOOKUP($G$11&$D$4,Look_Tbl!$C$6:$T$8790,Look_Tbl!B109,FALSE)="","",HLOOKUP($G$11&$D$4,Look_Tbl!$C$6:$T$8790,Look_Tbl!B109,FALSE))) -> Oct | H114: FY2016 | I114: =IF($D$4="N/A",0,IF(G114="","",HLOOKUP($I$11&$D$4,Look_Tbl!$C$6:$T$8790,Look_Tbl!B109,FALSE))) -> HLH | J114: =IF($D$4="N/A",0,IF(OR(ISBLANK(HLOOKUP($D$3,ResourceInputs!$3:$65536,ResourceInputs!E118)),HLOOKUP($D$3,ResourceInputs!$3:$65536,ResourceInputs!E118)="nonleap"),"",IF((HLOOKUP($D$3,ResourceInputs!$3:$65536,ResourceInputs!$E$16)="Scheduled"),MAX(ROUND(HLOOKUP($D$3,ResourceInputs!$3:$65536,ResourceInputs!E118),0),0),MAX(HLOOKUP($D$3,ResourceInputs!$3:$65536,ResourceInputs!E118),0)))) -> 0.13416 | K114: 0.13416 | M114: 0
F115: 1 | G115: =IF($D$4="N/A","",IF(HLOOKUP($G$11&$D$4,Look_Tbl!$C$6:$T$8790,Look_Tbl!B110,FALSE)="","",HLOOKUP($G$11&$D$4,Look_Tbl!$C$6:$T$8790,Look_Tbl!B110,FALSE))) -> Oct | H115: FY2016 | I115: =IF($D$4="N/A",0,IF(G115="","",HLOOKUP($I$11&$D$4,Look_Tbl!$C$6:$T$8790,Look_Tbl!B110,FALSE))) -> HLH | J115: =IF($D$4="N/A",0,IF(OR(ISBLANK(HLOOKUP($D$3,ResourceInputs!$3:$65536,ResourceInputs!E119)),HLOOKUP($D$3,ResourceInputs!$3:$65536,ResourceInputs!E119)="nonleap"),"",IF((HLOOKUP($D$3,ResourceInputs!$3:$65536,ResourceInputs!$E$16)="Scheduled"),MAX(ROUND(HLOOKUP($D$3,ResourceInputs!$3:$65536,ResourceInputs!E119),0),0),MAX(HLOOKUP($D$3,ResourceInputs!$3:$65536,ResourceInputs!E119),0)))) -> 0.06708 | K115: 0.06708 | M115: 0
F116: 1 | G116: =IF($D$4="N/A","",IF(HLOOKUP($G$11&$D$4,Look_Tbl!$C$6:$T$8790,Look_Tbl!B111,FALSE)="","",HLOOKUP($G$11&$D$4,Look_Tbl!$C$6:$T$8790,Look_Tbl!B111,FALSE))) -> Oct | H116: FY2016 | I116: =IF($D$4="N/A",0,IF(G116="","",HLOOKUP($I$11&$D$4,Look_Tbl!$C$6:$T$8790,Look_Tbl!B111,FALSE))) -> HLH | J116: =IF($D$4="N/A",0,IF(OR(ISBLANK(HLOOKUP($D$3,ResourceInputs!$3:$65536,ResourceInputs!E120)),HLOOKUP($D$3,ResourceInputs!$3:$65536,ResourceInputs!E120)="nonleap"),"",IF((HLOOKUP($D$3,ResourceInputs!$3:$65536,ResourceInputs!$E$16)="Scheduled"),MAX(ROUND(HLOOKUP($D$3,ResourceInputs!$3:$65536,ResourceInputs!E120),0),0),MAX(HLOOKUP($D$3,ResourceInputs!$3:$65536,ResourceInputs!E120),0)))) -> 0 | K116: 0 | M116: 0
F117: 1 | G117: =IF($D$4="N/A","",IF(HLOOKUP($G$11&$D$4,Look_Tbl!$C$6:$T$8790,Look_Tbl!B112,FALSE)="","",HLOOKUP($G$11&$D$4,Look_Tbl!$C$6:$T$8790,Look_Tbl!B112,FALSE))) -> Oct | H117: FY2016 | I117: =IF($D$4="N/A",0,IF(G117="","",HLOOKUP($I$11&$D$4,Look_Tbl!$C$6:$T$8790,Look_Tbl!B112,FALSE))) -> HLH | J117: =IF($D$4="N/A",0,IF(OR(ISBLANK(HLOOKUP($D$3,ResourceInputs!$3:$65536,ResourceInputs!E121)),HLOOKUP($D$3,ResourceInputs!$3:$65536,ResourceInputs!E121)="nonleap"),"",IF((HLOOKUP($D$3,ResourceInputs!$3:$65536,ResourceInputs!$E$16)="Scheduled"),MAX(ROUND(HLOOKUP($D$3,ResourceInputs!$3:$65536,ResourceInputs!E121),0),0),MAX(HLOOKUP($D$3,ResourceInputs!$3:$65536,ResourceInputs!E121),0)))) -> 0 | K117: 0 | M117: 0
F118: 1 | G118: =IF($D$4="N/A","",IF(HLOOKUP($G$11&$D$4,Look_Tbl!$C$6:$T$8790,Look_Tbl!B113,FALSE)="","",HLOOKUP($G$11&$D$4,Look_Tbl!$C$6:$T$8790,Look_Tbl!B113,FALSE))) -> Oct | H118: FY2016 | I118: =IF($D$4="N/A",0,IF(G118="","",HLOOKUP($I$11&$D$4,Look_Tbl!$C$6:$T$8790,Look_Tbl!B113,FALSE))) -> HLH | J118: =IF($D$4="N/A",0,IF(OR(ISBLANK(HLOOKUP($D$3,ResourceInputs!$3:$65536,ResourceInputs!E122)),HLOOKUP($D$3,ResourceInputs!$3:$65536,ResourceInputs!E122)="nonleap"),"",IF((HLOOKUP($D$3,ResourceInputs!$3:$65536,ResourceInputs!$E$16)="Scheduled"),MAX(ROUND(HLOOKUP($D$3,ResourceInputs!$3:$65536,ResourceInputs!E122),0),0),MAX(HLOOKUP($D$3,ResourceInputs!$3:$65536,ResourceInputs!E122),0)))) -> 0 | K118: 0 | M118: 0
F119: 1 | G119: =IF($D$4="N/A","",IF(HLOOKUP($G$11&$D$4,Look_Tbl!$C$6:$T$8790,Look_Tbl!B114,FALSE)="","",HLOOKUP($G$11&$D$4,Look_Tbl!$C$6:$T$8790,Look_Tbl!B114,FALSE))) -> Oct | H119: FY2016 | I119: =IF($D$4="N/A",0,IF(G119="","",HLOOKUP($I$11&$D$4,Look_Tbl!$C$6:$T$8790,Look_Tbl!B114,FALSE))) -> HLH | J119: =IF($D$4="N/A",0,IF(OR(ISBLANK(HLOOKUP($D$3,ResourceInputs!$3:$65536,ResourceInputs!E123)),HLOOKUP($D$3,ResourceInputs!$3:$65536,ResourceInputs!E123)="nonleap"),"",IF((HLOOKUP($D$3,ResourceInputs!$3:$65536,ResourceInputs!$E$16)="Scheduled"),MAX(ROUND(HLOOKUP($D$3,ResourceInputs!$3:$65536,ResourceInputs!E123),0),0),MAX(HLOOKUP($D$3,ResourceInputs!$3:$65536,ResourceInputs!E123),0)))) -> 0.51428 | K119: 0.51428 | M119: 0
F120: 1 | G120: =IF($D$4="N/A","",IF(HLOOKUP($G$11&$D$4,Look_Tbl!$C$6:$T$8790,Look_Tbl!B115,FALSE)="","",HLOOKUP($G$11&$D$4,Look_Tbl!$C$6:$T$8790,Look_Tbl!B115,FALSE))) -> Oct | H120: FY2016 | I120: =IF($D$4="N/A",0,IF(G120="","",HLOOKUP($I$11&$D$4,Look_Tbl!$C$6:$T$8790,Look_Tbl!B115,FALSE))) -> HLH | J120: =IF($D$4="N/A",0,IF(OR(ISBLANK(HLOOKUP($D$3,ResourceInputs!$3:$65536,ResourceInputs!E124)),HLOOKUP($D$3,ResourceInputs!$3:$65536,ResourceInputs!E124)="nonleap"),"",IF((HLOOKUP($D$3,ResourceInputs!$3:$65536,ResourceInputs!$E$16)="Scheduled"),MAX(ROUND(HLOOKUP($D$3,ResourceInputs!$3:$65536,ResourceInputs!E124),0),0),MAX(HLOOKUP($D$3,ResourceInputs!$3:$65536,ResourceInputs!E124),0)))) -> 2.83972 | K120: 2.83972 | M120: 0
F121: 1 | G121: =IF($D$4="N/A","",IF(HLOOKUP($G$11&$D$4,Look_Tbl!$C$6:$T$8790,Look_Tbl!B116,FALSE)="","",HLOOKUP($G$11&$D$4,Look_Tbl!$C$6:$T$8790,Look_Tbl!B116,FALSE))) -> Oct | H121: FY2016 | I121: =IF($D$4="N/A",0,IF(G121="","",HLOOKUP($I$11&$D$4,Look_Tbl!$C$6:$T$8790,Look_Tbl!B116,FALSE))) -> HLH | J121: =IF($D$4="N/A",0,IF(OR(ISBLANK(HLOOKUP($D$3,ResourceInputs!$3:$65536,ResourceInputs!E125)),HLOOKUP($D$3,ResourceInputs!$3:$65536,ResourceInputs!E125)="nonleap"),"",IF((HLOOKUP($D$3,ResourceInputs!$3:$65536,ResourceInputs!$E$16)="Scheduled"),MAX(ROUND(HLOOKUP($D$3,ResourceInputs!$3:$65536,ResourceInputs!E125),0),0),MAX(HLOOKUP($D$3,ResourceInputs!$3:$65536,ResourceInputs!E125),0)))) -> 3.8012 | K121: 3.8012 | M121: 0
F122: 1 | G122: =IF($D$4="N/A","",IF(HLOOKUP($G$11&$D$4,Look_Tbl!$C$6:$T$8790,Look_Tbl!B117,FALSE)="","",HLOOKUP($G$11&$D$4,Look_Tbl!$C$6:$T$8790,Look_Tbl!B117,FALSE))) -> Oct | H122: FY2016 | I122: =IF($D$4="N/A",0,IF(G122="","",HLOOKUP($I$11&$D$4,Look_Tbl!$C$6:$T$8790,Look_Tbl!B117,FALSE))) -> HLH | J122: =IF($D$4="N/A",0,IF(OR(ISBLANK(HLOOKUP($D$3,ResourceInputs!$3:$65536,ResourceInputs!E126)),HLOOKUP($D$3,ResourceInputs!$3:$65536,ResourceInputs!E126)="nonleap"),"",IF((HLOOKUP($D$3,ResourceInputs!$3:$65536,ResourceInputs!$E$16)="Scheduled"),MAX(ROUND(HLOOKUP($D$3,ResourceInputs!$3:$65536,ResourceInputs!E126),0),0),MAX(HLOOKUP($D$3,ResourceInputs!$3:$65536,ResourceInputs!E126),0)))) -> 5.09808 | K122: 5.09808 | M122: 0
F123: 1 | G123: =IF($D$4="N/A","",IF(HLOOKUP($G$11&$D$4,Look_Tbl!$C$6:$T$8790,Look_Tbl!B118,FALSE)="","",HLOOKUP($G$11&$D$4,Look_Tbl!$C$6:$T$8790,Look_Tbl!B118,FALSE))) -> Oct | H123: FY2016 | I123: =IF($D$4="N/A",0,IF(G123="","",HLOOKUP($I$11&$D$4,Look_Tbl!$C$6:$T$8790,Look_Tbl!B118,FALSE))) -> HLH | J123: =IF($D$4="N/A",0,IF(OR(ISBLANK(HLOOKUP($D$3,ResourceInputs!$3:$65536,ResourceInputs!E127)),HLOOKUP($D$3,ResourceInputs!$3:$65536,ResourceInputs!E127)="nonleap"),"",IF((HLOOKUP($D$3,ResourceInputs!$3:$65536,ResourceInputs!$E$16)="Scheduled"),MAX(ROUND(HLOOKUP($D$3,ResourceInputs!$3:$65536,ResourceInputs!E127),0),0),MAX(HLOOKUP($D$3,ResourceInputs!$3:$65536,ResourceInputs!E127),0)))) -> 5.65708 | K123: 5.65708 | M123: 0
F124: 1 | G124: =IF($D$4="N/A","",IF(HLOOKUP($G$11&$D$4,Look_Tbl!$C$6:$T$8790,Look_Tbl!B119,FALSE)="","",HLOOKUP($G$11&$D$4,Look_Tbl!$C$6:$T$8790,Look_Tbl!B119,FALSE))) -> Oct | H124: FY2016 | I124: =IF($D$4="N/A",0,IF(G124="","",HLOOKUP($I$11&$D$4,Look_Tbl!$C$6:$T$8790,Look_Tbl!B119,FALSE))) -> HLH | J124: =IF($D$4="N/A",0,IF(OR(ISBLANK(HLOOKUP($D$3,ResourceInputs!$3:$65536,ResourceInputs!E128)),HLOOKUP($D$3,ResourceInputs!$3:$65536,ResourceInputs!E128)="nonleap"),"",IF((HLOOKUP($D$3,ResourceInputs!$3:$65536,ResourceInputs!$E$16)="Scheduled"),MAX(ROUND(HLOOKUP($D$3,ResourceInputs!$3:$65536,ResourceInputs!E128),0),0),MAX(HLOOKUP($D$3,ResourceInputs!$3:$65536,ResourceInputs!E128),0)))) -> 5.41112 | K124: 5.41112 | M124: 0
F125: 1 | G125: =IF($D$4="N/A","",IF(HLOOKUP($G$11&$D$4,Look_Tbl!$C$6:$T$8790,Look_Tbl!B120,FALSE)="","",HLOOKUP($G$11&$D$4,Look_Tbl!$C$6:$T$8790,Look_Tbl!B120,FALSE))) -> Oct | H125: FY2016 | I125: =IF($D$4="N/A",0,IF(G125="","",HLOOKUP($I$11&$D$4,Look_Tbl!$C$6:$T$8790,Look_Tbl!B120,FALSE))) -> HLH | J125: =IF($D$4="N/A",0,IF(OR(ISBLANK(HLOOKUP($D$3,ResourceInputs!$3:$65536,ResourceInputs!E129)),HLOOKUP($D$3,ResourceInputs!$3:$65536,ResourceInputs!E129)="nonleap"),"",IF((HLOOKUP($D$3,ResourceInputs!$3:$65536,ResourceInputs!$E$16)="Scheduled"),MAX(ROUND(HLOOKUP($D$3,ResourceInputs!$3:$65536,ResourceInputs!E129),0),0),MAX(HLOOKUP($D$3,ResourceInputs!$3:$65536,ResourceInputs!E129),0)))) -> 4.31548 | K125: 4.31548 | M125: 0
F126: 1 | G126: =IF($D$4="N/A","",IF(HLOOKUP($G$11&$D$4,Look_Tbl!$C$6:$T$8790,Look_Tbl!B121,FALSE)="","",HLOOKUP($G$11&$D$4,Look_Tbl!$C$6:$T$8790,Look_Tbl!B121,FALSE))) -> Oct | H126: FY2016 | I126: =IF($D$4="N/A",0,IF(G126="","",HLOOKUP($I$11&$D$4,Look_Tbl!$C$6:$T$8790,Look_Tbl!B121,FALSE))) -> HLH | J126: =IF($D$4="N/A",0,IF(OR(ISBLANK(HLOOKUP($D$3,ResourceInputs!$3:$65536,ResourceInputs!E130)),HLOOKUP($D$3,ResourceInputs!$3:$65536,ResourceInputs!E130)="nonleap"),"",IF((HLOOKUP($D$3,ResourceInputs!$3:$65536,ResourceInputs!$E$16)="Scheduled"),MAX(ROUND(HLOOKUP($D$3,ResourceInputs!$3:$65536,ResourceInputs!E130),0),0),MAX(HLOOKUP($D$3,ResourceInputs!$3:$65536,ResourceInputs!E130),0)))) -> 3.1304 | K126: 3.1304 | M126: 0
F127: 1 | G127: =IF($D$4="N/A","",IF(HLOOKUP($G$11&$D$4,Look_Tbl!$C$6:$T$8790,Look_Tbl!B122,FALSE)="","",HLOOKUP($G$11&$D$4,Look_Tbl!$C$6:$T$8790,Look_Tbl!B122,FALSE))) -> Oct | H127: FY2016 | I127: =IF($D$4="N/A",0,IF(G127="","",HLOOKUP($I$11&$D$4,Look_Tbl!$C$6:$T$8790,Look_Tbl!B122,FALSE))) -> HLH | J127: =IF($D$4="N/A",0,IF(OR(ISBLANK(HLOOKUP($D$3,ResourceInputs!$3:$65536,ResourceInputs!E131)),HLOOKUP($D$3,ResourceInputs!$3:$65536,ResourceInputs!E131)="nonleap"),"",IF((HLOOKUP($D$3,ResourceInputs!$3:$65536,ResourceInputs!$E$16)="Scheduled"),MAX(ROUND(HLOOKUP($D$3,ResourceInputs!$3:$65536,ResourceInputs!E131),0),0),MAX(HLOOKUP($D$3,ResourceInputs!$3:$65536,ResourceInputs!E131),0)))) -> 2.37016 | K127: 2.37016 | M127: 0
F128: 1 | G128: =IF($D$4="N/A","",IF(HLOOKUP($G$11&$D$4,Look_Tbl!$C$6:$T$8790,Look_Tbl!B123,FALSE)="","",HLOOKUP($G$11&$D$4,Look_Tbl!$C$6:$T$8790,Look_Tbl!B123,FALSE))) -> Oct | H128: FY2016 | I128: =IF($D$4="N/A",0,IF(G128="","",HLOOKUP($I$11&$D$4,Look_Tbl!$C$6:$T$8790,Look_Tbl!B123,FALSE))) -> HLH | J128: =IF($D$4="N/A",0,IF(OR(ISBLANK(HLOOKUP($D$3,ResourceInputs!$3:$65536,ResourceInputs!E132)),HLOOKUP($D$3,ResourceInputs!$3:$65536,ResourceInputs!E132)="nonleap"),"",IF((HLOOKUP($D$3,ResourceInputs!$3:$65536,ResourceInputs!$E$16)="Scheduled"),MAX(ROUND(HLOOKUP($D$3,ResourceInputs!$3:$65536,ResourceInputs!E132),0),0),MAX(HLOOKUP($D$3,ResourceInputs!$3:$65536,ResourceInputs!E132),0)))) -> 0.91676 | K128: 0.91676 | M128: 0
F129: 1 | G129: =IF($D$4="N/A","",IF(HLOOKUP($G$11&$D$4,Look_Tbl!$C$6:$T$8790,Look_Tbl!B124,FALSE)="","",HLOOKUP($G$11&$D$4,Look_Tbl!$C$6:$T$8790,Look_Tbl!B124,FALSE))) -> Oct | H129: FY2016 | I129: =IF($D$4="N/A",0,IF(G129="","",HLOOKUP($I$11&$D$4,Look_Tbl!$C$6:$T$8790,Look_Tbl!B124,FALSE))) -> HLH | J129: =IF($D$4="N/A",0,IF(OR(ISBLANK(HLOOKUP($D$3,ResourceInputs!$3:$65536,ResourceInputs!E133)),HLOOKUP($D$3,ResourceInputs!$3:$65536,ResourceInputs!E133)="nonleap"),"",IF((HLOOKUP($D$3,ResourceInputs!$3:$65536,ResourceInputs!$E$16)="Scheduled"),MAX(ROUND(HLOOKUP($D$3,ResourceInputs!$3:$65536,ResourceInputs!E133),0),0),MAX(HLOOKUP($D$3,ResourceInputs!$3:$65536,ResourceInputs!E133),0)))) -> 0.13416 | K129: 0.13416 | M129: 0
F130: 1 | G130: =IF($D$4="N/A","",IF(HLOOKUP($G$11&$D$4,Look_Tbl!$C$6:$T$8790,Look_Tbl!B125,FALSE)="","",HLOOKUP($G$11&$D$4,Look_Tbl!$C$6:$T$8790,Look_Tbl!B125,FALSE))) -> Oct | H130: FY2016 | I130: =IF($D$4="N/A",0,IF(G130="","",HLOOKUP($I$11&$D$4,Look_Tbl!$C$6:$T$8790,Look_Tbl!B125,FALSE))) -> LLH | J130: =IF($D$4="N/A",0,IF(OR(ISBLANK(HLOOKUP($D$3,ResourceInputs!$3:$65536,ResourceInputs!E134)),HLOOKUP($D$3,ResourceInputs!$3:$65536,ResourceInputs!E134)="nonleap"),"",IF((HLOOKUP($D$3,ResourceInputs!$3:$65536,ResourceInputs!$E$16)="Scheduled"),MAX(ROUND(HLOOKUP($D$3,ResourceInputs!$3:$65536,ResourceInputs!E134),0),0),MAX(HLOOKUP($D$3,ResourceInputs!$3:$65536,ResourceInputs!E134),0)))) -> 0 | L130: 0 | N130: 0
F131: 1 | G131: =IF($D$4="N/A","",IF(HLOOKUP($G$11&$D$4,Look_Tbl!$C$6:$T$8790,Look_Tbl!B126,FALSE)="","",HLOOKUP($G$11&$D$4,Look_Tbl!$C$6:$T$8790,Look_Tbl!B126,FALSE))) -> Oct | H131: FY2016 | I131: =IF($D$4="N/A",0,IF(G131="","",HLOOKUP($I$11&$D$4,Look_Tbl!$C$6:$T$8790,Look_Tbl!B126,FALSE))) -> LLH | J131: =IF($D$4="N/A",0,IF(OR(ISBLANK(HLOOKUP($D$3,ResourceInputs!$3:$65536,ResourceInputs!E135)),HLOOKUP($D$3,ResourceInputs!$3:$65536,ResourceInputs!E135)="nonleap"),"",IF((HLOOKUP($D$3,ResourceInputs!$3:$65536,ResourceInputs!$E$16)="Scheduled"),MAX(ROUND(HLOOKUP($D$3,ResourceInputs!$3:$65536,ResourceInputs!E135),0),0),MAX(HLOOKUP($D$3,ResourceInputs!$3:$65536,ResourceInputs!E135),0)))) -> 0 | L131: 0 | N131: 0
F132: 1 | G132: =IF($D$4="N/A","",IF(HLOOKUP($G$11&$D$4,Look_Tbl!$C$6:$T$8790,Look_Tbl!B127,FALSE)="","",HLOOKUP($G$11&$D$4,Look_Tbl!$C$6:$T$8790,Look_Tbl!B127,FALSE))) -> Oct | H132: FY2016 | I132: =IF($D$4="N/A",0,IF(G132="","",HLOOKUP($I$11&$D$4,Look_Tbl!$C$6:$T$8790,Look_Tbl!B127,FALSE))) -> LLH | J132: =IF($D$4="N/A",0,IF(OR(ISBLANK(HLOOKUP($D$3,ResourceInputs!$3:$65536,ResourceInputs!E136)),HLOOKUP($D$3,ResourceInputs!$3:$65536,ResourceInputs!E136)="nonleap"),"",IF((HLOOKUP($D$3,ResourceInputs!$3:$65536,ResourceInputs!$E$16)="Scheduled"),MAX(ROUND(HLOOKUP($D$3,ResourceInputs!$3:$65536,ResourceInputs!E136),0),0),MAX(HLOOKUP($D$3,ResourceInputs!$3:$65536,ResourceInputs!E136),0)))) -> 0 | L132: 0 | N132: 0
F133: 1 | G133: =IF($D$4="N/A","",IF(HLOOKUP($G$11&$D$4,Look_Tbl!$C$6:$T$8790,Look_Tbl!B128,FALSE)="","",HLOOKUP($G$11&$D$4,Look_Tbl!$C$6:$T$8790,Look_Tbl!B128,FALSE))) -> Oct | H133: FY2016 | I133: =IF($D$4="N/A",0,IF(G133="","",HLOOKUP($I$11&$D$4,Look_Tbl!$C$6:$T$8790,Look_Tbl!B128,FALSE))) -> LLH | J133: =IF($D$4="N/A",0,IF(OR(ISBLANK(HLOOKUP($D$3,ResourceInputs!$3:$65536,ResourceInputs!E137)),HLOOKUP($D$3,ResourceInputs!$3:$65536,ResourceInputs!E137)="nonleap"),"",IF((HLOOKUP($D$3,ResourceInputs!$3:$65536,ResourceInputs!$E$16)="Scheduled"),MAX(ROUND(HLOOKUP($D$3,ResourceInputs!$3:$65536,ResourceInputs!E137),0),0),MAX(HLOOKUP($D$3,ResourceInputs!$3:$65536,ResourceInputs!E137),0)))) -> 0 | L133: 0 | N133: 0
F134: 1 | G134: =IF($D$4="N/A","",IF(HLOOKUP($G$11&$D$4,Look_Tbl!$C$6:$T$8790,Look_Tbl!B129,FALSE)="","",HLOOKUP($G$11&$D$4,Look_Tbl!$C$6:$T$8790,Look_Tbl!B129,FALSE))) -> Oct | H134: FY2016 | I134: =IF($D$4="N/A",0,IF(G134="","",HLOOKUP($I$11&$D$4,Look_Tbl!$C$6:$T$8790,Look_Tbl!B129,FALSE))) -> LLH | J134: =IF($D$4="N/A",0,IF(OR(ISBLANK(HLOOKUP($D$3,ResourceInputs!$3:$65536,ResourceInputs!E138)),HLOOKUP($D$3,ResourceInputs!$3:$65536,ResourceInputs!E138)="nonleap"),"",IF((HLOOKUP($D$3,ResourceInputs!$3:$65536,ResourceInputs!$E$16)="Scheduled"),MAX(ROUND(HLOOKUP($D$3,ResourceInputs!$3:$65536,ResourceInputs!E138),0),0),MAX(HLOOKUP($D$3,ResourceInputs!$3:$65536,ResourceInputs!E138),0)))) -> 0.04472 | L134: 0.04472 | N134: 0
F135: 1 | G135: =IF($D$4="N/A","",IF(HLOOKUP($G$11&$D$4,Look_Tbl!$C$6:$T$8790,Look_Tbl!B130,FALSE)="","",HLOOKUP($G$11&$D$4,Look_Tbl!$C$6:$T$8790,Look_Tbl!B130,FALSE))) -> Oct | H135: FY2016 | I135: =IF($D$4="N/A",0,IF(G135="","",HLOOKUP($I$11&$D$4,Look_Tbl!$C$6:$T$8790,Look_Tbl!B130,FALSE))) -> LLH | J135: =IF($D$4="N/A",0,IF(OR(ISBLANK(HLOOKUP($D$3,ResourceInputs!$3:$65536,ResourceInputs!E139)),HLOOKUP($D$3,ResourceInputs!$3:$65536,ResourceInputs!E139)="nonleap"),"",IF((HLOOKUP($D$3,ResourceInputs!$3:$65536,ResourceInputs!$E$16)="Scheduled"),MAX(ROUND(HLOOKUP($D$3,ResourceInputs!$3:$65536,ResourceInputs!E139),0),0),MAX(HLOOKUP($D$3,ResourceInputs!$3:$65536,ResourceInputs!E139),0)))) -> 0.02236 | L135: 0.02236 | N135: 0
F136: 1 | G136: =IF($D$4="N/A","",IF(HLOOKUP($G$11&$D$4,Look_Tbl!$C$6:$T$8790,Look_Tbl!B131,FALSE)="","",HLOOKUP($G$11&$D$4,Look_Tbl!$C$6:$T$8790,Look_Tbl!B131,FALSE))) -> Oct | H136: FY2016 | I136: =IF($D$4="N/A",0,IF(G136="","",HLOOKUP($I$11&$D$4,Look_Tbl!$C$6:$T$8790,Look_Tbl!B131,FALSE))) -> LLH | J136: =IF($D$4="N/A",0,IF(OR(ISBLANK(HLOOKUP($D$3,ResourceInputs!$3:$65536,ResourceInputs!E140)),HLOOKUP($D$3,ResourceInputs!$3:$65536,ResourceInputs!E140)="nonleap"),"",IF((HLOOKUP($D$3,ResourceInputs!$3:$65536,ResourceInputs!$E$16)="Scheduled"),MAX(ROUND(HLOOKUP($D$3,ResourceInputs!$3:$65536,ResourceInputs!E140),0),0),MAX(HLOOKUP($D$3,ResourceInputs!$3:$65536,ResourceInputs!E140),0)))) -> 0.17888 | L136: 0.17888 | N136: 0
F137: 1 | G137: =IF($D$4="N/A","",IF(HLOOKUP($G$11&$D$4,Look_Tbl!$C$6:$T$8790,Look_Tbl!B132,FALSE)="","",HLOOKUP($G$11&$D$4,Look_Tbl!$C$6:$T$8790,Look_Tbl!B132,FALSE))) -> Oct | H137: FY2016 | I137: =IF($D$4="N/A",0,IF(G137="","",HLOOKUP($I$11&$D$4,Look_Tbl!$C$6:$T$8790,Look_Tbl!B132,FALSE))) -> LLH | J137: =IF($D$4="N/A",0,IF(OR(ISBLANK(HLOOKUP($D$3,ResourceInputs!$3:$65536,ResourceInputs!E141)),HLOOKUP($D$3,ResourceInputs!$3:$65536,ResourceInputs!E141)="nonleap"),"",IF((HLOOKUP($D$3,ResourceInputs!$3:$65536,ResourceInputs!$E$16)="Scheduled"),MAX(ROUND(HLOOKUP($D$3,ResourceInputs!$3:$65536,ResourceInputs!E141),0),0),MAX(HLOOKUP($D$3,ResourceInputs!$3:$65536,ResourceInputs!E141),0)))) -> 0 | L137: 0 | N137: 0
F138: 1 | G138: =IF($D$4="N/A","",IF(HLOOKUP($G$11&$D$4,Look_Tbl!$C$6:$T$8790,Look_Tbl!B133,FALSE)="","",HLOOKUP($G$11&$D$4,Look_Tbl!$C$6:$T$8790,Look_Tbl!B133,FALSE))) -> Oct | H138: FY2016 | I138: =IF($D$4="N/A",0,IF(G138="","",HLOOKUP($I$11&$D$4,Look_Tbl!$C$6:$T$8790,Look_Tbl!B133,FALSE))) -> HLH | J138: =IF($D$4="N/A",0,IF(OR(ISBLANK(HLOOKUP($D$3,ResourceInputs!$3:$65536,ResourceInputs!E142)),HLOOKUP($D$3,ResourceInputs!$3:$65536,ResourceInputs!E142)="nonleap"),"",IF((HLOOKUP($D$3,ResourceInputs!$3:$65536,ResourceInputs!$E$16)="Scheduled"),MAX(ROUND(HLOOKUP($D$3,ResourceInputs!$3:$65536,ResourceInputs!E142),0),0),MAX(HLOOKUP($D$3,ResourceInputs!$3:$65536,ResourceInputs!E142),0)))) -> 0.06708 | K138: 0.06708 | M138: 0
F139: 1 | G139: =IF($D$4="N/A","",IF(HLOOKUP($G$11&$D$4,Look_Tbl!$C$6:$T$8790,Look_Tbl!B134,FALSE)="","",HLOOKUP($G$11&$D$4,Look_Tbl!$C$6:$T$8790,Look_Tbl!B134,FALSE))) -> Oct | H139: FY2016 | I139: =IF($D$4="N/A",0,IF(G139="","",HLOOKUP($I$11&$D$4,Look_Tbl!$C$6:$T$8790,Look_Tbl!B134,FALSE))) -> HLH | J139: =IF($D$4="N/A",0,IF(OR(ISBLANK(HLOOKUP($D$3,ResourceInputs!$3:$65536,ResourceInputs!E143)),HLOOKUP($D$3,ResourceInputs!$3:$65536,ResourceInputs!E143)="nonleap"),"",IF((HLOOKUP($D$3,ResourceInputs!$3:$65536,ResourceInputs!$E$16)="Scheduled"),MAX(ROUND(HLOOKUP($D$3,ResourceInputs!$3:$65536,ResourceInputs!E143),0),0),MAX(HLOOKUP($D$3,ResourceInputs!$3:$65536,ResourceInputs!E143),0)))) -> 0.2236 | K139: 0.2236 | M139: 0
F140: =IF(G140="","",1) -> 1 | G140: =IF($D$4="N/A","",IF(HLOOKUP($G$11&$D$4,Look_Tbl!$C$6:$T$8790,Look_Tbl!B135,FALSE)="","",HLOOKUP($G$11&$D$4,Look_Tbl!$C$6:$T$8790,Look_Tbl!B135,FALSE))) -> Oct | H140: FY2016 | I140: =IF($D$4="N/A",0,IF(G140="","",HLOOKUP($I$11&$D$4,Look_Tbl!$C$6:$T$8790,Look_Tbl!B135,FALSE))) -> HLH | J140: =IF($D$4="N/A",0,IF(OR(ISBLANK(HLOOKUP($D$3,ResourceInputs!$3:$65536,ResourceInputs!E144)),HLOOKUP($D$3,ResourceInputs!$3:$65536,ResourceInputs!E144)="nonleap"),"",IF((HLOOKUP($D$3,ResourceInputs!$3:$65536,ResourceInputs!$E$16)="Scheduled"),MAX(ROUND(HLOOKUP($D$3,ResourceInputs!$3:$65536,ResourceInputs!E144),0),0),MAX(HLOOKUP($D$3,ResourceInputs!$3:$65536,ResourceInputs!E144),0)))) -> 0.26832 | K140: =IF(I140="HLH",J140,"") -> 0.26832 | L140: =IF(I140="LLH",J140,"") ->  | M140: 0
F141: 1 | G141: =IF($D$4="N/A","",IF(HLOOKUP($G$11&$D$4,Look_Tbl!$C$6:$T$8790,Look_Tbl!B136,FALSE)="","",HLOOKUP($G$11&$D$4,Look_Tbl!$C$6:$T$8790,Look_Tbl!B136,FALSE))) -> Oct | H141: =IF($D$4="N/A","",IF(G141="","",$D$4)) -> FY2016 | I141: =IF($D$4="N/A",0,IF(G141="","",HLOOKUP($I$11&$D$4,Look_Tbl!$C$6:$T$8790,Look_Tbl!B136,FALSE))) -> HLH | J141: =IF($D$4="N/A",0,IF(OR(ISBLANK(HLOOKUP($D$3,ResourceInputs!$3:$65536,ResourceInputs!E145)),HLOOKUP($D$3,ResourceInputs!$3:$65536,ResourceInputs!E145)="nonleap"),"",IF((HLOOKUP($D$3,ResourceInputs!$3:$65536,ResourceInputs!$E$16)="Scheduled"),MAX(ROUND(HLOOKUP($D$3,ResourceInputs!$3:$65536,ResourceInputs!E145),0),0),MAX(HLOOKUP($D$3,ResourceInputs!$3:$65536,ResourceInputs!E145),0)))) -> 0 | K141: 0 | M141: =IF(K141="","",ROUND(MAX(0,K141-(VLOOKUP(G141,$O$12:$W$23,8,FALSE)/VLOOKUP(G141,$B$12:$C$23,2,FALSE))),3)) -> 0 | N141: =IF(L141="","",ROUND(MAX(0,L141-(VLOOKUP(G141,$O$12:$W$23,9,FALSE)/VLOOKUP(G141,$B$12:$D$23,3,FALSE))),3)) -> 
F142: 1 | G142: =IF($D$4="N/A","",IF(HLOOKUP($G$11&$D$4,Look_Tbl!$C$6:$T$8790,Look_Tbl!B137,FALSE)="","",HLOOKUP($G$11&$D$4,Look_Tbl!$C$6:$T$8790,Look_Tbl!B137,FALSE))) -> Oct | H142: FY2016 | I142: =IF($D$4="N/A",0,IF(G142="","",HLOOKUP($I$11&$D$4,Look_Tbl!$C$6:$T$8790,Look_Tbl!B137,FALSE))) -> HLH | J142: =IF($D$4="N/A",0,IF(OR(ISBLANK(HLOOKUP($D$3,ResourceInputs!$3:$65536,ResourceInputs!E146)),HLOOKUP($D$3,ResourceInputs!$3:$65536,ResourceInputs!E146)="nonleap"),"",IF((HLOOKUP($D$3,ResourceInputs!$3:$65536,ResourceInputs!$E$16)="Scheduled"),MAX(ROUND(HLOOKUP($D$3,ResourceInputs!$3:$65536,ResourceInputs!E146),0),0),MAX(HLOOKUP($D$3,ResourceInputs!$3:$65536,ResourceInputs!E146),0)))) -> 0 | K142: 0 | M142: 0
F143: 1 | G143: =IF($D$4="N/A","",IF(HLOOKUP($G$11&$D$4,Look_Tbl!$C$6:$T$8790,Look_Tbl!B138,FALSE)="","",HLOOKUP($G$11&$D$4,Look_Tbl!$C$6:$T$8790,Look_Tbl!B138,FALSE))) -> Oct | H143: FY2016 | I143: =IF($D$4="N/A",0,IF(G143="","",HLOOKUP($I$11&$D$4,Look_Tbl!$C$6:$T$8790,Look_Tbl!B138,FALSE))) -> HLH | J143: =IF($D$4="N/A",0,IF(OR(ISBLANK(HLOOKUP($D$3,ResourceInputs!$3:$65536,ResourceInputs!E147)),HLOOKUP($D$3,ResourceInputs!$3:$65536,ResourceInputs!E147)="nonleap"),"",IF((HLOOKUP($D$3,ResourceInputs!$3:$65536,ResourceInputs!$E$16)="Scheduled"),MAX(ROUND(HLOOKUP($D$3,ResourceInputs!$3:$65536,ResourceInputs!E147),0),0),MAX(HLOOKUP($D$3,ResourceInputs!$3:$65536,ResourceInputs!E147),0)))) -> 0.3354 | K143: 0.3354 | M143: 0
F144: 1 | G144: =IF($D$4="N/A","",IF(HLOOKUP($G$11&$D$4,Look_Tbl!$C$6:$T$8790,Look_Tbl!B139,FALSE)="","",HLOOKUP($G$11&$D$4,Look_Tbl!$C$6:$T$8790,Look_Tbl!B139,FALSE))) -> Oct | H144: FY2016 | I144: =IF($D$4="N/A",0,IF(G144="","",HLOOKUP($I$11&$D$4,Look_Tbl!$C$6:$T$8790,Look_Tbl!B139,FALSE))) -> HLH | J144: =IF($D$4="N/A",0,IF(OR(ISBLANK(HLOOKUP($D$3,ResourceInputs!$3:$65536,ResourceInputs!E148)),HLOOKUP($D$3,ResourceInputs!$3:$65536,ResourceInputs!E148)="nonleap"),"",IF((HLOOKUP($D$3,ResourceInputs!$3:$65536,ResourceInputs!$E$16)="Scheduled"),MAX(ROUND(HLOOKUP($D$3,ResourceInputs!$3:$65536,ResourceInputs!E148),0),0),MAX(HLOOKUP($D$3,ResourceInputs!$3:$65536,ResourceInputs!E148),0)))) -> 1.92296 | K144: 1.92296 | M144: 0
F145: 1 | G145: =IF($D$4="N/A","",IF(HLOOKUP($G$11&$D$4,Look_Tbl!$C$6:$T$8790,Look_Tbl!B140,FALSE)="","",HLOOKUP($G$11&$D$4,Look_Tbl!$C$6:$T$8790,Look_Tbl!B140,FALSE))) -> Oct | H145: FY2016 | I145: =IF($D$4="N/A",0,IF(G145="","",HLOOKUP($I$11&$D$4,Look_Tbl!$C$6:$T$8790,Look_Tbl!B140,FALSE))) -> HLH | J145: =IF($D$4="N/A",0,IF(OR(ISBLANK(HLOOKUP($D$3,ResourceInputs!$3:$65536,ResourceInputs!E149)),HLOOKUP($D$3,ResourceInputs!$3:$65536,ResourceInputs!E149)="nonleap"),"",IF((HLOOKUP($D$3,ResourceInputs!$3:$65536,ResourceInputs!$E$16)="Scheduled"),MAX(ROUND(HLOOKUP($D$3,ResourceInputs!$3:$65536,ResourceInputs!E149),0),0),MAX(HLOOKUP($D$3,ResourceInputs!$3:$65536,ResourceInputs!E149),0)))) -> 1.47576 | K145: 1.47576 | M145: 0
F146: 1 | G146: =IF($D$4="N/A","",IF(HLOOKUP($G$11&$D$4,Look_Tbl!$C$6:$T$8790,Look_Tbl!B141,FALSE)="","",HLOOKUP($G$11&$D$4,Look_Tbl!$C$6:$T$8790,Look_Tbl!B141,FALSE))) -> Oct | H146: FY2016 | I146: =IF($D$4="N/A",0,IF(G146="","",HLOOKUP($I$11&$D$4,Look_Tbl!$C$6:$T$8790,Look_Tbl!B141,FALSE))) -> HLH | J146: =IF($D$4="N/A",0,IF(OR(ISBLANK(HLOOKUP($D$3,ResourceInputs!$3:$65536,ResourceInputs!E150)),HLOOKUP($D$3,ResourceInputs!$3:$65536,ResourceInputs!E150)="nonleap"),"",IF((HLOOKUP($D$3,ResourceInputs!$3:$65536,ResourceInputs!$E$16)="Scheduled"),MAX(ROUND(HLOOKUP($D$3,ResourceInputs!$3:$65536,ResourceInputs!E150),0),0),MAX(HLOOKUP($D$3,ResourceInputs!$3:$65536,ResourceInputs!E150),0)))) -> 2.39252 | K146: 2.39252 | M146: 0
F147: 1 | G147: =IF($D$4="N/A","",IF(HLOOKUP($G$11&$D$4,Look_Tbl!$C$6:$T$8790,Look_Tbl!B142,FALSE)="","",HLOOKUP($G$11&$D$4,Look_Tbl!$C$6:$T$8790,Look_Tbl!B142,FALSE))) -> Oct | H147: FY2016 | I147: =IF($D$4="N/A",0,IF(G147="","",HLOOKUP($I$11&$D$4,Look_Tbl!$C$6:$T$8790,Look_Tbl!B142,FALSE))) -> HLH | J147: =IF($D$4="N/A",0,IF(OR(ISBLANK(HLOOKUP($D$3,ResourceInputs!$3:$65536,ResourceInputs!E151)),HLOOKUP($D$3,ResourceInputs!$3:$65536,ResourceInputs!E151)="nonleap"),"",IF((HLOOKUP($D$3,ResourceInputs!$3:$65536,ResourceInputs!$E$16)="Scheduled"),MAX(ROUND(HLOOKUP($D$3,ResourceInputs!$3:$65536,ResourceInputs!E151),0),0),MAX(HLOOKUP($D$3,ResourceInputs!$3:$65536,ResourceInputs!E151),0)))) -> 5.20988 | K147: 5.20988 | M147: 0
F148: 1 | G148: =IF($D$4="N/A","",IF(HLOOKUP($G$11&$D$4,Look_Tbl!$C$6:$T$8790,Look_Tbl!B143,FALSE)="","",HLOOKUP($G$11&$D$4,Look_Tbl!$C$6:$T$8790,Look_Tbl!B143,FALSE))) -> Oct | H148: FY2016 | I148: =IF($D$4="N/A",0,IF(G148="","",HLOOKUP($I$11&$D$4,Look_Tbl!$C$6:$T$8790,Look_Tbl!B143,FALSE))) -> HLH | J148: =IF($D$4="N/A",0,IF(OR(ISBLANK(HLOOKUP($D$3,ResourceInputs!$3:$65536,ResourceInputs!E152)),HLOOKUP($D$3,ResourceInputs!$3:$65536,ResourceInputs!E152)="nonleap"),"",IF((HLOOKUP($D$3,ResourceInputs!$3:$65536,ResourceInputs!$E$16)="Scheduled"),MAX(ROUND(HLOOKUP($D$3,ResourceInputs!$3:$65536,ResourceInputs!E152),0),0),MAX(HLOOKUP($D$3,ResourceInputs!$3:$65536,ResourceInputs!E152),0)))) -> 13.34892 | K148: 13.34892 | M148: 1.658
F149: 1 | G149: =IF($D$4="N/A","",IF(HLOOKUP($G$11&$D$4,Look_Tbl!$C$6:$T$8790,Look_Tbl!B144,FALSE)="","",HLOOKUP($G$11&$D$4,Look_Tbl!$C$6:$T$8790,Look_Tbl!B144,FALSE))) -> Oct | H149: FY2016 | I149: =IF($D$4="N/A",0,IF(G149="","",HLOOKUP($I$11&$D$4,Look_Tbl!$C$6:$T$8790,Look_Tbl!B144,FALSE))) -> HLH | J149: =IF($D$4="N/A",0,IF(OR(ISBLANK(HLOOKUP($D$3,ResourceInputs!$3:$65536,ResourceInputs!E153)),HLOOKUP($D$3,ResourceInputs!$3:$65536,ResourceInputs!E153)="nonleap"),"",IF((HLOOKUP($D$3,ResourceInputs!$3:$65536,ResourceInputs!$E$16)="Scheduled"),MAX(ROUND(HLOOKUP($D$3,ResourceInputs!$3:$65536,ResourceInputs!E153),0),0),MAX(HLOOKUP($D$3,ResourceInputs!$3:$65536,ResourceInputs!E153),0)))) -> 12.99116 | K149: 12.99116 | M149: 1.3
F150: 1 | G150: =IF($D$4="N/A","",IF(HLOOKUP($G$11&$D$4,Look_Tbl!$C$6:$T$8790,Look_Tbl!B145,FALSE)="","",HLOOKUP($G$11&$D$4,Look_Tbl!$C$6:$T$8790,Look_Tbl!B145,FALSE))) -> Oct | H150: FY2016 | I150: =IF($D$4="N/A",0,IF(G150="","",HLOOKUP($I$11&$D$4,Look_Tbl!$C$6:$T$8790,Look_Tbl!B145,FALSE))) -> HLH | J150: =IF($D$4="N/A",0,IF(OR(ISBLANK(HLOOKUP($D$3,ResourceInputs!$3:$65536,ResourceInputs!E154)),HLOOKUP($D$3,ResourceInputs!$3:$65536,ResourceInputs!E154)="nonleap"),"",IF((HLOOKUP($D$3,ResourceInputs!$3:$65536,ResourceInputs!$E$16)="Scheduled"),MAX(ROUND(HLOOKUP($D$3,ResourceInputs!$3:$65536,ResourceInputs!E154),0),0),MAX(HLOOKUP($D$3,ResourceInputs!$3:$65536,ResourceInputs!E154),0)))) -> 15.9874 | K150: 15.9874 | M150: 4.296
F151: 1 | G151: =IF($D$4="N/A","",IF(HLOOKUP($G$11&$D$4,Look_Tbl!$C$6:$T$8790,Look_Tbl!B146,FALSE)="","",HLOOKUP($G$11&$D$4,Look_Tbl!$C$6:$T$8790,Look_Tbl!B146,FALSE))) -> Oct | H151: FY2016 | I151: =IF($D$4="N/A",0,IF(G151="","",HLOOKUP($I$11&$D$4,Look_Tbl!$C$6:$T$8790,Look_Tbl!B146,FALSE))) -> HLH | J151: =IF($D$4="N/A",0,IF(OR(ISBLANK(HLOOKUP($D$3,ResourceInputs!$3:$65536,ResourceInputs!E155)),HLOOKUP($D$3,ResourceInputs!$3:$65536,ResourceInputs!E155)="nonleap"),"",IF((HLOOKUP($D$3,ResourceInputs!$3:$65536,ResourceInputs!$E$16)="Scheduled"),MAX(ROUND(HLOOKUP($D$3,ResourceInputs!$3:$65536,ResourceInputs!E155),0),0),MAX(HLOOKUP($D$3,ResourceInputs!$3:$65536,ResourceInputs!E155),0)))) -> 21.66684 | K151: 21.66684 | M151: 9.976
F152: 1 | G152: =IF($D$4="N/A","",IF(HLOOKUP($G$11&$D$4,Look_Tbl!$C$6:$T$8790,Look_Tbl!B147,FALSE)="","",HLOOKUP($G$11&$D$4,Look_Tbl!$C$6:$T$8790,Look_Tbl!B147,FALSE))) -> Oct | H152: FY2016 | I152: =IF($D$4="N/A",0,IF(G152="","",HLOOKUP($I$11&$D$4,Look_Tbl!$C$6:$T$8790,Look_Tbl!B147,FALSE))) -> HLH | J152: =IF($D$4="N/A",0,IF(OR(ISBLANK(HLOOKUP($D$3,ResourceInputs!$3:$65536,ResourceInputs!E156)),HLOOKUP($D$3,ResourceInputs!$3:$65536,ResourceInputs!E156)="nonleap"),"",IF((HLOOKUP($D$3,ResourceInputs!$3:$65536,ResourceInputs!$E$16)="Scheduled"),MAX(ROUND(HLOOKUP($D$3,ResourceInputs!$3:$65536,ResourceInputs!E156),0),0),MAX(HLOOKUP($D$3,ResourceInputs!$3:$65536,ResourceInputs!E156),0)))) -> 26.34008 | K152: 26.34008 | M152: 14.649
F153: 1 | G153: =IF($D$4="N/A","",IF(HLOOKUP($G$11&$D$4,Look_Tbl!$C$6:$T$8790,Look_Tbl!B148,FALSE)="","",HLOOKUP($G$11&$D$4,Look_Tbl!$C$6:$T$8790,Look_Tbl!B148,FALSE))) -> Oct | H153: FY2016 | I153: =IF($D$4="N/A",0,IF(G153="","",HLOOKUP($I$11&$D$4,Look_Tbl!$C$6:$T$8790,Look_Tbl!B148,FALSE))) -> HLH | J153: =IF($D$4="N/A",0,IF(OR(ISBLANK(HLOOKUP($D$3,ResourceInputs!$3:$65536,ResourceInputs!E157)),HLOOKUP($D$3,ResourceInputs!$3:$65536,ResourceInputs!E157)="nonleap"),"",IF((HLOOKUP($D$3,ResourceInputs!$3:$65536,ResourceInputs!$E$16)="Scheduled"),MAX(ROUND(HLOOKUP($D$3,ResourceInputs!$3:$65536,ResourceInputs!E157),0),0),MAX(HLOOKUP($D$3,ResourceInputs!$3:$65536,ResourceInputs!E157),0)))) -> 19.52028 | K153: 19.52028 | M153: 7.829
F154: 1 | G154: =IF($D$4="N/A","",IF(HLOOKUP($G$11&$D$4,Look_Tbl!$C$6:$T$8790,Look_Tbl!B149,FALSE)="","",HLOOKUP($G$11&$D$4,Look_Tbl!$C$6:$T$8790,Look_Tbl!B149,FALSE))) -> Oct | H154: FY2016 | I154: =IF($D$4="N/A",0,IF(G154="","",HLOOKUP($I$11&$D$4,Look_Tbl!$C$6:$T$8790,Look_Tbl!B149,FALSE))) -> LLH | J154: =IF($D$4="N/A",0,IF(OR(ISBLANK(HLOOKUP($D$3,ResourceInputs!$3:$65536,ResourceInputs!E158)),HLOOKUP($D$3,ResourceInputs!$3:$65536,ResourceInputs!E158)="nonleap"),"",IF((HLOOKUP($D$3,ResourceInputs!$3:$65536,ResourceInputs!$E$16)="Scheduled"),MAX(ROUND(HLOOKUP($D$3,ResourceInputs!$3:$65536,ResourceInputs!E158),0),0),MAX(HLOOKUP($D$3,ResourceInputs!$3:$65536,ResourceInputs!E158),0)))) -> 17.329 | L154: 17.329 | N154: 7.891
F155: 1 | G155: =IF($D$4="N/A","",IF(HLOOKUP($G$11&$D$4,Look_Tbl!$C$6:$T$8790,Look_Tbl!B150,FALSE)="","",HLOOKUP($G$11&$D$4,Look_Tbl!$C$6:$T$8790,Look_Tbl!B150,FALSE))) -> Oct | H155: FY2016 | I155: =IF($D$4="N/A",0,IF(G155="","",HLOOKUP($I$11&$D$4,Look_Tbl!$C$6:$T$8790,Look_Tbl!B150,FALSE))) -> LLH | J155: =IF($D$4="N/A",0,IF(OR(ISBLANK(HLOOKUP($D$3,ResourceInputs!$3:$65536,ResourceInputs!E159)),HLOOKUP($D$3,ResourceInputs!$3:$65536,ResourceInputs!E159)="nonleap"),"",IF((HLOOKUP($D$3,ResourceInputs!$3:$65536,ResourceInputs!$E$16)="Scheduled"),MAX(ROUND(HLOOKUP($D$3,ResourceInputs!$3:$65536,ResourceInputs!E159),0),0),MAX(HLOOKUP($D$3,ResourceInputs!$3:$65536,ResourceInputs!E159),0)))) -> 15.92032 | L155: 15.92032 | N155: 6.483
F156: 1 | G156: =IF($D$4="N/A","",IF(HLOOKUP($G$11&$D$4,Look_Tbl!$C$6:$T$8790,Look_Tbl!B151,FALSE)="","",HLOOKUP($G$11&$D$4,Look_Tbl!$C$6:$T$8790,Look_Tbl!B151,FALSE))) -> Oct | H156: FY2016 | I156: =IF($D$4="N/A",0,IF(G156="","",HLOOKUP($I$11&$D$4,Look_Tbl!$C$6:$T$8790,Look_Tbl!B151,FALSE))) -> LLH | J156: =IF($D$4="N/A",0,IF(OR(ISBLANK(HLOOKUP($D$3,ResourceInputs!$3:$65536,ResourceInputs!E160)),HLOOKUP($D$3,ResourceInputs!$3:$65536,ResourceInputs!E160)="nonleap"),"",IF((HLOOKUP($D$3,ResourceInputs!$3:$65536,ResourceInputs!$E$16)="Scheduled"),MAX(ROUND(HLOOKUP($D$3,ResourceInputs!$3:$65536,ResourceInputs!E160),0),0),MAX(HLOOKUP($D$3,ResourceInputs!$3:$65536,ResourceInputs!E160),0)))) -> 14.60108 | L156: 14.60108 | N156: 5.164
F157: 1 | G157: =IF($D$4="N/A","",IF(HLOOKUP($G$11&$D$4,Look_Tbl!$C$6:$T$8790,Look_Tbl!B152,FALSE)="","",HLOOKUP($G$11&$D$4,Look_Tbl!$C$6:$T$8790,Look_Tbl!B152,FALSE))) -> Oct | H157: FY2016 | I157: =IF($D$4="N/A",0,IF(G157="","",HLOOKUP($I$11&$D$4,Look_Tbl!$C$6:$T$8790,Look_Tbl!B152,FALSE))) -> LLH | J157: =IF($D$4="N/A",0,IF(OR(ISBLANK(HLOOKUP($D$3,ResourceInputs!$3:$65536,ResourceInputs!E161)),HLOOKUP($D$3,ResourceInputs!$3:$65536,ResourceInputs!E161)="nonleap"),"",IF((HLOOKUP($D$3,ResourceInputs!$3:$65536,ResourceInputs!$E$16)="Scheduled"),MAX(ROUND(HLOOKUP($D$3,ResourceInputs!$3:$65536,ResourceInputs!E161),0),0),MAX(HLOOKUP($D$3,ResourceInputs!$3:$65536,ResourceInputs!E161),0)))) -> 12.298 | L157: 12.298 | N157: 2.86
F158: 1 | G158: =IF($D$4="N/A","",IF(HLOOKUP($G$11&$D$4,Look_Tbl!$C$6:$T$8790,Look_Tbl!B153,FALSE)="","",HLOOKUP($G$11&$D$4,Look_Tbl!$C$6:$T$8790,Look_Tbl!B153,FALSE))) -> Oct | H158: FY2016 | I158: =IF($D$4="N/A",0,IF(G158="","",HLOOKUP($I$11&$D$4,Look_Tbl!$C$6:$T$8790,Look_Tbl!B153,FALSE))) -> LLH | J158: =IF($D$4="N/A",0,IF(OR(ISBLANK(HLOOKUP($D$3,ResourceInputs!$3:$65536,ResourceInputs!E162)),HLOOKUP($D$3,ResourceInputs!$3:$65536,ResourceInputs!E162)="nonleap"),"",IF((HLOOKUP($D$3,ResourceInputs!$3:$65536,ResourceInputs!$E$16)="Scheduled"),MAX(ROUND(HLOOKUP($D$3,ResourceInputs!$3:$65536,ResourceInputs!E162),0),0),MAX(HLOOKUP($D$3,ResourceInputs!$3:$65536,ResourceInputs!E162),0)))) -> 11.80608 | L158: 11.80608 | N158: 2.369
F159: 1 | G159: =IF($D$4="N/A","",IF(HLOOKUP($G$11&$D$4,Look_Tbl!$C$6:$T$8790,Look_Tbl!B154,FALSE)="","",HLOOKUP($G$11&$D$4,Look_Tbl!$C$6:$T$8790,Look_Tbl!B154,FALSE))) -> Oct | H159: FY2016 | I159: =IF($D$4="N/A",0,IF(G159="","",HLOOKUP($I$11&$D$4,Look_Tbl!$C$6:$T$8790,Look_Tbl!B154,FALSE))) -> LLH | J159: =IF($D$4="N/A",0,IF(OR(ISBLANK(HLOOKUP($D$3,ResourceInputs!$3:$65536,ResourceInputs!E163)),HLOOKUP($D$3,ResourceInputs!$3:$65536,ResourceInputs!E163)="nonleap"),"",IF((HLOOKUP($D$3,ResourceInputs!$3:$65536,ResourceInputs!$E$16)="Scheduled"),MAX(ROUND(HLOOKUP($D$3,ResourceInputs!$3:$65536,ResourceInputs!E163),0),0),MAX(HLOOKUP($D$3,ResourceInputs!$3:$65536,ResourceInputs!E163),0)))) -> 9.86076 | L159: 9.86076 | N159: 0.423
F160: 1 | G160: =IF($D$4="N/A","",IF(HLOOKUP($G$11&$D$4,Look_Tbl!$C$6:$T$8790,Look_Tbl!B155,FALSE)="","",HLOOKUP($G$11&$D$4,Look_Tbl!$C$6:$T$8790,Look_Tbl!B155,FALSE))) -> Oct | H160: FY2016 | I160: =IF($D$4="N/A",0,IF(G160="","",HLOOKUP($I$11&$D$4,Look_Tbl!$C$6:$T$8790,Look_Tbl!B155,FALSE))) -> LLH | J160: =IF($D$4="N/A",0,IF(OR(ISBLANK(HLOOKUP($D$3,ResourceInputs!$3:$65536,ResourceInputs!E164)),HLOOKUP($D$3,ResourceInputs!$3:$65536,ResourceInputs!E164)="nonleap"),"",IF((HLOOKUP($D$3,ResourceInputs!$3:$65536,ResourceInputs!$E$16)="Scheduled"),MAX(ROUND(HLOOKUP($D$3,ResourceInputs!$3:$65536,ResourceInputs!E164),0),0),MAX(HLOOKUP($D$3,ResourceInputs!$3:$65536,ResourceInputs!E164),0)))) -> 7.96016 | L160: 7.96016 | N160: 0
F161: 1 | G161: =IF($D$4="N/A","",IF(HLOOKUP($G$11&$D$4,Look_Tbl!$C$6:$T$8790,Look_Tbl!B156,FALSE)="","",HLOOKUP($G$11&$D$4,Look_Tbl!$C$6:$T$8790,Look_Tbl!B156,FALSE))) -> Oct | H161: FY2016 | I161: =IF($D$4="N/A",0,IF(G161="","",HLOOKUP($I$11&$D$4,Look_Tbl!$C$6:$T$8790,Look_Tbl!B156,FALSE))) -> LLH | J161: =IF($D$4="N/A",0,IF(OR(ISBLANK(HLOOKUP($D$3,ResourceInputs!$3:$65536,ResourceInputs!E165)),HLOOKUP($D$3,ResourceInputs!$3:$65536,ResourceInputs!E165)="nonleap"),"",IF((HLOOKUP($D$3,ResourceInputs!$3:$65536,ResourceInputs!$E$16)="Scheduled"),MAX(ROUND(HLOOKUP($D$3,ResourceInputs!$3:$65536,ResourceInputs!E165),0),0),MAX(HLOOKUP($D$3,ResourceInputs!$3:$65536,ResourceInputs!E165),0)))) -> 6.86452 | L161: 6.86452 | N161: 0
F162: 1 | G162: =IF($D$4="N/A","",IF(HLOOKUP($G$11&$D$4,Look_Tbl!$C$6:$T$8790,Look_Tbl!B157,FALSE)="","",HLOOKUP($G$11&$D$4,Look_Tbl!$C$6:$T$8790,Look_Tbl!B157,FALSE))) -> Oct | H162: FY2016 | I162: =IF($D$4="N/A",0,IF(G162="","",HLOOKUP($I$11&$D$4,Look_Tbl!$C$6:$T$8790,Look_Tbl!B157,FALSE))) -> HLH | J162: =IF($D$4="N/A",0,IF(OR(ISBLANK(HLOOKUP($D$3,ResourceInputs!$3:$65536,ResourceInputs!E166)),HLOOKUP($D$3,ResourceInputs!$3:$65536,ResourceInputs!E166)="nonleap"),"",IF((HLOOKUP($D$3,ResourceInputs!$3:$65536,ResourceInputs!$E$16)="Scheduled"),MAX(ROUND(HLOOKUP($D$3,ResourceInputs!$3:$65536,ResourceInputs!E166),0),0),MAX(HLOOKUP($D$3,ResourceInputs!$3:$65536,ResourceInputs!E166),0)))) -> 6.17136 | K162: 6.17136 | M162: 0
F163: 1 | G163: =IF($D$4="N/A","",IF(HLOOKUP($G$11&$D$4,Look_Tbl!$C$6:$T$8790,Look_Tbl!B158,FALSE)="","",HLOOKUP($G$11&$D$4,Look_Tbl!$C$6:$T$8790,Look_Tbl!B158,FALSE))) -> Oct | H163: FY2016 | I163: =IF($D$4="N/A",0,IF(G163="","",HLOOKUP($I$11&$D$4,Look_Tbl!$C$6:$T$8790,Look_Tbl!B158,FALSE))) -> HLH | J163: =IF($D$4="N/A",0,IF(OR(ISBLANK(HLOOKUP($D$3,ResourceInputs!$3:$65536,ResourceInputs!E167)),HLOOKUP($D$3,ResourceInputs!$3:$65536,ResourceInputs!E167)="nonleap"),"",IF((HLOOKUP($D$3,ResourceInputs!$3:$65536,ResourceInputs!$E$16)="Scheduled"),MAX(ROUND(HLOOKUP($D$3,ResourceInputs!$3:$65536,ResourceInputs!E167),0),0),MAX(HLOOKUP($D$3,ResourceInputs!$3:$65536,ResourceInputs!E167),0)))) -> 4.8074 | K163: 4.8074 | M163: 0
F164: 1 | G164: =IF($D$4="N/A","",IF(HLOOKUP($G$11&$D$4,Look_Tbl!$C$6:$T$8790,Look_Tbl!B159,FALSE)="","",HLOOKUP($G$11&$D$4,Look_Tbl!$C$6:$T$8790,Look_Tbl!B159,FALSE))) -> Oct | H164: FY2016 | I164: =IF($D$4="N/A",0,IF(G164="","",HLOOKUP($I$11&$D$4,Look_Tbl!$C$6:$T$8790,Look_Tbl!B159,FALSE))) -> HLH | J164: =IF($D$4="N/A",0,IF(OR(ISBLANK(HLOOKUP($D$3,ResourceInputs!$3:$65536,ResourceInputs!E168)),HLOOKUP($D$3,ResourceInputs!$3:$65536,ResourceInputs!E168)="nonleap"),"",IF((HLOOKUP($D$3,ResourceInputs!$3:$65536,ResourceInputs!$E$16)="Scheduled"),MAX(ROUND(HLOOKUP($D$3,ResourceInputs!$3:$65536,ResourceInputs!E168),0),0),MAX(HLOOKUP($D$3,ResourceInputs!$3:$65536,ResourceInputs!E168),0)))) -> 2.48196 | K164: 2.48196 | M164: 0
F165: 1 | G165: =IF($D$4="N/A","",IF(HLOOKUP($G$11&$D$4,Look_Tbl!$C$6:$T$8790,Look_Tbl!B160,FALSE)="","",HLOOKUP($G$11&$D$4,Look_Tbl!$C$6:$T$8790,Look_Tbl!B160,FALSE))) -> Oct | H165: FY2016 | I165: =IF($D$4="N/A",0,IF(G165="","",HLOOKUP($I$11&$D$4,Look_Tbl!$C$6:$T$8790,Look_Tbl!B160,FALSE))) -> HLH | J165: =IF($D$4="N/A",0,IF(OR(ISBLANK(HLOOKUP($D$3,ResourceInputs!$3:$65536,ResourceInputs!E169)),HLOOKUP($D$3,ResourceInputs!$3:$65536,ResourceInputs!E169)="nonleap"),"",IF((HLOOKUP($D$3,ResourceInputs!$3:$65536,ResourceInputs!$E$16)="Scheduled"),MAX(ROUND(HLOOKUP($D$3,ResourceInputs!$3:$65536,ResourceInputs!E169),0),0),MAX(HLOOKUP($D$3,ResourceInputs!$3:$65536,ResourceInputs!E169),0)))) -> 0.91676 | K165: 0.91676 | M165: 0
F166: 1 | G166: =IF($D$4="N/A","",IF(HLOOKUP($G$11&$D$4,Look_Tbl!$C$6:$T$8790,Look_Tbl!B161,FALSE)="","",HLOOKUP($G$11&$D$4,Look_Tbl!$C$6:$T$8790,Look_Tbl!B161,FALSE))) -> Oct | H166: FY2016 | I166: =IF($D$4="N/A",0,IF(G166="","",HLOOKUP($I$11&$D$4,Look_Tbl!$C$6:$T$8790,Look_Tbl!B161,FALSE))) -> HLH | J166: =IF($D$4="N/A",0,IF(OR(ISBLANK(HLOOKUP($D$3,ResourceInputs!$3:$65536,ResourceInputs!E170)),HLOOKUP($D$3,ResourceInputs!$3:$65536,ResourceInputs!E170)="nonleap"),"",IF((HLOOKUP($D$3,ResourceInputs!$3:$65536,ResourceInputs!$E$16)="Scheduled"),MAX(ROUND(HLOOKUP($D$3,ResourceInputs!$3:$65536,ResourceInputs!E170),0),0),MAX(HLOOKUP($D$3,ResourceInputs!$3:$65536,ResourceInputs!E170),0)))) -> 0.20124 | K166: 0.20124 | M166: 0
F167: 1 | G167: =IF($D$4="N/A","",IF(HLOOKUP($G$11&$D$4,Look_Tbl!$C$6:$T$8790,Look_Tbl!B162,FALSE)="","",HLOOKUP($G$11&$D$4,Look_Tbl!$C$6:$T$8790,Look_Tbl!B162,FALSE))) -> Oct | H167: FY2016 | I167: =IF($D$4="N/A",0,IF(G167="","",HLOOKUP($I$11&$D$4,Look_Tbl!$C$6:$T$8790,Look_Tbl!B162,FALSE))) -> HLH | J167: =IF($D$4="N/A",0,IF(OR(ISBLANK(HLOOKUP($D$3,ResourceInputs!$3:$65536,ResourceInputs!E171)),HLOOKUP($D$3,ResourceInputs!$3:$65536,ResourceInputs!E171)="nonleap"),"",IF((HLOOKUP($D$3,ResourceInputs!$3:$65536,ResourceInputs!$E$16)="Scheduled"),MAX(ROUND(HLOOKUP($D$3,ResourceInputs!$3:$65536,ResourceInputs!E171),0),0),MAX(HLOOKUP($D$3,ResourceInputs!$3:$65536,ResourceInputs!E171),0)))) -> 0.15652 | K167: 0.15652 | M167: 0
F168: 1 | G168: =IF($D$4="N/A","",IF(HLOOKUP($G$11&$D$4,Look_Tbl!$C$6:$T$8790,Look_Tbl!B163,FALSE)="","",HLOOKUP($G$11&$D$4,Look_Tbl!$C$6:$T$8790,Look_Tbl!B163,FALSE))) -> Oct | H168: FY2016 | I168: =IF($D$4="N/A",0,IF(G168="","",HLOOKUP($I$11&$D$4,Look_Tbl!$C$6:$T$8790,Look_Tbl!B163,FALSE))) -> HLH | J168: =IF($D$4="N/A",0,IF(OR(ISBLANK(HLOOKUP($D$3,ResourceInputs!$3:$65536,ResourceInputs!E172)),HLOOKUP($D$3,ResourceInputs!$3:$65536,ResourceInputs!E172)="nonleap"),"",IF((HLOOKUP($D$3,ResourceInputs!$3:$65536,ResourceInputs!$E$16)="Scheduled"),MAX(ROUND(HLOOKUP($D$3,ResourceInputs!$3:$65536,ResourceInputs!E172),0),0),MAX(HLOOKUP($D$3,ResourceInputs!$3:$65536,ResourceInputs!E172),0)))) -> 0.17888 | K168: 0.17888 | M168: 0
F169: 1 | G169: =IF($D$4="N/A","",IF(HLOOKUP($G$11&$D$4,Look_Tbl!$C$6:$T$8790,Look_Tbl!B164,FALSE)="","",HLOOKUP($G$11&$D$4,Look_Tbl!$C$6:$T$8790,Look_Tbl!B164,FALSE))) -> Oct | H169: FY2016 | I169: =IF($D$4="N/A",0,IF(G169="","",HLOOKUP($I$11&$D$4,Look_Tbl!$C$6:$T$8790,Look_Tbl!B164,FALSE))) -> HLH | J169: =IF($D$4="N/A",0,IF(OR(ISBLANK(HLOOKUP($D$3,ResourceInputs!$3:$65536,ResourceInputs!E173)),HLOOKUP($D$3,ResourceInputs!$3:$65536,ResourceInputs!E173)="nonleap"),"",IF((HLOOKUP($D$3,ResourceInputs!$3:$65536,ResourceInputs!$E$16)="Scheduled"),MAX(ROUND(HLOOKUP($D$3,ResourceInputs!$3:$65536,ResourceInputs!E173),0),0),MAX(HLOOKUP($D$3,ResourceInputs!$3:$65536,ResourceInputs!E173),0)))) -> 1.20744 | K169: 1.20744 | M169: 0
F170: 1 | G170: =IF($D$4="N/A","",IF(HLOOKUP($G$11&$D$4,Look_Tbl!$C$6:$T$8790,Look_Tbl!B165,FALSE)="","",HLOOKUP($G$11&$D$4,Look_Tbl!$C$6:$T$8790,Look_Tbl!B165,FALSE))) -> Oct | H170: FY2016 | I170: =IF($D$4="N/A",0,IF(G170="","",HLOOKUP($I$11&$D$4,Look_Tbl!$C$6:$T$8790,Look_Tbl!B165,FALSE))) -> HLH | J170: =IF($D$4="N/A",0,IF(OR(ISBLANK(HLOOKUP($D$3,ResourceInputs!$3:$65536,ResourceInputs!E174)),HLOOKUP($D$3,ResourceInputs!$3:$65536,ResourceInputs!E174)="nonleap"),"",IF((HLOOKUP($D$3,ResourceInputs!$3:$65536,ResourceInputs!$E$16)="Scheduled"),MAX(ROUND(HLOOKUP($D$3,ResourceInputs!$3:$65536,ResourceInputs!E174),0),0),MAX(HLOOKUP($D$3,ResourceInputs!$3:$65536,ResourceInputs!E174),0)))) -> 3.48816 | K170: 3.48816 | M170: 0
F171: 1 | G171: =IF($D$4="N/A","",IF(HLOOKUP($G$11&$D$4,Look_Tbl!$C$6:$T$8790,Look_Tbl!B166,FALSE)="","",HLOOKUP($G$11&$D$4,Look_Tbl!$C$6:$T$8790,Look_Tbl!B166,FALSE))) -> Oct | H171: FY2016 | I171: =IF($D$4="N/A",0,IF(G171="","",HLOOKUP($I$11&$D$4,Look_Tbl!$C$6:$T$8790,Look_Tbl!B166,FALSE))) -> HLH | J171: =IF($D$4="N/A",0,IF(OR(ISBLANK(HLOOKUP($D$3,ResourceInputs!$3:$65536,ResourceInputs!E175)),HLOOKUP($D$3,ResourceInputs!$3:$65536,ResourceInputs!E175)="nonleap"),"",IF((HLOOKUP($D$3,ResourceInputs!$3:$65536,ResourceInputs!$E$16)="Scheduled"),MAX(ROUND(HLOOKUP($D$3,ResourceInputs!$3:$65536,ResourceInputs!E175),0),0),MAX(HLOOKUP($D$3,ResourceInputs!$3:$65536,ResourceInputs!E175),0)))) -> 3.0186 | K171: 3.0186 | M171: 0
F172: 1 | G172: =IF($D$4="N/A","",IF(HLOOKUP($G$11&$D$4,Look_Tbl!$C$6:$T$8790,Look_Tbl!B167,FALSE)="","",HLOOKUP($G$11&$D$4,Look_Tbl!$C$6:$T$8790,Look_Tbl!B167,FALSE))) -> Oct | H172: FY2016 | I172: =IF($D$4="N/A",0,IF(G172="","",HLOOKUP($I$11&$D$4,Look_Tbl!$C$6:$T$8790,Look_Tbl!B167,FALSE))) -> HLH | J172: =IF($D$4="N/A",0,IF(OR(ISBLANK(HLOOKUP($D$3,ResourceInputs!$3:$65536,ResourceInputs!E176)),HLOOKUP($D$3,ResourceInputs!$3:$65536,ResourceInputs!E176)="nonleap"),"",IF((HLOOKUP($D$3,ResourceInputs!$3:$65536,ResourceInputs!$E$16)="Scheduled"),MAX(ROUND(HLOOKUP($D$3,ResourceInputs!$3:$65536,ResourceInputs!E176),0),0),MAX(HLOOKUP($D$3,ResourceInputs!$3:$65536,ResourceInputs!E176),0)))) -> 0.2236 | K172: 0.2236 | M172: 0
F173: 1 | G173: =IF($D$4="N/A","",IF(HLOOKUP($G$11&$D$4,Look_Tbl!$C$6:$T$8790,Look_Tbl!B168,FALSE)="","",HLOOKUP($G$11&$D$4,Look_Tbl!$C$6:$T$8790,Look_Tbl!B168,FALSE))) -> Oct | H173: FY2016 | I173: =IF($D$4="N/A",0,IF(G173="","",HLOOKUP($I$11&$D$4,Look_Tbl!$C$6:$T$8790,Look_Tbl!B168,FALSE))) -> HLH | J173: =IF($D$4="N/A",0,IF(OR(ISBLANK(HLOOKUP($D$3,ResourceInputs!$3:$65536,ResourceInputs!E177)),HLOOKUP($D$3,ResourceInputs!$3:$65536,ResourceInputs!E177)="nonleap"),"",IF((HLOOKUP($D$3,ResourceInputs!$3:$65536,ResourceInputs!$E$16)="Scheduled"),MAX(ROUND(HLOOKUP($D$3,ResourceInputs!$3:$65536,ResourceInputs!E177),0),0),MAX(HLOOKUP($D$3,ResourceInputs!$3:$65536,ResourceInputs!E177),0)))) -> 0.02236 | K173: 0.02236 | M173: 0
F174: 1 | G174: =IF($D$4="N/A","",IF(HLOOKUP($G$11&$D$4,Look_Tbl!$C$6:$T$8790,Look_Tbl!B169,FALSE)="","",HLOOKUP($G$11&$D$4,Look_Tbl!$C$6:$T$8790,Look_Tbl!B169,FALSE))) -> Oct | H174: FY2016 | I174: =IF($D$4="N/A",0,IF(G174="","",HLOOKUP($I$11&$D$4,Look_Tbl!$C$6:$T$8790,Look_Tbl!B169,FALSE))) -> HLH | J174: =IF($D$4="N/A",0,IF(OR(ISBLANK(HLOOKUP($D$3,ResourceInputs!$3:$65536,ResourceInputs!E178)),HLOOKUP($D$3,ResourceInputs!$3:$65536,ResourceInputs!E178)="nonleap"),"",IF((HLOOKUP($D$3,ResourceInputs!$3:$65536,ResourceInputs!$E$16)="Scheduled"),MAX(ROUND(HLOOKUP($D$3,ResourceInputs!$3:$65536,ResourceInputs!E178),0),0),MAX(HLOOKUP($D$3,ResourceInputs!$3:$65536,ResourceInputs!E178),0)))) -> 0.04472 | K174: 0.04472 | M174: 0
F175: 1 | G175: =IF($D$4="N/A","",IF(HLOOKUP($G$11&$D$4,Look_Tbl!$C$6:$T$8790,Look_Tbl!B170,FALSE)="","",HLOOKUP($G$11&$D$4,Look_Tbl!$C$6:$T$8790,Look_Tbl!B170,FALSE))) -> Oct | H175: FY2016 | I175: =IF($D$4="N/A",0,IF(G175="","",HLOOKUP($I$11&$D$4,Look_Tbl!$C$6:$T$8790,Look_Tbl!B170,FALSE))) -> HLH | J175: =IF($D$4="N/A",0,IF(OR(ISBLANK(HLOOKUP($D$3,ResourceInputs!$3:$65536,ResourceInputs!E179)),HLOOKUP($D$3,ResourceInputs!$3:$65536,ResourceInputs!E179)="nonleap"),"",IF((HLOOKUP($D$3,ResourceInputs!$3:$65536,ResourceInputs!$E$16)="Scheduled"),MAX(ROUND(HLOOKUP($D$3,ResourceInputs!$3:$65536,ResourceInputs!E179),0),0),MAX(HLOOKUP($D$3,ResourceInputs!$3:$65536,ResourceInputs!E179),0)))) -> 0.06708 | K175: 0.06708 | M175: 0
F176: 1 | G176: =IF($D$4="N/A","",IF(HLOOKUP($G$11&$D$4,Look_Tbl!$C$6:$T$8790,Look_Tbl!B171,FALSE)="","",HLOOKUP($G$11&$D$4,Look_Tbl!$C$6:$T$8790,Look_Tbl!B171,FALSE))) -> Oct | H176: FY2016 | I176: =IF($D$4="N/A",0,IF(G176="","",HLOOKUP($I$11&$D$4,Look_Tbl!$C$6:$T$8790,Look_Tbl!B171,FALSE))) -> HLH | J176: =IF($D$4="N/A",0,IF(OR(ISBLANK(HLOOKUP($D$3,ResourceInputs!$3:$65536,ResourceInputs!E180)),HLOOKUP($D$3,ResourceInputs!$3:$65536,ResourceInputs!E180)="nonleap"),"",IF((HLOOKUP($D$3,ResourceInputs!$3:$65536,ResourceInputs!$E$16)="Scheduled"),MAX(ROUND(HLOOKUP($D$3,ResourceInputs!$3:$65536,ResourceInputs!E180),0),0),MAX(HLOOKUP($D$3,ResourceInputs!$3:$65536,ResourceInputs!E180),0)))) -> 0.24596 | K176: 0.24596 | M176: 0
F177: 1 | G177: =IF($D$4="N/A","",IF(HLOOKUP($G$11&$D$4,Look_Tbl!$C$6:$T$8790,Look_Tbl!B172,FALSE)="","",HLOOKUP($G$11&$D$4,Look_Tbl!$C$6:$T$8790,Look_Tbl!B172,FALSE))) -> Oct | H177: FY2016 | I177: =IF($D$4="N/A",0,IF(G177="","",HLOOKUP($I$11&$D$4,Look_Tbl!$C$6:$T$8790,Look_Tbl!B172,FALSE))) -> HLH | J177: =IF($D$4="N/A",0,IF(OR(ISBLANK(HLOOKUP($D$3,ResourceInputs!$3:$65536,ResourceInputs!E181)),HLOOKUP($D$3,ResourceInputs!$3:$65536,ResourceInputs!E181)="nonleap"),"",IF((HLOOKUP($D$3,ResourceInputs!$3:$65536,ResourceInputs!$E$16)="Scheduled"),MAX(ROUND(HLOOKUP($D$3,ResourceInputs!$3:$65536,ResourceInputs!E181),0),0),MAX(HLOOKUP($D$3,ResourceInputs!$3:$65536,ResourceInputs!E181),0)))) -> 0.02236 | K177: 0.02236 | M177: 0
F178: 1 | G178: =IF($D$4="N/A","",IF(HLOOKUP($G$11&$D$4,Look_Tbl!$C$6:$T$8790,Look_Tbl!B173,FALSE)="","",HLOOKUP($G$11&$D$4,Look_Tbl!$C$6:$T$8790,Look_Tbl!B173,FALSE))) -> Oct | H178: FY2016 | I178: =IF($D$4="N/A",0,IF(G178="","",HLOOKUP($I$11&$D$4,Look_Tbl!$C$6:$T$8790,Look_Tbl!B173,FALSE))) -> LLH | J178: =IF($D$4="N/A",0,IF(OR(ISBLANK(HLOOKUP($D$3,ResourceInputs!$3:$65536,ResourceInputs!E182)),HLOOKUP($D$3,ResourceInputs!$3:$65536,ResourceInputs!E182)="nonleap"),"",IF((HLOOKUP($D$3,ResourceInputs!$3:$65536,ResourceInputs!$E$16)="Scheduled"),MAX(ROUND(HLOOKUP($D$3,ResourceInputs!$3:$65536,ResourceInputs!E182),0),0),MAX(HLOOKUP($D$3,ResourceInputs!$3:$65536,ResourceInputs!E182),0)))) -> 0.04472 | L178: 0.04472 | N178: 0
F179: 1 | G179: =IF($D$4="N/A","",IF(HLOOKUP($G$11&$D$4,Look_Tbl!$C$6:$T$8790,Look_Tbl!B174,FALSE)="","",HLOOKUP($G$11&$D$4,Look_Tbl!$C$6:$T$8790,Look_Tbl!B174,FALSE))) -> Oct | H179: FY2016 | I179: =IF($D$4="N/A",0,IF(G179="","",HLOOKUP($I$11&$D$4,Look_Tbl!$C$6:$T$8790,Look_Tbl!B174,FALSE))) -> LLH | J179: =IF($D$4="N/A",0,IF(OR(ISBLANK(HLOOKUP($D$3,ResourceInputs!$3:$65536,ResourceInputs!E183)),HLOOKUP($D$3,ResourceInputs!$3:$65536,ResourceInputs!E183)="nonleap"),"",IF((HLOOKUP($D$3,ResourceInputs!$3:$65536,ResourceInputs!$E$16)="Scheduled"),MAX(ROUND(HLOOKUP($D$3,ResourceInputs!$3:$65536,ResourceInputs!E183),0),0),MAX(HLOOKUP($D$3,ResourceInputs!$3:$65536,ResourceInputs!E183),0)))) -> 0.40248 | L179: 0.40248 | N179: 0
F180: 1 | G180: =IF($D$4="N/A","",IF(HLOOKUP($G$11&$D$4,Look_Tbl!$C$6:$T$8790,Look_Tbl!B175,FALSE)="","",HLOOKUP($G$11&$D$4,Look_Tbl!$C$6:$T$8790,Look_Tbl!B175,FALSE))) -> Oct | H180: FY2016 | I180: =IF($D$4="N/A",0,IF(G180="","",HLOOKUP($I$11&$D$4,Look_Tbl!$C$6:$T$8790,Look_Tbl!B175,FALSE))) -> LLH | J180: =IF($D$4="N/A",0,IF(OR(ISBLANK(HLOOKUP($D$3,ResourceInputs!$3:$65536,ResourceInputs!E184)),HLOOKUP($D$3,ResourceInputs!$3:$65536,ResourceInputs!E184)="nonleap"),"",IF((HLOOKUP($D$3,ResourceInputs!$3:$65536,ResourceInputs!$E$16)="Scheduled"),MAX(ROUND(HLOOKUP($D$3,ResourceInputs!$3:$65536,ResourceInputs!E184),0),0),MAX(HLOOKUP($D$3,ResourceInputs!$3:$65536,ResourceInputs!E184),0)))) -> 0.02236 | L180: 0.02236 | N180: 0
F181: 1 | G181: =IF($D$4="N/A","",IF(HLOOKUP($G$11&$D$4,Look_Tbl!$C$6:$T$8790,Look_Tbl!B176,FALSE)="","",HLOOKUP($G$11&$D$4,Look_Tbl!$C$6:$T$8790,Look_Tbl!B176,FALSE))) -> Oct | H181: FY2016 | I181: =IF($D$4="N/A",0,IF(G181="","",HLOOKUP($I$11&$D$4,Look_Tbl!$C$6:$T$8790,Look_Tbl!B176,FALSE))) -> LLH | J181: =IF($D$4="N/A",0,IF(OR(ISBLANK(HLOOKUP($D$3,ResourceInputs!$3:$65536,ResourceInputs!E185)),HLOOKUP($D$3,ResourceInputs!$3:$65536,ResourceInputs!E185)="nonleap"),"",IF((HLOOKUP($D$3,ResourceInputs!$3:$65536,ResourceInputs!$E$16)="Scheduled"),MAX(ROUND(HLOOKUP($D$3,ResourceInputs!$3:$65536,ResourceInputs!E185),0),0),MAX(HLOOKUP($D$3,ResourceInputs!$3:$65536,ResourceInputs!E185),0)))) -> 0 | L181: 0 | N181: 0
F182: 1 | G182: =IF($D$4="N/A","",IF(HLOOKUP($G$11&$D$4,Look_Tbl!$C$6:$T$8790,Look_Tbl!B177,FALSE)="","",HLOOKUP($G$11&$D$4,Look_Tbl!$C$6:$T$8790,Look_Tbl!B177,FALSE))) -> Oct | H182: FY2016 | I182: =IF($D$4="N/A",0,IF(G182="","",HLOOKUP($I$11&$D$4,Look_Tbl!$C$6:$T$8790,Look_Tbl!B177,FALSE))) -> LLH | J182: =IF($D$4="N/A",0,IF(OR(ISBLANK(HLOOKUP($D$3,ResourceInputs!$3:$65536,ResourceInputs!E186)),HLOOKUP($D$3,ResourceInputs!$3:$65536,ResourceInputs!E186)="nonleap"),"",IF((HLOOKUP($D$3,ResourceInputs!$3:$65536,ResourceInputs!$E$16)="Scheduled"),MAX(ROUND(HLOOKUP($D$3,ResourceInputs!$3:$65536,ResourceInputs!E186),0),0),MAX(HLOOKUP($D$3,ResourceInputs!$3:$65536,ResourceInputs!E186),0)))) -> 0 | L182: 0 | N182: 0
F183: 1 | G183: =IF($D$4="N/A","",IF(HLOOKUP($G$11&$D$4,Look_Tbl!$C$6:$T$8790,Look_Tbl!B178,FALSE)="","",HLOOKUP($G$11&$D$4,Look_Tbl!$C$6:$T$8790,Look_Tbl!B178,FALSE))) -> Oct | H183: FY2016 | I183: =IF($D$4="N/A",0,IF(G183="","",HLOOKUP($I$11&$D$4,Look_Tbl!$C$6:$T$8790,Look_Tbl!B178,FALSE))) -> LLH | J183: =IF($D$4="N/A",0,IF(OR(ISBLANK(HLOOKUP($D$3,ResourceInputs!$3:$65536,ResourceInputs!E187)),HLOOKUP($D$3,ResourceInputs!$3:$65536,ResourceInputs!E187)="nonleap"),"",IF((HLOOKUP($D$3,ResourceInputs!$3:$65536,ResourceInputs!$E$16)="Scheduled"),MAX(ROUND(HLOOKUP($D$3,ResourceInputs!$3:$65536,ResourceInputs!E187),0),0),MAX(HLOOKUP($D$3,ResourceInputs!$3:$65536,ResourceInputs!E187),0)))) -> 0 | L183: 0 | N183: 0
F184: 1 | G184: =IF($D$4="N/A","",IF(HLOOKUP($G$11&$D$4,Look_Tbl!$C$6:$T$8790,Look_Tbl!B179,FALSE)="","",HLOOKUP($G$11&$D$4,Look_Tbl!$C$6:$T$8790,Look_Tbl!B179,FALSE))) -> Oct | H184: FY2016 | I184: =IF($D$4="N/A",0,IF(G184="","",HLOOKUP($I$11&$D$4,Look_Tbl!$C$6:$T$8790,Look_Tbl!B179,FALSE))) -> LLH | J184: =IF($D$4="N/A",0,IF(OR(ISBLANK(HLOOKUP($D$3,ResourceInputs!$3:$65536,ResourceInputs!E188)),HLOOKUP($D$3,ResourceInputs!$3:$65536,ResourceInputs!E188)="nonleap"),"",IF((HLOOKUP($D$3,ResourceInputs!$3:$65536,ResourceInputs!$E$16)="Scheduled"),MAX(ROUND(HLOOKUP($D$3,ResourceInputs!$3:$65536,ResourceInputs!E188),0),0),MAX(HLOOKUP($D$3,ResourceInputs!$3:$65536,ResourceInputs!E188),0)))) -> 0 | L184: 0 | N184: 0
F185: 1 | G185: =IF($D$4="N/A","",IF(HLOOKUP($G$11&$D$4,Look_Tbl!$C$6:$T$8790,Look_Tbl!B180,FALSE)="","",HLOOKUP($G$11&$D$4,Look_Tbl!$C$6:$T$8790,Look_Tbl!B180,FALSE))) -> Oct | H185: FY2016 | I185: =IF($D$4="N/A",0,IF(G185="","",HLOOKUP($I$11&$D$4,Look_Tbl!$C$6:$T$8790,Look_Tbl!B180,FALSE))) -> LLH | J185: =IF($D$4="N/A",0,IF(OR(ISBLANK(HLOOKUP($D$3,ResourceInputs!$3:$65536,ResourceInputs!E189)),HLOOKUP($D$3,ResourceInputs!$3:$65536,ResourceInputs!E189)="nonleap"),"",IF((HLOOKUP($D$3,ResourceInputs!$3:$65536,ResourceInputs!$E$16)="Scheduled"),MAX(ROUND(HLOOKUP($D$3,ResourceInputs!$3:$65536,ResourceInputs!E189),0),0),MAX(HLOOKUP($D$3,ResourceInputs!$3:$65536,ResourceInputs!E189),0)))) -> 0 | L185: 0 | N185: 0
F186: 1 | G186: =IF($D$4="N/A","",IF(HLOOKUP($G$11&$D$4,Look_Tbl!$C$6:$T$8790,Look_Tbl!B181,FALSE)="","",HLOOKUP($G$11&$D$4,Look_Tbl!$C$6:$T$8790,Look_Tbl!B181,FALSE))) -> Oct | H186: FY2016 | I186: =IF($D$4="N/A",0,IF(G186="","",HLOOKUP($I$11&$D$4,Look_Tbl!$C$6:$T$8790,Look_Tbl!B181,FALSE))) -> HLH | J186: =IF($D$4="N/A",0,IF(OR(ISBLANK(HLOOKUP($D$3,ResourceInputs!$3:$65536,ResourceInputs!E190)),HLOOKUP($D$3,ResourceInputs!$3:$65536,ResourceInputs!E190)="nonleap"),"",IF((HLOOKUP($D$3,ResourceInputs!$3:$65536,ResourceInputs!$E$16)="Scheduled"),MAX(ROUND(HLOOKUP($D$3,ResourceInputs!$3:$65536,ResourceInputs!E190),0),0),MAX(HLOOKUP($D$3,ResourceInputs!$3:$65536,ResourceInputs!E190),0)))) -> 0 | K186: 0 | M186: 0
F187: 1 | G187: =IF($D$4="N/A","",IF(HLOOKUP($G$11&$D$4,Look_Tbl!$C$6:$T$8790,Look_Tbl!B182,FALSE)="","",HLOOKUP($G$11&$D$4,Look_Tbl!$C$6:$T$8790,Look_Tbl!B182,FALSE))) -> Oct | H187: FY2016 | I187: =IF($D$4="N/A",0,IF(G187="","",HLOOKUP($I$11&$D$4,Look_Tbl!$C$6:$T$8790,Look_Tbl!B182,FALSE))) -> HLH | J187: =IF($D$4="N/A",0,IF(OR(ISBLANK(HLOOKUP($D$3,ResourceInputs!$3:$65536,ResourceInputs!E191)),HLOOKUP($D$3,ResourceInputs!$3:$65536,ResourceInputs!E191)="nonleap"),"",IF((HLOOKUP($D$3,ResourceInputs!$3:$65536,ResourceInputs!$E$16)="Scheduled"),MAX(ROUND(HLOOKUP($D$3,ResourceInputs!$3:$65536,ResourceInputs!E191),0),0),MAX(HLOOKUP($D$3,ResourceInputs!$3:$65536,ResourceInputs!E191),0)))) -> 0.53664 | K187: 0.53664 | M187: 0
F188: 1 | G188: =IF($D$4="N/A","",IF(HLOOKUP($G$11&$D$4,Look_Tbl!$C$6:$T$8790,Look_Tbl!B183,FALSE)="","",HLOOKUP($G$11&$D$4,Look_Tbl!$C$6:$T$8790,Look_Tbl!B183,FALSE))) -> Oct | H188: FY2016 | I188: =IF($D$4="N/A",0,IF(G188="","",HLOOKUP($I$11&$D$4,Look_Tbl!$C$6:$T$8790,Look_Tbl!B183,FALSE))) -> HLH | J188: =IF($D$4="N/A",0,IF(OR(ISBLANK(HLOOKUP($D$3,ResourceInputs!$3:$65536,ResourceInputs!E192)),HLOOKUP($D$3,ResourceInputs!$3:$65536,ResourceInputs!E192)="nonleap"),"",IF((HLOOKUP($D$3,ResourceInputs!$3:$65536,ResourceInputs!$E$16)="Scheduled"),MAX(ROUND(HLOOKUP($D$3,ResourceInputs!$3:$65536,ResourceInputs!E192),0),0),MAX(HLOOKUP($D$3,ResourceInputs!$3:$65536,ResourceInputs!E192),0)))) -> 0.6708 | K188: 0.6708 | M188: 0
F189: 1 | G189: =IF($D$4="N/A","",IF(HLOOKUP($G$11&$D$4,Look_Tbl!$C$6:$T$8790,Look_Tbl!B184,FALSE)="","",HLOOKUP($G$11&$D$4,Look_Tbl!$C$6:$T$8790,Look_Tbl!B184,FALSE))) -> Oct | H189: FY2016 | I189: =IF($D$4="N/A",0,IF(G189="","",HLOOKUP($I$11&$D$4,Look_Tbl!$C$6:$T$8790,Look_Tbl!B184,FALSE))) -> HLH | J189: =IF($D$4="N/A",0,IF(OR(ISBLANK(HLOOKUP($D$3,ResourceInputs!$3:$65536,ResourceInputs!E193)),HLOOKUP($D$3,ResourceInputs!$3:$65536,ResourceInputs!E193)="nonleap"),"",IF((HLOOKUP($D$3,ResourceInputs!$3:$65536,ResourceInputs!$E$16)="Scheduled"),MAX(ROUND(HLOOKUP($D$3,ResourceInputs!$3:$65536,ResourceInputs!E193),0),0),MAX(HLOOKUP($D$3,ResourceInputs!$3:$65536,ResourceInputs!E193),0)))) -> 1.4534 | K189: 1.4534 | M189: 0
F190: 1 | G190: =IF($D$4="N/A","",IF(HLOOKUP($G$11&$D$4,Look_Tbl!$C$6:$T$8790,Look_Tbl!B185,FALSE)="","",HLOOKUP($G$11&$D$4,Look_Tbl!$C$6:$T$8790,Look_Tbl!B185,FALSE))) -> Oct | H190: FY2016 | I190: =IF($D$4="N/A",0,IF(G190="","",HLOOKUP($I$11&$D$4,Look_Tbl!$C$6:$T$8790,Look_Tbl!B185,FALSE))) -> HLH | J190: =IF($D$4="N/A",0,IF(OR(ISBLANK(HLOOKUP($D$3,ResourceInputs!$3:$65536,ResourceInputs!E194)),HLOOKUP($D$3,ResourceInputs!$3:$65536,ResourceInputs!E194)="nonleap"),"",IF((HLOOKUP($D$3,ResourceInputs!$3:$65536,ResourceInputs!$E$16)="Scheduled"),MAX(ROUND(HLOOKUP($D$3,ResourceInputs!$3:$65536,ResourceInputs!E194),0),0),MAX(HLOOKUP($D$3,ResourceInputs!$3:$65536,ResourceInputs!E194),0)))) -> 0.91676 | K190: 0.91676 | M190: 0
F191: 1 | G191: =IF($D$4="N/A","",IF(HLOOKUP($G$11&$D$4,Look_Tbl!$C$6:$T$8790,Look_Tbl!B186,FALSE)="","",HLOOKUP($G$11&$D$4,Look_Tbl!$C$6:$T$8790,Look_Tbl!B186,FALSE))) -> Oct | H191: FY2016 | I191: =IF($D$4="N/A",0,IF(G191="","",HLOOKUP($I$11&$D$4,Look_Tbl!$C$6:$T$8790,Look_Tbl!B186,FALSE))) -> HLH | J191: =IF($D$4="N/A",0,IF(OR(ISBLANK(HLOOKUP($D$3,ResourceInputs!$3:$65536,ResourceInputs!E195)),HLOOKUP($D$3,ResourceInputs!$3:$65536,ResourceInputs!E195)="nonleap"),"",IF((HLOOKUP($D$3,ResourceInputs!$3:$65536,ResourceInputs!$E$16)="Scheduled"),MAX(ROUND(HLOOKUP($D$3,ResourceInputs!$3:$65536,ResourceInputs!E195),0),0),MAX(HLOOKUP($D$3,ResourceInputs!$3:$65536,ResourceInputs!E195),0)))) -> 1.60992 | K191: 1.60992 | M191: 0
F192: 1 | G192: =IF($D$4="N/A","",IF(HLOOKUP($G$11&$D$4,Look_Tbl!$C$6:$T$8790,Look_Tbl!B187,FALSE)="","",HLOOKUP($G$11&$D$4,Look_Tbl!$C$6:$T$8790,Look_Tbl!B187,FALSE))) -> Oct | H192: FY2016 | I192: =IF($D$4="N/A",0,IF(G192="","",HLOOKUP($I$11&$D$4,Look_Tbl!$C$6:$T$8790,Look_Tbl!B187,FALSE))) -> HLH | J192: =IF($D$4="N/A",0,IF(OR(ISBLANK(HLOOKUP($D$3,ResourceInputs!$3:$65536,ResourceInputs!E196)),HLOOKUP($D$3,ResourceInputs!$3:$65536,ResourceInputs!E196)="nonleap"),"",IF((HLOOKUP($D$3,ResourceInputs!$3:$65536,ResourceInputs!$E$16)="Scheduled"),MAX(ROUND(HLOOKUP($D$3,ResourceInputs!$3:$65536,ResourceInputs!E196),0),0),MAX(HLOOKUP($D$3,ResourceInputs!$3:$65536,ResourceInputs!E196),0)))) -> 1.63228 | K192: 1.63228 | M192: 0
F193: 1 | G193: =IF($D$4="N/A","",IF(HLOOKUP($G$11&$D$4,Look_Tbl!$C$6:$T$8790,Look_Tbl!B188,FALSE)="","",HLOOKUP($G$11&$D$4,Look_Tbl!$C$6:$T$8790,Look_Tbl!B188,FALSE))) -> Oct | H193: FY2016 | I193: =IF($D$4="N/A",0,IF(G193="","",HLOOKUP($I$11&$D$4,Look_Tbl!$C$6:$T$8790,Look_Tbl!B188,FALSE))) -> HLH | J193: =IF($D$4="N/A",0,IF(OR(ISBLANK(HLOOKUP($D$3,ResourceInputs!$3:$65536,ResourceInputs!E197)),HLOOKUP($D$3,ResourceInputs!$3:$65536,ResourceInputs!E197)="nonleap"),"",IF((HLOOKUP($D$3,ResourceInputs!$3:$65536,ResourceInputs!$E$16)="Scheduled"),MAX(ROUND(HLOOKUP($D$3,ResourceInputs!$3:$65536,ResourceInputs!E197),0),0),MAX(HLOOKUP($D$3,ResourceInputs!$3:$65536,ResourceInputs!E197),0)))) -> 2.48196 | K193: 2.48196 | M193: 0
F194: 1 | G194: =IF($D$4="N/A","",IF(HLOOKUP($G$11&$D$4,Look_Tbl!$C$6:$T$8790,Look_Tbl!B189,FALSE)="","",HLOOKUP($G$11&$D$4,Look_Tbl!$C$6:$T$8790,Look_Tbl!B189,FALSE))) -> Oct | H194: FY2016 | I194: =IF($D$4="N/A",0,IF(G194="","",HLOOKUP($I$11&$D$4,Look_Tbl!$C$6:$T$8790,Look_Tbl!B189,FALSE))) -> HLH | J194: =IF($D$4="N/A",0,IF(OR(ISBLANK(HLOOKUP($D$3,ResourceInputs!$3:$65536,ResourceInputs!E198)),HLOOKUP($D$3,ResourceInputs!$3:$65536,ResourceInputs!E198)="nonleap"),"",IF((HLOOKUP($D$3,ResourceInputs!$3:$65536,ResourceInputs!$E$16)="Scheduled"),MAX(ROUND(HLOOKUP($D$3,ResourceInputs!$3:$65536,ResourceInputs!E198),0),0),MAX(HLOOKUP($D$3,ResourceInputs!$3:$65536,ResourceInputs!E198),0)))) -> 2.07948 | K194: 2.07948 | M194: 0
F195: 1 | G195: =IF($D$4="N/A","",IF(HLOOKUP($G$11&$D$4,Look_Tbl!$C$6:$T$8790,Look_Tbl!B190,FALSE)="","",HLOOKUP($G$11&$D$4,Look_Tbl!$C$6:$T$8790,Look_Tbl!B190,FALSE))) -> Oct | H195: FY2016 | I195: =IF($D$4="N/A",0,IF(G195="","",HLOOKUP($I$11&$D$4,Look_Tbl!$C$6:$T$8790,Look_Tbl!B190,FALSE))) -> HLH | J195: =IF($D$4="N/A",0,IF(OR(ISBLANK(HLOOKUP($D$3,ResourceInputs!$3:$65536,ResourceInputs!E199)),HLOOKUP($D$3,ResourceInputs!$3:$65536,ResourceInputs!E199)="nonleap"),"",IF((HLOOKUP($D$3,ResourceInputs!$3:$65536,ResourceInputs!$E$16)="Scheduled"),MAX(ROUND(HLOOKUP($D$3,ResourceInputs!$3:$65536,ResourceInputs!E199),0),0),MAX(HLOOKUP($D$3,ResourceInputs!$3:$65536,ResourceInputs!E199),0)))) -> 2.99624 | K195: 2.99624 | M195: 0
F196: 1 | G196: =IF($D$4="N/A","",IF(HLOOKUP($G$11&$D$4,Look_Tbl!$C$6:$T$8790,Look_Tbl!B191,FALSE)="","",HLOOKUP($G$11&$D$4,Look_Tbl!$C$6:$T$8790,Look_Tbl!B191,FALSE))) -> Oct | H196: FY2016 | I196: =IF($D$4="N/A",0,IF(G196="","",HLOOKUP($I$11&$D$4,Look_Tbl!$C$6:$T$8790,Look_Tbl!B191,FALSE))) -> HLH | J196: =IF($D$4="N/A",0,IF(OR(ISBLANK(HLOOKUP($D$3,ResourceInputs!$3:$65536,ResourceInputs!E200)),HLOOKUP($D$3,ResourceInputs!$3:$65536,ResourceInputs!E200)="nonleap"),"",IF((HLOOKUP($D$3,ResourceInputs!$3:$65536,ResourceInputs!$E$16)="Scheduled"),MAX(ROUND(HLOOKUP($D$3,ResourceInputs!$3:$65536,ResourceInputs!E200),0),0),MAX(HLOOKUP($D$3,ResourceInputs!$3:$65536,ResourceInputs!E200),0)))) -> 4.1366 | K196: 4.1366 | M196: 0
F197: 1 | G197: =IF($D$4="N/A","",IF(HLOOKUP($G$11&$D$4,Look_Tbl!$C$6:$T$8790,Look_Tbl!B192,FALSE)="","",HLOOKUP($G$11&$D$4,Look_Tbl!$C$6:$T$8790,Look_Tbl!B192,FALSE))) -> Oct | H197: FY2016 | I197: =IF($D$4="N/A",0,IF(G197="","",HLOOKUP($I$11&$D$4,Look_Tbl!$C$6:$T$8790,Look_Tbl!B192,FALSE))) -> HLH | J197: =IF($D$4="N/A",0,IF(OR(ISBLANK(HLOOKUP($D$3,ResourceInputs!$3:$65536,ResourceInputs!E201)),HLOOKUP($D$3,ResourceInputs!$3:$65536,ResourceInputs!E201)="nonleap"),"",IF((HLOOKUP($D$3,ResourceInputs!$3:$65536,ResourceInputs!$E$16)="Scheduled"),MAX(ROUND(HLOOKUP($D$3,ResourceInputs!$3:$65536,ResourceInputs!E201),0),0),MAX(HLOOKUP($D$3,ResourceInputs!$3:$65536,ResourceInputs!E201),0)))) -> 3.73412 | K197: 3.73412 | M197: 0
F198: 1 | G198: =IF($D$4="N/A","",IF(HLOOKUP($G$11&$D$4,Look_Tbl!$C$6:$T$8790,Look_Tbl!B193,FALSE)="","",HLOOKUP($G$11&$D$4,Look_Tbl!$C$6:$T$8790,Look_Tbl!B193,FALSE))) -> Oct | H198: FY2016 | I198: =IF($D$4="N/A",0,IF(G198="","",HLOOKUP($I$11&$D$4,Look_Tbl!$C$6:$T$8790,Look_Tbl!B193,FALSE))) -> HLH | J198: =IF($D$4="N/A",0,IF(OR(ISBLANK(HLOOKUP($D$3,ResourceInputs!$3:$65536,ResourceInputs!E202)),HLOOKUP($D$3,ResourceInputs!$3:$65536,ResourceInputs!E202)="nonleap"),"",IF((HLOOKUP($D$3,ResourceInputs!$3:$65536,ResourceInputs!$E$16)="Scheduled"),MAX(ROUND(HLOOKUP($D$3,ResourceInputs!$3:$65536,ResourceInputs!E202),0),0),MAX(HLOOKUP($D$3,ResourceInputs!$3:$65536,ResourceInputs!E202),0)))) -> 4.31548 | K198: 4.31548 | M198: 0
F199: 1 | G199: =IF($D$4="N/A","",IF(HLOOKUP($G$11&$D$4,Look_Tbl!$C$6:$T$8790,Look_Tbl!B194,FALSE)="","",HLOOKUP($G$11&$D$4,Look_Tbl!$C$6:$T$8790,Look_Tbl!B194,FALSE))) -> Oct | H199: FY2016 | I199: =IF($D$4="N/A",0,IF(G199="","",HLOOKUP($I$11&$D$4,Look_Tbl!$C$6:$T$8790,Look_Tbl!B194,FALSE))) -> HLH | J199: =IF($D$4="N/A",0,IF(OR(ISBLANK(HLOOKUP($D$3,ResourceInputs!$3:$65536,ResourceInputs!E203)),HLOOKUP($D$3,ResourceInputs!$3:$65536,ResourceInputs!E203)="nonleap"),"",IF((HLOOKUP($D$3,ResourceInputs!$3:$65536,ResourceInputs!$E$16)="Scheduled"),MAX(ROUND(HLOOKUP($D$3,ResourceInputs!$3:$65536,ResourceInputs!E203),0),0),MAX(HLOOKUP($D$3,ResourceInputs!$3:$65536,ResourceInputs!E203),0)))) -> 2.86208 | K199: 2.86208 | M199: 0
F200: 1 | G200: =IF($D$4="N/A","",IF(HLOOKUP($G$11&$D$4,Look_Tbl!$C$6:$T$8790,Look_Tbl!B195,FALSE)="","",HLOOKUP($G$11&$D$4,Look_Tbl!$C$6:$T$8790,Look_Tbl!B195,FALSE))) -> Oct | H200: FY2016 | I200: =IF($D$4="N/A",0,IF(G200="","",HLOOKUP($I$11&$D$4,Look_Tbl!$C$6:$T$8790,Look_Tbl!B195,FALSE))) -> HLH | J200: =IF($D$4="N/A",0,IF(OR(ISBLANK(HLOOKUP($D$3,ResourceInputs!$3:$65536,ResourceInputs!E204)),HLOOKUP($D$3,ResourceInputs!$3:$65536,ResourceInputs!E204)="nonleap"),"",IF((HLOOKUP($D$3,ResourceInputs!$3:$65536,ResourceInputs!$E$16)="Scheduled"),MAX(ROUND(HLOOKUP($D$3,ResourceInputs!$3:$65536,ResourceInputs!E204),0),0),MAX(HLOOKUP($D$3,ResourceInputs!$3:$65536,ResourceInputs!E204),0)))) -> 2.32544 | K200: 2.32544 | M200: 0
... 4300 more rows

Sheet RSSRateCalculator
B1: RSSRateCalculator
A2: TOC | B2: =Cover!C14 -> RSSModel.BP18Publicexample.xlsm
A3: é | C3: Key | D3: ='ResourceSelect&Sort&Summarize'!D3 -> 10001
C4: Resource Output Data Year | D4: ='ResourceSelect&Sort&Summarize'!D4 -> FY2016 | H4: =ResourceProfiles!D12 -> Diurnal Flattening Service | I4: =HLOOKUP($D$3,ResourceProfiles!$F$4:$IV$126,ResourceProfiles!A12) -> Yes | P4: =ResourceProfiles!D65 -> Apply RSC within ExhA/Tier2Obl/SCS/GMS/TSSOnly | Q4: =HLOOKUP($D$3,ResourceProfiles!$F$4:$IV$126,ResourceProfiles!A65) -> No | S4: =IF($D$10=ResourceProfiles!$D$68,TRUE,FALSE) -> FALSE | Y4: FOR Service | Z4: =HLOOKUP($D$3,ResourceProfiles!$F$4:$IV$126,ResourceProfiles!A13) -> No | AC4: TSS | AD4: =HLOOKUP($D$3,ResourceProfiles!$F$4:$IV$126,ResourceProfiles!A62) -> Yes | AF4: TCMS | AG4: =HLOOKUP($D$3,ResourceProfiles!$F$4:$IV$126,ResourceProfiles!A63) -> Yes | AI4: SCS | AJ4: =HLOOKUP($D$3,ResourceProfiles!$F$4:$IV$126,ResourceProfiles!A15) -> No | AL4: GMS | AM4: =HLOOKUP($D$3,ResourceProfiles!$F$4:$IV$126,ResourceProfiles!A16) -> No
C5: Model Identifier | D5: ='ResourceSelect&Sort&Summarize'!D5 -> NF.1.Wind.1.2018_2019 | P5: ='ResourceSelect&Sort&Summarize'!T2 -> Exhibit A Amounts or Tier 2 Obligations Amounts FY2018 Annual aMW | Q5: ='ResourceSelect&Sort&Summarize'!U2 -> 15.96662466 | Y5: FOR Rating | Z5: ='ResourceSelect&Sort&Summarize'!AD9 -> 0 | AB5: Unspecified Resource? | AD5: =IF(HLOOKUP($D$3,ResourceProfiles!$F$4:$IV$126,7)="Unspecified Resource Amounts", "Yes","No") -> No
C6: BES_ID | D6: ='ResourceSelect&Sort&Summarize'!D6 -> BPA | P6: ='ResourceSelect&Sort&Summarize'!T3 -> Exhibit A Amounts or Tier 2 Obligations Amounts FY2019 Annual aMW | Q6: ='ResourceSelect&Sort&Summarize'!U3 -> 15.945 | AD6: =IF(HLOOKUP($D$3,ResourceProfiles!$F$4:$IX$126,58)="Yes", "Yes","No") -> No
C7: Purchaser | D7: ='ResourceSelect&Sort&Summarize'!D7 -> Tier 1 | AC7: Multiplier | AD7: =IF(AND(AD5="Yes",AD6="No"),RateInputs!I4*3,RateInputs!I4) -> 1
C8: Resource Name | D8: ='ResourceSelect&Sort&Summarize'!D8 -> BreezyWind
C9: Services & RSC | D9: ='ResourceSelect&Sort&Summarize'!D9 -> DFS TSS TCMS RSC
C10: Applicable Year(s) | D10: ='ResourceSelect&Sort&Summarize'!D10 -> FY2018&FY2019 | H10: DFS Energy | J10: DFS Capacity | T10: Resource Shaping Charge | Y10: FOR Capacity | AC10: TSS | AF10: TCMS | AI10: SCS | AL10: GMS
B11: Month | C11: =RateInputs!S5 -> HLH Hours 2018 | D11: =RateInputs!T5 -> LLH Hours 2018 | E11: =RateInputs!U5 -> HLH Hours 2019 | F11: =RateInputs!V5 -> LLH Hours 2019 | H11: ="Cost @ "&RateInputs!I6*100&"% Losses HLH" -> Cost @ 25% Losses HLH | I11: ="Cost @ "&RateInputs!I6*100&"% Losses LLH" -> Cost @ 25% Losses LLH | J11: Firm Capacity (kW) | K11: Monthly Demand Rates | L11: Monthly Capacity Costs | N11: =ResourceProfiles!$D$67&" "&ResourceProfiles!D68&" HLH (MWh)" -> Exhibit A Amounts or Tier 2 Obligations Amounts FY2018 HLH (MWh) | O11: =ResourceProfiles!$D$67&" "&ResourceProfiles!$D$68&" LLH (MWh)" -> Exhibit A Amounts or Tier 2 Obligations Amounts FY2018 LLH (MWh) | P11: =ResourceProfiles!$D$67&" "&ResourceProfiles!$D$97&" HLH (MWh)" -> Exhibit A Amounts or Tier 2 Obligations Amounts FY2019 HLH (MWh) | Q11: =ResourceProfiles!$D$67&" "&ResourceProfiles!$D$97&" LLH (MWh)" -> Exhibit A Amounts or Tier 2 Obligations Amounts FY2019 LLH (MWh) | R11: ="Planned Amounts "&'ResourceSelect&Sort&Summarize'!V11 -> Planned Amounts HLH Total MWh | S11: ="Planned Amounts "&'ResourceSelect&Sort&Summarize'!W11 -> Planned Amounts LLH Total MWh | T11: ="HLH "&ResourceProfiles!D68 -> HLH FY2018 | U11: ="LLH "&ResourceProfiles!$D$68 -> LLH FY2018 | V11: ="HLH "&ResourceProfiles!$D$97 -> HLH FY2019 | W11: ="LLH "&ResourceProfiles!$D$97 -> LLH FY2019 | Y11: =ResourceProfiles!$D$68&" Monthly Reservation Costs" -> FY2018 Monthly Reservation Costs | Z11: =ResourceProfiles!$D$97&" Monthly Reservation Costs" -> FY2019 Monthly Reservation Costs | AA11: FORE Limits (MWh) | AC11: $/MWh Rate | AD11: $/mo | AG11: $/mo | AI11: =ResourceProfiles!$D$68&" Monthly Admin Fee" -> FY2018 Monthly Admin Fee | AJ11: =ResourceProfiles!$D$97&" Monthly Admin Fee" -> FY2019 Monthly Admin Fee | AL11: =ResourceProfiles!$D$68&" Monthly Service Fee" -> FY2018 Monthly Service Fee | AM11: =ResourceProfiles!$D$97&" Monthly Service Fee" -> FY2019 Monthly Service Fee | AP11: =ResourceProfiles!$D$68 &" HLH BPA Capacity Obligation (kW)" -> FY2018 HLH BPA Capacity Obligation (kW) | AQ11: =ResourceProfiles!$D$97 &" HLH BPA Capacity Obligation (kW)" -> FY2019 HLH BPA Capacity Obligation (kW) | AR11: =ResourceProfiles!$D$68 &" HLH BPA Capacity Obligation (kW)" -> FY2018 HLH BPA Capacity Obligation (kW) | AS11: =ResourceProfiles!$D$97 &" HLH BPA Capacity Obligation (kW)" -> FY2019 HLH BPA Capacity Obligation (kW)
B12: October | C12: =RateInputs!S6 -> 416 | D12: =RateInputs!T6 -> 328 | E12: =RateInputs!U6 -> 432 | F12: =RateInputs!V6 -> 312 | H12: ='ResourceSelect&Sort&Summarize'!AL12*RateInputs!$I$6*RateInputs!F6 -> 18203.255 | I12: ='ResourceSelect&Sort&Summarize'!AM12*RateInputs!$I$6*RateInputs!G6 -> 9288.37 | J12: =IF($I$4="no",0,'ResourceSelect&Sort&Summarize'!AG12) -> 0 | K12: =RateInputs!H6 -> 10.45 | L12: =IF($I$4="yes",MAX(('ResourceSelect&Sort&Summarize'!P12/'ResourceSelect&Sort&Summarize'!C12*1000-J12)*K12,0),0) -> 122171.6912 | N12: =HLOOKUP($D$3,ResourceProfiles!$F$4:$IV$126,ResourceProfiles!A71) -> 6623.968 | O12: =HLOOKUP($D$3,ResourceProfiles!$F$4:$IV$126,ResourceProfiles!A84) -> 5222.744 | P12: =HLOOKUP($D$3,ResourceProfiles!$F$4:$IV$126,ResourceProfiles!A100) -> 6888.24 | Q12: =HLOOKUP($D$3,ResourceProfiles!$F$4:$IV$126,ResourceProfiles!A113) -> 4974.84 | R12: ='ResourceSelect&Sort&Summarize'!V12 -> 5050.54264 | S12: ='ResourceSelect&Sort&Summarize'!W12 -> 2944.52132 | T12: =ROUND(IF(OR(LEFT($D$10,6)=ResourceProfiles!$D$97,$Q$4="GMS",$Q$4="SCS",$Q$4="TSSOnly"),0,IF($Q$4="yes",($Q$5*C12-N12)*RateInputs!F6,($Q$5*C12-R12)*RateInputs!F6)),0) -> 42559 | U12: =ROUND(IF(OR(LEFT($D$10,6)=ResourceProfiles!$D$97,$Q$4="GMS",$Q$4="SCS",$Q$4="TSSOnly"),0,IF($Q$4="yes",($Q$5*D12-O12)*RateInputs!G6,($Q$5*D12-S12)*RateInputs!G6)),0) -> 51559 | V12: =ROUND(IF(OR(RIGHT($D$10,6)=ResourceProfiles!$D$68,$Q$4="GMS",$Q$4="SCS",$Q$4="TSSOnly"),0,IF($Q$4="yes",($Q$6*E12-P12)*RateInputs!H6,($Q$6*E12-R12)*RateInputs!F6)),0) -> 49140 | W12: =ROUND(IF(OR(RIGHT($D$10,6)=ResourceProfiles!$D$68,$Q$4="GMS",$Q$4="SCS",$Q$4="TSSOnly"),0,IF($Q$4="yes",($Q$6*F12-Q12)*RateInputs!I6,($Q$6*F12-S12)*RateInputs!G6)),0) -> 45662 | Y12: =IF($Z$4="no",0,IF(OR($D$10=ResourceProfiles!$D$68,$D$10=ResourceProfiles!$D$68 & "&" & ResourceProfiles!$D$97),IF(AND($Z$4="yes",$Q$4="yes"),N12/C12*K12*1000*$Z$5,J12*K12*$Z$5),0)) -> 0 | Z12: =IF($Z$4="no",0,IF(OR($D$10=ResourceProfiles!$D$97,$D$10=ResourceProfiles!$D$68 & "&" & ResourceProfiles!$D$97),IF(AND($Z$4="yes",$Q$4="yes"),P12/C12*K12*1000*$Z$5,J12*K12*$Z$5),0)) -> 0 | AA12: =IF($Z$4="no","N/A",ROUND($Z$5*R12,0)+ROUND($Z$5*S12,0)) -> N/A | AC12: =ROUND((RateInputs!K6+RateInputs!L6)/(RateInputs!M6+RateInputs!N6),2) -> 0.14 | AD12: =IF($AD$5="yes",ROUND((RateInputs!K6+RateInputs!L6)/(RateInputs!O6+RateInputs!P6)*30*AD7,2),ROUND((RateInputs!K6+RateInputs!L6)/(RateInputs!O6+RateInputs!P6)*30,2)) -> 977.6 | AG12: 0 | AI12: =IF($AJ$4="no",0,$Z$5*N12/C12*RateInputs!H6*1000) -> 0 | AJ12: =IF($AJ$4="no",0,$Z$5*P12/E12*RateInputs!H6*1000) -> 0 | AL12: =IF($AM$4="no",0,$Z$5*N12/C12*RateInputs!H6*1000) -> 0 | AM12: =IF($AM$4="no",0,$Z$5*P12/E12*RateInputs!H6*1000) -> 0 | AO12: October | AP12: =ROUND((IF($D$10=ResourceProfiles!$D$68,0,IF($I$4="yes",MAX(0,(R12/C12*1000-J12)+IF($Z$4="no",0,$Z$5*J12)),IF(OR($Z$4="yes",$AJ$4="yes",$AM$4="yes"),$Z$5*N12/C12*1000,0)))),0) -> 12141 | AQ12: =ROUND((IF($D$10=ResourceProfiles!$D$97,0,IF($I$4="yes",MAX(0,(S12/D12*1000-'ResourceSelect&Sort&Summarize'!AP12)+IF($Z$4="no",0,$Z$5*'ResourceSelect&Sort&Summarize'!AP12)),IF(OR($Z$4="yes",$AJ$4="yes",$AM$4="yes"),$Z$5*O12/D12*1000,0)))),0) -> 8977 | AR12: =ROUND((IF($D$10=ResourceProfiles!$D$68,0,IF($I$4="yes",MAX(0,(R12/E12*1000-J12)+IF($Z$4="no",0,$Z$5*J12)),IF(OR($Z$4="yes",$AJ$4="yes",$AM$4="yes"),$Z$5*P12/E12*1000,0)))),0) -> 11691 | AS12: =ROUND((IF($D$10=ResourceProfiles!$D$97,0,IF($I$4="yes",MAX(0,(S12/F12*1000-'ResourceSelect&Sort&Summarize'!AP12)+IF($Z$4="no",0,$Z$5*'ResourceSelect&Sort&Summarize'!AP12)),IF(OR($Z$4="yes",$AJ$4="yes",$AM$4="yes"),$Z$5*Q12/F12*1000,0)))),0) -> 9438
B13: November | C13: =RateInputs!S7 -> 400 | D13: =RateInputs!T7 -> 321 | E13: =RateInputs!U7 -> 400 | F13: =RateInputs!V7 -> 321 | H13: ='ResourceSelect&Sort&Summarize'!AL13*RateInputs!$I$6*RateInputs!F7 -> 16586.9775 | I13: ='ResourceSelect&Sort&Summarize'!AM13*RateInputs!$I$6*RateInputs!G7 -> 12536.995 | J13: =IF($I$4="no",0,'ResourceSelect&Sort&Summarize'!AG13) -> 0 | K13: =RateInputs!H7 -> 10.65 | L13: =IF($I$4="yes",MAX(('ResourceSelect&Sort&Summarize'!P13/'ResourceSelect&Sort&Summarize'!C13*1000-J13)*K13,0),0) -> 127317.1524 | N13: =HLOOKUP($D$3,ResourceProfiles!$F$4:$IV$126,ResourceProfiles!A72) -> 6369.2 | O13: =HLOOKUP($D$3,ResourceProfiles!$F$4:$IV$126,ResourceProfiles!A85) -> 5111.283 | P13: =HLOOKUP($D$3,ResourceProfiles!$F$4:$IV$126,ResourceProfiles!A101) -> 6378 | Q13: =HLOOKUP($D$3,ResourceProfiles!$F$4:$IV$126,ResourceProfiles!A114) -> 5118.345 | R13: ='ResourceSelect&Sort&Summarize'!V13 -> 4781.86488 | S13: ='ResourceSelect&Sort&Summarize'!W13 -> 3625.42804 | T13: =ROUND(IF(OR(LEFT($D$10,6)=ResourceProfiles!$D$97,$Q$4="GMS",$Q$4="SCS",$Q$4="TSSOnly"),0,IF($Q$4="yes",($Q$5*C13-N13)*RateInputs!F7,($Q$5*C13-R13)*RateInputs!F7)),0) -> 43762 | U13: =ROUND(IF(OR(LEFT($D$10,6)=ResourceProfiles!$D$97,$Q$4="GMS",$Q$4="SCS",$Q$4="TSSOnly"),0,IF($Q$4="yes",($Q$5*D13-O13)*RateInputs!G7,($Q$5*D13-S13)*RateInputs!G7)),0) -> 37106 | V13: =ROUND(IF(OR(RIGHT($D$10,6)=ResourceProfiles!$D$68,$Q$4="GMS",$Q$4="SCS",$Q$4="TSSOnly"),0,IF($Q$4="yes",($Q$6*E13-P13)*RateInputs!H7,($Q$6*E13-R13)*RateInputs!F7)),0) -> 43527 | W13: =ROUND(IF(OR(RIGHT($D$10,6)=ResourceProfiles!$D$68,$Q$4="GMS",$Q$4="SCS",$Q$4="TSSOnly"),0,IF($Q$4="yes",($Q$6*F13-Q13)*RateInputs!I7,($Q$6*F13-S13)*RateInputs!G7)),0) -> 36935 | Y13: =IF($Z$4="no",0,IF(OR($D$10=ResourceProfiles!$D$68,$D$10=ResourceProfiles!$D$68 & "&" & ResourceProfiles!$D$97),IF(AND($Z$4="yes",$Q$4="yes"),N13/C13*K13*1000*$Z$5,J13*K13*$Z$5),0)) -> 0 | Z13: =IF($Z$4="no",0,IF(OR($D$10=ResourceProfiles!$D$97,$D$10=ResourceProfiles!$D$68 & "&" & ResourceProfiles!$D$97),IF(AND($Z$4="yes",$Q$4="yes"),P13/C13*K13*1000*$Z$5,J13*K13*$Z$5),0)) -> 0 | AA13: =IF($Z$4="no","N/A",ROUND($Z$5*R13,0)+ROUND($Z$5*S13,0)) -> N/A | AB13: =ResourceProfiles!$D$68 -> FY2018 | AC13: =IF($AD$4="yes",IF(OR($D$10=ResourceProfiles!$D$68,$D$10=ResourceProfiles!$D$68 & "&" & ResourceProfiles!$D$97),AC12*SUM(N12:O23),0),0) -> 19581.46848 | AD13: =IF($AD$4="yes",IF(OR($D$10=ResourceProfiles!$D$68,$D$10=ResourceProfiles!$D$68 & "&" & ResourceProfiles!$D$97),AD12*12,0),0) -> 11731.2 | AF13: =ResourceProfiles!$D$68 -> FY2018 | AG13: 0 | AI13: =IF($AJ$4="no",0,$Z$5*N13/C13*RateInputs!H7*1000) -> 0 | AJ13: =IF($AJ$4="no",0,$Z$5*P13/E13*RateInputs!H7*1000) -> 0 | AL13: =IF($AM$4="no",0,$Z$5*N13/C13*RateInputs!H7*1000) -> 0 | AM13: =IF($AM$4="no",0,$Z$5*P13/E13*RateInputs!H7*1000) -> 0 | AO13: November | AP13: =ROUND((IF($D$10=ResourceProfiles!$D$68,0,IF($I$4="yes",MAX(0,(R13/C13*1000-J13)+IF($Z$4="no",0,$Z$5*J13)),IF(OR($Z$4="yes",$AJ$4="yes",$AM$4="yes"),$Z$5*N13/C13*1000,0)))),0) -> 11955 | AQ13: =ROUND((IF($D$10=ResourceProfiles!$D$97,0,IF($I$4="yes",MAX(0,(S13/D13*1000-'ResourceSelect&Sort&Summarize'!AP13)+IF($Z$4="no",0,$Z$5*'ResourceSelect&Sort&Summarize'!AP13)),IF(OR($Z$4="yes",$AJ$4="yes",$AM$4="yes"),$Z$5*O13/D13*1000,0)))),0) -> 11294 | AR13: =ROUND((IF($D$10=ResourceProfiles!$D$68,0,IF($I$4="yes",MAX(0,(R13/E13*1000-J13)+IF($Z$4="no",0,$Z$5*J13)),IF(OR($Z$4="yes",$AJ$4="yes",$AM$4="yes"),$Z$5*P13/E13*1000,0)))),0) -> 11955 | AS13: =ROUND((IF($D$10=ResourceProfiles!$D$97,0,IF($I$4="yes",MAX(0,(S13/F13*1000-'ResourceSelect&Sort&Summarize'!AP13)+IF($Z$4="no",0,$Z$5*'ResourceSelect&Sort&Summarize'!AP13)),IF(OR($Z$4="yes",$AJ$4="yes",$AM$4="yes"),$Z$5*Q13/F13*1000,0)))),0) -> 11294
B14: December | C14: =RateInputs!S8 -> 400 | D14: =RateInputs!T8 -> 344 | E14: =RateInputs!U8 -> 400 | F14: =RateInputs!V8 -> 344 | H14: ='ResourceSelect&Sort&Summarize'!AL14*RateInputs!$I$6*RateInputs!F8 -> 14670.66 | I14: ='ResourceSelect&Sort&Summarize'!AM14*RateInputs!$I$6*RateInputs!G8 -> 7847 | J14: =IF($I$4="no",0,'ResourceSelect&Sort&Summarize'!AG14) -> 0 | K14: =RateInputs!H8 -> 11.83 | L14: =IF($I$4="yes",MAX(('ResourceSelect&Sort&Summarize'!P14/'ResourceSelect&Sort&Summarize'!C14*1000-J14)*K14,0),0) -> 100918.2084 | N14: =HLOOKUP($D$3,ResourceProfiles!$F$4:$IV$126,ResourceProfiles!A73) -> 6623.968 | O14: =HLOOKUP($D$3,ResourceProfiles!$F$4:$IV$126,ResourceProfiles!A86) -> 5222.744 | P14: =HLOOKUP($D$3,ResourceProfiles!$F$4:$IV$126,ResourceProfiles!A102) -> 6378 | Q14: =HLOOKUP($D$3,ResourceProfiles!$F$4:$IV$126,ResourceProfiles!A115) -> 5485.08 | R14: ='ResourceSelect&Sort&Summarize'!V14 -> 3685.2634 | S14: ='ResourceSelect&Sort&Summarize'!W14 -> 2268.33256 | T14: =ROUND(IF(OR(LEFT($D$10,6)=ResourceProfiles!$D$97,$Q$4="GMS",$Q$4="SCS",$Q$4="TSSOnly"),0,IF($Q$4="yes",($Q$5*C14-N14)*RateInputs!F8,($Q$5*C14-R14)*RateInputs!F8)),0) -> 81798 | U14: =ROUND(IF(OR(LEFT($D$10,6)=ResourceProfiles!$D$97,$Q$4="GMS",$Q$4="SCS",$Q$4="TSSOnly"),0,IF($Q$4="yes",($Q$5*D14-O14)*RateInputs!G8,($Q$5*D14-S14)*RateInputs!G8)),0) -> 85763 | V14: =ROUND(IF(OR(RIGHT($D$10,6)=ResourceProfiles!$D$68,$Q$4="GMS",$Q$4="SCS",$Q$4="TSSOnly"),0,IF($Q$4="yes",($Q$6*E14-P14)*RateInputs!H8,($Q$6*E14-R14)*RateInputs!F8)),0) -> 81536 | W14: =ROUND(IF(OR(RIGHT($D$10,6)=ResourceProfiles!$D$68,$Q$4="GMS",$Q$4="SCS",$Q$4="TSSOnly"),0,IF($Q$4="yes",($Q$6*F14-Q14)*RateInputs!I8,($Q$6*F14-S14)*RateInputs!G8)),0) -> 85565 | Y14: =IF($Z$4="no",0,IF(OR($D$10=ResourceProfiles!$D$68,$D$10=ResourceProfiles!$D$68 & "&" & ResourceProfiles!$D$97),IF(AND($Z$4="yes",$Q$4="yes"),N14/C14*K14*1000*$Z$5,J14*K14*$Z$5),0)) -> 0 | Z14: =IF($Z$4="no",0,IF(OR($D$10=ResourceProfiles!$D$97,$D$10=ResourceProfiles!$D$68 & "&" & ResourceProfiles!$D$97),IF(AND($Z$4="yes",$Q$4="yes"),P14/C14*K14*1000*$Z$5,J14*K14*$Z$5),0)) -> 0 | AA14: N/A | AB14: =ResourceProfiles!$D$97 -> FY2019 | AC14: =IF($AD$4="yes",IF(OR($D$10=ResourceProfiles!$D$97,$D$10=ResourceProfiles!$D$68 & "&" & ResourceProfiles!$D$97),AC12*SUM(P12:Q23),0),0) -> 19554.948 | AD14: =IF($AD$4="yes",IF(OR($D$10=ResourceProfiles!$D$97,$D$10=ResourceProfiles!$D$68 & "&" & ResourceProfiles!$D$97),AD12*12,0),0) -> 11731.2 | AF14: =ResourceProfiles!$D$97 -> FY2019 | AG14: 0 | AI14: =IF($AJ$4="no",0,$Z$5*N14/C14*RateInputs!H8*1000) -> 0 | AJ14: =IF($AJ$4="no",0,$Z$5*P14/E14*RateInputs!H8*1000) -> 0 | AL14: =IF($AM$4="no",0,$Z$5*N14/C14*RateInputs!H8*1000) -> 0 | AM14: =IF($AM$4="no",0,$Z$5*P14/E14*RateInputs!H8*1000) -> 0 | AO14: December | AP14: =ROUND((IF($D$10=ResourceProfiles!$D$68,0,IF($I$4="yes",MAX(0,(R14/C14*1000-J14)+IF($Z$4="no",0,$Z$5*J14)),IF(OR($Z$4="yes",$AJ$4="yes",$AM$4="yes"),$Z$5*N14/C14*1000,0)))),0) -> 9213 | AQ14: =ROUND((IF($D$10=ResourceProfiles!$D$97,0,IF($I$4="yes",MAX(0,(S14/D14*1000-'ResourceSelect&Sort&Summarize'!AP14)+IF($Z$4="no",0,$Z$5*'ResourceSelect&Sort&Summarize'!AP14)),IF(OR($Z$4="yes",$AJ$4="yes",$AM$4="yes"),$Z$5*O14/D14*1000,0)))),0) -> 6594 | AR14: =ROUND((IF($D$10=ResourceProfiles!$D$68,0,IF($I$4="yes",MAX(0,(R14/E14*1000-J14)+IF($Z$4="no",0,$Z$5*J14)),IF(OR($Z$4="yes",$AJ$4="yes",$AM$4="yes"),$Z$5*P14/E14*1000,0)))),0) -> 9213 | AS14: =ROUND((IF($D$10=ResourceProfiles!$D$97,0,IF($I$4="yes",MAX(0,(S14/F14*1000-'ResourceSelect&Sort&Summarize'!AP14)+IF($Z$4="no",0,$Z$5*'ResourceSelect&Sort&Summarize'!AP14)),IF(OR($Z$4="yes",$AJ$4="yes",$AM$4="yes"),$Z$5*Q14/F14*1000,0)))),0) -> 6594
